Workbook

Sheet Instructions
A1: Instructions
A2: 1 | B2: Click the "Begin Button" below
A3: 2 | B3: Enter the Community using the pull-down menu in cell B2
A4: 3 | B4: Enter the information in cells B3-B11
A5: 4 | B5: Select Yes in cell B14 to use the default borrowing rate* or No and then enter the known borrowing rate for the Community
A6: 5 | B6: Click on the "Run Model" button to view the results on the Drinking Water Outputs page
A7: 6 | B7: Navigate through the results using the "Go To Outputs" buttons to view the results on for Wastewater or Combined Household Bills
A8: 7 | B8: Click on the "New Model" button from any page to return to the Inputs page and repeat steps 2-6
B13: * The default borrowing rate is the average of the most recent National A-rated municipal bond yield curve rates at various maturities.

Sheet Inputs
A1: Model Inputs
A2: Community | B2: Adrian
A3: Current Average Household Monthly Drinking Water Bill ($) | B3: 0
A4: Current Annual Growth Rate in Drinking Water Bills* | B4: 0
A5: Current Average Household Monthly Wastewater Bill ($) | B5: 0
A6: Current Annual Growth Rate in Wastewater Bills* | B6: 0
A8: Planned Expenditure on Drinking Water Infrastructure | B8: 0
A9: Number of Years that the Infrastructure Will be Financed | B9: 0
A10: Planned Expenditure on Wastewater Infrastructure | B10: 0
A11: Number of Years that the Infrastructure Will be Financed | B11: 0
A13: Annual Interest Rate
A14: Use Default Rate? | B14: Yes
A15: If not, Enter Annual Interest Rate for Financing
A19: * - Note: The current annual growth rate in bills should
A20: incorporate all projected cost increases
A21: EXCEPT for those associated with the debt
A22: payments on infrastructure.

Sheet Drinking Water Output
A1: Model Outputs - Drinking Water
A2: Community | B2: =city -> Adrian
A3: Community Population (2021) | B3: ='Drinking Water Analysis Sheet'!M6 -> 1574.109091
A4: Increase in Average Monthly Drinking Water Bill | B4: =IF(drinkprincipal>0,((PMT(rate,drinkyears,-drinkprincipal))/('Drinking Water Analysis Sheet'!N6/2.5))/12,0) -> 0
A5: Probability that Monthly Drinking Water Bill
A6: Exceeds 2.5% of Median Household Income | B6: =drinkmaxprob -> 0.001914535277
A7: Sustainability Risk | B7: =IF(B6<0.33,"Low",IF(B6<0.67,"Moderate","High")) -> Low
A9: Current MHI (2021) | B9: =+B24 -> 43805.33144
A10: Current Drinking Water Bill | B10: =+drinkbill -> 0
A11: Projected Average Drinking Water Bill | B11: =+B10+B4 -> 0
A17: Note: The graph shows the typical sustainable threshold
A18: for the community (blue line), forecast into the future,
A19: along with a range of estimates developed in a
A20: statistical model. It also shows the projected drinking water
A21: bills using the inputs you provided.
A23: Projections | B23: 2021 | C23: 2022 | D23: 2023 | E23: 2024 | F23: 2025 | G23: 2026 | H23: 2027 | I23: 2028 | J23: 2029 | K23: 2030 | L23: 2031 | M23: 2032 | N23: 2033
A24: Median Household Income | B24: ='Drinking Water Analysis Sheet'!M2*12 -> 43805.33144 | C24: ='Drinking Water Analysis Sheet'!N2*12 -> 43388.29739 | D24: ='Drinking Water Analysis Sheet'!O2*12 -> 43117.04758 | E24: ='Drinking Water Analysis Sheet'!P2*12 -> 43151.90166 | F24: ='Drinking Water Analysis Sheet'!Q2*12 -> 43347.25836 | G24: ='Drinking Water Analysis Sheet'!R2*12 -> 43569.89097 | H24: ='Drinking Water Analysis Sheet'!S2*12 -> 43845.09326 | I24: ='Drinking Water Analysis Sheet'!T2*12 -> 44138.40329 | J24: ='Drinking Water Analysis Sheet'!U2*12 -> 44433.30092 | K24: ='Drinking Water Analysis Sheet'!V2*12 -> 44422.11268 | L24: ='Drinking Water Analysis Sheet'!W2*12 -> 44464.67057 | M24: ='Drinking Water Analysis Sheet'!X2*12 -> 44498.39203 | N24: ='Drinking Water Analysis Sheet'!Y2*12 -> 44482.50011
A25: Monthly Drinking Water Bill | B25: ='Drinking Water Analysis Sheet'!M7 -> 0 | C25: ='Drinking Water Analysis Sheet'!N7 -> 0 | D25: ='Drinking Water Analysis Sheet'!O7 -> 0 | E25: ='Drinking Water Analysis Sheet'!P7 -> 0 | F25: ='Drinking Water Analysis Sheet'!Q7 -> 0 | G25: ='Drinking Water Analysis Sheet'!R7 -> 0 | H25: ='Drinking Water Analysis Sheet'!S7 -> 0 | I25: ='Drinking Water Analysis Sheet'!T7 -> 0 | J25: ='Drinking Water Analysis Sheet'!U7 -> 0 | K25: ='Drinking Water Analysis Sheet'!V7 -> 0 | L25: ='Drinking Water Analysis Sheet'!W7 -> 0 | M25: ='Drinking Water Analysis Sheet'!X7 -> 0 | N25: ='Drinking Water Analysis Sheet'!Y7 -> 0
A26: % MHI | B26: =+(B25/B24)*12 -> 0 | C26: =+(C25/C24)*12 -> 0 | D26: 0 | E26: 0 | F26: 0 | G26: 0 | H26: 0 | I26: 0 | J26: 0 | K26: 0 | L26: 0 | M26: 0 | N26: 0
A27: Population | B27: =VLOOKUP(city,poptable,B23-2008,FALSE) -> 1574.109091 | C27: 1565.418182 | D27: 1556.727273 | E27: 1548.036364 | F27: 1539.345455 | G27: 1530.654545 | H27: 1521.963636 | I27: 1513.272727 | J27: 1504.581818 | K27: 1495.890909 | L27: 1487.2 | M27: 1478.509091 | N27: 1469.818182
A29: Projections | B29: 2034 | C29: 2035 | D29: 2036 | E29: 2037 | F29: 2038 | G29: 2039 | H29: 2040 | I29: 2041 | J29: 2042 | K29: 2043 | L29: 2044 | M29: 2045 | N29: 2046
A30: Median Household Income | B30: =+'Drinking Water Analysis Sheet'!Z2*12 -> 44483.79881 | C30: =+'Drinking Water Analysis Sheet'!AA2*12 -> 44480.74164 | D30: =+'Drinking Water Analysis Sheet'!AB2*12 -> 44470.13253 | E30: =+'Drinking Water Analysis Sheet'!AC2*12 -> 44463.64266 | F30: =+'Drinking Water Analysis Sheet'!AD2*12 -> 44455.738 | G30: =+'Drinking Water Analysis Sheet'!AE2*12 -> 44446.80934 | H30: =+'Drinking Water Analysis Sheet'!AF2*12 -> 44438.73733 | I30: =+'Drinking Water Analysis Sheet'!AG2*12 -> 44430.28646 | J30: =+'Drinking Water Analysis Sheet'!AH2*12 -> 44421.72792 | K30: =+'Drinking Water Analysis Sheet'!AI2*12 -> 44413.33003 | L30: =+'Drinking Water Analysis Sheet'!AJ2*12 -> 44404.84218 | M30: =+'Drinking Water Analysis Sheet'!AK2*12 -> 44396.35137 | N30: =+'Drinking Water Analysis Sheet'!AL2*12 -> 44387.88781
A31: Monthly Drinking Water Bill | B31: =+'Drinking Water Analysis Sheet'!Z7 -> 0 | C31: =+'Drinking Water Analysis Sheet'!AA7 -> 0 | D31: =+'Drinking Water Analysis Sheet'!AB7 -> 0 | E31: =+'Drinking Water Analysis Sheet'!AC7 -> 0 | F31: =+'Drinking Water Analysis Sheet'!AD7 -> 0 | G31: =+'Drinking Water Analysis Sheet'!AE7 -> 0 | H31: =+'Drinking Water Analysis Sheet'!AF7 -> 0 | I31: =+'Drinking Water Analysis Sheet'!AG7 -> 0 | J31: =+'Drinking Water Analysis Sheet'!AH7 -> 0 | K31: =+'Drinking Water Analysis Sheet'!AI7 -> 0 | L31: =+'Drinking Water Analysis Sheet'!AJ7 -> 0 | M31: =+'Drinking Water Analysis Sheet'!AK7 -> 0 | N31: =+'Drinking Water Analysis Sheet'!AL7 -> 0
A32: % MHI | B32: =+(B31/B30)*12 -> 0 | C32: =+(C31/C30)*12 -> 0 | D32: 0 | E32: 0 | F32: 0 | G32: 0 | H32: 0 | I32: 0 | J32: 0 | K32: 0 | L32: 0 | M32: 0 | N32: 0
A33: Population | B33: =VLOOKUP(city,poptable,B29-2008,FALSE) -> 1461.127273 | C33: 1452.436364 | D33: 1443.745455 | E33: 1435.054545 | F33: 1426.363636 | G33: 1417.672727 | H33: 1408.981818 | I33: 1400.290909 | J33: 1391.6 | K33: 1382.909091 | L33: 1374.218182 | M33: 1365.527273 | N33: 1356.836364
A35: Projections | B35: 2047 | C35: 2048 | D35: 2049 | E35: 2050 | F35: 2051
A36: Median Household Income | B36: =+'Drinking Water Analysis Sheet'!AM2*12 -> 44379.40472 | C36: =+'Drinking Water Analysis Sheet'!AN2*12 -> 44370.92439 | D36: =+'Drinking Water Analysis Sheet'!AO2*12 -> 44362.44813 | E36: =+'Drinking Water Analysis Sheet'!AP2*12 -> 44353.96794 | F36: =+'Drinking Water Analysis Sheet'!AQ2*12 -> 44345.48887
A37: Monthly Drinking Water Bill | B37: =+'Drinking Water Analysis Sheet'!AM7 -> 0 | C37: =+'Drinking Water Analysis Sheet'!AN7 -> 0 | D37: =+'Drinking Water Analysis Sheet'!AO7 -> 0 | E37: =+'Drinking Water Analysis Sheet'!AP7 -> 0 | F37: =+'Drinking Water Analysis Sheet'!AQ7 -> 0
A38: % MHI | B38: =+B37/B36*12 -> 0 | C38: =+C37/C36*12 -> 0 | D38: 0 | E38: 0 | F38: 0
A39: Population | B39: =VLOOKUP(city,poptable,B35-2008,FALSE) -> 1348.145455 | C39: 1339.454545 | D39: 1330.763636 | E39: 1322.072727 | F39: 1313.381818

Sheet Drinking Water Analysis Sheet (hidden)
A1: City | B1: 2010 | C1: 2011 | D1: 2012 | E1: 2013 | F1: 2014 | G1: 2015 | H1: 2016 | I1: 2017 | J1: 2018 | K1: 2019 | L1: 2020 | M1: 2021 | N1: 2022 | O1: 2023 | P1: 2024 | Q1: 2025 | R1: 2026 | S1: 2027 | T1: 2028 | U1: 2029 | V1: 2030 | W1: 2031 | X1: 2032 | Y1: 2033 | Z1: 2034 | AA1: 2035 | AB1: 2036 | AC1: 2037 | AD1: 2038 | AE1: 2039 | AF1: 2040 | AG1: 2041 | AH1: 2042 | AI1: 2043 | AJ1: 2044 | AK1: 2045 | AL1: 2046 | AM1: 2047 | AN1: 2048 | AO1: 2049 | AP1: 2050 | AQ1: 2051 | AU1: rate | AV1: =IF(Inputs!B14="Yes",VLOOKUP(drinkyears,yieldcurve,2),userrate) -> 0.0218 | AX1: 0 | AY1: 0.0218 | BA1: Yes
A2: Income | B2: =VLOOKUP(city,incometable,'Drinking Water Analysis Sheet'!B1-2008,FALSE)/12 -> 2818.666667 | C2: =VLOOKUP(city,incometable,'Drinking Water Analysis Sheet'!C1-2008,FALSE)/12 -> 3077.166667 | D2: =VLOOKUP(city,incometable,'Drinking Water Analysis Sheet'!D1-2008,FALSE)/12 -> 3156.666667 | E2: =VLOOKUP(city,incometable,'Drinking Water Analysis Sheet'!E1-2008,FALSE)/12 -> 3118.833333 | F2: =VLOOKUP(city,incometable,'Drinking Water Analysis Sheet'!F1-2008,FALSE)/12 -> 3130.25 | G2: =VLOOKUP(city,incometable,'Drinking Water Analysis Sheet'!G1-2008,FALSE)/12 -> 3114 | H2: =VLOOKUP(city,incometable,'Drinking Water Analysis Sheet'!H1-2008,FALSE)/12 -> 3125 | I2: =VLOOKUP(city,incometable,'Drinking Water Analysis Sheet'!I1-2008,FALSE)/12 -> 3402.75 | J2: =VLOOKUP(city,incometable,'Drinking Water Analysis Sheet'!J1-2008,FALSE)/12 -> 3242.166667 | K2: =VLOOKUP(city,incometable,'Drinking Water Analysis Sheet'!K1-2008,FALSE)/12 -> 4016.166667 | L2: =VLOOKUP(city,incometable,'Drinking Water Analysis Sheet'!L1-2008,FALSE)/12 -> 3764.215401 | M2: =VLOOKUP(city,incometable,'Drinking Water Analysis Sheet'!M1-2008,FALSE)/12 -> 3650.444287 | N2: =VLOOKUP(city,incometable,'Drinking Water Analysis Sheet'!N1-2008,FALSE)/12 -> 3615.691449 | O2: =VLOOKUP(city,incometable,'Drinking Water Analysis Sheet'!O1-2008,FALSE)/12 -> 3593.087298 | P2: =VLOOKUP(city,incometable,'Drinking Water Analysis Sheet'!P1-2008,FALSE)/12 -> 3595.991805 | Q2: =VLOOKUP(city,incometable,'Drinking Water Analysis Sheet'!Q1-2008,FALSE)/12 -> 3612.27153 | R2: =VLOOKUP(city,incometable,'Drinking Water Analysis Sheet'!R1-2008,FALSE)/12 -> 3630.824248 | S2: =VLOOKUP(city,incometable,'Drinking Water Analysis Sheet'!S1-2008,FALSE)/12 -> 3653.757772 | T2: =VLOOKUP(city,incometable,'Drinking Water Analysis Sheet'!T1-2008,FALSE)/12 -> 3678.200274 | U2: =VLOOKUP(city,incometable,'Drinking Water Analysis Sheet'!U1-2008,FALSE)/12 -> 3702.775076 | V2: =VLOOKUP(city,incometable,'Drinking Water Analysis Sheet'!V1-2008,FALSE)/12 -> 3701.842723 | W2: =VLOOKUP(city,incometable,'Drinking Water Analysis Sheet'!W1-2008,FALSE)/12 -> 3705.389214 | X2: =VLOOKUP(city,incometable,'Drinking Water Analysis Sheet'!X1-2008,FALSE)/12 -> 3708.199336 | Y2: =VLOOKUP(city,incometable,'Drinking Water Analysis Sheet'!Y1-2008,FALSE)/12 -> 3706.87501 | Z2: =VLOOKUP(city,incometable,'Drinking Water Analysis Sheet'!Z1-2008,FALSE)/12 -> 3706.983234 | AA2: =VLOOKUP(city,incometable,'Drinking Water Analysis Sheet'!AA1-2008,FALSE)/12 -> 3706.72847 | AB2: =VLOOKUP(city,incometable,'Drinking Water Analysis Sheet'!AB1-2008,FALSE)/12 -> 3705.844378 | AC2: =VLOOKUP(city,incometable,'Drinking Water Analysis Sheet'!AC1-2008,FALSE)/12 -> 3705.303555 | AD2: =VLOOKUP(city,incometable,'Drinking Water Analysis Sheet'!AD1-2008,FALSE)/12 -> 3704.644833 | AE2: =VLOOKUP(city,incometable,'Drinking Water Analysis Sheet'!AE1-2008,FALSE)/12 -> 3703.900779 | AF2: =VLOOKUP(city,incometable,'Drinking Water Analysis Sheet'!AF1-2008,FALSE)/12 -> 3703.228111 | AG2: =VLOOKUP(city,incometable,'Drinking Water Analysis Sheet'!AG1-2008,FALSE)/12 -> 3702.523871 | AH2: =VLOOKUP(city,incometable,'Drinking Water Analysis Sheet'!AH1-2008,FALSE)/12 -> 3701.81066 | AI2: =VLOOKUP(city,incometable,'Drinking Water Analysis Sheet'!AI1-2008,FALSE)/12 -> 3701.110836 | AJ2: =VLOOKUP(city,incometable,'Drinking Water Analysis Sheet'!AJ1-2008,FALSE)/12 -> 3700.403515 | AK2: =VLOOKUP(city,incometable,'Drinking Water Analysis Sheet'!AK1-2008,FALSE)/12 -> 3699.695947 | AL2: =VLOOKUP(city,incometable,'Drinking Water Analysis Sheet'!AL1-2008,FALSE)/12 -> 3698.990651 | AM2: =VLOOKUP(city,incometable,'Drinking Water Analysis Sheet'!AM1-2008,FALSE)/12 -> 3698.283727 | AN2: =VLOOKUP(city,incometable,'Drinking Water Analysis Sheet'!AN1-2008,FALSE)/12 -> 3697.577032 | AO2: =VLOOKUP(city,incometable,'Drinking Water Analysis Sheet'!AO1-2008,FALSE)/12 -> 3696.870678 | AP2: =VLOOKUP(city,incometable,'Drinking Water Analysis Sheet'!AP1-2008,FALSE)/12 -> 3696.163995 | AQ2: =VLOOKUP(city,incometable,'Drinking Water Analysis Sheet'!AQ1-2008,FALSE)/12 -> 3695.457406 | AU2: =MAX(M8:AQ8) -> 0.001914535277 | AX2: 10 | AY2: 0.036 | BA2: No
A3: SE | B3: =VLOOKUP(city,setable,B1-2008,FALSE)/12 -> 0 | C3: 0 | D3: 0 | E3: 0 | F3: 0 | G3: 0 | H3: 0 | I3: 0 | J3: 0 | K3: 0 | L3: 225.8959108 | M3: 319.4650608 | N3: 391.2631948 | O3: 451.7918217 | P3: 505.1186125 | Q3: 553.3297165 | R3: 597.6644022 | S3: 638.9301216 | T3: 677.6877325 | U3: 714.3455923 | V3: 749.2119779 | W3: 782.5263896 | X3: 814.4792894 | Y3: 845.2251034 | Z3: 874.8911006 | AA3: 903.5836433 | AB3: 931.3927008 | AC3: 958.3951823 | AD3: 984.6574471 | AE3: 1010.237225 | AF3: 1035.185111 | AG3: 1059.54574 | AH3: 1083.35873 | AI3: 1106.659433 | AJ3: 1129.479554 | AK3: 1151.847657 | AL3: 1173.789584 | AM3: 1195.328804 | AN3: 1216.486709 | AO3: 1237.28286 | AP3: 1257.735202 | AQ3: 1277.860243 | AX3: 20 | AY3: 0.041
A4: 2.5% Income | B4: =B2*0.025 -> 70.46666667 | C4: =C2*0.025 -> 76.92916667 | D4: 78.91666667 | E4: 77.97083333 | F4: 78.25625 | G4: 77.85 | H4: 78.125 | I4: 85.06875 | J4: 81.05416667 | K4: 100.4041667 | L4: 94.10538501 | M4: 91.26110717 | N4: 90.39228622 | O4: 89.82718246 | P4: 89.89979513 | Q4: 90.30678825 | R4: 90.77060619 | S4: 91.3439443 | T4: 91.95500685 | U4: 92.56937691 | V4: 92.54606808 | W4: 92.63473035 | X4: 92.7049834 | Y4: 92.67187524 | Z4: 92.67458085 | AA4: 92.66821176 | AB4: 92.64610944 | AC4: 92.63258887 | AD4: 92.61612083 | AE4: 92.59751947 | AF4: 92.58070277 | AG4: 92.56309678 | AH4: 92.5452665 | AI4: 92.52777089 | AJ4: 92.51008788 | AK4: 92.49239868 | AL4: 92.47476628 | AM4: 92.45709317 | AN4: 92.4394258 | AO4: 92.42176694 | AP4: 92.40409988 | AQ4: 92.38643514
A5: 2.5% SE | B5: =B3*0.025 -> 0 | C5: =C3*0.025 -> 0 | D5: 0 | E5: 0 | F5: 0 | G5: 0 | H5: 0 | I5: 0 | J5: 0 | K5: 0 | L5: 5.647397771 | M5: 7.98662652 | N5: 9.78157987 | O5: 11.29479554 | P5: 12.62796531 | Q5: 13.83324291 | R5: 14.94161006 | S5: 15.97325304 | T5: 16.94219331 | U5: 17.85863981 | V5: 18.73029945 | W5: 19.56315974 | X5: 20.36198224 | Y5: 21.13062759 | Z5: 21.87227752 | AA5: 22.58959108 | AB5: 23.28481752 | AC5: 23.95987956 | AD5: 24.61643618 | AE5: 25.25593062 | AF5: 25.87962776 | AG5: 26.48864351 | AH5: 27.08396825 | AI5: 27.66648583 | AJ5: 28.23698885 | AK5: 28.79619143 | AL5: 29.34473961 | AM5: 29.88322011 | AN5: 30.41216773 | AO5: 30.9320715 | AP5: 31.44338005 | AQ5: 31.94650608
A6: Population | B6: =VLOOKUP(city,poptable,B1-2008,FALSE) -> 1683 | C6: 1678 | D6: 1640 | E6: 1622 | F6: 1634 | G6: 1616 | H6: 1616 | I6: 1609 | J6: 1611 | K6: 1597 | L6: 1582.8 | M6: 1574.109091 | N6: 1565.418182 | O6: 1556.727273 | P6: 1548.036364 | Q6: 1539.345455 | R6: 1530.654545 | S6: 1521.963636 | T6: 1513.272727 | U6: 1504.581818 | V6: 1495.890909 | W6: 1487.2 | X6: 1478.509091 | Y6: 1469.818182 | Z6: 1461.127273 | AA6: 1452.436364 | AB6: 1443.745455 | AC6: 1435.054545 | AD6: 1426.363636 | AE6: 1417.672727 | AF6: 1408.981818 | AG6: 1400.290909 | AH6: 1391.6 | AI6: 1382.909091 | AJ6: 1374.218182 | AK6: 1365.527273 | AL6: 1356.836364 | AM6: 1348.145455 | AN6: 1339.454545 | AO6: 1330.763636 | AP6: 1322.072727 | AQ6: 1313.381818
A7: Water Cost | M7: =drinkbill -> 0 | N7: =M7*(1+drinkbillgrowth)+IF(drinkprincipal>0,((PMT(rate,drinkyears,-drinkprincipal))/(N6/2.5))/12-N14*(PMT(rate,drinkyears,-drinkprincipal)/(N6/2.5))/12,0) -> 0 | O7: =IF(O1<$M$1+drinkyears+1,N7*(1+drinkbillgrowth)-IF(drinkprincipal>0,O14*(PMT(rate,drinkyears,-drinkprincipal)/(N6/2.5)/12),0),O16) -> 0 | P7: =IF(P1<$M$1+drinkyears+1,O7*(1+drinkbillgrowth)-IF(drinkprincipal>0,P14*(PMT(rate,drinkyears,-drinkprincipal)/(O6/2.5)/12),0),P16) -> 0 | Q7: =IF(Q1<$M$1+drinkyears+1,P7*(1+drinkbillgrowth)-IF(drinkprincipal>0,Q14*(PMT(rate,drinkyears,-drinkprincipal)/(P6/2.5)/12),0),Q16) -> 0 | R7: =IF(R1<$M$1+drinkyears+1,Q7*(1+drinkbillgrowth)-IF(drinkprincipal>0,R14*(PMT(rate,drinkyears,-drinkprincipal)/(Q6/2.5)/12),0),R16) -> 0 | S7: =IF(S1<$M$1+drinkyears+1,R7*(1+drinkbillgrowth)-IF(drinkprincipal>0,S14*(PMT(rate,drinkyears,-drinkprincipal)/(R6/2.5)/12),0),S16) -> 0 | T7: =IF(T1<$M$1+drinkyears+1,S7*(1+drinkbillgrowth)-IF(drinkprincipal>0,T14*(PMT(rate,drinkyears,-drinkprincipal)/(S6/2.5)/12),0),T16) -> 0 | U7: =IF(U1<$M$1+drinkyears+1,T7*(1+drinkbillgrowth)-IF(drinkprincipal>0,U14*(PMT(rate,drinkyears,-drinkprincipal)/(T6/2.5)/12),0),U16) -> 0 | V7: =IF(V1<$M$1+drinkyears+1,U7*(1+drinkbillgrowth)-IF(drinkprincipal>0,V14*(PMT(rate,drinkyears,-drinkprincipal)/(U6/2.5)/12),0),V16) -> 0 | W7: =IF(W1<$M$1+drinkyears+1,V7*(1+drinkbillgrowth)-IF(drinkprincipal>0,W14*(PMT(rate,drinkyears,-drinkprincipal)/(V6/2.5)/12),0),W16) -> 0 | X7: =IF(X1<$M$1+drinkyears+1,W7*(1+drinkbillgrowth)-IF(drinkprincipal>0,X14*(PMT(rate,drinkyears,-drinkprincipal)/(W6/2.5)/12),0),X16) -> 0 | Y7: =IF(Y1<$M$1+drinkyears+1,X7*(1+drinkbillgrowth)-IF(drinkprincipal>0,Y14*(PMT(rate,drinkyears,-drinkprincipal)/(X6/2.5)/12),0),Y16) -> 0 | Z7: =IF(Z1<$M$1+drinkyears+1,Y7*(1+drinkbillgrowth)-IF(drinkprincipal>0,Z14*(PMT(rate,drinkyears,-drinkprincipal)/(Y6/2.5)/12),0),Z16) -> 0 | AA7: =IF(AA1<$M$1+drinkyears+1,Z7*(1+drinkbillgrowth)-IF(drinkprincipal>0,AA14*(PMT(rate,drinkyears,-drinkprincipal)/(Z6/2.5)/12),0),AA16) -> 0 | AB7: =IF(AB1<$M$1+drinkyears+1,AA7*(1+drinkbillgrowth)-IF(drinkprincipal>0,AB14*(PMT(rate,drinkyears,-drinkprincipal)/(AA6/2.5)/12),0),AB16) -> 0 | AC7: =IF(AC1<$M$1+drinkyears+1,AB7*(1+drinkbillgrowth)-IF(drinkprincipal>0,AC14*(PMT(rate,drinkyears,-drinkprincipal)/(AB6/2.5)/12),0),AC16) -> 0 | AD7: =IF(AD1<$M$1+drinkyears+1,AC7*(1+drinkbillgrowth)-IF(drinkprincipal>0,AD14*(PMT(rate,drinkyears,-drinkprincipal)/(AC6/2.5)/12),0),AD16) -> 0 | AE7: =IF(AE1<$M$1+drinkyears+1,AD7*(1+drinkbillgrowth)-IF(drinkprincipal>0,AE14*(PMT(rate,drinkyears,-drinkprincipal)/(AD6/2.5)/12),0),AE16) -> 0 | AF7: =IF(AF1<$M$1+drinkyears+1,AE7*(1+drinkbillgrowth)-IF(drinkprincipal>0,AF14*(PMT(rate,drinkyears,-drinkprincipal)/(AE6/2.5)/12),0),AF16) -> 0 | AG7: =IF(AG1<$M$1+drinkyears+1,AF7*(1+drinkbillgrowth)-IF(drinkprincipal>0,AG14*(PMT(rate,drinkyears,-drinkprincipal)/(AF6/2.5)/12),0),AG16) -> 0 | AH7: =IF(AH1<$M$1+drinkyears+1,AG7*(1+drinkbillgrowth)-IF(drinkprincipal>0,AH14*(PMT(rate,drinkyears,-drinkprincipal)/(AG6/2.5)/12),0),AH16) -> 0 | AI7: =IF(AI1<$M$1+drinkyears+1,AH7*(1+drinkbillgrowth)-IF(drinkprincipal>0,AI14*(PMT(rate,drinkyears,-drinkprincipal)/(AH6/2.5)/12),0),AI16) -> 0 | AJ7: =IF(AJ1<$M$1+drinkyears+1,AI7*(1+drinkbillgrowth)-IF(drinkprincipal>0,AJ14*(PMT(rate,drinkyears,-drinkprincipal)/(AI6/2.5)/12),0),AJ16) -> 0 | AK7: =IF(AK1<$M$1+drinkyears+1,AJ7*(1+drinkbillgrowth)-IF(drinkprincipal>0,AK14*(PMT(rate,drinkyears,-drinkprincipal)/(AJ6/2.5)/12),0),AK16) -> 0 | AL7: =IF(AL1<$M$1+drinkyears+1,AK7*(1+drinkbillgrowth)-IF(drinkprincipal>0,AL14*(PMT(rate,drinkyears,-drinkprincipal)/(AK6/2.5)/12),0),AL16) -> 0 | AM7: =IF(AM1<$M$1+drinkyears+1,AL7*(1+drinkbillgrowth)-IF(drinkprincipal>0,AM14*(PMT(rate,drinkyears,-drinkprincipal)/(AL6/2.5)/12),0),AM16) -> 0 | AN7: =IF(AN1<$M$1+drinkyears+1,AM7*(1+drinkbillgrowth)-IF(drinkprincipal>0,AN14*(PMT(rate,drinkyears,-drinkprincipal)/(AM6/2.5)/12),0),AN16) -> 0 | AO7: =IF(AO1<$M$1+drinkyears+1,AN7*(1+drinkbillgrowth)-IF(drinkprincipal>0,AO14*(PMT(rate,drinkyears,-drinkprincipal)/(AN6/2.5)/12),0),AO16) -> 0 | AP7: =IF(AP1<$M$1+drinkyears+1,AO7*(1+drinkbillgrowth)-IF(drinkprincipal>0,AP14*(PMT(rate,drinkyears,-drinkprincipal)/(AO6/2.5)/12),0),AP16) -> 0 | AQ7: =IF(AQ1<$M$1+drinkyears+1,AP7*(1+drinkbillgrowth)-IF(drinkprincipal>0,AQ14*(PMT(rate,drinkyears,-drinkprincipal)/(AP6/2.5)/12),0),AQ16) -> 0
A8: Probability Unafforable | M8: =_xlfn.NORM.DIST(M7,M4,M5,TRUE) -> 1.537170916e-30 | N8: 1.220196428e-20 | O8: 9.104542106e-16 | P8: 5.431556156e-13 | Q8: 3.327256309e-11 | R8: 6.198545544e-10 | S8: 5.371651026e-09 | T8: 2.85626027e-08 | U8: 1.089089808e-07 | V8: =_xlfn.NORM.DIST(V7,V4,V5,TRUE) -> 3.886508875e-07 | W8: 1.094401045e-06 | X8: 2.646242134e-06 | Y8: 5.781571404e-06 | Z8: 1.132229368e-05 | AA8: 2.045735016e-05 | AB8: 3.462900066e-05 | AC8: 5.52825243e-05 | AD8: 8.415567537e-05 | AE8: 0.0001230102212 | AF8: 0.0001735420912 | AG8: 0.0002375246112 | AH8: 0.0003166044368 | AI8: 0.0004123050625 | AJ8: 0.0005260658371 | AK8: 0.0006591490147 | AL8: 0.0008126619297 | AM8: 0.0009875645094 | AN8: 0.001184643654 | AO8: 0.001404532419 | AP8: =_xlfn.NORM.DIST(AP7,AP4,AP5,TRUE) -> 0.001647716369 | AQ8: 0.001914535277
A10: Chart Inputs
A11: 2.5% High Income | L11: =_xlfn.NORM.INV(0.95,L4,L5) -> 103.3945277 | M11: =_xlfn.NORM.INV(0.95,M4,M5) -> 104.3979388 | N11: 106.4815534 | O11: 108.4054679 | P11: 110.6709497 | Q11: 113.060448 | R11: 115.3473677 | S11: 117.6176075 | T11: 119.822435 | U11: 121.9442254 | V11: =_xlfn.NORM.INV(0.95,V4,V5) -> 123.3546691 | W11: 124.8132646 | X11: 126.1974637 | Y11: 127.4286647 | Z11: 128.6512759 | AA11: 129.8247826 | AB11: 130.946226 | AC11: 132.0430837 | AD11: 133.1065552 | AE11: 134.1398286 | AF11: 135.1489024 | AG11: 136.1330381 | AH11: 137.0944299 | AI11: 138.0350904 | AJ11: 138.9558014 | AK11: 139.8579186 | AL11: 140.7425677 | AM11: 141.6106162 | AN11: 142.4629902 | AO11: 143.3004969 | AP11: =_xlfn.NORM.INV(0.95,AP4,AP5) -> 144.1238576 | AQ11: 144.9337615
A12: 2.5% Low Income | L12: =_xlfn.NORM.INV(0.05,L4,L5) -> 84.81624231 | M12: =_xlfn.NORM.INV(0.05,M4,M5) -> 78.12427557 | N12: 74.3030191 | O12: 71.24889705 | P12: 69.12864058 | Q12: 67.55312847 | R12: 66.1938447 | S12: 65.0702811 | T12: 64.08757874 | U12: 63.19452845 | V12: =_xlfn.NORM.INV(0.05,V4,V5) -> 61.7374671 | W12: 60.4561961 | X12: 59.21250307 | Y12: 57.91508582 | Z12: 56.69788585 | AA12: 55.51164093 | AB12: 54.34599289 | AC12: 53.22209407 | AD12: 52.1256865 | AE12: 51.05521038 | AF12: 50.01250317 | AG12: 48.99315544 | AH12: 47.99610308 | AI12: 47.02045133 | AJ12: 46.06437435 | AK12: 45.12687876 | AL12: 44.2069649 | AM12: 43.30357018 | AN12: 42.41586141 | AO12: 41.54303694 | AP12: =_xlfn.NORM.INV(0.05,AP4,AP5) -> 40.68434216 | AQ12: 39.83910875
A14: Payoff Counter | M14: =IF(M1=$M$1+drinkyears+1,1,0) -> 0 | N14: 1 | O14: 0 | P14: 0 | Q14: 0 | R14: 0 | S14: 0 | T14: 0 | U14: 0 | V14: 0 | W14: 0 | X14: 0 | Y14: 0 | Z14: 0 | AA14: 0 | AB14: 0 | AC14: 0 | AD14: 0 | AE14: 0 | AF14: 0 | AG14: 0 | AH14: 0 | AI14: 0 | AJ14: 0 | AK14: 0 | AL14: 0 | AM14: 0 | AN14: 0 | AO14: 0 | AP14: 0 | AQ14: 0
A16: Growthrate | M16: =drinkbill -> 0 | N16: =M16*(1+drinkbillgrowth) -> 0 | O16: =N16*(1+drinkbillgrowth) -> 0 | P16: =O16*(1+drinkbillgrowth) -> 0 | Q16: =P16*(1+drinkbillgrowth) -> 0 | R16: =Q16*(1+drinkbillgrowth) -> 0 | S16: =R16*(1+drinkbillgrowth) -> 0 | T16: =S16*(1+drinkbillgrowth) -> 0 | U16: =T16*(1+drinkbillgrowth) -> 0 | V16: =U16*(1+drinkbillgrowth) -> 0 | W16: =V16*(1+drinkbillgrowth) -> 0 | X16: =W16*(1+drinkbillgrowth) -> 0 | Y16: =X16*(1+drinkbillgrowth) -> 0 | Z16: =Y16*(1+drinkbillgrowth) -> 0 | AA16: =Z16*(1+drinkbillgrowth) -> 0 | AB16: =AA16*(1+drinkbillgrowth) -> 0 | AC16: =AB16*(1+drinkbillgrowth) -> 0 | AD16: =AC16*(1+drinkbillgrowth) -> 0 | AE16: =AD16*(1+drinkbillgrowth) -> 0 | AF16: =AE16*(1+drinkbillgrowth) -> 0 | AG16: =AF16*(1+drinkbillgrowth) -> 0 | AH16: =AG16*(1+drinkbillgrowth) -> 0 | AI16: =AH16*(1+drinkbillgrowth) -> 0 | AJ16: =AI16*(1+drinkbillgrowth) -> 0 | AK16: =AJ16*(1+drinkbillgrowth) -> 0 | AL16: =AK16*(1+drinkbillgrowth) -> 0 | AM16: =AL16*(1+drinkbillgrowth) -> 0 | AN16: =AM16*(1+drinkbillgrowth) -> 0 | AO16: =AN16*(1+drinkbillgrowth) -> 0 | AP16: =AO16*(1+drinkbillgrowth) -> 0 | AQ16: =AP16*(1+drinkbillgrowth) -> 0

Sheet Wastewater Analysis Sheet (hidden)
A1: City | B1: 2010 | C1: 2011 | D1: 2012 | E1: 2013 | F1: 2014 | G1: 2015 | H1: 2016 | I1: 2017 | J1: 2018 | K1: 2019 | L1: 2020 | M1: 2021 | N1: 2022 | O1: 2023 | P1: 2024 | Q1: 2025 | R1: 2026 | S1: 2027 | T1: 2028 | U1: 2029 | V1: 2030 | W1: 2031 | X1: 2032 | Y1: 2033 | Z1: 2034 | AA1: 2035 | AB1: 2036 | AC1: 2037 | AD1: 2038 | AE1: 2039 | AF1: 2040 | AG1: 2041 | AH1: 2042 | AI1: 2043 | AJ1: 2044 | AK1: 2045 | AL1: 2046 | AM1: 2047 | AN1: 2048 | AO1: 2049 | AP1: 2050 | AQ1: 2051 | AT1: rate | AU1: =IF(Inputs!B14="Yes",VLOOKUP(wasteyears,yieldcurve,2),userrate) -> 0.03 | AW1: 0 | AX1: 0.03 | AZ1: Yes
A2: Income | B2: =VLOOKUP(city,incometable,'Wastewater Analysis Sheet'!B1-2008,FALSE)/12 -> 2818.666667 | C2: =VLOOKUP(city,incometable,'Wastewater Analysis Sheet'!C1-2008,FALSE)/12 -> 3077.166667 | D2: =VLOOKUP(city,incometable,'Wastewater Analysis Sheet'!D1-2008,FALSE)/12 -> 3156.666667 | E2: =VLOOKUP(city,incometable,'Wastewater Analysis Sheet'!E1-2008,FALSE)/12 -> 3118.833333 | F2: =VLOOKUP(city,incometable,'Wastewater Analysis Sheet'!F1-2008,FALSE)/12 -> 3130.25 | G2: =VLOOKUP(city,incometable,'Wastewater Analysis Sheet'!G1-2008,FALSE)/12 -> 3114 | H2: =VLOOKUP(city,incometable,'Wastewater Analysis Sheet'!H1-2008,FALSE)/12 -> 3125 | I2: =VLOOKUP(city,incometable,'Wastewater Analysis Sheet'!I1-2008,FALSE)/12 -> 3402.75 | J2: =VLOOKUP(city,incometable,'Wastewater Analysis Sheet'!J1-2008,FALSE)/12 -> 3242.166667 | K2: =VLOOKUP(city,incometable,'Wastewater Analysis Sheet'!K1-2008,FALSE)/12 -> 4016.166667 | L2: =VLOOKUP(city,incometable,'Wastewater Analysis Sheet'!L1-2008,FALSE)/12 -> 3764.215401 | M2: =VLOOKUP(city,incometable,'Wastewater Analysis Sheet'!M1-2008,FALSE)/12 -> 3650.444287 | N2: =VLOOKUP(city,incometable,'Wastewater Analysis Sheet'!N1-2008,FALSE)/12 -> 3615.691449 | O2: =VLOOKUP(city,incometable,'Wastewater Analysis Sheet'!O1-2008,FALSE)/12 -> 3593.087298 | P2: =VLOOKUP(city,incometable,'Wastewater Analysis Sheet'!P1-2008,FALSE)/12 -> 3595.991805 | Q2: =VLOOKUP(city,incometable,'Wastewater Analysis Sheet'!Q1-2008,FALSE)/12 -> 3612.27153 | R2: =VLOOKUP(city,incometable,'Wastewater Analysis Sheet'!R1-2008,FALSE)/12 -> 3630.824248 | S2: =VLOOKUP(city,incometable,'Wastewater Analysis Sheet'!S1-2008,FALSE)/12 -> 3653.757772 | T2: =VLOOKUP(city,incometable,'Wastewater Analysis Sheet'!T1-2008,FALSE)/12 -> 3678.200274 | U2: =VLOOKUP(city,incometable,'Wastewater Analysis Sheet'!U1-2008,FALSE)/12 -> 3702.775076 | V2: =VLOOKUP(city,incometable,'Wastewater Analysis Sheet'!V1-2008,FALSE)/12 -> 3701.842723 | W2: =VLOOKUP(city,incometable,'Wastewater Analysis Sheet'!W1-2008,FALSE)/12 -> 3705.389214 | X2: =VLOOKUP(city,incometable,'Wastewater Analysis Sheet'!X1-2008,FALSE)/12 -> 3708.199336 | Y2: =VLOOKUP(city,incometable,'Wastewater Analysis Sheet'!Y1-2008,FALSE)/12 -> 3706.87501 | Z2: =VLOOKUP(city,incometable,'Wastewater Analysis Sheet'!Z1-2008,FALSE)/12 -> 3706.983234 | AA2: =VLOOKUP(city,incometable,'Wastewater Analysis Sheet'!AA1-2008,FALSE)/12 -> 3706.72847 | AB2: =VLOOKUP(city,incometable,'Wastewater Analysis Sheet'!AB1-2008,FALSE)/12 -> 3705.844378 | AC2: =VLOOKUP(city,incometable,'Wastewater Analysis Sheet'!AC1-2008,FALSE)/12 -> 3705.303555 | AD2: =VLOOKUP(city,incometable,'Wastewater Analysis Sheet'!AD1-2008,FALSE)/12 -> 3704.644833 | AE2: =VLOOKUP(city,incometable,'Wastewater Analysis Sheet'!AE1-2008,FALSE)/12 -> 3703.900779 | AF2: =VLOOKUP(city,incometable,'Wastewater Analysis Sheet'!AF1-2008,FALSE)/12 -> 3703.228111 | AG2: =VLOOKUP(city,incometable,'Wastewater Analysis Sheet'!AG1-2008,FALSE)/12 -> 3702.523871 | AH2: =VLOOKUP(city,incometable,'Wastewater Analysis Sheet'!AH1-2008,FALSE)/12 -> 3701.81066 | AI2: =VLOOKUP(city,incometable,'Wastewater Analysis Sheet'!AI1-2008,FALSE)/12 -> 3701.110836 | AJ2: =VLOOKUP(city,incometable,'Wastewater Analysis Sheet'!AJ1-2008,FALSE)/12 -> 3700.403515 | AK2: =VLOOKUP(city,incometable,'Wastewater Analysis Sheet'!AK1-2008,FALSE)/12 -> 3699.695947 | AL2: =VLOOKUP(city,incometable,'Wastewater Analysis Sheet'!AL1-2008,FALSE)/12 -> 3698.990651 | AM2: =VLOOKUP(city,incometable,'Wastewater Analysis Sheet'!AM1-2008,FALSE)/12 -> 3698.283727 | AN2: =VLOOKUP(city,incometable,'Wastewater Analysis Sheet'!AN1-2008,FALSE)/12 -> 3697.577032 | AO2: =VLOOKUP(city,incometable,'Wastewater Analysis Sheet'!AO1-2008,FALSE)/12 -> 3696.870678 | AP2: =VLOOKUP(city,incometable,'Wastewater Analysis Sheet'!AP1-2008,FALSE)/12 -> 3696.163995 | AQ2: =VLOOKUP(city,incometable,'Wastewater Analysis Sheet'!AQ1-2008,FALSE)/12 -> 3695.457406 | AT2: =MAX(M8:AQ8) -> 0.001914535277 | AW2: 10 | AX2: 0.0345 | AZ2: No
A3: SE | B3: =VLOOKUP(city,setable,B1-2008,FALSE)/12 -> 0 | C3: 0 | D3: 0 | E3: 0 | F3: 0 | G3: 0 | H3: 0 | I3: 0 | J3: 0 | K3: 0 | L3: 225.8959108 | M3: 319.4650608 | N3: 391.2631948 | O3: 451.7918217 | P3: 505.1186125 | Q3: 553.3297165 | R3: 597.6644022 | S3: 638.9301216 | T3: 677.6877325 | U3: 714.3455923 | V3: 749.2119779 | W3: 782.5263896 | X3: 814.4792894 | Y3: 845.2251034 | Z3: 874.8911006 | AA3: 903.5836433 | AB3: 931.3927008 | AC3: 958.3951823 | AD3: 984.6574471 | AE3: 1010.237225 | AF3: 1035.185111 | AG3: 1059.54574 | AH3: 1083.35873 | AI3: 1106.659433 | AJ3: 1129.479554 | AK3: 1151.847657 | AL3: 1173.789584 | AM3: 1195.328804 | AN3: 1216.486709 | AO3: 1237.28286 | AP3: 1257.735202 | AQ3: 1277.860243 | AW3: 20 | AX3: 0.0355
A4: 2.0% Income | B4: =B2*0.02 -> 56.37333333 | C4: =C2*0.02 -> 61.54333333 | D4: 63.13333333 | E4: 62.37666667 | F4: 62.605 | G4: 62.28 | H4: 62.5 | I4: 68.055 | J4: 64.84333333 | K4: 80.32333333 | L4: 75.28430801 | M4: 73.00888574 | N4: 72.31382898 | O4: 71.86174597 | P4: 71.9198361 | Q4: 72.2454306 | R4: 72.61648495 | S4: 73.07515544 | T4: 73.56400548 | U4: 74.05550153 | V4: 74.03685446 | W4: 74.10778428 | X4: 74.16398672 | Y4: 74.13750019 | Z4: 74.13966468 | AA4: 74.13456941 | AB4: 74.11688755 | AC4: 74.10607109 | AD4: 74.09289666 | AE4: 74.07801557 | AF4: 74.06456221 | AG4: 74.05047743 | AH4: 74.0362132 | AI4: 74.02221671 | AJ4: 74.0080703 | AK4: 73.99391895 | AL4: 73.97981302 | AM4: 73.96567453 | AN4: 73.95154064 | AO4: 73.93741355 | AP4: 73.9232799 | AQ4: 73.90914811
A5: 2.0% SE | B5: =B3*0.02 -> 0 | C5: =C3*0.02 -> 0 | D5: 0 | E5: 0 | F5: 0 | G5: 0 | H5: 0 | I5: 0 | J5: 0 | K5: 0 | L5: 4.517918217 | M5: 6.389301216 | N5: 7.825263896 | O5: 9.035836433 | P5: 10.10237225 | Q5: 11.06659433 | R5: 11.95328804 | S5: 12.77860243 | T5: 13.55375465 | U5: 14.28691185 | V5: 14.98423956 | W5: 15.65052779 | X5: 16.28958579 | Y5: 16.90450207 | Z5: 17.49782201 | AA5: 18.07167287 | AB5: 18.62785402 | AC5: 19.16790365 | AD5: 19.69314894 | AE5: 20.2047445 | AF5: 20.70370221 | AG5: 21.1909148 | AH5: 21.6671746 | AI5: 22.13318866 | AJ5: 22.58959108 | AK5: 23.03695315 | AL5: 23.47579169 | AM5: 23.90657609 | AN5: 24.32973418 | AO5: 24.7456572 | AP5: 25.15470404 | AQ5: 25.55720486
A6: Population | B6: =VLOOKUP(city,poptable,B1-2008,FALSE) -> 1683 | C6: 1678 | D6: 1640 | E6: 1622 | F6: 1634 | G6: 1616 | H6: 1616 | I6: 1609 | J6: 1611 | K6: 1597 | L6: 1582.8 | M6: 1574.109091 | N6: 1565.418182 | O6: 1556.727273 | P6: 1548.036364 | Q6: 1539.345455 | R6: 1530.654545 | S6: 1521.963636 | T6: 1513.272727 | U6: 1504.581818 | V6: 1495.890909 | W6: 1487.2 | X6: 1478.509091 | Y6: 1469.818182 | Z6: 1461.127273 | AA6: 1452.436364 | AB6: 1443.745455 | AC6: 1435.054545 | AD6: 1426.363636 | AE6: 1417.672727 | AF6: 1408.981818 | AG6: 1400.290909 | AH6: 1391.6 | AI6: 1382.909091 | AJ6: 1374.218182 | AK6: 1365.527273 | AL6: 1356.836364 | AM6: 1348.145455 | AN6: 1339.454545 | AO6: 1330.763636 | AP6: 1322.072727 | AQ6: 1313.381818
A7: Water Cost | M7: =wastebill -> 0 | N7: =M7*(1+wastebillgrowth)+IF(wasteprincipal>0,((PMT(rate,wasteyears,-wasteprincipal))/(N6/2.5))/12-N14*(PMT(rate,wasteyears,-wasteprincipal)/(N6/2.5))/12,0) -> 0 | O7: =IF(O1<$M$1+wasteyears+1,N7*(1+wastebillgrowth)-IF(wasteprincipal>0,O14*(PMT(wasterate,wasteyears,-wasteprincipal)/(N6/2.5)/12),0),O16) -> 0 | P7: =IF(P1<$M$1+wasteyears+1,O7*(1+wastebillgrowth)-IF(wasteprincipal>0,P14*(PMT(wasterate,wasteyears,-wasteprincipal)/(O6/2.5)/12),0),P16) -> 0 | Q7: =IF(Q1<$M$1+wasteyears+1,P7*(1+wastebillgrowth)-IF(wasteprincipal>0,Q14*(PMT(wasterate,wasteyears,-wasteprincipal)/(P6/2.5)/12),0),Q16) -> 0 | R7: =IF(R1<$M$1+wasteyears+1,Q7*(1+wastebillgrowth)-IF(wasteprincipal>0,R14*(PMT(wasterate,wasteyears,-wasteprincipal)/(Q6/2.5)/12),0),R16) -> 0 | S7: =IF(S1<$M$1+wasteyears+1,R7*(1+wastebillgrowth)-IF(wasteprincipal>0,S14*(PMT(wasterate,wasteyears,-wasteprincipal)/(R6/2.5)/12),0),S16) -> 0 | T7: =IF(T1<$M$1+wasteyears+1,S7*(1+wastebillgrowth)-IF(wasteprincipal>0,T14*(PMT(wasterate,wasteyears,-wasteprincipal)/(S6/2.5)/12),0),T16) -> 0 | U7: =IF(U1<$M$1+wasteyears+1,T7*(1+wastebillgrowth)-IF(wasteprincipal>0,U14*(PMT(wasterate,wasteyears,-wasteprincipal)/(T6/2.5)/12),0),U16) -> 0 | V7: =IF(V1<$M$1+wasteyears+1,U7*(1+wastebillgrowth)-IF(wasteprincipal>0,V14*(PMT(wasterate,wasteyears,-wasteprincipal)/(U6/2.5)/12),0),V16) -> 0 | W7: =IF(W1<$M$1+wasteyears+1,V7*(1+wastebillgrowth)-IF(wasteprincipal>0,W14*(PMT(wasterate,wasteyears,-wasteprincipal)/(V6/2.5)/12),0),W16) -> 0 | X7: =IF(X1<$M$1+wasteyears+1,W7*(1+wastebillgrowth)-IF(wasteprincipal>0,X14*(PMT(wasterate,wasteyears,-wasteprincipal)/(W6/2.5)/12),0),X16) -> 0 | Y7: =IF(Y1<$M$1+wasteyears+1,X7*(1+wastebillgrowth)-IF(wasteprincipal>0,Y14*(PMT(wasterate,wasteyears,-wasteprincipal)/(X6/2.5)/12),0),Y16) -> 0 | Z7: =IF(Z1<$M$1+wasteyears+1,Y7*(1+wastebillgrowth)-IF(wasteprincipal>0,Z14*(PMT(wasterate,wasteyears,-wasteprincipal)/(Y6/2.5)/12),0),Z16) -> 0 | AA7: =IF(AA1<$M$1+wasteyears+1,Z7*(1+wastebillgrowth)-IF(wasteprincipal>0,AA14*(PMT(wasterate,wasteyears,-wasteprincipal)/(Z6/2.5)/12),0),AA16) -> 0 | AB7: =IF(AB1<$M$1+wasteyears+1,AA7*(1+wastebillgrowth)-IF(wasteprincipal>0,AB14*(PMT(wasterate,wasteyears,-wasteprincipal)/(AA6/2.5)/12),0),AB16) -> 0 | AC7: =IF(AC1<$M$1+wasteyears+1,AB7*(1+wastebillgrowth)-IF(wasteprincipal>0,AC14*(PMT(wasterate,wasteyears,-wasteprincipal)/(AB6/2.5)/12),0),AC16) -> 0 | AD7: =IF(AD1<$M$1+wasteyears+1,AC7*(1+wastebillgrowth)-IF(wasteprincipal>0,AD14*(PMT(wasterate,wasteyears,-wasteprincipal)/(AC6/2.5)/12),0),AD16) -> 0 | AE7: =IF(AE1<$M$1+wasteyears+1,AD7*(1+wastebillgrowth)-IF(wasteprincipal>0,AE14*(PMT(wasterate,wasteyears,-wasteprincipal)/(AD6/2.5)/12),0),AE16) -> 0 | AF7: =IF(AF1<$M$1+wasteyears+1,AE7*(1+wastebillgrowth)-IF(wasteprincipal>0,AF14*(PMT(wasterate,wasteyears,-wasteprincipal)/(AE6/2.5)/12),0),AF16) -> 0 | AG7: =IF(AG1<$M$1+wasteyears+1,AF7*(1+wastebillgrowth)-IF(wasteprincipal>0,AG14*(PMT(wasterate,wasteyears,-wasteprincipal)/(AF6/2.5)/12),0),AG16) -> 0 | AH7: =IF(AH1<$M$1+wasteyears+1,AG7*(1+wastebillgrowth)-IF(wasteprincipal>0,AH14*(PMT(wasterate,wasteyears,-wasteprincipal)/(AG6/2.5)/12),0),AH16) -> 0 | AI7: =IF(AI1<$M$1+wasteyears+1,AH7*(1+wastebillgrowth)-IF(wasteprincipal>0,AI14*(PMT(wasterate,wasteyears,-wasteprincipal)/(AH6/2.5)/12),0),AI16) -> 0 | AJ7: =IF(AJ1<$M$1+wasteyears+1,AI7*(1+wastebillgrowth)-IF(wasteprincipal>0,AJ14*(PMT(wasterate,wasteyears,-wasteprincipal)/(AI6/2.5)/12),0),AJ16) -> 0 | AK7: =IF(AK1<$M$1+wasteyears+1,AJ7*(1+wastebillgrowth)-IF(wasteprincipal>0,AK14*(PMT(wasterate,wasteyears,-wasteprincipal)/(AJ6/2.5)/12),0),AK16) -> 0 | AL7: =IF(AL1<$M$1+wasteyears+1,AK7*(1+wastebillgrowth)-IF(wasteprincipal>0,AL14*(PMT(wasterate,wasteyears,-wasteprincipal)/(AK6/2.5)/12),0),AL16) -> 0 | AM7: =IF(AM1<$M$1+wasteyears+1,AL7*(1+wastebillgrowth)-IF(wasteprincipal>0,AM14*(PMT(wasterate,wasteyears,-wasteprincipal)/(AL6/2.5)/12),0),AM16) -> 0 | AN7: =IF(AN1<$M$1+wasteyears+1,AM7*(1+wastebillgrowth)-IF(wasteprincipal>0,AN14*(PMT(wasterate,wasteyears,-wasteprincipal)/(AM6/2.5)/12),0),AN16) -> 0 | AO7: =IF(AO1<$M$1+wasteyears+1,AN7*(1+wastebillgrowth)-IF(wasteprincipal>0,AO14*(PMT(wasterate,wasteyears,-wasteprincipal)/(AN6/2.5)/12),0),AO16) -> 0 | AP7: =IF(AP1<$M$1+wasteyears+1,AO7*(1+wastebillgrowth)-IF(wasteprincipal>0,AP14*(PMT(wasterate,wasteyears,-wasteprincipal)/(AO6/2.5)/12),0),AP16) -> 0 | AQ7: =IF(AQ1<$M$1+wasteyears+1,AP7*(1+wastebillgrowth)-IF(wasteprincipal>0,AQ14*(PMT(wasterate,wasteyears,-wasteprincipal)/(AP6/2.5)/12),0),AQ16) -> 0
A8: Probability Unafforable | M8: =_xlfn.NORM.DIST(M7,M4,M5,TRUE) -> 1.537170916e-30 | N8: 1.220196428e-20 | O8: 9.104542106e-16 | P8: 5.431556156e-13 | Q8: 3.327256309e-11 | R8: 6.198545544e-10 | S8: 5.371651026e-09 | T8: 2.85626027e-08 | U8: 1.089089808e-07 | V8: 3.886508875e-07 | W8: 1.094401045e-06 | X8: 2.646242134e-06 | Y8: 5.781571404e-06 | Z8: 1.132229368e-05 | AA8: 2.045735016e-05 | AB8: 3.462900066e-05 | AC8: 5.52825243e-05 | AD8: 8.415567537e-05 | AE8: 0.0001230102212 | AF8: 0.0001735420912 | AG8: 0.0002375246112 | AH8: 0.0003166044368 | AI8: 0.0004123050625 | AJ8: 0.0005260658371 | AK8: 0.0006591490147 | AL8: =_xlfn.NORM.DIST(AL7,AL4,AL5,TRUE) -> 0.0008126619297 | AM8: 0.0009875645094 | AN8: 0.001184643654 | AO8: 0.001404532419 | AP8: 0.001647716369 | AQ8: 0.001914535277
A10: Chart Inputs
A11: 2.0% High Income | L11: =_xlfn.NORM.INV(0.95,L4,L5) -> 82.71562218 | M11: =_xlfn.NORM.INV(0.95,M4,M5) -> 83.51835101 | N11: 85.18524268 | O11: 86.7243743 | P11: 88.53675974 | Q11: 90.44835842 | R11: 92.27789415 | S11: 94.094086 | T11: 95.85794798 | U11: 97.55538029 | V11: 98.68373524 | W11: 99.85061168 | X11: 100.957971 | Y11: 101.9429317 | Z11: 102.9210207 | AA11: 103.8598261 | AB11: 104.7569808 | AC11: 105.6344669 | AD11: 106.4852441 | AE11: 107.3118628 | AF11: 108.1191219 | AG11: 108.9064305 | AH11: 109.6755439 | AI11: 110.4280724 | AJ11: 111.1646411 | AK11: 111.8863349 | AL11: 112.5940541 | AM11: 113.2884929 | AN11: 113.9703922 | AO11: 114.6403976 | AP11: =_xlfn.NORM.INV(0.95,AP4,AP5) -> 115.2990861 | AQ11: 115.9470092
A12: 2.0% Low Income | L12: =_xlfn.NORM.INV(0.05,L4,L5) -> 67.85299385 | M12: =_xlfn.NORM.INV(0.05,M4,M5) -> 62.49942046 | N12: 59.44241528 | O12: 56.99911764 | P12: 55.30291247 | Q12: 54.04250278 | R12: 52.95507576 | S12: 52.05622488 | T12: 51.27006299 | U12: 50.55562276 | V12: 49.38997368 | W12: 48.36495688 | X12: 47.37000245 | Y12: 46.33206865 | Z12: 45.35830868 | AA12: 44.40931275 | AB12: 43.47679431 | AC12: 42.57767526 | AD12: 41.7005492 | AE12: 40.8441683 | AF12: 40.01000254 | AG12: 39.19452435 | AH12: 38.39688247 | AI12: 37.61636107 | AJ12: 36.85149948 | AK12: 36.10150301 | AL12: 35.36557192 | AM12: 34.64285614 | AN12: 33.93268913 | AO12: 33.23442955 | AP12: =_xlfn.NORM.INV(0.05,AP4,AP5) -> 32.54747373 | AQ12: 31.871287
A14: Payoff Counter | M14: =IF(M1=$M$1+wasteyears+1,1,0) -> 0 | N14: 1 | O14: 0 | P14: 0 | Q14: 0 | R14: 0 | S14: 0 | T14: 0 | U14: 0 | V14: 0 | W14: 0 | X14: 0 | Y14: 0 | Z14: 0 | AA14: 0 | AB14: 0 | AC14: 0 | AD14: 0 | AE14: 0 | AF14: 0 | AG14: 0 | AH14: 0 | AI14: 0 | AJ14: 0 | AK14: 0 | AL14: 0 | AM14: 0 | AN14: 0 | AO14: 0 | AP14: 0 | AQ14: 0
A16: Growthrate | M16: =wastebill -> 0 | N16: =M16*(1+wastebillgrowth) -> 0 | O16: =N16*(1+wastebillgrowth) -> 0 | P16: =O16*(1+wastebillgrowth) -> 0 | Q16: =P16*(1+wastebillgrowth) -> 0 | R16: =Q16*(1+wastebillgrowth) -> 0 | S16: =R16*(1+wastebillgrowth) -> 0 | T16: =S16*(1+wastebillgrowth) -> 0 | U16: =T16*(1+wastebillgrowth) -> 0 | V16: =U16*(1+wastebillgrowth) -> 0 | W16: =V16*(1+wastebillgrowth) -> 0 | X16: =W16*(1+wastebillgrowth) -> 0 | Y16: =X16*(1+wastebillgrowth) -> 0 | Z16: =Y16*(1+wastebillgrowth) -> 0 | AA16: =Z16*(1+wastebillgrowth) -> 0 | AB16: =AA16*(1+wastebillgrowth) -> 0 | AC16: =AB16*(1+wastebillgrowth) -> 0 | AD16: =AC16*(1+wastebillgrowth) -> 0 | AE16: =AD16*(1+wastebillgrowth) -> 0 | AF16: =AE16*(1+wastebillgrowth) -> 0 | AG16: =AF16*(1+wastebillgrowth) -> 0 | AH16: =AG16*(1+wastebillgrowth) -> 0 | AI16: =AH16*(1+wastebillgrowth) -> 0 | AJ16: =AI16*(1+wastebillgrowth) -> 0 | AK16: =AJ16*(1+wastebillgrowth) -> 0 | AL16: =AK16*(1+wastebillgrowth) -> 0 | AM16: =AL16*(1+wastebillgrowth) -> 0 | AN16: =AM16*(1+wastebillgrowth) -> 0 | AO16: =AN16*(1+wastebillgrowth) -> 0 | AP16: =AO16*(1+wastebillgrowth) -> 0 | AQ16: =AP16*(1+wastebillgrowth) -> 0

Sheet Wastewater Output
A1: Model Outputs - Wastewater
A2: Community | B2: =city -> Adrian
A3: Community Population (2021) | B3: ='Wastewater Analysis Sheet'!M6 -> 1574.109091
A4: Increase in Average Monthly Wastewater Bill | B4: =IF(wasteprincipal>0,((PMT(wasterate,wasteyears,-wasteprincipal))/('Wastewater Analysis Sheet'!N6/2.5))/12,0) -> 0
A5: Probability that Monthly Wastewater Bill
A6: Exceeds 2.0% of Median Household Income | B6: =wastemaxprob -> 0.001914535277
A7: Sustainability Risk | B7: =IF(B6<0.33,"Low",IF(B6<0.67,"Moderate","High")) -> Low
A9: Current MHI (2021) | B9: =+B24 -> 43805.33144
A10: Current Wastewater Bill | B10: =+wastebill -> 0
A11: Projected Average Wastewater Bill | B11: =+B10+B4 -> 0
A17: Note: The graph shows the typical sustainable threshold
A18: for the community (blue line), forecast into the future,
A19: along with a range of estimates developed in a
A20: statistical model. It also shows the projected wastewater
A21: bills using the inputs you provided.
A23: Projections | B23: 2021 | C23: 2022 | D23: 2023 | E23: 2024 | F23: 2025 | G23: 2026 | H23: 2027 | I23: 2028 | J23: 2029 | K23: 2030 | L23: 2031 | M23: 2032 | N23: 2033
A24: Median Household Income | B24: ='Wastewater Analysis Sheet'!M2*12 -> 43805.33144 | C24: ='Wastewater Analysis Sheet'!N2*12 -> 43388.29739 | D24: ='Wastewater Analysis Sheet'!O2*12 -> 43117.04758 | E24: ='Wastewater Analysis Sheet'!P2*12 -> 43151.90166 | F24: ='Wastewater Analysis Sheet'!Q2*12 -> 43347.25836 | G24: ='Wastewater Analysis Sheet'!R2*12 -> 43569.89097 | H24: ='Wastewater Analysis Sheet'!S2*12 -> 43845.09326 | I24: ='Wastewater Analysis Sheet'!T2*12 -> 44138.40329 | J24: ='Wastewater Analysis Sheet'!U2*12 -> 44433.30092 | K24: ='Wastewater Analysis Sheet'!V2*12 -> 44422.11268 | L24: ='Wastewater Analysis Sheet'!W2*12 -> 44464.67057 | M24: ='Wastewater Analysis Sheet'!X2*12 -> 44498.39203 | N24: ='Wastewater Analysis Sheet'!Y2*12 -> 44482.50011
A25: Monthly Wastewater Bill | B25: ='Wastewater Analysis Sheet'!M7 -> 0 | C25: ='Wastewater Analysis Sheet'!N7 -> 0 | D25: ='Wastewater Analysis Sheet'!O7 -> 0 | E25: ='Wastewater Analysis Sheet'!P7 -> 0 | F25: ='Wastewater Analysis Sheet'!Q7 -> 0 | G25: ='Wastewater Analysis Sheet'!R7 -> 0 | H25: ='Wastewater Analysis Sheet'!S7 -> 0 | I25: ='Wastewater Analysis Sheet'!T7 -> 0 | J25: ='Wastewater Analysis Sheet'!U7 -> 0 | K25: ='Wastewater Analysis Sheet'!V7 -> 0 | L25: ='Wastewater Analysis Sheet'!W7 -> 0 | M25: ='Wastewater Analysis Sheet'!X7 -> 0 | N25: ='Wastewater Analysis Sheet'!Y7 -> 0
A26: %MHI | B26: =+B25*12/B24 -> 0 | C26: =+C25*12/C24 -> 0 | D26: 0 | E26: 0 | F26: 0 | G26: 0 | H26: 0 | I26: 0 | J26: 0 | K26: 0 | L26: 0 | M26: 0 | N26: 0
A27: Population | B27: =VLOOKUP(city,poptable,B23-2008,FALSE) -> 1574.109091 | C27: 1565.418182 | D27: 1556.727273 | E27: 1548.036364 | F27: 1539.345455 | G27: 1530.654545 | H27: 1521.963636 | I27: 1513.272727 | J27: 1504.581818 | K27: 1495.890909 | L27: 1487.2 | M27: 1478.509091 | N27: 1469.818182
A29: Projections | B29: 2034 | C29: 2035 | D29: 2036 | E29: 2037 | F29: 2038 | G29: 2039 | H29: 2040 | I29: 2041 | J29: 2042 | K29: 2043 | L29: 2044 | M29: 2045 | N29: 2046
A30: Median Household Income | B30: =+'Wastewater Analysis Sheet'!Z2*12 -> 44483.79881 | C30: =+'Wastewater Analysis Sheet'!AA2*12 -> 44480.74164 | D30: =+'Wastewater Analysis Sheet'!AB2*12 -> 44470.13253 | E30: =+'Wastewater Analysis Sheet'!AC2*12 -> 44463.64266 | F30: =+'Wastewater Analysis Sheet'!AD2*12 -> 44455.738 | G30: =+'Wastewater Analysis Sheet'!AE2*12 -> 44446.80934 | H30: =+'Wastewater Analysis Sheet'!AF2*12 -> 44438.73733 | I30: =+'Wastewater Analysis Sheet'!AG2*12 -> 44430.28646 | J30: =+'Wastewater Analysis Sheet'!AH2*12 -> 44421.72792 | K30: =+'Wastewater Analysis Sheet'!AI2*12 -> 44413.33003 | L30: =+'Wastewater Analysis Sheet'!AJ2*12 -> 44404.84218 | M30: =+'Wastewater Analysis Sheet'!AK2*12 -> 44396.35137 | N30: =+'Wastewater Analysis Sheet'!AL2*12 -> 44387.88781
A31: Monthly Wastewater Bill | B31: ='Wastewater Analysis Sheet'!Z7 -> 0 | C31: ='Wastewater Analysis Sheet'!AA7 -> 0 | D31: ='Wastewater Analysis Sheet'!AB7 -> 0 | E31: ='Wastewater Analysis Sheet'!AC7 -> 0 | F31: ='Wastewater Analysis Sheet'!AD7 -> 0 | G31: ='Wastewater Analysis Sheet'!AE7 -> 0 | H31: ='Wastewater Analysis Sheet'!AF7 -> 0 | I31: ='Wastewater Analysis Sheet'!AG7 -> 0 | J31: ='Wastewater Analysis Sheet'!AH7 -> 0 | K31: ='Wastewater Analysis Sheet'!AI7 -> 0 | L31: ='Wastewater Analysis Sheet'!AJ7 -> 0 | M31: ='Wastewater Analysis Sheet'!AK7 -> 0 | N31: ='Wastewater Analysis Sheet'!AL7 -> 0
A32: % MHI | B32: =+(B31/B30)*12 -> 0 | C32: =+(C31/C30)*12 -> 0 | D32: 0 | E32: 0 | F32: 0 | G32: 0 | H32: 0 | I32: 0 | J32: 0 | K32: 0 | L32: 0 | M32: 0 | N32: 0
A33: Population | B33: =VLOOKUP(city,poptable,B29-2008,FALSE) -> 1461.127273 | C33: 1452.436364 | D33: 1443.745455 | E33: 1435.054545 | F33: 1426.363636 | G33: 1417.672727 | H33: 1408.981818 | I33: 1400.290909 | J33: 1391.6 | K33: 1382.909091 | L33: 1374.218182 | M33: 1365.527273 | N33: 1356.836364
A35: Projections | B35: 2047 | C35: 2048 | D35: 2049 | E35: 2050 | F35: 2051
A36: Median Household Income | B36: =+'Wastewater Analysis Sheet'!AM2*12 -> 44379.40472 | C36: =+'Wastewater Analysis Sheet'!AN2*12 -> 44370.92439 | D36: =+'Wastewater Analysis Sheet'!AO2*12 -> 44362.44813 | E36: =+'Wastewater Analysis Sheet'!AP2*12 -> 44353.96794 | F36: =+'Wastewater Analysis Sheet'!AQ2*12 -> 44345.48887
A37: Monthly Wastewater Bill | B37: =+'Wastewater Analysis Sheet'!AM7 -> 0 | C37: =+'Wastewater Analysis Sheet'!AN7 -> 0 | D37: =+'Wastewater Analysis Sheet'!AO7 -> 0 | E37: =+'Wastewater Analysis Sheet'!AP7 -> 0 | F37: =+'Wastewater Analysis Sheet'!AQ7 -> 0
A38: % MHI | B38: =+B37/B36*12 -> 0 | C38: =+C37/C36*12 -> 0 | D38: 0 | E38: 0 | F38: 0
A39: Population | B39: =VLOOKUP(city,poptable,B35-2008,FALSE) -> 1348.145455 | C39: 1339.454545 | D39: 1330.763636 | E39: 1322.072727 | F39: 1313.381818

Sheet Combined Bill Output
A1: Model Outputs - Combined Bill
A2: Community | B2: =city -> Adrian
A3: Community Population (2021) | B3: ='Wastewater Analysis Sheet'!M6 -> 1574.109091
A4: Increase in Average Monthly Combined Bill | B4: =IF(drinkprincipal>0,((PMT(rate,drinkyears,-drinkprincipal)+PMT(wasterate,wasteyears,-wasteprincipal))/('Wastewater Analysis Sheet'!N6/2.5))/12,0) -> 0
A5: Probability that Monthly Combined Bill
A6: Exceeds 2.0% of Median Household Income | B6: ='Combined Bill Analysis Sheet'!combinedmaxprob -> 0.001914535277
A7: Sustainability Risk | B7: =IF(B6<0.33,"Low",IF(B6<0.67,"Moderate","High")) -> Low
A9: Current MHI (2021) | B9: =+B24 -> 43805.33144
A10: Current Combined Bill | B10: =+wastebill+drinkbill -> 0
A11: Projected Combined Bill | B11: =+B10+B4 -> 0
A17: Note: The graph shows the typical sustainable threshold
A18: for the community (blue line), forecast into the future,
A19: along with a range of estimates developed in a
A20: statistical model. It also shows the projected combined
A21: bills using the inputs you provided.
A23: Projections | B23: 2021 | C23: 2022 | D23: 2023 | E23: 2024 | F23: 2025 | G23: 2026 | H23: 2027 | I23: 2028 | J23: 2029 | K23: 2030 | L23: 2031 | M23: 2032 | N23: 2033
A24: Median Household Income | B24: ='Wastewater Analysis Sheet'!M2*12 -> 43805.33144 | C24: ='Wastewater Analysis Sheet'!N2*12 -> 43388.29739 | D24: ='Wastewater Analysis Sheet'!O2*12 -> 43117.04758 | E24: ='Wastewater Analysis Sheet'!P2*12 -> 43151.90166 | F24: ='Wastewater Analysis Sheet'!Q2*12 -> 43347.25836 | G24: ='Wastewater Analysis Sheet'!R2*12 -> 43569.89097 | H24: ='Wastewater Analysis Sheet'!S2*12 -> 43845.09326 | I24: ='Wastewater Analysis Sheet'!T2*12 -> 44138.40329 | J24: ='Wastewater Analysis Sheet'!U2*12 -> 44433.30092 | K24: ='Wastewater Analysis Sheet'!V2*12 -> 44422.11268 | L24: ='Wastewater Analysis Sheet'!W2*12 -> 44464.67057 | M24: ='Wastewater Analysis Sheet'!X2*12 -> 44498.39203 | N24: ='Wastewater Analysis Sheet'!Y2*12 -> 44482.50011
A25: Monthly Combined Bill | B25: ='Wastewater Analysis Sheet'!M7+'Drinking Water Analysis Sheet'!M7 -> 0 | C25: ='Wastewater Analysis Sheet'!N7+'Drinking Water Analysis Sheet'!N7 -> 0 | D25: ='Wastewater Analysis Sheet'!O7+'Drinking Water Analysis Sheet'!O7 -> 0 | E25: ='Wastewater Analysis Sheet'!P7+'Drinking Water Analysis Sheet'!P7 -> 0 | F25: ='Wastewater Analysis Sheet'!Q7+'Drinking Water Analysis Sheet'!Q7 -> 0 | G25: ='Wastewater Analysis Sheet'!R7+'Drinking Water Analysis Sheet'!R7 -> 0 | H25: ='Wastewater Analysis Sheet'!S7+'Drinking Water Analysis Sheet'!S7 -> 0 | I25: ='Wastewater Analysis Sheet'!T7+'Drinking Water Analysis Sheet'!T7 -> 0 | J25: ='Wastewater Analysis Sheet'!U7+'Drinking Water Analysis Sheet'!U7 -> 0 | K25: ='Wastewater Analysis Sheet'!V7+'Drinking Water Analysis Sheet'!V7 -> 0 | L25: ='Wastewater Analysis Sheet'!W7+'Drinking Water Analysis Sheet'!W7 -> 0 | M25: ='Wastewater Analysis Sheet'!X7+'Drinking Water Analysis Sheet'!X7 -> 0 | N25: ='Wastewater Analysis Sheet'!Y7+'Drinking Water Analysis Sheet'!Y7 -> 0
A26: %MHI | B26: =+B25*12/B24 -> 0 | C26: =+C25*12/C24 -> 0 | D26: 0 | E26: 0 | F26: 0 | G26: 0 | H26: 0 | I26: 0 | J26: 0 | K26: 0 | L26: 0 | M26: 0 | N26: 0
A27: Population | B27: =VLOOKUP(city,poptable,B23-2008,FALSE) -> 1574.109091 | C27: 1565.418182 | D27: 1556.727273 | E27: 1548.036364 | F27: 1539.345455 | G27: 1530.654545 | H27: 1521.963636 | I27: 1513.272727 | J27: 1504.581818 | K27: 1495.890909 | L27: 1487.2 | M27: 1478.509091 | N27: 1469.818182
A29: Projections | B29: 2034 | C29: 2035 | D29: 2036 | E29: 2037 | F29: 2038 | G29: 2039 | H29: 2040 | I29: 2041 | J29: 2042 | K29: 2043 | L29: 2044 | M29: 2045 | N29: 2046
A30: Median Household Income | B30: =+'Wastewater Analysis Sheet'!Z2*12 -> 44483.79881 | C30: =+'Wastewater Analysis Sheet'!AA2*12 -> 44480.74164 | D30: =+'Wastewater Analysis Sheet'!AB2*12 -> 44470.13253 | E30: =+'Wastewater Analysis Sheet'!AC2*12 -> 44463.64266 | F30: =+'Wastewater Analysis Sheet'!AD2*12 -> 44455.738 | G30: =+'Wastewater Analysis Sheet'!AE2*12 -> 44446.80934 | H30: =+'Wastewater Analysis Sheet'!AF2*12 -> 44438.73733 | I30: =+'Wastewater Analysis Sheet'!AG2*12 -> 44430.28646 | J30: =+'Wastewater Analysis Sheet'!AH2*12 -> 44421.72792 | K30: =+'Wastewater Analysis Sheet'!AI2*12 -> 44413.33003 | L30: =+'Wastewater Analysis Sheet'!AJ2*12 -> 44404.84218 | M30: =+'Wastewater Analysis Sheet'!AK2*12 -> 44396.35137 | N30: =+'Wastewater Analysis Sheet'!AL2*12 -> 44387.88781
A31: Monthly Combined Bill | B31: ='Wastewater Analysis Sheet'!Z7+'Drinking Water Analysis Sheet'!Z7 -> 0 | C31: ='Wastewater Analysis Sheet'!AA7+'Drinking Water Analysis Sheet'!AA7 -> 0 | D31: ='Wastewater Analysis Sheet'!AB7+'Drinking Water Analysis Sheet'!AB7 -> 0 | E31: ='Wastewater Analysis Sheet'!AC7+'Drinking Water Analysis Sheet'!AC7 -> 0 | F31: ='Wastewater Analysis Sheet'!AD7+'Drinking Water Analysis Sheet'!AD7 -> 0 | G31: ='Wastewater Analysis Sheet'!AE7+'Drinking Water Analysis Sheet'!AE7 -> 0 | H31: ='Wastewater Analysis Sheet'!AF7+'Drinking Water Analysis Sheet'!AF7 -> 0 | I31: ='Wastewater Analysis Sheet'!AG7+'Drinking Water Analysis Sheet'!AG7 -> 0 | J31: ='Wastewater Analysis Sheet'!AH7+'Drinking Water Analysis Sheet'!AH7 -> 0 | K31: ='Wastewater Analysis Sheet'!AI7+'Drinking Water Analysis Sheet'!AI7 -> 0 | L31: ='Wastewater Analysis Sheet'!AJ7+'Drinking Water Analysis Sheet'!AJ7 -> 0 | M31: ='Wastewater Analysis Sheet'!AK7+'Drinking Water Analysis Sheet'!AK7 -> 0 | N31: ='Wastewater Analysis Sheet'!AL7+'Drinking Water Analysis Sheet'!AL7 -> 0
A32: % MHI | B32: =+(B31/B30)*12 -> 0 | C32: =+(C31/C30)*12 -> 0 | D32: 0 | E32: 0 | F32: 0 | G32: 0 | H32: 0 | I32: 0 | J32: 0 | K32: 0 | L32: 0 | M32: 0 | N32: 0
A33: Population | B33: =VLOOKUP(city,poptable,B29-2008,FALSE) -> 1461.127273 | C33: 1452.436364 | D33: 1443.745455 | E33: 1435.054545 | F33: 1426.363636 | G33: 1417.672727 | H33: 1408.981818 | I33: 1400.290909 | J33: 1391.6 | K33: 1382.909091 | L33: 1374.218182 | M33: 1365.527273 | N33: 1356.836364
A35: Projections | B35: 2047 | C35: 2048 | D35: 2049 | E35: 2050 | F35: 2051
A36: Median Household Income | B36: =+'Wastewater Analysis Sheet'!AM2*12 -> 44379.40472 | C36: =+'Wastewater Analysis Sheet'!AN2*12 -> 44370.92439 | D36: =+'Wastewater Analysis Sheet'!AO2*12 -> 44362.44813 | E36: =+'Wastewater Analysis Sheet'!AP2*12 -> 44353.96794 | F36: =+'Wastewater Analysis Sheet'!AQ2*12 -> 44345.48887
A37: Monthly Combined Bill | B37: =+'Wastewater Analysis Sheet'!AM7+'Drinking Water Analysis Sheet'!AM7 -> 0 | C37: =+'Wastewater Analysis Sheet'!AN7+'Drinking Water Analysis Sheet'!AN7 -> 0 | D37: =+'Wastewater Analysis Sheet'!AO7+'Drinking Water Analysis Sheet'!AO7 -> 0 | E37: =+'Wastewater Analysis Sheet'!AP7+'Drinking Water Analysis Sheet'!AP7 -> 0 | F37: =+'Wastewater Analysis Sheet'!AQ7+'Drinking Water Analysis Sheet'!AQ7 -> 0
A38: % MHI | B38: =+B37/B36*12 -> 0 | C38: =+C37/C36*12 -> 0 | D38: 0 | E38: 0 | F38: 0
A39: Population | B39: =VLOOKUP(city,poptable,B35-2008,FALSE) -> 1348.145455 | C39: 1339.454545 | D39: 1330.763636 | E39: 1322.072727 | F39: 1313.381818

Sheet Coefficients (hidden)
A1: Population | B1: Ed_HS | C1: Ed_BACH | D1: MANU_ | E1: Inc_LAG
A2: 0.346992 | B2: 169.1721 | C2: 284.2033 | D2: 50.36873 | E2: 0.552982

Sheet Unit Specific Constants (hidden)
A1: Adrian | B1: -1179.205
A2: Advance | B2: -2813.504
A3: Agency | B3: 9522.88
A4: Airport Drive | B4: 2502.653
A5: Alba | B5: -97.334
A6: Albany | B6: -3707.939
A7: Aldrich | B7: 1505.237
A8: Alexandria | B8: -4151.268
A9: Allendale | B9: 859.799
A10: Allenville | B10: 243.001
A11: Alma | B11: -357.3709
A12: Altamont | B12: -3689.991
A13: Altenburg | B13: 5258.256
A14: Alton | B14: -6233.792
A15: Amazonia | B15: -1225.56118
A16: Amity | B16: -3973.089
A17: Amoret | B17: 1014.105
A18: Amsterdam | B18: -58.151
A19: Anderson | B19: -193.1069
A20: Annada | B20: -7112.545
A21: Annapolis | B21: -2625.842
A22: Anniston | B22: 1648.102
A23: Appleton City | B23: -3013.986
A24: Arbela | B24: -2941.63
A25: Arbyrd | B25: -4503.06
A26: Arcadia | B26: -6160.705
A27: Archie | B27: 1471.472
A28: Arcola | B28: -4337.407
A29: Argyle | B29: 4128.561
A30: Arkoe | B30: 4144.53
A31: Armstrong | B31: -2725.013
A32: Arnold | B32: -1800.238
A33: Arrow Point | B33: 1016.481
A34: Arrow Rock | B34: -7114.521
A35: Asbury | B35: 2043.819
A36: Ash Grove | B36: -2503.953
A37: Ashland | B37: 916.858
A38: Atlanta | B38: -3584.99
A39: Augusta | B39: -2404.176
A40: Aullville | B40: 9768.11
A41: Aurora | B41: -4014.661
A42: Auxvasse | B42: -2894.451
A43: Ava | B43: -6867.718
A44: Avilla | B44: -2467.313
A45: Avondale | B45: 902.805
A46: Bagnell | B46: -4294.885
A47: Bakersfield | B47: -2967.492
A48: Baldwin Park | B48: -990.2703
A49: Ballwin | B49: -3246.52
A50: Baring | B50: 164.341
A51: Barnard | B51: 1670.426
A52: Barnett | B52: -2503.956
A53: Bates City | B53: 2652.456
A54: Battlefield | B54: -1219.77293
A55: Bell City | B55: -215.0054
A56: Belle | B56: -3365.916
A57: Bellefontaine Neighbors | B57: -4816.904
A58: Bellflower | B58: -1367.1723
A59: Bel-Nor | B59: -1876.7638
A60: Bel-Ridge | B60: -5781.768
A61: Belton | B61: -3532.954
A62: Benton | B62: 1958.973
A63: Benton City | B63: 8125.808
A64: Berger | B64: -3852.224
A65: Berkeley | B65: -6516.378
A66: Bernie | B66: -781.1938
A67: Bertrand | B67: -64.417
A68: Bethany | B68: -3202.199
A69: Bethel | B69: -5634.489
A70: Beverly Hills | B70: -5177.177
A71: Bevier | B71: -1901.2721
A72: Big Lake | B72: 2591.147
A73: Billings | B73: -4357.512
A74: Birch Tree | B74: -6138.3
A75: Birmingham | B75: 15332.6
A76: Bismarck | B76: -730.2287
A77: Black Jack | B77: -4556.184
A78: Blackburn | B78: 1423.992
A79: Blackwater | B79: -1878.411
A80: Blairstown | B80: -2164.4141
A81: Bland | B81: -4889.921
A82: Blodgett | B82: -3027.779
A83: Bloomfield | B83: 1120.63
A84: Bloomsdale | B84: 4569.36
A85: Blue Eye | B85: -2581.696
A86: Blue Springs | B86: -13972.73
A87: Blythedale | B87: 77.294
A88: Bogard | B88: 2678.978
A89: Bolckow | B89: -1913.7895
A90: Bolivar | B90: -8244.062
A91: Bonne Terre | B91: 1597.109
A92: Boonville | B92: -6058.197
A93: Bosworth | B93: 1826.941
A94: Bourbon | B94: -863.207
A95: Bowling Green | B95: -3383.643
A96: Bragg City | B96: 2909.255
A97: Brandsville | B97: -9225.999
A98: Branson | B98: -8069.132
A99: Branson West | B99: 1547.301
A100: Brashear | B100: -5697.067
A101: Braymer | B101: -3695.365
A102: Breckenridge | B102: -4615.339
A103: Breckenridge Hills | B103: -2763.626
A104: Brentwood | B104: -5275.667
A105: Bridgeton | B105: -4901.969
A106: Brimson | B106: -5100.576
A107: Bronaugh | B107: -2280.217
A108: Brookfield | B108: -5295.243
A109: Brooklyn Heights | B109: -1689.824
A110: Browning | B110: -5013.929
A111: Brownington | B111: 5111.539
A112: Brumley | B112: 2452.316
A113: Brunswick | B113: -5432.052
A114: Bucklin | B114: -2664.35
A115: Buckner | B115: 2876.088
A116: Buffalo | B116: -4084.161
A117: Bull Creek | B117: -4199.696
A118: Bunceton | B118: -742.4967
A119: Bunker | B119: -2469.871
A120: Burlington Junction | B120: -1530.0483
A121: Butler | B121: -5728.901
A122: Butterfield | B122: 6824.887
A123: Byrnes Mill | B123: 6440.433
A124: Cabool | B124: -9461.152
A125: Cainsville | B125: -4668.275
A126: Cairo | B126: 2601.145
A127: Caledonia | B127: 1592.961
A128: Calhoun | B128: -4178.684
A129: California | B129: -3870.209
A130: Callao | B130: -2640.981
A131: Calverton Park | B131: -1423.307
A132: Camden | B132: 10185.11
A133: Camden Point | B133: 9189.78
A134: Camdenton | B134: -4177.775
A135: Cameron | B135: -2379.436
A136: Campbell | B136: -2792.663
A137: Canalou | B137: 1773.497
A138: Canton | B138: -5157.436
A139: Cape Girardeau | B139: -19188.22
A140: Cardwell | B140: -1219.46736
A141: Carl Junction | B141: -2083.1403
A142: Carrollton | B142: -6000.995
A143: Carterville | B143: -2345.507
A144: Carthage | B144: -6654.248
A145: Caruthersville | B145: -6071.34
A146: Carytown | B146: 1441.042
A147: Cassville | B147: -5605.773
A148: Catron | B148: -4431.765
A149: Cedar Hill Lakes | B149: 1897.865
A150: Center | B150: -2335.216
A151: Centertown | B151: 2697.808
A152: Centerview | B152: 580.444
A153: Centerville | B153: -1722.4349
A154: Centralia | B154: -1937.398
A155: Chaffee | B155: -2595.599
A156: Chain of Rocks | B156: 14697.19
A157: Chain-O-Lakes | B157: -1104.63074
A158: Chamois | B158: -3946.887
A159: Champ | B159: -3365.197
A160: Charlack | B160: -3219.323
A161: Charleston | B161: -5816.582
A162: Chesterfield | B162: -7860.643
A163: Chilhowee | B163: -6608.529
A164: Chillicothe | B164: -6307.277
A165: Chula | B165: -816.8428
A166: Clarence | B166: -4913.306
A167: Clark | B167: 3204.812
A168: Clarksburg | B168: -2961.469
A169: Clarksdale | B169: 354.803
A170: Clarkson Valley | B170: 34715.83
A171: Clarksville | B171: -2215.049
A172: Clarkton | B172: -2125.5404
A173: Claycomo | B173: -278.2863
A174: Clayton | B174: -1139.03819
A175: Clearmont | B175: -2954.159
A176: Cleveland | B176: 11972.94
A177: Clever | B177: -361.1183
A178: Cliff Village | B178: 5932.43
A179: Clifton Hill | B179: -1641.1632
A180: Clinton | B180: -6338.166
A181: Clyde | B181: -1336.4792
A182: Cobalt | B182: 929.236
A183: Coffey | B183: -1808.3738
A184: Cole Camp | B184: -2618.227
A185: Collins | B185: -2189.513
A186: Columbia | B186: -50852.39
A187: Commerce | B187: 6840.028
A188: Conception Junction | B188: 373.279
A189: Concordia | B189: 603.439
A190: Coney Island | B190: -1998.35
A191: Conway | B191: -2145.7987
A192: Cool Valley | B192: 2066.518
A193: Cooter | B193: 3334.746
A194: Corder | B194: 55.361
A195: Cosby | B195: 5609.861
A196: Cottleville | B196: 10531.91
A197: Country Club | B197: 6248.391
A198: Country Club Hills | B198: -4811.038
A199: Country Life Acres | B199: 63171.47
A200: Cowgill | B200: -1855.053
... 722 more rows

Sheet High School (hidden)
A1: GEO.id | B1: Geography | C1: 2010 | D1: 2011 | E1: 2012 | F1: 2013 | G1: 2014 | H1: 2015 | I1: 2016 | J1: 2017 | K1: 2018 | L1: 2019 | M1: 2020 | N1: 2021 | O1: 2022 | P1: 2023 | Q1: 2024 | R1: 2025 | S1: 2026 | T1: 2027 | U1: 2028 | V1: 2029 | W1: 2030 | X1: 2031 | Y1: 2032 | Z1: 2033 | AA1: 2034 | AB1: 2035 | AC1: 2036 | AD1: 2037 | AE1: 2038 | AF1: 2039 | AG1: 2040 | AH1: 2041 | AI1: 2042 | AJ1: 2043 | AK1: 2044 | AL1: 2045 | AM1: 2046 | AN1: 2047 | AO1: 2048 | AP1: 2049 | AQ1: 2050 | AR1: 2051
A2: 1620000US2900244 | B2: Adrian | C2: 75 | D2: 79.7 | E2: 80.5 | F2: 84 | G2: 82.7 | H2: 84.4 | I2: 81.6 | J2: 83.9 | K2: 85.3 | L2: 85.85434174 | M2: 87.24173669 | N2: 88.14106443 | O2: 89.04039216 | P2: 89.93971989 | Q2: 90.83904762 | R2: 91.73837535 | S2: 92.63770308 | T2: 93.53703081 | U2: 94.43635854 | V2: 95.33568627 | W2: 94.43635854 | X2: 94.73613445 | Y2: 94.83605976 | Z2: 94.66951758 | AA2: 94.74723727 | AB2: 94.7509382 | AC2: 94.72256435 | AD2: 94.74024661 | AE2: 94.73791639 | AF2: 94.73357578 | AG2: 94.73724626 | AH2: 94.73624614 | AI2: 94.73568939 | AJ2: 94.73639393 | AK2: 94.73610982 | AL2: 94.73606438 | AM2: 94.73618938 | AN2: 94.73612119 | AO2: 94.73612499 | AP2: 94.73614519 | AQ2: 94.73613046 | AR2: 94.73613354
A3: 1620000US2900262 | B3: Advance | C3: 70.4 | D3: 78.1 | E3: 75.8 | F3: 78.6 | G3: 77.9 | H3: 79.1 | I3: 78.4 | J3: 85.7 | K3: 83.2 | L3: 85.07333909 | M3: 86.48933563 | N3: 87.80969958 | O3: 89.13006353 | P3: 90.45042748 | Q3: 91.77079143 | R3: 93.09115538 | S3: 94.41151933 | T3: 95.73188328 | U3: 97.05224724 | V3: 98.37261119 | W3: 97.05224724 | X3: 97.49236855 | Y3: 97.63907566 | Z3: 97.39456381 | AA3: 97.50866934 | AB3: 97.51410294 | AC3: 97.47244536 | AD3: 97.49840588 | AE3: 97.49498473 | AF3: 97.48861199 | AG3: 97.49400087 | AH3: 97.49253253 | AI3: 97.49171513 | AJ3: 97.49274951 | AK3: 97.49233239 | AL3: 97.49226568 | AM3: 97.49244919 | AN3: 97.49234908 | AO3: 97.49235465 | AP3: 97.49238431 | AQ3: 97.49236268 | AR3: 97.49236721
A4: 1620000US2900298 | B4: Agency | C4: 90.6 | D4: 92.9 | E4: 92.6 | F4: 90.5 | G4: 89.5 | H4: 87.3 | I4: 88.9 | J4: 89.5 | K4: 89.8 | L4: 95.52238806 | M4: 90.71562189 | N4: 90.716237 | O4: 90.7168521 | P4: 90.71746721 | Q4: 90.71808232 | R4: 90.71869742 | S4: 90.71931253 | T4: 90.71992763 | U4: 90.72054274 | V4: 90.72115785 | W4: 90.72054274 | X4: 90.72074778 | Y4: 90.72081612 | Z4: 90.72070221 | AA4: 90.72075537 | AB4: 90.7207579 | AC4: 90.72073849 | AD4: 90.72075059 | AE4: 90.720749 | AF4: 90.72074603 | AG4: 90.72074854 | AH4: 90.72074785 | AI4: 90.72074747 | AJ4: 90.72074795 | AK4: 90.72074776 | AL4: 90.72074773 | AM4: 90.72074781 | AN4: 90.72074777 | AO4: 90.72074777 | AP4: 90.72074778 | AQ4: 90.72074777 | AR4: 90.72074778
A5: 1620000US2900424 | B5: Airport Drive | C5: 90.2 | D5: 88.4 | E5: 89.2 | F5: 89.8 | G5: 91.7 | H5: 95 | I5: 96.4 | J5: 96 | K5: 95.9 | L5: 97.53289474 | M5: 98.86649123 | N5: 99.93070973 | O5: 100 | P5: 100 | Q5: 100 | R5: 100 | S5: 100 | T5: 100 | U5: 100 | V5: 100 | W5: 100 | X5: 100 | Y5: 100 | Z5: 100 | AA5: 100 | AB5: 100 | AC5: 100 | AD5: 100 | AE5: 100 | AF5: 100 | AG5: 100 | AH5: 100 | AI5: 100 | AJ5: 100 | AK5: 100 | AL5: 100 | AM5: 100 | AN5: 100 | AO5: 100 | AP5: 100 | AQ5: 100 | AR5: 100
A6: 1620000US2900496 | B6: Alba | C6: 74.7 | D6: 77.5 | E6: 84.5 | F6: 82.5 | G6: 85.2 | H6: 89.9 | I6: 86.8 | J6: 88.3 | K6: 88.8 | L6: 87.34177215 | M6: 92.20337553 | N6: 93.59413886 | O6: 94.98490219 | P6: 96.37566552 | Q6: 97.76642885 | R6: 99.15719217 | S6: 100 | T6: 100 | U6: 100 | V6: 100 | W6: 100 | X6: 100 | Y6: 100 | Z6: 100 | AA6: 100 | AB6: 100 | AC6: 100 | AD6: 100 | AE6: 100 | AF6: 100 | AG6: 100 | AH6: 100 | AI6: 100 | AJ6: 100 | AK6: 100 | AL6: 100 | AM6: 100 | AN6: 100 | AO6: 100 | AP6: 100 | AQ6: 100 | AR6: 100
A7: 1620000US2900514 | B7: Albany | C7: 82.1 | D7: 83.7 | E7: 83.7 | F7: 86.2 | G7: 86.2 | H7: 86.9 | I7: 88.3 | J7: 88.9 | K7: 87.5 | L7: 89.69539857 | M7: 90.5848261 | N7: 91.36033269 | O7: 92.13583927 | P7: 92.91134586 | Q7: 93.68685245 | R7: 94.46235904 | S7: 95.23786563 | T7: 96.01337222 | U7: 96.78887881 | V7: 97.5643854 | W7: 96.78887881 | X7: 97.047381 | Y7: 97.1335484 | Z7: 96.98993607 | AA7: 97.05695516 | AB7: 97.06014654 | AC7: 97.03567926 | AD7: 97.05092699 | AE7: 97.0489176 | AF7: 97.04517461 | AG7: 97.04833973 | AH7: 97.04747731 | AI7: 97.04699722 | AJ7: 97.04760476 | AK7: 97.04735976 | AL7: 97.04732058 | AM7: 97.04742837 | AN7: 97.04736957 | AO7: 97.04737284 | AP7: 97.04739026 | AQ7: 97.04737756 | AR7: 97.04738022
A8: 1620000US2900568 | B8: Aldrich | C8: 84 | D8: 83.3 | E8: 91.8 | F8: 72.1 | G8: 71.7 | H8: 75.5 | I8: 75 | J8: 59.6 | K8: 83.7 | L8: 85.41666667 | M8: 73.78 | N8: 72.97424242 | O8: 72.16848485 | P8: 71.36272727 | Q8: 70.5569697 | R8: 69.75121212 | S8: 68.94545455 | T8: 68.13969697 | U8: 67.33393939 | V8: 66.52818182 | W8: 67.33393939 | X8: 67.06535354 | Y8: 66.97582492 | Z8: 67.12503928 | AA8: 67.05540591 | AB8: 67.05209004 | AC8: 67.07751174 | AD8: 67.06166923 | AE8: 67.063757 | AF8: 67.06764599 | AG8: 67.06435741 | AH8: 67.06525347 | AI8: 67.06575229 | AJ8: 67.06512106 | AK8: 67.0653756 | AL8: 67.06541632 | AM8: 67.06530433 | AN8: 67.06536542 | AO8: 67.06536202 | AP8: 67.06534392 | AQ8: 67.06535712 | AR8: 67.06535435
A9: 1620000US2900604 | B9: Alexandria | C9: 65.5 | D9: 73.5 | E9: 68.1 | F9: 79 | G9: 80.2 | H9: 85.6 | I9: 74.5 | J9: 88.5 | K9: 79.1 | L9: 80 | M9: 86.18666667 | N9: 87.78424242 | O9: 89.38181818 | P9: 90.97939394 | Q9: 92.5769697 | R9: 94.17454545 | S9: 95.77212121 | T9: 97.36969697 | U9: 98.96727273 | V9: 100 | W9: 98.7789899 | X9: 99.24875421 | Y9: 99.34258137 | Z9: 99.12344183 | AA9: 99.23825913 | AB9: 99.23476078 | AC9: 99.19882058 | AD9: 99.22394683 | AE9: 99.21917606 | AF9: 99.21398116 | AG9: 99.21903468 | AH9: 99.2173973 | AI9: 99.21680438 | AJ9: 99.21774545 | AK9: 99.21731571 | AL9: 99.21728852 | AM9: 99.21744989 | AN9: 99.21735137 | AO9: 99.21736326 | AP9: 99.21738818 | AQ9: 99.2173676 | AR9: 99.21737301
A10: 1620000US2900712 | B10: Allendale | C10: 59.4 | D10: 82.2 | E10: 94.8 | F10: 100 | G10: 98.3 | H10: 97.6 | I10: 98.2 | J10: 98 | K10: 98 | L10: 100 | M10: 100 | N10: 100 | O10: 100 | P10: 100 | Q10: 100 | R10: 100 | S10: 100 | T10: 100 | U10: 100 | V10: 100 | W10: 100 | X10: 100 | Y10: 100 | Z10: 100 | AA10: 100 | AB10: 100 | AC10: 100 | AD10: 100 | AE10: 100 | AF10: 100 | AG10: 100 | AH10: 100 | AI10: 100 | AJ10: 100 | AK10: 100 | AL10: 100 | AM10: 100 | AN10: 100 | AO10: 100 | AP10: 100 | AQ10: 100 | AR10: 100
A11: 1620000US2900748 | B11: Allenville | C11: 64.3 | D11: 72.1 | E11: 67.4 | F11: 64 | G11: 74.6 | H11: 78.4 | I11: 80 | J11: 77.5 | K11: 71.3 | L11: 65.38461538 | M11: 75.04717949 | N11: 75.69240093 | O11: 76.33762238 | P11: 76.98284382 | Q11: 77.62806527 | R11: 78.27328671 | S11: 78.91850816 | T11: 79.5637296 | U11: 80.20895105 | V11: 80.85417249 | W11: 80.20895105 | X11: 80.42402486 | Y11: 80.49571614 | Z11: 80.37623068 | AA11: 80.43199056 | AB11: 80.43464579 | AC11: 80.41428901 | AD11: 80.42697512 | AE11: 80.42530331 | AF11: 80.42218915 | AG11: 80.42482253 | AH11: 80.42410499 | AI11: 80.42370556 | AJ11: 80.42421103 | AK11: 80.42400719 | AL11: 80.42397459 | AM11: 80.42406427 | AN11: 80.42401535 | AO11: 80.42401807 | AP11: 80.42403256 | AQ11: 80.424022 | AR11: 80.42402421
A12: 1620000US2900802 | B12: Alma | C12: 86.9 | D12: 88.1 | E12: 87.4 | F12: 89.7 | G12: 88.3 | H12: 85.9 | I12: 90.3 | J12: 91.5 | K12: 90.2 | L12: 92.8358209 | M12: 92.04766169 | N12: 92.58113071 | O12: 93.11459973 | P12: 93.64806875 | Q12: 94.18153777 | R12: 94.71500678 | S12: 95.2484758 | T12: 95.78194482 | U12: 96.31541384 | V12: 96.84888286 | W12: 96.31541384 | X12: 96.49323685 | Y12: 96.55251118 | Z12: 96.45372062 | AA12: 96.49982288 | AB12: 96.50201823 | AC12: 96.48518724 | AD12: 96.49567612 | AE12: 96.49429386 | AF12: 96.49171908 | AG12: 96.49389635 | AH12: 96.4933031 | AI12: 96.49297284 | AJ12: 96.49339076 | AK12: 96.49322223 | AL12: 96.49319528 | AM12: 96.49326943 | AN12: 96.49322898 | AO12: 96.49323123 | AP12: 96.49324321 | AQ12: 96.49323447 | AR12: 96.49323631
A13: 1620000US2900910 | B13: Altamont | C13: 94.3 | D13: 93 | E13: 89.9 | F13: 81.4 | G13: 80.2 | H13: 73.8 | I13: 77 | J13: 82.4 | K13: 90.6 | L13: 92.64705882 | M13: 82.5654902 | N13: 82.02745098 | O13: 81.48941176 | P13: 80.95137255 | Q13: 80.41333333 | R13: 79.87529412 | S13: 79.3372549 | T13: 78.79921569 | U13: 78.26117647 | V13: 77.72313725 | W13: 78.26117647 | X13: 78.08183007 | Y13: 78.02204793 | Z13: 78.12168482 | AA13: 78.07518761 | AB13: 78.07297345 | AC13: 78.08994863 | AD13: 78.0793699 | AE13: 78.08076399 | AF13: 78.08336084 | AG13: 78.08116491 | AH13: 78.08176325 | AI13: 78.08209633 | AJ13: 78.08167483 | AK13: 78.0818448 | AL13: 78.08187199 | AM13: 78.08179721 | AN13: 78.081838 | AO13: 78.08183573 | AP13: 78.08182364 | AQ13: 78.08183246 | AR13: 78.08183061
A14: 1620000US2900928 | B14: Altenburg | C14: 83.8 | D14: 89.6 | E14: 89.4 | F14: 88.2 | G14: 86.2 | H14: 89 | I14: 88.5 | J14: 91.7 | K14: 88.8 | L14: 93.66666667 | M14: 92.16666667 | N14: 92.7630303 | O14: 93.35939394 | P14: 93.95575758 | Q14: 94.55212121 | R14: 95.14848485 | S14: 95.74484848 | T14: 96.34121212 | U14: 96.93757576 | V14: 97.53393939 | W14: 96.93757576 | X14: 97.13636364 | Y14: 97.20262626 | Z14: 97.09218855 | AA14: 97.14372615 | AB14: 97.14618032 | AC14: 97.12736501 | AD14: 97.13909049 | AE14: 97.13754527 | AF14: 97.13466693 | AG14: 97.1371009 | AH14: 97.1364377 | AI14: 97.13606851 | AJ14: 97.1365357 | AK14: 97.1363473 | AL14: 97.13631717 | AM14: 97.13640006 | AN14: 97.13635484 | AO14: 97.13635736 | AP14: 97.13637075 | AQ14: 97.13636098 | AR14: 97.13636303
A15: 1620000US2900964 | B15: Alton | C15: 72.4 | D15: 70.6 | E15: 71.2 | F15: 74.9 | G15: 75.5 | H15: 73.1 | I15: 71.9 | J15: 73.5 | K15: 66.7 | L15: 70.02053388 | M15: 70.36154689 | N15: 70.06690934 | O15: 69.77227179 | P15: 69.47763425 | Q15: 69.1829967 | R15: 68.88835916 | S15: 68.59372161 | T15: 68.29908406 | U15: 68.00444652 | V15: 67.70980897 | W15: 68.00444652 | X15: 67.906234 | Y15: 67.8734965 | Z15: 67.92805901 | AA15: 67.9025965 | AB15: 67.901384 | AC15: 67.91067984 | AD15: 67.90488678 | AE15: 67.90565021 | AF15: 67.90707228 | AG15: 67.90586975 | AH15: 67.90619741 | AI15: 67.90637981 | AJ15: 67.90614899 | AK15: 67.90624207 | AL15: 67.90625696 | AM15: 67.90621601 | AN15: 67.90623835 | AO15: 67.90623711 | AP15: 67.90623049 | AQ15: 67.90623531 | AR15: 67.9062343
A16: 1620000US2901018 | B16: Amazonia | C16: 84.8 | D16: 84 | E16: 85 | F16: 82.9 | G16: 78.4 | H16: 75.7 | I16: 77 | J16: 68.8 | K16: 79.1 | L16: 77.88018433 | M16: 72.7587404 | N16: 71.55887167 | O16: 70.35900293 | P16: 69.1591342 | Q16: 67.95926547 | R16: 66.75939673 | S16: 65.559528 | T16: 64.35965927 | U16: 63.15979053 | V16: 61.9599218 | W16: 63.15979053 | X16: 62.75983429 | Y16: 62.62651554 | Z16: 62.84871345 | AA16: 62.74502109 | AB16: 62.74008336 | AC16: 62.7779393 | AD16: 62.75434792 | AE16: 62.75745686 | AF16: 62.76324803 | AG16: 62.75835094 | AH16: 62.75968528 | AI16: 62.76042808 | AJ16: 62.7594881 | AK16: 62.75986715 | AL16: 62.75992778 | AM16: 62.75976101 | AN16: 62.75985198 | AO16: 62.75984692 | AP16: 62.75981997 | AQ16: 62.75983962 | AR16: 62.7598355
A17: 1620000US2901054 | B17: Amity | C17: 90.2 | D17: 87.8 | E17: 93.5 | F17: 82.1 | G17: 71.4 | H17: 46.7 | I17: 65 | J17: 76.9 | K17: 85.7 | L17: 87.5 | M17: 72.08 | N17: 70.88 | O17: 69.68 | P17: 68.48 | Q17: 67.28 | R17: 66.08 | S17: 64.88 | T17: 63.68 | U17: 62.48 | V17: 61.28 | W17: 62.48 | X17: 62.08 | Y17: 61.94666667 | Z17: 62.16888889 | AA17: 62.06518519 | AB17: 62.06024691 | AC17: 62.098107 | AD17: 62.07451303 | AE17: 62.07762231 | AF17: 62.08341411 | AG17: 62.07851649 | AH17: 62.07985097 | AI17: 62.08059386 | AJ17: 62.07965377 | AK17: 62.08003287 | AL17: 62.0800935 | AM17: 62.07992671 | AN17: 62.08001769 | AO17: 62.08001263 | AP17: 62.07998568 | AQ17: 62.08000534 | AR17: 62.08000122
A18: 1620000US2901072 | B18: Amoret | C18: 81.1 | D18: 71.7 | E18: 70.9 | F18: 73.3 | G18: 77 | H18: 75.7 | I18: 82.2 | J18: 81.6 | K18: 78.1 | L18: 80 | M18: 80.95333333 | N18: 81.6430303 | O18: 82.33272727 | P18: 83.02242424 | Q18: 83.71212121 | R18: 84.40181818 | S18: 85.09151515 | T18: 85.78121212 | U18: 86.47090909 | V18: 87.16060606 | W18: 86.47090909 | X18: 86.70080808 | Y18: 86.77744108 | Z18: 86.64971942 | AA18: 86.70932286 | AB18: 86.71216112 | AC18: 86.69040113 | AD18: 86.7039617 | AE18: 86.70217465 | AF18: 86.69884583 | AG18: 86.70166073 | AH18: 86.70089373 | AI18: 86.70046676 | AJ18: 86.70100707 | AK18: 86.70078919 | AL18: 86.70075434 | AM18: 86.7008502 | AN18: 86.70079791 | AO18: 86.70080082 | AP18: 86.70081631 | AQ18: 86.70080501 | AR18: 86.70080738
A19: 1620000US2901090 | B19: Amsterdam | C19: 84.8 | D19: 82.6 | E19: 81 | F19: 77.5 | G19: 71.1 | H19: 80.7 | I19: 83.8 | J19: 85.1 | K19: 79.9 | L19: 79.87012987 | M19: 80.16138528 | N19: 80.07490752 | O19: 79.98842975 | P19: 79.90195199 | Q19: 79.81547422 | R19: 79.72899646 | S19: 79.64251869 | T19: 79.55604093 | U19: 79.46956316 | V19: 79.3830854 | W19: 79.46956316 | X19: 79.44073724 | Y19: 79.4311286 | Z19: 79.447143 | AA19: 79.43966962 | AB19: 79.43931374 | AC19: 79.44204212 | AD19: 79.44034183 | AE19: 79.4405659 | AF19: 79.44098328 | AG19: 79.44063033 | AH19: 79.4407265 | AI19: 79.44078004 | AJ19: 79.44071229 | AK19: 79.44073961 | AL19: 79.44074398 | AM19: 79.44073196 | AN19: 79.44073852 | AO19: 79.44073815 | AP19: 79.44073621 | AQ19: 79.44073763 | AR19: 79.44073733
A20: 1620000US2901198 | B20: Anderson | C20: 76.4 | D20: 77.4 | E20: 79 | F20: 75.9 | G20: 71.8 | H20: 72.7 | I20: 70.9 | J20: 70.4 | K20: 72.2 | L20: 73.44064386 | M20: 70.00959088 | N20: 69.28150479 | O20: 68.55341869 | P20: 67.8253326 | Q20: 67.09724651 | R20: 66.36916042 | S20: 65.64107432 | T20: 64.91298823 | U20: 64.18490214 | V20: 63.45681605 | W20: 64.18490214 | X20: 63.94220678 | Y20: 63.86130832 | Z20: 63.99613908 | AA20: 63.93321806 | AB20: 63.93022182 | AC20: 63.95319299 | AD20: 63.93887762 | AE20: 63.94076414 | AF20: 63.94427825 | AG20: 63.94130667 | AH20: 63.94211635 | AI20: 63.94256709 | AJ20: 63.94199671 | AK20: 63.94222672 | AL20: 63.94226351 | AM20: 63.94216231 | AN20: 63.94221751 | AO20: 63.94221444 | AP20: 63.94219809 | AQ20: 63.94221001 | AR20: 63.94220751
A21: 1620000US2901252 | B21: Annada | C21: 100 | D21: 95.7 | E21: 95.5 | F21: 96.6 | G21: 97.1 | H21: 95.8 | I21: 100 | J21: 100 | K21: 100 | L21: 100 | M21: 100 | N21: 100 | O21: 100 | P21: 100 | Q21: 100 | R21: 100 | S21: 100 | T21: 100 | U21: 100 | V21: 100 | W21: 100 | X21: 100 | Y21: 100 | Z21: 100 | AA21: 100 | AB21: 100 | AC21: 100 | AD21: 100 | AE21: 100 | AF21: 100 | AG21: 100 | AH21: 100 | AI21: 100 | AJ21: 100 | AK21: 100 | AL21: 100 | AM21: 100 | AN21: 100 | AO21: 100 | AP21: 100 | AQ21: 100 | AR21: 100
A22: 1620000US2901270 | B22: Annapolis | C22: 75.6 | D22: 78.3 | E22: 72.1 | F22: 77.8 | G22: 75 | H22: 73.8 | I22: 74.1 | J22: 73.5 | K22: 72.7 | L22: 76.80250784 | M22: 73.8476698 | N22: 73.64356417 | O22: 73.43945854 | P22: 73.2353529 | Q22: 73.03124727 | R22: 72.82714164 | S22: 72.623036 | T22: 72.41893037 | U22: 72.21482474 | V22: 72.0107191 | W22: 72.21482474 | X22: 72.14678953 | Y22: 72.12411112 | Z22: 72.16190846 | AA22: 72.1442697 | AB22: 72.14342976 | AC22: 72.14986931 | AD22: 72.14585626 | AE22: 72.14638511 | AF22: 72.14737023 | AG22: 72.1465372 | AH22: 72.14676418 | AI22: 72.14689053 | AJ22: 72.14673064 | AK22: 72.14679512 | AL22: 72.14680543 | AM22: 72.14677706 | AN22: 72.14679253 | AO22: 72.14679167 | AP22: 72.14678709 | AQ22: 72.14679043 | AR22: 72.14678973
A23: 1620000US2901288 | B23: Anniston | C23: 56.4 | D23: 48.4 | E23: 53.3 | F23: 56.4 | G23: 71 | H23: 69 | I23: 82.6 | J23: 78.1 | K23: 72.8 | L23: 67.52136752 | M23: 81.26854701 | N23: 84.12607615 | O23: 86.98360528 | P23: 89.84113442 | Q23: 92.69866356 | R23: 95.5561927 | S23: 98.41372183 | T23: 100 | U23: 100 | V23: 100 | W23: 100 | X23: 100 | Y23: 100 | Z23: 100 | AA23: 100 | AB23: 100 | AC23: 100 | AD23: 100 | AE23: 100 | AF23: 100 | AG23: 100 | AH23: 100 | AI23: 100 | AJ23: 100 | AK23: 100 | AL23: 100 | AM23: 100 | AN23: 100 | AO23: 100 | AP23: 100 | AQ23: 100 | AR23: 100
A24: 1620000US2901522 | B24: Appleton City | C24: 78 | D24: 80.3 | E24: 82 | F24: 86.1 | G24: 87.4 | H24: 87.8 | I24: 86.8 | J24: 87.5 | K24: 88.1 | L24: 87.04720088 | M24: 90.63888035 | N24: 91.64509131 | O24: 92.65130227 | P24: 93.65751322 | Q24: 94.66372418 | R24: 95.66993514 | S24: 96.67614609 | T24: 97.68235705 | U24: 98.68856801 | V24: 99.69477896 | W24: 98.68856801 | X24: 99.02397166 | Y24: 99.13577288 | Z24: 98.94943751 | AA24: 99.03639402 | AB24: 99.0405348 | AC24: 99.00878878 | AD24: 99.02857253 | AE24: 99.02596537 | AF24: 99.02110889 | AG24: 99.0252156 | AH24: 99.02409662 | AI24: 99.0234737 | AJ24: 99.02426198 | AK24: 99.0239441 | AL24: 99.02389326 | AM24: 99.02403311 | AN24: 99.02395682 | AO24: 99.02396107 | AP24: 99.02398367 | AQ24: 99.02396719 | AR24: 99.02397064
A25: 1620000US2901576 | B25: Arbela | C25: 100 | D25: 100 | E25: 100 | F25: 100 | G25: 100 | H25: 80 | I25: 85.7 | J25: 94.7 | K25: 92 | L25: 90 | M25: 86.39333333 | N25: 84.96666667 | O25: 83.54 | P25: 82.11333333 | Q25: 80.68666667 | R25: 79.26 | S25: 77.83333333 | T25: 76.40666667 | U25: 74.98 | V25: 73.55333333 | W25: 74.98 | X25: 74.50444444 | Y25: 74.34592593 | Z25: 74.61012346 | AA25: 74.48683128 | AB25: 74.48096022 | AC25: 74.52597165 | AD25: 74.49792105 | AE25: 74.50161764 | AF25: 74.50850345 | AG25: 74.50268071 | AH25: 74.50426727 | AI25: 74.50515047 | AJ25: 74.50403282 | AK25: 74.50448352 | AL25: 74.5045556 | AM25: 74.50435731 | AN25: 74.50446548 | AO25: 74.50445947 | AP25: 74.50442742 | AQ25: 74.50445079 | AR25: 74.50444589
A26: 1620000US2901630 | B26: Arbyrd | C26: 70.3 | D26: 71.6 | E26: 70.2 | F26: 74.2 | G26: 76.3 | H26: 78.4 | I26: 71.2 | J26: 78.7 | K26: 76.7 | L26: 71.85628743 | M26: 76.78918164 | N26: 77.30619125 | O26: 77.82320087 | P26: 78.34021049 | Q26: 78.85722011 | R26: 79.37422972 | S26: 79.89123934 | T26: 80.40824896 | U26: 80.92525857 | V26: 81.44226819 | W26: 80.92525857 | X26: 81.09759511 | Y26: 81.15504063 | Z26: 81.0592981 | AA26: 81.10397795 | AB26: 81.10610556 | AC26: 81.08979387 | AD26: 81.09995913 | AE26: 81.09861952 | AF26: 81.09612417 | AG26: 81.09823427 | AH26: 81.09765932 | AI26: 81.09733925 | AJ26: 81.09774428 | AK26: 81.09758095 | AL26: 81.09755483 | AM26: 81.09762669 | AN26: 81.09758749 | AO26: 81.09758967 | AP26: 81.09760128 | AQ26: 81.09759281 | AR26: 81.09759459
A27: 1620000US2901648 | B27: Arcadia | C27: 85.9 | D27: 79.2 | E27: 80.5 | F27: 80.2 | G27: 84.8 | H27: 81.6 | I27: 84.3 | J27: 81.3 | K27: 77.3 | L27: 77.71535581 | M27: 78.81947566 | N27: 78.3718284 | O27: 77.92418114 | P27: 77.47653388 | Q27: 77.02888662 | R27: 76.58123936 | S27: 76.1335921 | T27: 75.68594484 | U27: 75.23829758 | V27: 74.79065032 | W27: 75.23829758 | X27: 75.08908183 | Y27: 75.03934325 | Z27: 75.12224089 | AA27: 75.08355532 | AB27: 75.08171315 | AC27: 75.09583645 | AD27: 75.08703497 | AE27: 75.08819486 | AF27: 75.09035543 | AG27: 75.08852842 | AH27: 75.08902624 | AI27: 75.08930336 | AJ27: 75.08895267 | AK27: 75.08909409 | AL27: 75.08911671 | AM27: 75.08905449 | AN27: 75.08908843 | AO27: 75.08908654 | AP27: 75.08907649 | AQ27: 75.08908382 | AR27: 75.08908228
A28: 1620000US2901702 | B28: Archie | C28: 84.9 | D28: 84.9 | E28: 86.5 | F28: 89.2 | G28: 90.7 | H28: 94.1 | I28: 92.6 | J28: 91.6 | K28: 92.8 | L28: 92.81288724 | M28: 95.53182156 | N28: 96.5355548 | O28: 97.53928805 | P28: 98.54302129 | Q28: 99.54675453 | R28: 100 | S28: 100 | T28: 100 | U28: 100 | V28: 100 | W28: 100 | X28: 100 | Y28: 100 | Z28: 100 | AA28: 100 | AB28: 100 | AC28: 100 | AD28: 100 | AE28: 100 | AF28: 100 | AG28: 100 | AH28: 100 | AI28: 100 | AJ28: 100 | AK28: 100 | AL28: 100 | AM28: 100 | AN28: 100 | AO28: 100 | AP28: 100 | AQ28: 100 | AR28: 100
A29: 1620000US2901720 | B29: Arcola | C29: 83.3 | D29: 80 | E29: 96.7 | F29: 86.1 | G29: 75.8 | H29: 80.9 | I29: 86.2 | J29: 91.9 | K29: 95.6 | L29: 84.41558442 | M29: 89.44623377 | N29: 90.05617473 | O29: 90.6661157 | P29: 91.27605667 | Q29: 91.88599764 | R29: 92.49593861 | S29: 93.10587957 | T29: 93.71582054 | U29: 94.32576151 | V29: 94.93570248 | W29: 94.32576151 | X29: 94.52907517 | Y29: 94.59684639 | Z29: 94.48389435 | AA29: 94.5366053 | AB29: 94.53911535 | AC29: 94.51987167 | AD29: 94.53186411 | AE29: 94.53028371 | AF29: 94.52733983 | AG29: 94.52982921 | AH29: 94.52915092 | AI29: 94.52877332 | AJ29: 94.52925115 | AK29: 94.52905846 | AL29: 94.52902764 | AM29: 94.52911242 | AN29: 94.52906617 | AO29: 94.52906875 | AP29: 94.52908245 | AQ29: 94.52907246 | AR29: 94.52907455
A30: 1620000US2901828 | B30: Argyle | C30: 75.7 | D30: 73.8 | E30: 80.2 | F30: 82.5 | G30: 85.7 | H30: 89.3 | I30: 92.9 | J30: 93.8 | K30: 91.1 | L30: 88.54961832 | M30: 96.67318066 | N30: 98.73103863 | O30: 100 | P30: 100 | Q30: 100 | R30: 100 | S30: 100 | T30: 100 | U30: 100 | V30: 100 | W30: 100 | X30: 100 | Y30: 100 | Z30: 100 | AA30: 100 | AB30: 100 | AC30: 100 | AD30: 100 | AE30: 100 | AF30: 100 | AG30: 100 | AH30: 100 | AI30: 100 | AJ30: 100 | AK30: 100 | AL30: 100 | AM30: 100 | AN30: 100 | AO30: 100 | AP30: 100 | AQ30: 100 | AR30: 100
A31: 1620000US2901864 | B31: Arkoe | C31: 73.2 | D31: 86.1 | E31: 97.4 | F31: 95 | G31: 90.9 | H31: 87.5 | I31: 88.1 | J31: 72.7 | K31: 78.4 | L31: 74.19354839 | M31: 77.93075269 | N31: 76.76373412 | O31: 75.59671554 | P31: 74.42969697 | Q31: 73.2626784 | R31: 72.09565982 | S31: 70.92864125 | T31: 69.76162268 | U31: 68.59460411 | V31: 67.42758553 | W31: 68.59460411 | X31: 68.20559791 | Y31: 68.07592918 | Z31: 68.29204373 | AA31: 68.19119028 | AB31: 68.18638773 | AC31: 68.22320725 | AD31: 68.20026175 | AE31: 68.20328558 | AF31: 68.20891819 | AG31: 68.20415517 | AH31: 68.20545298 | AI31: 68.20617545 | AJ31: 68.2052612 | AK31: 68.20562988 | AL31: 68.20568884 | AM31: 68.20552664 | AN31: 68.20561512 | AO31: 68.2056102 | AP31: 68.20558399 | AQ31: 68.2056031 | AR31: 68.2055991
A32: 1620000US2901954 | B32: Armstrong | C32: 80.9 | D32: 77.8 | E32: 73.5 | F32: 73.6 | G32: 82.3 | H32: 82.5 | I32: 84.9 | J32: 87.6 | K32: 85 | L32: 79.5620438 | M32: 85.53148418 | N32: 86.39789869 | O32: 87.26431321 | P32: 88.13072772 | Q32: 88.99714223 | R32: 89.86355674 | S32: 90.72997125 | T32: 91.59638576 | U32: 92.46280027 | V32: 93.32921478 | W32: 92.46280027 | X32: 92.7516051 | Y32: 92.84787338 | Z32: 92.68742625 | AA32: 92.76230158 | AB32: 92.76586707 | AC32: 92.73853163 | AD32: 92.75556676 | AE32: 92.75332182 | AF32: 92.74914007 | AG32: 92.75267622 | AH32: 92.7517127 | AI32: 92.75117633 | AJ32: 92.75185508 | AK32: 92.75158137 | AL32: 92.7515376 | AM32: 92.75165802 | AN32: 92.75159233 | AO32: 92.75159598 | AP32: 92.75161544 | AQ32: 92.75160125 | AR32: 92.75160422
A33: 1620000US2901972 | B33: Arnold | C33: 87.8 | D33: 88.6 | E33: 88.7 | F33: 87.5 | G33: 87.7 | H33: 86.3 | I33: 85.7 | J33: 86.7 | K33: 88.3 | L33: 88.221387 | M33: 87.0485548 | N33: 86.95699409 | O33: 86.86543338 | P33: 86.77387267 | Q33: 86.68231197 | R33: 86.59075126 | S33: 86.49919055 | T33: 86.40762984 | U33: 86.31606913 | V33: 86.22450842 | W33: 86.31606913 | X33: 86.28554889 | Y33: 86.27537548 | Z33: 86.29233117 | AA33: 86.28441851 | AB33: 86.28404172 | AC33: 86.28693047 | AD33: 86.28513023 | AE33: 86.28536747 | AF33: 86.28580939 | AG33: 86.2854357 | AH33: 86.28553752 | AI33: 86.28559421 | AJ33: 86.28552248 | AK33: 86.2855514 | AL33: 86.28555603 | AM33: 86.2855433 | AN33: 86.28555024 | AO33: 86.28554986 | AP33: 86.2855478 | AQ33: 86.2855493 | AR33: 86.28554899
A34: 1620000US2902034 | B34: Arrow Point | C34: 68.1 | D34: 75.4 | E34: 66.7 | F34: 81.4 | G34: 85.1 | H34: 87.2 | I34: 84.6 | J34: 92 | K34: 87.3 | L34: 89.61038961 | M34: 95.57748918 | N34: 98.0932074 | O34: 100 | P34: 100 | Q34: 100 | R34: 100 | S34: 100 | T34: 100 | U34: 100 | V34: 100 | W34: 100 | X34: 100 | Y34: 100 | Z34: 100 | AA34: 100 | AB34: 100 | AC34: 100 | AD34: 100 | AE34: 100 | AF34: 100 | AG34: 100 | AH34: 100 | AI34: 100 | AJ34: 100 | AK34: 100 | AL34: 100 | AM34: 100 | AN34: 100 | AO34: 100 | AP34: 100 | AQ34: 100 | AR34: 100
A35: 1620000US2902044 | B35: Arrow Rock | C35: 100 | D35: 100 | E35: 100 | F35: 100 | G35: 100 | H35: 100 | I35: 100 | J35: 100 | K35: 100 | L35: 100 | M35: 100 | N35: 100 | O35: 100 | P35: 100 | Q35: 100 | R35: 100 | S35: 100 | T35: 100 | U35: 100 | V35: 100 | W35: 100 | X35: 100 | Y35: 100 | Z35: 100 | AA35: 100 | AB35: 100 | AC35: 100 | AD35: 100 | AE35: 100 | AF35: 100 | AG35: 100 | AH35: 100 | AI35: 100 | AJ35: 100 | AK35: 100 | AL35: 100 | AM35: 100 | AN35: 100 | AO35: 100 | AP35: 100 | AQ35: 100 | AR35: 100
A36: 1620000US2902098 | B36: Asbury | C36: 71.3 | D36: 74.1 | E36: 73.4 | F36: 81.7 | G36: 81 | H36: 78.4 | I36: 75.8 | J36: 79.5 | K36: 80.3 | L36: 81.25 | M36: 82.44666667 | N36: 83.31424242 | O36: 84.18181818 | P36: 85.04939394 | Q36: 85.9169697 | R36: 86.78454545 | S36: 87.65212121 | T36: 88.51969697 | U36: 89.38727273 | V36: 90.25484848 | W36: 89.38727273 | X36: 89.67646465 | Y36: 89.77286195 | Z36: 89.61219978 | AA36: 89.68717546 | AB36: 89.69074573 | AC36: 89.66337365 | AD36: 89.68043161 | AE36: 89.67818367 | AF36: 89.67399631 | AG36: 89.6775372 | AH36: 89.67657239 | AI36: 89.6760353 | AJ36: 89.67671496 | AK36: 89.67644088 | AL36: 89.67639705 | AM36: 89.67651763 | AN36: 89.67645186 | AO36: 89.67645551 | AP36: 89.676475 | AQ36: 89.67646079 | AR36: 89.67646377
A37: 1620000US2902188 | B37: Ash Grove | C37: 82.5 | D37: 81.1 | E37: 84.3 | F37: 83.5 | G37: 84 | H37: 81.9 | I37: 84.7 | J37: 83.2 | K37: 82.8 | L37: 83.10696095 | M37: 83.55611771 | N37: 83.63710346 | O37: 83.71808921 | P37: 83.79907496 | Q37: 83.88006071 | R37: 83.96104646 | S37: 84.04203221 | T37: 84.12301796 | U37: 84.2040037 | V37: 84.28498945 | W37: 84.2040037 | X37: 84.23099895 | Y37: 84.23999737 | Z37: 84.22500001 | AA37: 84.23199878 | AB37: 84.23233205 | AC37: 84.22977695 | AD37: 84.23136926 | AE37: 84.23115942 | AF37: 84.23076854 | AG37: 84.23109907 | AH37: 84.23100901 | AI37: 84.23095888 | AJ37: 84.23102232 | AK37: 84.23099674 | AL37: 84.23099264 | AM37: 84.2310039 | AN37: 84.23099776 | AO37: 84.2309981 | AP37: 84.23099992 | AQ37: 84.23099859 | AR37: 84.23099887
A38: 1620000US2902242 | B38: Ashland | C38: 93.3 | D38: 95.5 | E38: 93.6 | F38: 93.1 | G38: 93 | H38: 91 | I38: 90.7 | J38: 90.4 | K38: 91 | L38: 91.92321623 | M38: 90.04928649 | N38: 89.63055283 | O38: 89.21181917 | P38: 88.79308551 | Q38: 88.37435185 | R38: 87.95561819 | S38: 87.53688453 | T38: 87.11815087 | U38: 86.69941721 | V38: 86.28068355 | W38: 86.69941721 | X38: 86.55983932 | Y38: 86.51331336 | Z38: 86.59085663 | AA38: 86.55466977 | AB38: 86.55294659 | AC38: 86.56615766 | AD38: 86.55792467 | AE38: 86.55900964 | AF38: 86.56103066 | AG38: 86.55932166 | AH38: 86.55978732 | AI38: 86.56004654 | AJ38: 86.55971851 | AK38: 86.55985079 | AL38: 86.55987195 | AM38: 86.55981375 | AN38: 86.55984549 | AO38: 86.55984373 | AP38: 86.55983432 | AQ38: 86.55984118 | AR38: 86.55983974
A39: 1620000US2902422 | B39: Atlanta | C39: 82.2 | D39: 84.6 | E39: 90.5 | F39: 85.2 | G39: 85.9 | H39: 85 | I39: 87.1 | J39: 86.1 | K39: 85.7 | L39: 88.84210526 | M39: 87.79017544 | N39: 88.09489633 | O39: 88.39961722 | P39: 88.70433812 | Q39: 89.00905901 | R39: 89.3137799 | S39: 89.6185008 | T39: 89.92322169 | U39: 90.22794258 | V39: 90.53266348 | W39: 90.22794258 | X39: 90.32951621 | Y39: 90.36337409 | Z39: 90.3069443 | AA39: 90.3332782 | AB39: 90.3345322 | AC39: 90.32491823 | AD39: 90.33090954 | AE39: 90.33011999 | AF39: 90.32864925 | AG39: 90.32989293 | AH39: 90.32955406 | AI39: 90.32936541 | AJ39: 90.32960413 | AK39: 90.32950787 | AL39: 90.32949247 | AM39: 90.32953483 | AN39: 90.32951172 | AO39: 90.32951301 | AP39: 90.32951985 | AQ39: 90.32951486 | AR39: 90.32951591
A40: 1620000US2902512 | B40: Augusta | C40: 92.4 | D40: 91.4 | E40: 92.3 | F40: 93.2 | G40: 93.9 | H40: 94.3 | I40: 92.4 | J40: 90.4 | K40: 91.6 | L40: 93.80530973 | M40: 92.65545723 | N40: 92.67089836 | O40: 92.6863395 | P40: 92.70178064 | Q40: 92.71722178 | R40: 92.73266291 | S40: 92.74810405 | T40: 92.76354519 | U40: 92.77898632 | V40: 92.79442746 | W40: 92.77898632 | X40: 92.78413337 | Y40: 92.78584905 | Z40: 92.78298958 | AA40: 92.784324 | AB40: 92.78438754 | AC40: 92.78390038 | AD40: 92.78420397 | AE40: 92.78416396 | AF40: 92.78408944 | AG40: 92.78415246 | AH40: 92.78413529 | AI40: 92.78412573 | AJ40: 92.78413782 | AK40: 92.78413295 | AL40: 92.78413217 | AM40: 92.78413431 | AN40: 92.78413314 | AO40: 92.78413321 | AP40: 92.78413355 | AQ40: 92.7841333 | AR40: 92.78413335
A41: 1620000US2902530 | B41: Aullville | C41: 73.3 | D41: 77.1 | E41: 82.7 | F41: 78.4 | G41: 86.8 | H41: 86.4 | I41: 82.8 | J41: 69.1 | K41: 71.1 | L41: 84.61538462 | M41: 79.38615385 | N41: 79.41426573 | O41: 79.44237762 | P41: 79.47048951 | Q41: 79.4986014 | R41: 79.52671329 | S41: 79.55482517 | T41: 79.58293706 | U41: 79.61104895 | V41: 79.63916084 | W41: 79.61104895 | X41: 79.62041958 | Y41: 79.62354312 | Z41: 79.61833722 | AA41: 79.62076664 | AB41: 79.62088233 | AC41: 79.6199954 | AD41: 79.62054812 | AE41: 79.62047528 | AF41: 79.6203396 | AG41: 79.62045433 | AH41: 79.62042307 | AI41: 79.62040567 | AJ41: 79.62042769 | AK41: 79.62041881 | AL41: 79.62041739 | AM41: 79.6204213 | AN41: 79.62041917 | AO41: 79.62041928 | AP41: 79.62041992 | AQ41: 79.62041946 | AR41: 79.62041955
A42: 1620000US2902548 | B42: Aurora | C42: 76.5 | D42: 76 | E42: 80.9 | F42: 81.2 | G42: 76.8 | H42: 75.9 | I42: 76 | J42: 79 | K42: 80.8 | L42: 84.01349073 | M42: 81.21872962 | N42: 81.674617 | O42: 82.13050437 | P42: 82.58639174 | Q42: 83.04227911 | R42: 83.49816649 | S42: 83.95405386 | T42: 84.40994123 | U42: 84.86582861 | V42: 85.32171598 | W42: 84.86582861 | X42: 85.01779106 | Y42: 85.06844522 | Z42: 84.98402163 | AA42: 85.0234193 | AB42: 85.02529538 | AC42: 85.01091211 | AD42: 85.0198756 | AE42: 85.01869436 | AF42: 85.01649402 | AG42: 85.01835466 | AH42: 85.01784768 | AI42: 85.01756545 | AJ42: 85.0179226 | AK42: 85.01777858 | AL42: 85.01775554 | AM42: 85.01781891 | AN42: 85.01778434 | AO42: 85.01778626 | AP42: 85.0177965 | AQ42: 85.01778904 | AR42: 85.0177906
A43: 1620000US2902638 | B43: Auxvasse | C43: 90.3 | D43: 91.9 | E43: 90.6 | F43: 88.4 | G43: 91.6 | H43: 89.3 | I43: 87.4 | J43: 85.1 | K43: 84.9 | L43: 83.5839599 | M43: 83.56691729 | N43: 82.70483026 | O43: 81.84274322 | P43: 80.98065619 | Q43: 80.11856915 | R43: 79.25648211 | S43: 78.39439508 | T43: 77.53230804 | U43: 76.67022101 | V43: 75.80813397 | W43: 76.67022101 | X43: 76.38285866 | Y43: 76.28707121 | Z43: 76.44671696 | AA43: 76.37221561 | AB43: 76.36866793 | AC43: 76.39586683 | AD43: 76.37891679 | AE43: 76.38115052 | AF43: 76.38531138 | AG43: 76.3817929 | AH43: 76.3827516 | AI43: 76.38328529 | AJ43: 76.38260993 | AK43: 76.38288227 | AL43: 76.38292583 | AM43: 76.38280601 | AN43: 76.38287137 | AO43: 76.38286774 | AP43: 76.38284837 | AQ43: 76.38286249 | AR43: 76.38285954
A44: 1620000US2902674 | B44: Ava | C44: 73.4 | D44: 77.3 | E44: 77.6 | F44: 79.6 | G44: 76.4 | H44: 80.9 | I44: 81.9 | J44: 84.2 | K44: 85.4 | L44: 89.82800983 | M44: 88.95120393 | N44: 90.46000447 | O44: 91.968805 | P44: 93.47760554 | Q44: 94.98640608 | R44: 96.49520661 | S44: 98.00400715 | T44: 99.51280768 | U44: 100 | V44: 100 | W44: 99.83760256 | X44: 99.94586752 | Y44: 99.92782336 | Z44: 99.90376448 | AA44: 99.92581845 | AB44: 99.91913543 | AC44: 99.91623946 | AD44: 99.92039778 | AE44: 99.91859089 | AF44: 99.91840937 | AG44: 99.91913268 | AH44: 99.91871098 | AI44: 99.91875101 | AJ44: 99.91886489 | AK44: 99.91877563 | AL44: 99.91879718 | AM44: 99.91881257 | AN44: 99.91879512 | AO44: 99.91880162 | AP44: 99.9188031 | AQ44: 99.91879995 | AR44: 99.91880156
A45: 1620000US2902746 | B45: Avilla | C45: 33.3 | D45: 44.3 | E45: 55.6 | F45: 56.1 | G45: 81.5 | H45: 89.8 | I45: 88.9 | J45: 90.2 | K45: 88.4 | L45: 86.11111111 | M45: 100 | N45: 100 | O45: 100 | P45: 100 | Q45: 100 | R45: 100 | S45: 100 | T45: 100 | U45: 100 | V45: 100 | W45: 100 | X45: 100 | Y45: 100 | Z45: 100 | AA45: 100 | AB45: 100 | AC45: 100 | AD45: 100 | AE45: 100 | AF45: 100 | AG45: 100 | AH45: 100 | AI45: 100 | AJ45: 100 | AK45: 100 | AL45: 100 | AM45: 100 | AN45: 100 | AO45: 100 | AP45: 100 | AQ45: 100 | AR45: 100
A46: 1620000US2902800 | B46: Avondale | C46: 91 | D46: 91.4 | E46: 89.9 | F46: 88.8 | G46: 89 | H46: 84.6 | I46: 80.5 | J46: 77.6 | K46: 77.5 | L46: 79.32816537 | M46: 75.19126615 | N46: 73.41462062 | O46: 71.6379751 | P46: 69.86132957 | Q46: 68.08468405 | R46: 66.30803852 | S46: 64.531393 | T46: 62.75474747 | U46: 60.97810195 | V46: 59.20145642 | W46: 60.97810195 | X46: 60.38588677 | Y46: 60.18848172 | Z46: 60.51749015 | AA46: 60.36395288 | AB46: 60.35664158 | AC46: 60.41269487 | AD46: 60.37776311 | AE46: 60.38236652 | AF46: 60.3909415 | AG46: 60.38369038 | AH46: 60.38566613 | AI46: 60.386766 | AJ46: 60.38537417 | AK46: 60.38593543 | AL46: 60.3860252 | AM46: 60.38577827 | AN46: 60.38591297 | AO46: 60.38590548 | AP46: 60.38586557 | AQ46: 60.38589467 | AR46: 60.38588858
A47: 1620000US2902962 | B47: Bagnell | C47: 77.8 | D47: 76.7 | E47: 78.4 | F47: 77.1 | G47: 87.8 | H47: 87.5 | I47: 64.9 | J47: 70.6 | K47: 78.1 | L47: 65.85365854 | M47: 70.68813008 | N47: 69.6359054 | O47: 68.58368071 | P47: 67.53145602 | Q47: 66.47923134 | R47: 65.42700665 | S47: 64.37478197 | T47: 63.32255728 | U47: 62.27033259 | V47: 61.21810791 | W47: 62.27033259 | X47: 61.91959103 | Y47: 61.80267718 | Z47: 61.9975336 | AA47: 61.9066006 | AB47: 61.90227046 | AC47: 61.93546822 | AD47: 61.91477976 | AE47: 61.91750615 | AF47: 61.92258471 | AG47: 61.91829021 | AH47: 61.91946036 | AI47: 61.92011176 | AJ47: 61.91928744 | AK47: 61.91961985 | AL47: 61.91967302 | AM47: 61.91952677 | AN47: 61.91960655 | AO47: 61.91960211 | AP47: 61.91957848 | AQ47: 61.91959571 | AR47: 61.9195921
A48: 1620000US2903052 | B48: Bakersfield | C48: 90.7 | D48: 83.9 | E48: 82.6 | F48: 77 | G48: 77.8 | H48: 79.1 | I48: 86.7 | J48: 82.8 | K48: 81.2 | L48: 75.86206897 | M48: 77.73149425 | N48: 76.99791014 | O48: 76.26432602 | P48: 75.5307419 | Q48: 74.79715778 | R48: 74.06357367 | S48: 73.32998955 | T48: 72.59640543 | U48: 71.86282132 | V48: 71.1292372 | W48: 71.86282132 | X48: 71.61829328 | Y48: 71.53678393 | Z48: 71.67263284 | AA48: 71.60923668 | AB48: 71.60621782 | AC48: 71.62936245 | AD48: 71.61493898 | AE48: 71.61683975 | AF48: 71.62038039 | AG48: 71.61738638 | AH48: 71.61820217 | AI48: 71.61865631 | AJ48: 71.61808162 | AK48: 71.61831337 | AL48: 71.61835044 | AM48: 71.61824848 | AN48: 71.61830409 | AO48: 71.618301 | AP48: 71.61828452 | AQ48: 71.61829654 | AR48: 71.61829402
A49: 1620000US2903124 | B49: Baldwin Park | C49: 63.5 | D49: 62.5 | E49: 57.4 | F49: 60.7 | G49: 75.7 | H49: 84.9 | I49: 78.4 | J49: 83.1 | K49: 77 | L49: 77.6119403 | M49: 86.05810945 | N49: 88.5993668 | O49: 91.14062415 | P49: 93.6818815 | Q49: 96.22313885 | R49: 98.7643962 | S49: 100 | T49: 100 | U49: 100 | V49: 100 | W49: 100 | X49: 100 | Y49: 100 | Z49: 100 | AA49: 100 | AB49: 100 | AC49: 100 | AD49: 100 | AE49: 100 | AF49: 100 | AG49: 100 | AH49: 100 | AI49: 100 | AJ49: 100 | AK49: 100 | AL49: 100 | AM49: 100 | AN49: 100 | AO49: 100 | AP49: 100 | AQ49: 100 | AR49: 100
A50: 1620000US2903160 | B50: Ballwin | C50: 97 | D50: 97 | E50: 97.4 | F50: 97.1 | G50: 97 | H50: 95.8 | I50: 96.4 | J50: 94.3 | K50: 94.5 | L50: 95.14700825 | M50: 94.3988033 | N50: 94.07773102 | O50: 93.75665875 | P50: 93.43558647 | Q50: 93.11451419 | R50: 92.79344192 | S50: 92.47236964 | T50: 92.15129736 | U50: 91.83022508 | V50: 91.50915281 | W50: 91.83022508 | X50: 91.72320099 | Y50: 91.68752629 | Z50: 91.74698412 | AA50: 91.71923714 | AB50: 91.71791585 | AC50: 91.7280457 | AD50: 91.7217329 | AE50: 91.72256482 | AF50: 91.72411447 | AG50: 91.72280406 | AH50: 91.72316112 | AI50: 91.72335988 | AJ50: 91.72310836 | AK50: 91.72320979 | AL50: 91.72322601 | AM50: 91.72318138 | AN50: 91.72320573 | AO50: 91.72320437 | AP50: 91.72319716 | AQ50: 91.72320242 | AR50: 91.72320132
A51: 1620000US2903322 | B51: Baring | C51: 93 | D51: 95.6 | E51: 94.9 | F51: 86.2 | G51: 85.8 | H51: 83.5 | I51: 86 | J51: 85.1 | K51: 90.6 | L51: 95.23809524 | M51: 87.36857143 | N51: 86.96398268 | O51: 86.55939394 | P51: 86.15480519 | Q51: 85.75021645 | R51: 85.34562771 | S51: 84.94103896 | T51: 84.53645022 | U51: 84.13186147 | V51: 83.72727273 | W51: 84.13186147 | X51: 83.99699856 | Y51: 83.95204425 | Z51: 84.02696809 | AA51: 83.99200363 | AB51: 83.99033866 | AC51: 84.00310346 | AD51: 83.99514859 | AE51: 83.9961969 | AF51: 83.99814965 | AG51: 83.99649838 | AH51: 83.99694831 | AI51: 83.99719878 | AJ51: 83.99688182 | AK51: 83.99700964 | AL51: 83.99703008 | AM51: 83.99697385 | AN51: 83.99700452 | AO51: 83.99700282 | AP51: 83.99699373 | AQ51: 83.99700036 | AR51: 83.99699897
A52: 1620000US2903340 | B52: Barnard | C52: 84.9 | D52: 84.8 | E52: 86.6 | F52: 93.3 | G52: 94.4 | H52: 92.7 | I52: 89.9 | J52: 92.2 | K52: 91.5 | L52: 91.52542373 | M52: 94.27016949 | N52: 95.01337442 | O52: 95.75657935 | P52: 96.49978428 | Q52: 97.24298921 | R52: 97.98619414 | S52: 98.72939908 | T52: 99.47260401 | U52: 100 | V52: 100 | W52: 99.82420134 | X52: 99.94140045 | Y52: 99.92186726 | Z52: 99.89582301 | AA52: 99.91969691 | AB52: 99.91246239 | AC52: 99.90932744 | AD52: 99.91382891 | AE52: 99.91187291 | AF52: 99.91167642 | AG52: 99.91245942 | AH52: 99.91200292 | AI52: 99.91204625 | AJ52: 99.91216953 | AK52: 99.9120729 | AL52: 99.91209623 | AM52: 99.91211288 | AN52: 99.912094 | AO52: 99.91210104 | AP52: 99.91210264 | AQ52: 99.91209923 | AR52: 99.91210097
A53: 1620000US2903376 | B53: Barnett | C53: 88.3 | D53: 65.4 | E53: 60.3 | F53: 59.4 | G53: 72.3 | H53: 62.6 | I53: 68.7 | J53: 63.7 | K53: 63.2 | L53: 65.53672316 | M53: 60.77468927 | N53: 59.65305598 | O53: 58.5314227 | P53: 57.40978942 | Q53: 56.28815614 | R53: 55.16652286 | S53: 54.04488957 | T53: 52.92325629 | U53: 51.80162301 | V53: 50.67998973 | W53: 51.80162301 | X53: 51.42774525 | Y53: 51.30311933 | Z53: 51.5108292 | AA53: 51.41389792 | AB53: 51.40928215 | AC53: 51.44466976 | AD53: 51.42261661 | AE53: 51.42552284 | AF53: 51.4309364 | AG53: 51.42635862 | AH53: 51.42760595 | AI53: 51.42830032 | AJ53: 51.42742163 | AK53: 51.42777597 | AL53: 51.42783264 | AM53: 51.42767675 | AN53: 51.42776179 | AO53: 51.42775706 | AP53: 51.42773186 | AQ53: 51.42775024 | AR53: 51.42774639
A54: 1620000US2903556 | B54: Bates City | C54: 85.1 | D54: 81.1 | E54: 77.2 | F54: 74 | G54: 74.8 | H54: 84.4 | I54: 90.5 | J54: 91.5 | K54: 91.3 | L54: 86.07594937 | M54: 90.62371308 | N54: 91.90118911 | O54: 93.17866513 | P54: 94.45614116 | Q54: 95.73361718 | R54: 97.01109321 | S54: 98.28856924 | T54: 99.56604526 | U54: 100 | V54: 100 | W54: 99.85534842 | X54: 99.95178281 | Y54: 99.93571041 | Z54: 99.91428055 | AA54: 99.93392459 | AB54: 99.92797185 | AC54: 99.92539233 | AD54: 99.92909625 | AE54: 99.92748681 | AF54: 99.92732513 | AG54: 99.9279694 | AH54: 99.92759378 | AI54: 99.92762944 | AJ54: 99.92773087 | AK54: 99.92765136 | AL54: 99.92767056 | AM54: 99.92768426 | AN54: 99.92766873 | AO54: 99.92767452 | AP54: 99.92767584 | AQ54: 99.92767303 | AR54: 99.92767446
A55: 1620000US2903592 | B55: Battlefield | C55: 95 | D55: 95.8 | E55: 95.2 | F55: 95.1 | G55: 94.4 | H55: 94.4 | I55: 95.8 | J55: 95.6 | K55: 95.3 | L55: 95.67567568 | M55: 95.45027027 | N55: 95.49076167 | O55: 95.53125307 | P55: 95.57174447 | Q55: 95.61223587 | R55: 95.65272727 | S55: 95.69321867 | T55: 95.73371007 | U55: 95.77420147 | V55: 95.81469287 | W55: 95.77420147 | X55: 95.78769861 | Y55: 95.79219765 | Z55: 95.78469924 | AA55: 95.7881985 | AB55: 95.78836513 | AC55: 95.78708763 | AD55: 95.78788375 | AE55: 95.78777884 | AF55: 95.78758341 | AG55: 95.78774867 | AH55: 95.78770364 | AI55: 95.78767857 | AJ55: 95.78771029 | AK55: 95.7876975 | AL55: 95.78769545 | AM55: 95.78770108 | AN55: 95.78769801 | AO55: 95.78769818 | AP55: 95.78769909 | AQ55: 95.78769843 | AR55: 95.78769857
A56: 1620000US2904132 | B56: Bell City | C56: 54.1 | D56: 51.3 | E56: 62 | F56: 69 | G56: 66.7 | H56: 72.9 | I56: 75.2 | J56: 72.8 | K56: 72.4 | L56: 76.17647059 | M56: 81.43058824 | N56: 84.00748663 | O56: 86.58438503 | P56: 89.16128342 | Q56: 91.73818182 | R56: 94.31508021 | S56: 96.89197861 | T56: 99.46887701 | U56: 100 | V56: 100 | W56: 99.822959 | X56: 99.94098633 | Y56: 99.92131511 | Z56: 99.89508682 | AA56: 99.91912942 | AB56: 99.91184378 | AC56: 99.90868667 | AD56: 99.91321996 | AE56: 99.91125014 | AF56: 99.91105226 | AG56: 99.91184078 | AH56: 99.91138106 | AI56: 99.9114247 | AJ56: 99.91154885 | AK56: 99.91145154 | AL56: 99.91147503 | AM56: 99.9114918 | AN56: 99.91147279 | AO56: 99.91147987 | AP56: 99.91148149 | AQ56: 99.91147805 | AR56: 99.9114798
A57: 1620000US2904150 | B57: Belle | C57: 79.5 | D57: 79.5 | E57: 79.5 | F57: 74.6 | G57: 76.4 | H57: 73.5 | I57: 74 | J57: 77.6 | K57: 83.5 | L57: 84.86574451 | M57: 80.3662978 | N57: 80.74261114 | O57: 81.11892448 | P57: 81.49523781 | Q57: 81.87155115 | R57: 82.24786449 | S57: 82.62417782 | T57: 83.00049116 | U57: 83.3768045 | V57: 83.75311783 | W57: 83.3768045 | X57: 83.50224228 | Y57: 83.54405487 | Z57: 83.47436721 | AA57: 83.50688812 | AB57: 83.50843673 | AC57: 83.49656402 | AD57: 83.50396296 | AE57: 83.50298791 | AF57: 83.50117163 | AG57: 83.5027075 | AH57: 83.50228901 | AI57: 83.50205605 | AJ57: 83.50235085 | AK57: 83.50223197 | AL57: 83.50221296 | AM57: 83.50226526 | AN57: 83.50223673 | AO57: 83.50223831 | AP57: 83.50224677 | AQ57: 83.5022406 | AR57: 83.50224189
A58: 1620000US2904222 | B58: Bellefontaine Neighbors | C58: 57 | D58: 84.8 | E58: 86.1 | F58: 84 | G58: 86.5 | H58: 86.8 | I58: 86.7 | J58: 87.5 | K58: 87.7 | L58: 86.87258687 | M58: 93.54903475 | N58: 95.39481221 | O58: 97.24058968 | P58: 99.08636715 | Q58: 100 | R58: 100 | S58: 100 | T58: 100 | U58: 100 | V58: 100 | W58: 100 | X58: 100 | Y58: 100 | Z58: 100 | AA58: 100 | AB58: 100 | AC58: 100 | AD58: 100 | AE58: 100 | AF58: 100 | AG58: 100 | AH58: 100 | AI58: 100 | AJ58: 100 | AK58: 100 | AL58: 100 | AM58: 100 | AN58: 100 | AO58: 100 | AP58: 100 | AQ58: 100 | AR58: 100
A59: 1620000US2904330 | B59: Bellflower | C59: 61.4 | D59: 67.2 | E59: 64.9 | F59: 66.2 | G59: 70.9 | H59: 73.2 | I59: 77.2 | J59: 80.3 | K59: 84.9 | L59: 84.36213992 | M59: 87.8181893 | N59: 90.50218481 | O59: 93.18618032 | P59: 95.87017583 | Q59: 98.55417134 | R59: 100 | S59: 100 | T59: 100 | U59: 100 | V59: 100 | W59: 100 | X59: 100 | Y59: 100 | Z59: 100 | AA59: 100 | AB59: 100 | AC59: 100 | AD59: 100 | AE59: 100 | AF59: 100 | AG59: 100 | AH59: 100 | AI59: 100 | AJ59: 100 | AK59: 100 | AL59: 100 | AM59: 100 | AN59: 100 | AO59: 100 | AP59: 100 | AQ59: 100 | AR59: 100
A60: 1620000US2904348 | B60: Bel-Nor | C60: 97.4 | D60: 97.5 | E60: 95.8 | F60: 96.1 | G60: 96.2 | H60: 94.5 | I60: 94.7 | J60: 94.7 | K60: 94.1 | L60: 94.51410658 | M60: 93.5123093 | N60: 93.1415636 | O60: 92.7708179 | P60: 92.4000722 | Q60: 92.02932649 | R60: 91.65858079 | S60: 91.28783509 | T60: 90.91708939 | U60: 90.54634369 | V60: 90.17559799 | W60: 90.54634369 | X60: 90.42276179 | Y60: 90.38156782 | Z60: 90.45022443 | AA60: 90.41818468 | AB60: 90.41665898 | AC60: 90.42835603 | AD60: 90.42106656 | AE60: 90.42202719 | AF60: 90.42381659 | AG60: 90.42230345 | AH60: 90.42271574 | AI60: 90.42294526 | AJ60: 90.42265482 | AK60: 90.42277194 | AL60: 90.42279067 | AM60: 90.42273914 | AN60: 90.42276725 | AO60: 90.42276569 | AP60: 90.42275736 | AQ60: 90.42276344 | AR60: 90.42276216
A61: 1620000US2904366 | B61: Bel-Ridge | C61: 83.9 | D61: 78.8 | E61: 78.1 | F61: 78.1 | G61: 80.7 | H61: 77.9 | I61: 80.5 | J61: 84.7 | K61: 86.1 | L61: 83.5359116 | M61: 84.07436464 | N61: 84.59086891 | O61: 85.10737318 | P61: 85.62387745 | Q61: 86.14038172 | R61: 86.65688599 | S61: 87.17339026 | T61: 87.68989453 | U61: 88.20639879 | V61: 88.72290306 | W61: 88.20639879 | X61: 88.37856688 | Y61: 88.43595625 | Z61: 88.34030731 | AA61: 88.38494348 | AB61: 88.38706901 | AC61: 88.37077327 | AD61: 88.38092859 | AE61: 88.37959029 | AF61: 88.37709738 | AG61: 88.37920542 | AH61: 88.37863103 | AI61: 88.37831128 | AJ61: 88.37871591 | AK61: 88.37855274 | AL61: 88.37852664 | AM61: 88.37859843 | AN61: 88.37855927 | AO61: 88.37856145 | AP61: 88.37857305 | AQ61: 88.37856459 | AR61: 88.37856636
A62: 1620000US2904384 | B62: Belton | C62: 91.4 | D62: 91 | E62: 90.4 | F62: 90.9 | G62: 90.2 | H62: 89.3 | I62: 89.8 | J62: 88.7 | K62: 89 | L62: 89.02963393 | M62: 88.37185357 | N62: 88.0807427 | O62: 87.78963182 | P62: 87.49852094 | Q62: 87.20741007 | R62: 86.91629919 | S62: 86.62518832 | T62: 86.33407744 | U62: 86.04296656 | V62: 85.75185569 | W62: 86.04296656 | X62: 85.9459296 | Y62: 85.91358395 | Z62: 85.96749337 | AA62: 85.94233564 | AB62: 85.94113766 | AC62: 85.95032222 | AD62: 85.94459851 | AE62: 85.9453528 | AF62: 85.94675784 | AG62: 85.94556971 | AH62: 85.94589345 | AI62: 85.94607367 | AJ62: 85.94584561 | AK62: 85.94593758 | AL62: 85.94595229 | AM62: 85.94591182 | AN62: 85.9459339 | AO62: 85.94593267 | AP62: 85.94592613 | AQ62: 85.9459309 | AR62: 85.9459299
A63: 1620000US2904834 | B63: Benton | C63: 91.5 | D63: 88.1 | E63: 84.6 | F63: 87 | G63: 85.5 | H63: 84.6 | I63: 81.8 | J63: 74.1 | K63: 87.6 | L63: 81.81818182 | M63: 79.34060606 | N63: 78.37311295 | O63: 77.40561983 | P63: 76.43812672 | Q63: 75.47063361 | R63: 74.5031405 | S63: 73.53564738 | T63: 72.56815427 | U63: 71.60066116 | V63: 70.63316804 | W63: 71.60066116 | X63: 71.27816345 | Y63: 71.17066422 | Z63: 71.34982961 | AA63: 71.26621909 | AB63: 71.26223764 | AC63: 71.29276211 | AD63: 71.27373962 | AE63: 71.27624646 | AF63: 71.28091606 | AG63: 71.27696738 | AH63: 71.2780433 | AI63: 71.27864225 | AJ63: 71.27788431 | AK63: 71.27818995 | AL63: 71.27823884 | AM63: 71.27810436 | AN63: 71.27817772 | AO63: 71.27817364 | AP63: 71.27815191 | AQ63: 71.27816775 | AR63: 71.27816443
A64: 1620000US2904798 | B64: Benton City | C64: 71.7 | D64: 66.3 | E64: 65.8 | F64: 55.6 | G64: 68.1 | H64: 72.4 | I64: 78.3 | J64: 81.9 | K64: 81.9 | L64: 83.94886364 | M64: 85.00621212 | N64: 87.2628168 | O64: 89.51942149 | P64: 91.77602617 | Q64: 94.03263085 | R64: 96.28923554 | S64: 98.54584022 | T64: 100 | U64: 100 | V64: 100 | W64: 100 | X64: 100 | Y64: 100 | Z64: 100 | AA64: 100 | AB64: 100 | AC64: 100 | AD64: 100 | AE64: 100 | AF64: 100 | AG64: 100 | AH64: 100 | AI64: 100 | AJ64: 100 | AK64: 100 | AL64: 100 | AM64: 100 | AN64: 100 | AO64: 100 | AP64: 100 | AQ64: 100 | AR64: 100
A65: 1620000US2904888 | B65: Berger | C65: 79.4 | D65: 79.7 | E65: 80.5 | F65: 78.8 | G65: 83.9 | H65: 81.3 | I65: 78.3 | J65: 82.1 | K65: 81.9 | L65: 81.1023622 | M65: 81.85427822 | N65: 82.06410403 | O65: 82.27392985 | P65: 82.48375567 | Q65: 82.69358148 | R65: 82.9034073 | S65: 83.11323312 | T65: 83.32305894 | U65: 83.53288475 | V65: 83.74271057 | W65: 83.53288475 | X65: 83.60282669 | Y65: 83.62614067 | Z65: 83.58728404 | AA65: 83.60541713 | AB65: 83.60628062 | AC65: 83.5996606 | AD65: 83.60378612 | AE65: 83.60324244 | AF65: 83.60222972 | AG65: 83.60308609 | AH65: 83.60285275 | AI65: 83.60272285 | AJ65: 83.60288723 | AK65: 83.60282095 | AL65: 83.60281034 | AM65: 83.60283951 | AN65: 83.6028236 | AO65: 83.60282448 | AP65: 83.6028292 | AQ65: 83.60282576 | AR65: 83.60282648
A66: 1620000US2904906 | B66: Berkeley | C66: 78.9 | D66: 81.8 | E66: 84 | F66: 84.6 | G66: 84.5 | H66: 87 | I66: 85.6 | J66: 84.5 | K66: 84.8 | L66: 86.42667913 | M66: 87.43733832 | N66: 88.02364203 | O66: 88.60994574 | P66: 89.19624945 | Q66: 89.78255316 | R66: 90.36885687 | S66: 90.95516058 | T66: 91.54146429 | U66: 92.127768 | V66: 92.71407171 | W66: 92.127768 | X66: 92.32320257 | Y66: 92.38834743 | Z66: 92.27977267 | AA66: 92.33044089 | AB66: 92.33285366 | AC66: 92.31435574 | AD66: 92.32588343 | AE66: 92.32436428 | AF66: 92.32153448 | AG66: 92.3239274 | AH66: 92.32327539 | AI66: 92.32291242 | AJ66: 92.32337174 | AK66: 92.32318651 | AL66: 92.32315689 | AM66: 92.32323838 | AN66: 92.32319393 | AO66: 92.3231964 | AP66: 92.32320957 | AQ66: 92.32319997 | AR66: 92.32320198
A67: 1620000US2904960 | B67: Bernie | C67: 64.2 | D67: 72.1 | E67: 76.6 | F67: 77.9 | G67: 76.3 | H67: 74 | I67: 71.9 | J67: 73.3 | K67: 75.7 | L67: 76.57142857 | M67: 77.18190476 | N67: 77.78640693 | O67: 78.39090909 | P67: 78.99541126 | Q67: 79.59991342 | R67: 80.20441558 | S67: 80.80891775 | T67: 81.41341991 | U67: 82.01792208 | V67: 82.62242424 | W67: 82.01792208 | X67: 82.2194228 | Y67: 82.28658971 | Z67: 82.17464486 | AA67: 82.22688579 | AB67: 82.22937345 | AC67: 82.21030137 | AD67: 82.22218687 | AE67: 82.22062056 | AF67: 82.21770293 | AG67: 82.22017012 | AH67: 82.21949787 | AI67: 82.21912364 | AJ67: 82.21959721 | AK67: 82.21940624 | AL67: 82.2193757 | AM67: 82.21945972 | AN67: 82.21941389 | AO67: 82.21941643 | AP67: 82.21943001 | AQ67: 82.21942011 | AR67: 82.21942219
A68: 1620000US2904996 | B68: Bertrand | C68: 54.5 | D68: 56 | E68: 61.4 | F68: 71 | G68: 73.4 | H68: 76.1 | I68: 77.1 | J68: 79.3 | K68: 74.9 | L68: 76.55367232 | M68: 84.73480226 | N68: 87.40924499 | O68: 90.08368772 | P68: 92.75813046 | Q68: 95.43257319 | R68: 98.10701592 | S68: 100 | T68: 100 | U68: 100 | V68: 100 | W68: 100 | X68: 100 | Y68: 100 | Z68: 100 | AA68: 100 | AB68: 100 | AC68: 100 | AD68: 100 | AE68: 100 | AF68: 100 | AG68: 100 | AH68: 100 | AI68: 100 | AJ68: 100 | AK68: 100 | AL68: 100 | AM68: 100 | AN68: 100 | AO68: 100 | AP68: 100 | AQ68: 100 | AR68: 100
A69: 1620000US2905068 | B69: Bethany | C69: 84.6 | D69: 82.8 | E69: 85.8 | F69: 80.1 | G69: 81.9 | H69: 78.8 | I69: 78.6 | J69: 78.5 | K69: 83.6 | L69: 85.72614108 | M69: 81.0971231 | N69: 80.92521564 | O69: 80.75330819 | P69: 80.58140073 | Q69: 80.40949327 | R69: 80.23758582 | S69: 80.06567836 | T69: 79.8937709 | U69: 79.72186345 | V69: 79.54995599 | W69: 79.72186345 | X69: 79.66456096 | Y69: 79.64546013 | Z69: 79.67729485 | AA69: 79.66243865 | AB69: 79.66173121 | AC69: 79.6671549 | AD69: 79.66377492 | AE69: 79.66422034 | AF69: 79.66505006 | AG69: 79.66434844 | AH69: 79.66453961 | AI69: 79.66464604 | AJ69: 79.66451136 | AK69: 79.66456567 | AL69: 79.66457436 | AM69: 79.66455046 | AN69: 79.6645635 | AO69: 79.66456277 | AP69: 79.66455891 | AQ69: 79.66456173 | AR69: 79.66456114
A70: 1620000US2905104 | B70: Bethel | C70: 96.6 | D70: 94.4 | E70: 92.1 | F70: 92 | G70: 91.6 | H70: 91.9 | I70: 84.1 | J70: 91.4 | K70: 86.2 | L70: 85.4368932 | M70: 84.41475728 | N70: 83.29495146 | O70: 82.17514563 | P70: 81.05533981 | Q70: 79.93553398 | R70: 78.81572816 | S70: 77.69592233 | T70: 76.5761165 | U70: 75.45631068 | V70: 74.33650485 | W70: 75.45631068 | X70: 75.08304207 | Y70: 74.9586192 | Z70: 75.16599065 | AA70: 75.06921731 | AB70: 75.06460905 | AC70: 75.099939 | AD70: 75.07792179 | AE70: 75.08082328 | AF70: 75.08622802 | AG70: 75.0816577 | AH70: 75.082903 | AI70: 75.08359624 | AJ70: 75.08271898 | AK70: 75.08307274 | AL70: 75.08312932 | AM70: 75.08297368 | AN70: 75.08305858 | AO70: 75.08305386 | AP70: 75.08302871 | AQ70: 75.08304705 | AR70: 75.08304321
A71: 1620000US2905248 | B71: Beverly Hills | C71: 80.8 | D71: 82.4 | E71: 85.9 | F71: 81.6 | G71: 87.5 | H71: 88.6 | I71: 92.3 | J71: 90.8 | K71: 93.1 | L71: 89.91354467 | M71: 94.44541787 | N71: 95.74615667 | O71: 97.04689547 | P71: 98.34763427 | Q71: 99.64837307 | R71: 100 | S71: 100 | T71: 100 | U71: 100 | V71: 100 | W71: 100 | X71: 100 | Y71: 100 | Z71: 100 | AA71: 100 | AB71: 100 | AC71: 100 | AD71: 100 | AE71: 100 | AF71: 100 | AG71: 100 | AH71: 100 | AI71: 100 | AJ71: 100 | AK71: 100 | AL71: 100 | AM71: 100 | AN71: 100 | AO71: 100 | AP71: 100 | AQ71: 100 | AR71: 100
A72: 1620000US2905266 | B72: Bevier | C72: 76.1 | D72: 82.3 | E72: 84.6 | F72: 86.3 | G72: 91.1 | H72: 92.5 | I72: 90.4 | J72: 85.6 | K72: 84 | L72: 87.32394366 | M72: 90.40957746 | N72: 91.20724712 | O72: 92.00491677 | P72: 92.80258643 | Q72: 93.60025608 | R72: 94.39792574 | S72: 95.19559539 | T72: 95.99326504 | U72: 96.7909347 | V72: 97.58860435 | W72: 96.7909347 | X72: 97.05682458 | Y72: 97.14545455 | Z72: 96.99773794 | AA72: 97.06667236 | AB72: 97.06995495 | AC72: 97.04478842 | AD72: 97.06047191 | AE72: 97.05840509 | AF72: 97.05455514 | AG72: 97.05781071 | AH72: 97.05692365 | AI72: 97.05642983 | AJ72: 97.05705473 | AK72: 97.05680274 | AL72: 97.05676243 | AM72: 97.0568733 | AN72: 97.05681282 | AO72: 97.05681619 | AP72: 97.0568341 | AQ72: 97.05682104 | AR72: 97.05682378
A73: 1620000US2905495 | B73: Big Lake | C73: 63.3 | D73: 66.7 | E73: 66.7 | F73: 45 | G73: 58.3 | H73: 100 | I73: 100 | J73: 96.3 | K73: 96.1 | L73: 97.89473684 | M73: 100 | N73: 100 | O73: 100 | P73: 100 | Q73: 100 | R73: 100 | S73: 100 | T73: 100 | U73: 100 | V73: 100 | W73: 100 | X73: 100 | Y73: 100 | Z73: 100 | AA73: 100 | AB73: 100 | AC73: 100 | AD73: 100 | AE73: 100 | AF73: 100 | AG73: 100 | AH73: 100 | AI73: 100 | AJ73: 100 | AK73: 100 | AL73: 100 | AM73: 100 | AN73: 100 | AO73: 100 | AP73: 100 | AQ73: 100 | AR73: 100
A74: 1620000US2905626 | B74: Billings | C74: 84.6 | D74: 85.7 | E74: 89 | F74: 87.4 | G74: 89.4 | H74: 88.7 | I74: 86.1 | J74: 87.3 | K74: 88.7 | L74: 84.8 | M74: 87.49333333 | N74: 87.55212121 | O74: 87.61090909 | P74: 87.66969697 | Q74: 87.72848485 | R74: 87.78727273 | S74: 87.84606061 | T74: 87.90484848 | U74: 87.96363636 | V74: 88.02242424 | W74: 87.96363636 | X74: 87.98323232 | Y74: 87.98976431 | Z74: 87.97887767 | AA74: 87.9839581 | AB74: 87.98420002 | AC74: 87.98234526 | AD74: 87.98350113 | AE74: 87.98334881 | AF74: 87.98306507 | AG74: 87.983305 | AH74: 87.98323962 | AI74: 87.98320323 | AJ74: 87.98324928 | AK74: 87.98323071 | AL74: 87.98322774 | AM74: 87.98323591 | AN74: 87.98323146 | AO74: 87.9832317 | AP74: 87.98323302 | AQ74: 87.98323206 | AR74: 87.98323226
A75: 1620000US2905734 | B75: Birch Tree | C75: 66.7 | D75: 62.2 | E75: 52.6 | F75: 62.6 | G75: 66.4 | H75: 67.9 | I75: 69.6 | J75: 62.4 | K75: 64.5 | L75: 66.09848485 | M75: 66.83939394 | N75: 67.33749311 | O75: 67.83559229 | P75: 68.33369146 | Q75: 68.83179063 | R75: 69.32988981 | S75: 69.82798898 | T75: 70.32608815 | U75: 70.82418733 | V75: 71.3222865 | W75: 70.82418733 | X75: 70.99022039 | Y75: 71.04556474 | Z75: 70.95332415 | AA75: 70.99636976 | AB75: 70.99841955 | AC75: 70.98270449 | AD75: 70.99249793 | AE75: 70.99120732 | AF75: 70.98880325 | AG75: 70.99083617 | AH75: 70.99028224 | AI75: 70.98997389 | AJ75: 70.9903641 | AK75: 70.99020674 | AL75: 70.99018158 | AM75: 70.99025081 | AN75: 70.99021304 | AO75: 70.99021514 | AP75: 70.99022633 | AQ75: 70.99021817 | AR75: 70.99021988
A76: 1620000US2905824 | B76: Birmingham | C76: 81.1 | D76: 80.8 | E76: 88.2 | F76: 92.3 | G76: 90 | H76: 90.9 | I76: 87.9 | J76: 88.7 | K76: 86.6 | L76: 90.11627907 | M76: 91.39317829 | N76: 92.071642 | O76: 92.75010571 | P76: 93.42856942 | Q76: 94.10703312 | R76: 94.78549683 | S76: 95.46396054 | T76: 96.14242424 | U76: 96.82088795 | V76: 97.49935166 | W76: 96.82088795 | X76: 97.04704252 | Y76: 97.12242737 | Z76: 96.99678595 | AA76: 97.05541861 | AB76: 97.05821065 | AC76: 97.03680507 | AD76: 97.05014478 | AE76: 97.04838683 | AF76: 97.04511222 | AG76: 97.04788128 | AH76: 97.04712678 | AI76: 97.04670676 | AJ76: 97.04723827 | AK76: 97.04702394 | AL76: 97.04698966 | AM76: 97.04708395 | AN76: 97.04703252 | AO76: 97.04703537 | AP76: 97.04705061 | AQ76: 97.0470395 | AR76: 97.04704183
A77: 1620000US2905878 | B77: Bismarck | C77: 71.7 | D77: 71 | E77: 69.6 | F77: 70 | G77: 72.9 | H77: 73.7 | I77: 73.3 | J77: 77.4 | K77: 77.4 | L77: 76.33451957 | M77: 77.87380783 | N77: 78.69932708 | O77: 79.52484633 | P77: 80.35036558 | Q77: 81.17588483 | R77: 82.00140408 | S77: 82.82692333 | T77: 83.65244258 | U77: 84.47796182 | V77: 85.30348107 | W77: 84.47796182 | X77: 84.75313491 | Y77: 84.84485927 | Z77: 84.69198533 | AA77: 84.7633265 | AB77: 84.7667237 | AC77: 84.74067851 | AD77: 84.75690957 | AE77: 84.7547706 | AF77: 84.75078623 | AG77: 84.75415547 | AH77: 84.75323743 | AI77: 84.75272637 | AJ77: 84.75337309 | AK77: 84.7531123 | AL77: 84.75307059 | AM77: 84.75318532 | AN77: 84.75312274 | AO77: 84.75312622 | AP77: 84.75314476 | AQ77: 84.75313124 | AR77: 84.75313407
A78: 1620000US2906004 | B78: Black Jack | C78: 93 | D78: 90.6 | E78: 88.1 | F78: 90.7 | G78: 90.2 | H78: 90.9 | I78: 94.4 | J78: 93.3 | K78: 93.3 | L78: 91.06564019 | M78: 92.86625608 | N78: 93.10438191 | O78: 93.34250774 | P78: 93.58063356 | Q78: 93.81875939 | R78: 94.05688522 | S78: 94.29501105 | T78: 94.53313688 | U78: 94.77126271 | V78: 95.00938854 | W78: 94.77126271 | X78: 94.85063798 | Y78: 94.87709641 | Z78: 94.83299903 | AA78: 94.85357781 | AB78: 94.85455775 | AC78: 94.84704486 | AD78: 94.85172681 | AE78: 94.85110981 | AF78: 94.84996049 | AG78: 94.85093237 | AH78: 94.85066756 | AI78: 94.85052014 | AJ78: 94.85070669 | AK78: 94.85063146 | AL78: 94.85061943 | AM78: 94.85065253 | AN78: 94.85063447 | AO78: 94.85063548 | AP78: 94.85064083 | AQ78: 94.85063693 | AR78: 94.85063774
A79: 1620000US2905950 | B79: Blackburn | C79: 89.8 | D79: 90.2 | E79: 92.5 | F79: 92.7 | G79: 93.2 | H79: 92.8 | I79: 94 | J79: 93 | K79: 95 | L79: 94.38202247 | M79: 95.45280899 | N79: 95.94273749 | O79: 96.43266599 | P79: 96.92259448 | Q79: 97.41252298 | R79: 97.90245148 | S79: 98.39237998 | T79: 98.88230848 | U79: 99.37223698 | V79: 99.86216547 | W79: 99.37223698 | X79: 99.53554648 | Y79: 99.58998298 | Z79: 99.49925548 | AA79: 99.54159498 | AB79: 99.54361114 | AC79: 99.52815386 | AD79: 99.53778666 | AE79: 99.53651722 | AF79: 99.53415258 | AG79: 99.53615216 | AH79: 99.53560732 | AI79: 99.53530402 | AJ79: 99.53568783 | AK79: 99.53553306 | AL79: 99.5355083 | AM79: 99.5355764 | AN79: 99.53553925 | AO79: 99.53554132 | AP79: 99.53555232 | AQ79: 99.5355443 | AR79: 99.53554598
A80: 1620000US2906148 | B80: Blackwater | C80: 68.2 | D80: 72.7 | E80: 76.2 | F80: 79.8 | G80: 80 | H80: 90.4 | I80: 89.7 | J80: 91.4 | K80: 92.2 | L80: 92.66055046 | M80: 99.08422018 | N80: 100 | O80: 100 | P80: 100 | Q80: 100 | R80: 100 | S80: 100 | T80: 100 | U80: 100 | V80: 100 | W80: 100 | X80: 100 | Y80: 100 | Z80: 100 | AA80: 100 | AB80: 100 | AC80: 100 | AD80: 100 | AE80: 100 | AF80: 100 | AG80: 100 | AH80: 100 | AI80: 100 | AJ80: 100 | AK80: 100 | AL80: 100 | AM80: 100 | AN80: 100 | AO80: 100 | AP80: 100 | AQ80: 100 | AR80: 100
A81: 1620000US2906238 | B81: Blairstown | C81: 57.5 | D81: 62.3 | E81: 51.6 | F81: 63.4 | G81: 67 | H81: 73.6 | I81: 69 | J81: 83.3 | K81: 92.6 | L81: 96.82539683 | M81: 96.64349206 | N81: 100 | O81: 100 | P81: 100 | Q81: 100 | R81: 100 | S81: 100 | T81: 100 | U81: 100 | V81: 100 | W81: 100 | X81: 100 | Y81: 100 | Z81: 100 | AA81: 100 | AB81: 100 | AC81: 100 | AD81: 100 | AE81: 100 | AF81: 100 | AG81: 100 | AH81: 100 | AI81: 100 | AJ81: 100 | AK81: 100 | AL81: 100 | AM81: 100 | AN81: 100 | AO81: 100 | AP81: 100 | AQ81: 100 | AR81: 100
A82: 1620000US2906256 | B82: Bland | C82: 68.8 | D82: 65.9 | E82: 73.3 | F82: 72.3 | G82: 70.7 | H82: 75.7 | I82: 76.3 | J82: 76.7 | K82: 72.5 | L82: 72.58883249 | M82: 76.28886633 | N82: 76.98159052 | O82: 77.67431472 | P82: 78.36703892 | Q82: 79.05976311 | R82: 79.75248731 | S82: 80.44521151 | T82: 81.1379357 | U82: 81.8306599 | V82: 82.52338409 | W82: 81.8306599 | X82: 82.06156796 | Y82: 82.13853732 | Z82: 82.01025506 | AA82: 82.07012011 | AB82: 82.07297083 | AC82: 82.05111534 | AD82: 82.06473543 | AE82: 82.06294053 | AF82: 82.0595971 | AG82: 82.06242435 | AH82: 82.06165399 | AI82: 82.06122515 | AJ82: 82.06176783 | AK82: 82.06154899 | AL82: 82.06151399 | AM82: 82.06161027 | AN82: 82.06155775 | AO82: 82.06156067 | AP82: 82.06157623 | AQ82: 82.06156488 | AR82: 82.06156726
A83: 1620000US2906346 | B83: Blodgett | C83: 67.9 | D83: 78.9 | E83: 76.5 | F83: 73.8 | G83: 75.5 | H83: 78 | I83: 74.6 | J83: 79.8 | K83: 73 | L83: 71.68141593 | M83: 75.43923304 | N83: 75.52488603 | O83: 75.61053902 | P83: 75.69619201 | Q83: 75.781845 | R83: 75.86749799 | S83: 75.95315098 | T83: 76.03880397 | U83: 76.12445696 | V83: 76.21010995 | W83: 76.12445696 | X83: 76.15300796 | Y83: 76.16252495 | Z83: 76.14666329 | AA83: 76.1540654 | AB83: 76.15441788 | AC83: 76.15171552 | AD83: 76.1533996 | AE83: 76.15317767 | AF83: 76.15276426 | AG83: 76.15311385 | AH83: 76.15301859 | AI83: 76.15296557 | AJ83: 76.15303267 | AK83: 76.15300561 | AL83: 76.15300128 | AM83: 76.15301319 | AN83: 76.15300669 | AO83: 76.15300705 | AP83: 76.15300898 | AQ83: 76.15300757 | AR83: 76.15300787
A84: 1620000US2906382 | B84: Bloomfield | C84: 64.8 | D84: 63.2 | E84: 65.1 | F84: 63.7 | G84: 69.5 | H84: 74.3 | I84: 78.1 | J84: 82.6 | K84: 80.6 | L84: 81.81265207 | M84: 86.05172749 | N84: 88.53908427 | O84: 91.02644105 | P84: 93.51379783 | Q84: 96.00115461 | R84: 98.48851139 | S84: 100 | T84: 100 | U84: 100 | V84: 100 | W84: 100 | X84: 100 | Y84: 100 | Z84: 100 | AA84: 100 | AB84: 100 | AC84: 100 | AD84: 100 | AE84: 100 | AF84: 100 | AG84: 100 | AH84: 100 | AI84: 100 | AJ84: 100 | AK84: 100 | AL84: 100 | AM84: 100 | AN84: 100 | AO84: 100 | AP84: 100 | AQ84: 100 | AR84: 100
A85: 1620000US2906454 | B85: Bloomsdale | C85: 84.6 | D85: 84.8 | E85: 84.9 | F85: 82.5 | G85: 82.2 | H85: 81.4 | I85: 88.9 | J85: 87.5 | K85: 92.3 | L85: 91.14391144 | M85: 90.78423124 | N85: 91.64965671 | O85: 92.51508219 | P85: 93.38050766 | Q85: 94.24593313 | R85: 95.1113586 | S85: 95.97678408 | T85: 96.84220955 | U85: 97.70763502 | V85: 98.57306049 | W85: 97.70763502 | X85: 97.99611018 | Y85: 98.09226857 | Z85: 97.93200459 | AA85: 98.00679444 | AB85: 98.01035587 | AC85: 97.98305163 | AD85: 98.00006731 | AE85: 97.99782494 | AF85: 97.99364796 | AG85: 97.99718007 | AH85: 97.99621766 | AI85: 97.9956819 | AJ85: 97.99635988 | AK85: 97.99608648 | AL85: 97.99604275 | AM85: 97.99616303 | AN85: 97.99609742 | AO85: 97.99610107 | AP85: 97.99612051 | AQ85: 97.99610633 | AR85: 97.9961093
A86: 1620000US2906526 | B86: Blue Eye | C86: 88.9 | D86: 89.1 | E86: 85.6 | F86: 78.6 | G86: 85 | H86: 76.4 | I86: 81.2 | J86: 89.7 | K86: 89.2 | L86: 86.8 | M86: 85.1 | N86: 85.10909091 | O86: 85.11818182 | P86: 85.12727273 | Q86: 85.13636364 | R86: 85.14545455 | S86: 85.15454545 | T86: 85.16363636 | U86: 85.17272727 | V86: 85.18181818 | W86: 85.17272727 | X86: 85.17575758 | Y86: 85.17676768 | Z86: 85.17508418 | AA86: 85.17586981 | AB86: 85.17590722 | AC86: 85.1756204 | AD86: 85.17579914 | AE86: 85.17577559 | AF86: 85.17573171 | AG86: 85.17576881 | AH86: 85.1757587 | AI86: 85.17575308 | AJ86: 85.1757602 | AK86: 85.17575733 | AL86: 85.17575687 | AM86: 85.17575813 | AN86: 85.17575744 | AO86: 85.17575748 | AP86: 85.17575768 | AQ86: 85.17575754 | AR86: 85.17575757
A87: 1620000US2906652 | B87: Blue Springs | C87: 94.1 | D87: 93.6 | E87: 93.7 | F87: 94 | G87: 94.1 | H87: 93.8 | I87: 94.8 | J87: 94.2 | K87: 94.2 | L87: 94.39826065 | M87: 94.47263759 | N87: 94.54223969 | O87: 94.61184178 | P87: 94.68144388 | Q87: 94.75104598 | R87: 94.82064807 | S87: 94.89025017 | T87: 94.95985226 | U87: 95.02945436 | V87: 95.09905646 | W87: 95.02945436 | X87: 95.05265506 | Y87: 95.06038862 | Z87: 95.04749935 | AA87: 95.05351434 | AB87: 95.05380077 | AC87: 95.05160482 | AD87: 95.05297331 | AE87: 95.05279297 | AF87: 95.05245703 | AG87: 95.0527411 | AH87: 95.0526637 | AI87: 95.05262061 | AJ87: 95.05267514 | AK87: 95.05265315 | AL87: 95.05264963 | AM87: 95.05265931 | AN87: 95.05265403 | AO87: 95.05265433 | AP87: 95.05265589 | AQ87: 95.05265475 | AR87: 95.05265499
A88: 1620000US2906742 | B88: Blythedale | C88: 83 | D88: 86.3 | E88: 84.1 | F88: 84.9 | G88: 91.1 | H88: 89.1 | I88: 84.7 | J88: 85.5 | K88: 89.6 | L88: 88.81118881 | M88: 89.37114219 | N88: 89.85478279 | O88: 90.33842339 | P88: 90.822064 | Q88: 91.3057046 | R88: 91.7893452 | S88: 92.2729858 | T88: 92.7566264 | U88: 93.24026701 | V88: 93.72390761 | W88: 93.24026701 | X88: 93.40148054 | Y88: 93.45521838 | Z88: 93.36565531 | AA88: 93.40745141 | AB88: 93.4094417 | AC88: 93.39418281 | AD88: 93.40369197 | AE88: 93.40243883 | AF88: 93.40010454 | AG88: 93.40207845 | AH88: 93.4015406 | AI88: 93.4012412 | AJ88: 93.40162008 | AK88: 93.40146729 | AL88: 93.40144286 | AM88: 93.40151008 | AN88: 93.40147341 | AO88: 93.40147545 | AP88: 93.40148631 | AQ88: 93.40147839 | AR88: 93.40148005
A89: 1620000US2906832 | B89: Bogard | C89: 79.8 | D89: 83.5 | E89: 85.2 | F89: 82.5 | G89: 87.6 | H89: 88.3 | I89: 77.3 | J89: 78.3 | K89: 78.8 | L89: 79.48717949 | M89: 79.24153846 | N89: 78.72568765 | O89: 78.20983683 | P89: 77.69398601 | Q89: 77.1781352 | R89: 76.66228438 | S89: 76.14643357 | T89: 75.63058275 | U89: 75.11473193 | V89: 74.59888112 | W89: 75.11473193 | X89: 74.94278166 | Y89: 74.88546491 | Z89: 74.98099283 | AA89: 74.93641313 | AB89: 74.93429029 | AC89: 74.95056542 | AD89: 74.94042295 | AE89: 74.94175955 | AF89: 74.94424931 | AG89: 74.94214394 | AH89: 74.9427176 | AI89: 74.94303695 | AJ89: 74.94263283 | AK89: 74.94279579 | AL89: 74.94282186 | AM89: 74.94275016 | AN89: 74.94278927 | AO89: 74.94278709 | AP89: 74.94277551 | AQ89: 74.94278396 | AR89: 74.94278219
A90: 1620000US2906922 | B90: Bolckow | C90: 90.2 | D90: 91.8 | E90: 90.2 | F90: 88.1 | G90: 87.6 | H90: 85.7 | I90: 77.7 | J90: 80.4 | K90: 84.4 | L90: 82.20858896 | M90: 78.97010225 | N90: 77.72269195 | O90: 76.47528165 | P90: 75.22787135 | Q90: 73.98046105 | R90: 72.73305075 | S90: 71.48564045 | T90: 70.23823015 | U90: 68.99081985 | V90: 67.74340956 | W90: 68.99081985 | X90: 68.57501642 | Y90: 68.43641528 | Z90: 68.66741718 | AA90: 68.55961629 | AB90: 68.55448292 | AC90: 68.5938388 | AD90: 68.56931267 | AE90: 68.5725448 | AF90: 68.57856542 | AG90: 68.5734743 | AH90: 68.57486151 | AI90: 68.57563374 | AJ90: 68.57465651 | AK90: 68.57505059 | AL90: 68.57511361 | AM90: 68.57494024 | AN90: 68.57503481 | AO90: 68.57502956 | AP90: 68.57500154 | AQ90: 68.57502197 | AR90: 68.57501769
A91: 1620000US2906976 | B91: Bolivar | C91: 82.8 | D91: 84.9 | E91: 84.3 | F91: 85.6 | G91: 87.6 | H91: 89.4 | I91: 89.3 | J91: 91.4 | K91: 92.8 | L91: 92.2071636 | M91: 94.30953211 | N91: 95.45113497 | O91: 96.59273783 | P91: 97.7343407 | Q91: 98.87594356 | R91: 100 | S91: 100 | T91: 100 | U91: 100 | V91: 100 | W91: 100 | X91: 100 | Y91: 100 | Z91: 100 | AA91: 100 | AB91: 100 | AC91: 100 | AD91: 100 | AE91: 100 | AF91: 100 | AG91: 100 | AH91: 100 | AI91: 100 | AJ91: 100 | AK91: 100 | AL91: 100 | AM91: 100 | AN91: 100 | AO91: 100 | AP91: 100 | AQ91: 100 | AR91: 100
A92: 1620000US2907102 | B92: Bonne Terre | C92: 72.6 | D92: 75.4 | E92: 70.5 | F92: 69.2 | G92: 70.7 | H92: 71.3 | I92: 75.8 | J92: 74.6 | K92: 77.5 | L92: 76.09126984 | M92: 76.26984127 | N92: 76.79724387 | O92: 77.32464646 | P92: 77.85204906 | Q92: 78.37945166 | R92: 78.90685426 | S92: 79.43425685 | T92: 79.96165945 | U92: 80.48906205 | V92: 81.01646465 | W92: 80.48906205 | X92: 80.66486291 | Y92: 80.7234632 | Z92: 80.62579606 | AA92: 80.67137406 | AB92: 80.67354444 | AC92: 80.65690485 | AD92: 80.66727445 | AE92: 80.66590791 | AF92: 80.6633624 | AG92: 80.66551492 | AH92: 80.66492841 | AI92: 80.66460191 | AJ92: 80.66501508 | AK92: 80.66484847 | AL92: 80.66482182 | AM92: 80.66489513 | AN92: 80.66485514 | AO92: 80.66485736 | AP92: 80.66486921 | AQ92: 80.66486057 | AR92: 80.66486238
A93: 1620000US2907318 | B93: Boonville | C93: 80.7 | D93: 81.9 | E93: 82.4 | F93: 82.6 | G93: 85.7 | H93: 85.7 | I93: 87.2 | J93: 85.6 | K93: 86.9 | L93: 87.34487734 | M93: 88.75795094 | N93: 89.51312607 | O93: 90.26830119 | P93: 91.02347632 | Q93: 91.77865145 | R93: 92.53382658 | S93: 93.28900171 | T93: 94.04417683 | U93: 94.79935196 | V93: 95.55452709 | W93: 94.79935196 | X93: 95.051077 | Y93: 95.13498535 | Z93: 94.99513811 | AA93: 95.06040015 | AB93: 95.06350787 | AC93: 95.03968204 | AD93: 95.05453002 | AE93: 95.05257331 | AF93: 95.04892846 | AG93: 95.0520106 | AH93: 95.05117079 | AI93: 95.05070328 | AJ93: 95.05129489 | AK93: 95.05105632 | AL93: 95.05101816 | AM93: 95.05112312 | AN93: 95.05106587 | AO93: 95.05106905 | AP93: 95.05108602 | AQ93: 95.05107365 | AR93: 95.05107624
A94: 1620000US2907426 | B94: Bosworth | C94: 68.2 | D94: 65.5 | E94: 61.4 | F94: 63.4 | G94: 73.1 | H94: 76.6 | I94: 78.9 | J94: 82.2 | K94: 81.8 | L94: 79.86577181 | M94: 85.53297539 | N94: 87.7941387 | O94: 90.05530201 | P94: 92.31646532 | Q94: 94.57762864 | R94: 96.83879195 | S94: 99.09995526 | T94: 100 | U94: 100 | V94: 100 | W94: 100 | X94: 100 | Y94: 100 | Z94: 100 | AA94: 100 | AB94: 100 | AC94: 100 | AD94: 100 | AE94: 100 | AF94: 100 | AG94: 100 | AH94: 100 | AI94: 100 | AJ94: 100 | AK94: 100 | AL94: 100 | AM94: 100 | AN94: 100 | AO94: 100 | AP94: 100 | AQ94: 100 | AR94: 100
A95: 1620000US2907534 | B95: Bourbon | C95: 72.4 | D95: 69.6 | E95: 73.8 | F95: 76.5 | G95: 75.7 | H95: 74.1 | I95: 72.8 | J95: 70.4 | K95: 70.7 | L95: 71.64487268 | M95: 71.80461574 | N95: 71.63009364 | O95: 71.45557154 | P95: 71.28104945 | Q95: 71.10652735 | R95: 70.93200526 | S95: 70.75748316 | T95: 70.58296106 | U95: 70.40843897 | V95: 70.23391687 | W95: 70.40843897 | X95: 70.35026493 | Y95: 70.33087359 | Z95: 70.3631925 | AA95: 70.34811034 | AB95: 70.34739214 | AC95: 70.35289833 | AD95: 70.34946694 | AE95: 70.34991914 | AF95: 70.35076147 | AG95: 70.35004918 | AH95: 70.35024326 | AI95: 70.3503513 | AJ95: 70.35021458 | AK95: 70.35026971 | AL95: 70.35027853 | AM95: 70.35025428 | AN95: 70.35026751 | AO95: 70.35026677 | AP95: 70.35026285 | AQ95: 70.35026571 | AR95: 70.35026511
A96: 1620000US2907660 | B96: Bowling Green | C96: 87 | D96: 77.7 | E96: 79.1 | F96: 77.6 | G96: 77.6 | H96: 72.5 | I96: 75.2 | J96: 76 | K96: 77.9 | L96: 78.45652174 | M96: 74.4626087 | N96: 73.83660079 | O96: 73.21059289 | P96: 72.58458498 | Q96: 71.95857708 | R96: 71.33256917 | S96: 70.70656126 | T96: 70.08055336 | U96: 69.45454545 | V96: 68.82853755 | W96: 69.45454545 | X96: 69.24587615 | Y96: 69.17631972 | Z96: 69.29224711 | AA96: 69.23814766 | AB96: 69.2355715 | AC96: 69.25532209 | AD96: 69.24301375 | AE96: 69.24463578 | AF96: 69.2476572 | AG96: 69.24510224 | AH96: 69.24579841 | AI96: 69.24618595 | AJ96: 69.24569553 | AK96: 69.2458933 | AL96: 69.24592493 | AM96: 69.24583792 | AN96: 69.24588538 | AO96: 69.24588274 | AP96: 69.24586868 | AQ96: 69.24587894 | AR96: 69.24587679
A97: 1620000US2907876 | B97: Bragg City | C97: 60.5 | D97: 72.4 | E97: 68.6 | F97: 76.4 | G97: 58 | H97: 59.7 | I97: 50.6 | J97: 61.9 | K97: 59.8 | L97: 64.04494382 | M97: 57.67797753 | N97: 56.67497446 | O97: 55.6719714 | P97: 54.66896834 | Q97: 53.66596527 | R97: 52.66296221 | S97: 51.65995914 | T97: 50.65695608 | U97: 49.65395301 | V97: 48.65094995 | W97: 49.65395301 | X97: 49.31961866 | Y97: 49.20817387 | Z97: 49.39391518 | AA97: 49.3072359 | AB97: 49.30310832 | AC97: 49.33475314 | AD97: 49.31503245 | AE97: 49.3176313 | AF97: 49.3224723 | AG97: 49.31837868 | AH97: 49.31949409 | AI97: 49.32011503 | AJ97: 49.31932927 | AK97: 49.31964613 | AL97: 49.31969681 | AM97: 49.3195574 | AN97: 49.31963345 | AO97: 49.31962922 | AP97: 49.31960669 | AQ97: 49.31962312 | AR97: 49.31961968
A98: 1620000US2907948 | B98: Brandsville | C98: 87.1 | D98: 80 | E98: 75 | F98: 78.2 | G98: 81.9 | H98: 74.7 | I98: 83.3 | J98: 81.6 | K98: 83 | L98: 70.65217391 | M98: 76.68086957 | N98: 76.16007905 | O98: 75.63928854 | P98: 75.11849802 | Q98: 74.59770751 | R98: 74.076917 | S98: 73.55612648 | T98: 73.03533597 | U98: 72.51454545 | V98: 71.99375494 | W98: 72.51454545 | X98: 72.34094862 | Y98: 72.283083 | Z98: 72.37952569 | AA98: 72.3345191 | AB98: 72.33237593 | AC98: 72.34880691 | AD98: 72.33856732 | AE98: 72.33991672 | AF98: 72.34243031 | AG98: 72.34030478 | AH98: 72.34088394 | AI98: 72.34120635 | AJ98: 72.34079836 | AK98: 72.34096288 | AL98: 72.34098919 | AM98: 72.34091681 | AN98: 72.34095629 | AO98: 72.3409541 | AP98: 72.3409424 | AQ98: 72.34095093 | AR98: 72.34094914
A99: 1620000US2907966 | B99: Branson | C99: 90.2 | D99: 89.3 | E99: 87.3 | F99: 87 | G99: 87.7 | H99: 90.2 | I99: 91.8 | J99: 92.1 | K99: 88.9 | L99: 88.03650983 | M99: 89.87460393 | N99: 89.98750447 | O99: 90.10040501 | P99: 90.21330554 | Q99: 90.32620608 | R99: 90.43910662 | S99: 90.55200715 | T99: 90.66490769 | U99: 90.77780822 | V99: 90.89070876 | W99: 90.77780822 | X99: 90.81544174 | Y99: 90.82798624 | Z99: 90.80707873 | AA99: 90.81683557 | AB99: 90.81730018 | AC99: 90.81373816 | AD99: 90.81595797 | AE99: 90.81566544 | AF99: 90.81512052 | AG99: 90.81558131 | AH99: 90.81545576 | AI99: 90.81538586 | AJ99: 90.81547431 | AK99: 90.81543864 | AL99: 90.81543294 | AM99: 90.81544863 | AN99: 90.81544007 | AO99: 90.81544055 | AP99: 90.81544308 | AQ99: 90.81544123 | AR99: 90.81544162
A100: 1620000US2907989 | B100: Branson West | C100: 73.2 | D100: 74.5 | E100: 74.2 | F100: 71.9 | G100: 73.9 | H100: 85 | I100: 84.2 | J100: 76.4 | K100: 75.7 | L100: 82.81535649 | M100: 82.31280926 | N100: 83.2457681 | O100: 84.17872694 | P100: 85.11168578 | Q100: 86.04464462 | R100: 86.97760346 | S100: 87.9105623 | T100: 88.84352113 | U100: 89.77647997 | V100: 90.70943881 | W100: 89.77647997 | X100: 90.08746625 | Y100: 90.19112835 | Z100: 90.01835819 | AA100: 90.09898426 | AB100: 90.1028236 | AC100: 90.07338868 | AD100: 90.09173218 | AE100: 90.08931482 | AF100: 90.0848119 | AG100: 90.08861963 | AH100: 90.08758212 | AI100: 90.08700455 | AJ100: 90.08773543 | AK100: 90.0874407 | AL100: 90.08739356 | AM100: 90.08752323 | AN100: 90.0874525 | AO100: 90.08745643 | AP100: 90.08747739 | AQ100: 90.0874621 | AR100: 90.08746531
A101: 1620000US2908002 | B101: Brashear | C101: 90.5 | D101: 91.6 | E101: 89.9 | F101: 91.1 | G101: 93.2 | H101: 89.3 | I101: 88 | J101: 96.9 | K101: 95.1 | L101: 95.83333333 | M101: 95.28666667 | N101: 95.85818182 | O101: 96.42969697 | P101: 97.00121212 | Q101: 97.57272727 | R101: 98.14424242 | S101: 98.71575758 | T101: 99.28727273 | U101: 99.85878788 | V101: 100 | W101: 99.71535354 | X101: 99.85804714 | Y101: 99.85780022 | Z101: 99.8104003 | AA101: 99.84208255 | AB101: 99.83676103 | AC101: 99.82974796 | AD101: 99.83619718 | AE101: 99.83423539 | AF101: 99.83339351 | AG101: 99.83460869 | AH101: 99.8340792 | AI101: 99.83402713 | AJ101: 99.83423834 | AK101: 99.83411489 | AL101: 99.83412679 | AM101: 99.83416001 | AN101: 99.83413389 | AO101: 99.83414023 | AP101: 99.83414471 | AQ101: 99.83413961 | AR101: 99.83414152
A102: 1620000US2908038 | B102: Braymer | C102: 79.2 | D102: 79.4 | E102: 76.9 | F102: 81.7 | G102: 81 | H102: 84.5 | I102: 87.2 | J102: 89.1 | K102: 87.9 | L102: 93.18181818 | M102: 92.88606061 | N102: 94.50022039 | O102: 96.11438017 | P102: 97.72853994 | Q102: 99.34269972 | R102: 100 | S102: 100 | T102: 100 | U102: 100 | V102: 100 | W102: 100 | X102: 100 | Y102: 100 | Z102: 100 | AA102: 100 | AB102: 100 | AC102: 100 | AD102: 100 | AE102: 100 | AF102: 100 | AG102: 100 | AH102: 100 | AI102: 100 | AJ102: 100 | AK102: 100 | AL102: 100 | AM102: 100 | AN102: 100 | AO102: 100 | AP102: 100 | AQ102: 100 | AR102: 100
A103: 1620000US2908128 | B103: Breckenridge | C103: 85.7 | D103: 87.7 | E103: 83.4 | F103: 89.2 | G103: 89.1 | H103: 87.2 | I103: 86.8 | J103: 87.6 | K103: 91.6 | L103: 83.92156863 | M103: 87.99529412 | N103: 88.13586453 | O103: 88.27643494 | P103: 88.41700535 | Q103: 88.55757576 | R103: 88.69814617 | S103: 88.83871658 | T103: 88.97928699 | U103: 89.1198574 | V103: 89.26042781 | W103: 89.1198574 | X103: 89.1667142 | Y103: 89.18233314 | Z103: 89.15630158 | AA103: 89.16844964 | AB103: 89.16902812 | AC103: 89.16459311 | AD103: 89.16735696 | AE103: 89.16699273 | AF103: 89.16631426 | AG103: 89.16688798 | AH103: 89.16673166 | AI103: 89.16664464 | AJ103: 89.16675476 | AK103: 89.16671035 | AL103: 89.16670325 | AM103: 89.16672279 | AN103: 89.16671213 | AO103: 89.16671272 | AP103: 89.16671588 | AQ103: 89.16671358 | AR103: 89.16671406
A104: 1620000US2908164 | B104: Breckenridge Hills | C104: 72.9 | D104: 72.3 | E104: 75.5 | F104: 75 | G104: 79.2 | H104: 83.5 | I104: 81.1 | J104: 76.9 | K104: 80.8 | L104: 79.46859903 | M104: 82.60743961 | N104: 83.50572683 | O104: 84.40401405 | P104: 85.30230127 | Q104: 86.20058849 | R104: 87.09887571 | S104: 87.99716293 | T104: 88.89545015 | U104: 89.79373737 | V104: 90.69202459 | W104: 89.79373737 | X104: 90.09316645 | Y104: 90.19297614 | Z104: 90.02662665 | AA104: 90.10425641 | AB104: 90.10795307 | AC104: 90.07961204 | AD104: 90.09727384 | AE104: 90.09494632 | AF104: 90.09061073 | AG104: 90.09427696 | AH104: 90.09327801 | AI104: 90.0927219 | AJ104: 90.09342562 | AK104: 90.09314184 | AL104: 90.09309646 | AM104: 90.09322131 | AN104: 90.0931532 | AO104: 90.09315699 | AP104: 90.09317717 | AQ104: 90.09316245 | AR104: 90.09316554
A105: 1620000US2908236 | B105: Brentwood | C105: 97.5 | D105: 97.5 | E105: 97.2 | F105: 96.9 | G105: 97.5 | H105: 97.3 | I105: 98.6 | J105: 97.2 | K105: 97.7 | L105: 97.42120344 | M105: 97.66848138 | N105: 97.7023652 | O105: 97.73624902 | P105: 97.77013285 | Q105: 97.80401667 | R105: 97.83790049 | S105: 97.87178432 | T105: 97.90566814 | U105: 97.93955197 | V105: 97.97343579 | W105: 97.93955197 | X105: 97.95084657 | Y105: 97.95461144 | Z105: 97.94833666 | AA105: 97.95126489 | AB105: 97.95140433 | AC105: 97.9503353 | AD105: 97.95100151 | AE105: 97.95091371 | AF105: 97.95075017 | AG105: 97.95088846 | AH105: 97.95085078 | AI105: 97.95082981 | AJ105: 97.95085635 | AK105: 97.95084565 | AL105: 97.95084393 | AM105: 97.95084864 | AN105: 97.95084608 | AO105: 97.95084622 | AP105: 97.95084698 | AQ105: 97.95084642 | AR105: 97.95084654
A106: 1620000US2908398 | B106: Bridgeton | C106: 89.8 | D106: 90.2 | E106: 91 | F106: 92.5 | G106: 92.1 | H106: 91.1 | I106: 88.5 | J106: 86.3 | K106: 85.5 | L106: 85.59359715 | M106: 85.68410553 | N106: 85.03405931 | O106: 84.3840131 | P106: 83.73396688 | Q106: 83.08392067 | R106: 82.43387445 | S106: 81.78382823 | T106: 81.13378202 | U106: 80.4837358 | V106: 79.83368959 | W106: 80.4837358 | X106: 80.26705373 | Y106: 80.19482637 | Z106: 80.3152053 | AA106: 80.25902847 | AB106: 80.25635338 | AC106: 80.27686238 | AD106: 80.26408141 | AE106: 80.26576572 | AF106: 80.26890317 | AG106: 80.2662501 | AH106: 80.266973 | AI106: 80.26737543 | AJ106: 80.26686618 | AK106: 80.26707153 | AL106: 80.26710438 | AM106: 80.26701403 | AN106: 80.26706331 | AO106: 80.26706057 | AP106: 80.26704597 | AQ106: 80.26705662 | AR106: 80.26705439
A107: 1620000US2908470 | B107: Brimson | C107: 82.4 | D107: 84.4 | E107: 76 | F107: 90.5 | G107: 83 | H107: 85.7 | I107: 82.2 | J107: 82.1 | K107: 67.7 | L107: 71.875 | M107: 73.81 | N107: 72.57772727 | O107: 71.34545455 | P107: 70.11318182 | Q107: 68.88090909 | R107: 67.64863636 | S107: 66.41636364 | T107: 65.18409091 | U107: 63.95181818 | V107: 62.71954545 | W107: 63.95181818 | X107: 63.54106061 | Y107: 63.40414141 | Z107: 63.63234007 | AA107: 63.52584736 | AB107: 63.52077628 | AC107: 63.55965457 | AD107: 63.53542607 | AE107: 63.53861897 | AF107: 63.54456654 | AG107: 63.53953719 | AH107: 63.54090757 | AI107: 63.54167043 | AJ107: 63.54070507 | AK107: 63.54109436 | AL107: 63.54115662 | AM107: 63.54098535 | AN107: 63.54107877 | AO107: 63.54107358 | AP107: 63.5410459 | AQ107: 63.54106609 | AR107: 63.54106186
A108: 1620000US2908614 | B108: Bronaugh | C108: 80.5 | D108: 83.1 | E108: 85.8 | F108: 77 | G108: 74.8 | H108: 73.4 | I108: 68.1 | J108: 73 | K108: 75.4 | L108: 81.69934641 | M108: 72.7730719 | N108: 71.95364231 | O108: 71.13421272 | P108: 70.31478313 | Q108: 69.49535354 | R108: 68.67592395 | S108: 67.85649436 | T108: 67.03706477 | U108: 66.21763518 | V108: 65.39820559 | W108: 66.21763518 | X108: 65.94449198 | Y108: 65.85344425 | Z108: 66.00519047 | AA108: 65.93437556 | AB108: 65.93100343 | AC108: 65.95685649 | AD108: 65.94074516 | AE108: 65.94286836 | AF108: 65.94682333 | AG108: 65.94347895 | AH108: 65.94439021 | AI108: 65.9448975 | AJ108: 65.94425555 | AK108: 65.94451442 | AL108: 65.94455582 | AM108: 65.94444193 | AN108: 65.94450406 | AO108: 65.94450061 | AP108: 65.9444822 | AQ108: 65.94449562 | AR108: 65.94449281
A109: 1620000US2908650 | B109: Brookfield | C109: 85.5 | D109: 87.5 | E109: 85.4 | F109: 83.1 | G109: 84.8 | H109: 84.2 | I109: 83.8 | J109: 81.4 | K109: 82.6 | L109: 82.25360761 | M109: 81.32144305 | N109: 80.8243671 | O109: 80.32729115 | P109: 79.8302152 | Q109: 79.33313925 | R109: 78.8360633 | S109: 78.33898736 | T109: 77.84191141 | U109: 77.34483546 | V109: 76.84775951 | W109: 77.34483546 | X109: 77.17914348 | Y109: 77.12391282 | Z109: 77.21596392 | AA109: 77.17300674 | AB109: 77.17096116 | AC109: 77.18664394 | AD109: 77.17687061 | AE109: 77.17815857 | AF109: 77.1805577 | AG109: 77.17852896 | AH109: 77.17908174 | AI109: 77.17938947 | AJ109: 77.17900006 | AK109: 77.17915709 | AL109: 77.17918221 | AM109: 77.17911312 | AN109: 77.17915081 | AO109: 77.17914871 | AP109: 77.17913754 | AQ109: 77.17914569 | AR109: 77.17914398
A110: 1620000US2908776 | B110: Brooklyn Heights | C110: 97.7 | D110: 85.3 | E110: 85.9 | F110: 84.1 | G110: 82.1 | H110: 75.3 | I110: 84.7 | J110: 84.3 | K110: 83.8 | L110: 83.13253012 | M110: 79.47967871 | N110: 78.54266521 | O110: 77.6056517 | P110: 76.66863819 | Q110: 75.73162468 | R110: 74.79461117 | S110: 73.85759766 | T110: 72.92058415 | U110: 71.98357065 | V110: 71.04655714 | W110: 71.98357065 | X110: 71.67123281 | Y110: 71.5671202 | Z110: 71.74064122 | AA110: 71.65966474 | AB110: 71.65580872 | AC110: 71.68537156 | AD110: 71.66694834 | AE110: 71.66937621 | AF110: 71.6738987 | AG110: 71.67007442 | AH110: 71.67111644 | AI110: 71.67169652 | AJ110: 71.67096246 | AK110: 71.67125847 | AL110: 71.67130582 | AM110: 71.67117558 | AN110: 71.67124663 | AO110: 71.67124268 | AP110: 71.67122163 | AQ110: 71.67123698 | AR110: 71.67123376
A111: 1620000US2908884 | B111: Browning | C111: 76.9 | D111: 76.1 | E111: 72.7 | F111: 78.2 | G111: 86.6 | H111: 87.8 | I111: 86.8 | J111: 86.4 | K111: 90.1 | L111: 77.4566474 | M111: 88.52265896 | N111: 89.72574882 | O111: 90.92883868 | P111: 92.13192853 | Q111: 93.33501839 | R111: 94.53810825 | S111: 95.74119811 | T111: 96.94428797 | U111: 98.14737782 | V111: 99.35046768 | W111: 98.14737782 | X111: 98.54840778 | Y111: 98.68208443 | Z111: 98.45929001 | AA111: 98.56326074 | AB111: 98.56821173 | AC111: 98.53025416 | AD111: 98.55390887 | AE111: 98.55079159 | AF111: 98.54498487 | AG111: 98.54989511 | AH111: 98.54855719 | AI111: 98.54781239 | AJ111: 98.5487549 | AK111: 98.54837483 | AL111: 98.54831404 | AM111: 98.54848125 | AN111: 98.54839004 | AO111: 98.54839511 | AP111: 98.54842213 | AQ111: 98.54840243 | AR111: 98.54840656
A112: 1620000US2908902 | B112: Brownington | C112: 62.7 | D112: 58.5 | E112: 58 | F112: 53.2 | G112: 64 | H112: 76.1 | I112: 79.8 | J112: 83.1 | K112: 86.6 | L112: 85.71428571 | M112: 91.47904762 | N112: 95.24406926 | O112: 99.00909091 | P112: 100 | Q112: 100 | R112: 100 | S112: 100 | T112: 100 | U112: 100 | V112: 100 | W112: 100 | X112: 100 | Y112: 100 | Z112: 100 | AA112: 100 | AB112: 100 | AC112: 100 | AD112: 100 | AE112: 100 | AF112: 100 | AG112: 100 | AH112: 100 | AI112: 100 | AJ112: 100 | AK112: 100 | AL112: 100 | AM112: 100 | AN112: 100 | AO112: 100 | AP112: 100 | AQ112: 100 | AR112: 100
A113: 1620000US2908974 | B113: Brumley | C113: 76.2 | D113: 78.5 | E113: 78.4 | F113: 77.4 | G113: 81.3 | H113: 80 | I113: 74.4 | J113: 80.4 | K113: 88.5 | L113: 88.57142857 | M113: 86.40190476 | N113: 87.4991342 | O113: 88.59636364 | P113: 89.69359307 | Q113: 90.79082251 | R113: 91.88805195 | S113: 92.98528139 | T113: 94.08251082 | U113: 95.17974026 | V113: 96.2769697 | W113: 95.17974026 | X113: 95.54548341 | Y113: 95.66739779 | Z113: 95.46420715 | AA113: 95.55902945 | AB113: 95.5635448 | AC113: 95.52892713 | AD113: 95.55050046 | AE113: 95.54765746 | AF113: 95.54236168 | AG113: 95.54683987 | AH113: 95.54561967 | AI113: 95.54494041 | AJ113: 95.54579998 | AK113: 95.54545335 | AL113: 95.54539791 | AM113: 95.54555042 | AN113: 95.54546723 | AO113: 95.54547185 | AP113: 95.5454965 | AQ113: 95.54547853 | AR113: 95.54548229
A114: 1620000US2909046 | B114: Brunswick | C114: 87 | D114: 80.5 | E114: 77.1 | F114: 80.8 | G114: 84.6 | H114: 81.7 | I114: 84 | J114: 84.3 | K114: 82.9 | L114: 84.61538462 | M114: 84.01948718 | N114: 84.25002331 | O114: 84.48055944 | P114: 84.71109557 | Q114: 84.9416317 | R114: 85.17216783 | S114: 85.40270396 | T114: 85.63324009 | U114: 85.86377622 | V114: 86.09431235 | W114: 85.86377622 | X114: 85.9406216 | Y114: 85.96623673 | Z114: 85.92354485 | AA114: 85.94346773 | AB114: 85.94441643 | AC114: 85.937143 | AD114: 85.94167572 | AE114: 85.94107839 | AF114: 85.9399657 | AG114: 85.9409066 | AH114: 85.94065023 | AI114: 85.94050751 | AJ114: 85.94068812 | AK114: 85.94061529 | AL114: 85.94060364 | AM114: 85.94063568 | AN114: 85.9406182 | AO114: 85.94061917 | AP114: 85.94062435 | AQ114: 85.94062058 | AR114: 85.94062137
A115: 1620000US2909388 | B115: Bucklin | C115: 87.7 | D115: 84.6 | E115: 81.6 | F115: 85 | G115: 86.9 | H115: 86 | I115: 87.3 | J115: 91.3 | K115: 88 | L115: 87.31563422 | M115: 89.06625369 | N115: 89.51983374 | O115: 89.97341378 | P115: 90.42699383 | Q115: 90.88057388 | R115: 91.33415393 | S115: 91.78773398 | T115: 92.24131403 | U115: 92.69489407 | V115: 93.14847412 | W115: 92.69489407 | X115: 92.84608742 | Y115: 92.89648521 | Z115: 92.8124889 | AA115: 92.85168718 | AB115: 92.85355376 | AC115: 92.83924328 | AD115: 92.84816141 | AE115: 92.84698615 | AF115: 92.84479694 | AG115: 92.84664817 | AH115: 92.84614375 | AI115: 92.84586295 | AJ115: 92.84621829 | AK115: 92.846075 | AL115: 92.84605208 | AM115: 92.84611512 | AN115: 92.84608074 | AO115: 92.84608265 | AP115: 92.84609284 | AQ115: 92.84608541 | AR115: 92.84608696
A116: 1620000US2909424 | B116: Buckner | C116: 87.6 | D116: 89.1 | E116: 89 | F116: 90.3 | G116: 87.5 | H116: 86.2 | I116: 87.5 | J116: 84.9 | K116: 84.5 | L116: 84.98659517 | M116: 84.29463807 | N116: 83.7739069 | O116: 83.25317573 | P116: 82.73244455 | Q116: 82.21171338 | R116: 81.69098221 | S116: 81.17025104 | T116: 80.64951986 | U116: 80.12878869 | V116: 79.60805752 | W116: 80.12878869 | X116: 79.95521163 | Y116: 79.89735261 | Z116: 79.99378431 | AA116: 79.94878285 | AB116: 79.94663993 | AC116: 79.96306903 | AD116: 79.9528306 | AE116: 79.95417985 | AF116: 79.95669316 | AG116: 79.95456787 | AH116: 79.95514696 | AI116: 79.95546933 | AJ116: 79.95506139 | AK116: 79.9552259 | AL116: 79.95525221 | AM116: 79.95517983 | AN116: 79.95521931 | AO116: 79.95521712 | AP116: 79.95520542 | AQ116: 79.95521395 | AR116: 79.95521216
A117: 1620000US2909514 | B117: Buffalo | C117: 76.3 | D117: 71.5 | E117: 80.2 | F117: 78.1 | G117: 81 | H117: 79.3 | I117: 78 | J117: 76.8 | K117: 81.4 | L117: 78.40172786 | M117: 80.40735781 | N117: 80.826846 | O117: 81.24633418 | P117: 81.66582237 | Q117: 82.08531056 | R117: 82.50479874 | S117: 82.92428693 | T117: 83.34377512 | U117: 83.7632633 | V117: 84.18275149 | W117: 83.7632633 | X117: 83.9030927 | Y117: 83.9497025 | Z117: 83.8720195 | AA117: 83.90827156 | AB117: 83.90999785 | AC117: 83.89676297 | AD117: 83.9050108 | AE117: 83.90392387 | AF117: 83.90189921 | AG117: 83.9036113 | AH117: 83.90314479 | AI117: 83.9028851 | AJ117: 83.90321373 | AK117: 83.90308121 | AL117: 83.90306001 | AM117: 83.90311832 | AN117: 83.90308651 | AO117: 83.90308828 | AP117: 83.9030977 | AQ117: 83.90309083 | AR117: 83.90309227
A118: 1620000US2909642 | B118: Bull Creek | C118: 75.6 | D118: 74.4 | E118: 72.1 | F118: 79.8 | G118: 78.5 | H118: 78.8 | I118: 78 | J118: 75.8 | K118: 71.5 | L118: 66.00660066 | M118: 71.94264026 | N118: 71.37754575 | O118: 70.81245125 | P118: 70.24735674 | Q118: 69.68226223 | R118: 69.11716772 | S118: 68.55207321 | T118: 67.9869787 | U118: 67.42188419 | V118: 66.85678968 | W118: 67.42188419 | X118: 67.23351935 | Y118: 67.17073107 | Z118: 67.2753782 | AA118: 67.22654288 | AB118: 67.22421738 | AC118: 67.24204616 | AD118: 67.23093547 | AE118: 67.23239967 | AF118: 67.2351271 | AG118: 67.23282075 | AH118: 67.23344917 | AI118: 67.23379901 | AJ118: 67.23335631 | AK118: 67.23353483 | AL118: 67.23356338 | AM118: 67.23348484 | AN118: 67.23352768 | AO118: 67.2335253 | AP118: 67.23351261 | AQ118: 67.23352186 | AR118: 67.23351992
A119: 1620000US2909658 | B119: Bunceton | C119: 88.8 | D119: 86.7 | E119: 87.1 | F119: 86.3 | G119: 85.3 | H119: 84.3 | I119: 87.2 | J119: 87.6 | K119: 79.2 | L119: 76.62835249 | M119: 79.651341 | N119: 78.69470568 | O119: 77.73807036 | P119: 76.78143504 | Q119: 75.82479972 | R119: 74.8681644 | S119: 73.91152908 | T119: 72.95489377 | U119: 71.99825845 | V119: 71.04162313 | W119: 71.99825845 | X119: 71.67938001 | Y119: 71.57308719 | Z119: 71.75024188 | AA119: 71.66756969 | AB119: 71.66363292 | AC119: 71.69381483 | AD119: 71.67500582 | AE119: 71.67748452 | AF119: 71.68210173 | AG119: 71.67819736 | AH119: 71.6792612 | AI119: 71.67985343 | AJ119: 71.67910399 | AK119: 71.67940621 | AL119: 71.67945454 | AM119: 71.67932158 | AN119: 71.67939411 | AO119: 71.67939008 | AP119: 71.67936859 | AQ119: 71.67938426 | AR119: 71.67938098
A120: 1620000US2909694 | B120: Bunker | C120: 74.4 | D120: 63.9 | E120: 62.6 | F120: 61.2 | G120: 58.9 | H120: 65 | I120: 69.9 | J120: 74.3 | K120: 77.7 | L120: 76.98113208 | M120: 75.50578616 | N120: 76.7817267 | O120: 78.05766724 | P120: 79.33360778 | Q120: 80.60954831 | R120: 81.88548885 | S120: 83.16142939 | T120: 84.43736993 | U120: 85.71331046 | V120: 86.989251 | W120: 85.71331046 | X120: 86.13862398 | Y120: 86.28039515 | Z120: 86.04410986 | AA120: 86.15437633 | AB120: 86.15962711 | AC120: 86.1193711 | AD120: 86.14445818 | AE120: 86.14115213 | AF120: 86.1349938 | AG120: 86.14020137 | AH120: 86.13878244 | AI120: 86.13799254 | AJ120: 86.13899211 | AK120: 86.13858903 | AL120: 86.13852456 | AM120: 86.1387019 | AN120: 86.13860516 | AO120: 86.13861054 | AP120: 86.1386392 | AQ120: 86.1386183 | AR120: 86.13862268
A121: 1620000US2909838 | B121: Burlington Junction | C121: 90.1 | D121: 87.4 | E121: 87.6 | F121: 86.3 | G121: 86.6 | H121: 82.5 | I121: 84.7 | J121: 85.5 | K121: 76.9 | L121: 76.77595628 | M121: 77.34371585 | N121: 76.05391952 | O121: 74.7641232 | P121: 73.47432688 | Q121: 72.18453055 | R121: 70.89473423 | S121: 69.6049379 | T121: 68.31514158 | U121: 67.02534526 | V121: 65.73554893 | W121: 67.02534526 | X121: 66.59541315 | Y121: 66.45210245 | Z121: 66.69095362 | AA121: 66.57948974 | AB121: 66.57418193 | AC121: 66.6148751 | AD121: 66.58951559 | AE121: 66.59285754 | AF121: 66.59908274 | AG121: 66.59381862 | AH121: 66.59525297 | AI121: 66.59605144 | AJ121: 66.59504101 | AK121: 66.59544847 | AL121: 66.59551364 | AM121: 66.59533438 | AN121: 66.59543216 | AO121: 66.59542673 | AP121: 66.59539776 | AQ121: 66.59541888 | AR121: 66.59541446
A122: 1620000US2910054 | B122: Butler | C122: 83.4 | D122: 80.4 | E122: 82.6 | F122: 80.3 | G122: 82.3 | H122: 82.4 | I122: 85.9 | J122: 83.3 | K122: 86.2 | L122: 88.53887399 | M122: 87.10888293 | N122: 87.75888212 | O122: 88.40888131 | P122: 89.05888049 | Q122: 89.70887968 | R122: 90.35887887 | S122: 91.00887806 | T122: 91.65887724 | U122: 92.30887643 | V122: 92.95887562 | W122: 92.30887643 | X122: 92.52554283 | Y122: 92.59776496 | Z122: 92.47739474 | AA122: 92.53356751 | AB122: 92.5362424 | AC122: 92.51573488 | AD122: 92.52851493 | AE122: 92.52683074 | AF122: 92.52369352 | AG122: 92.5263464 | AH122: 92.52562355 | AI122: 92.52522116 | AJ122: 92.52573037 | AK122: 92.52552503 | AL122: 92.52549218 | AM122: 92.52558253 | AN122: 92.52553324 | AO122: 92.52553598 | AP122: 92.52555058 | AQ122: 92.52553994 | AR122: 92.52554217
A123: 1620000US2910144 | B123: Butterfield | C123: 49.6 | D123: 62.7 | E123: 55.5 | F123: 61.9 | G123: 59.1 | H123: 56.3 | I123: 57.7 | J123: 70.5 | K123: 74.3 | L123: 76.75675676 | M123: 75.27603604 | N123: 77.61064701 | O123: 79.94525799 | P123: 82.27986896 | Q123: 84.61447993 | R123: 86.94909091 | S123: 89.28370188 | T123: 91.61831286 | U123: 93.95292383 | V123: 96.28753481 | W123: 93.95292383 | X123: 94.73112749 | Y123: 94.99052871 | Z123: 94.55819334 | AA123: 94.75994985 | AB123: 94.7695573 | AC123: 94.69590017 | AD123: 94.74180244 | AE123: 94.7357533 | AF123: 94.7244853 | AG123: 94.73401368 | AH123: 94.73141743 | AI123: 94.72997214 | AJ123: 94.73180108 | AK123: 94.73106355 | AL123: 94.73094559 | AM123: 94.73127007 | AN123: 94.73109307 | AO123: 94.73110291 | AP123: 94.73115535 | AQ123: 94.73111711 | AR123: 94.73112512
A124: 1620000US2910240 | B124: Byrnes Mill | C124: 89.6 | D124: 87.7 | E124: 88.9 | F124: 87.9 | G124: 87.2 | H124: 89.6 | I124: 90.3 | J124: 88.9 | K124: 89.5 | L124: 92.3566879 | M124: 90.76267516 | N124: 91.04758541 | O124: 91.33249566 | P124: 91.61740591 | Q124: 91.90231616 | R124: 92.1872264 | S124: 92.47213665 | T124: 92.7570469 | U124: 93.04195715 | V124: 93.3268674 | W124: 93.04195715 | X124: 93.13692723 | Y124: 93.16858393 | Z124: 93.11582277 | AA124: 93.14044464 | AB124: 93.14161711 | AC124: 93.13262818 | AD124: 93.13822998 | AE124: 93.13749176 | AF124: 93.13611664 | AG124: 93.13727946 | AH124: 93.13696262 | AI124: 93.13678624 | AJ124: 93.13700944 | AK124: 93.13691943 | AL124: 93.13690504 | AM124: 93.13694463 | AN124: 93.13692303 | AO124: 93.13692423 | AP124: 93.13693063 | AQ124: 93.13692597 | AR124: 93.13692695
A125: 1620000US2910288 | B125: Cabool | C125: 74.9 | D125: 75.8 | E125: 77.5 | F125: 74 | G125: 71.7 | H125: 80.4 | I125: 84.7 | J125: 79.8 | K125: 79.7 | L125: 79.69094923 | M125: 81.90971302 | N125: 82.65346177 | O125: 83.39721052 | P125: 84.14095926 | Q125: 84.88470801 | R125: 85.62845675 | S125: 86.3722055 | T125: 87.11595424 | U125: 87.85970299 | V125: 88.60345174 | W125: 87.85970299 | X125: 88.10761924 | Y125: 88.19025799 | Z125: 88.05252674 | AA125: 88.11680132 | AB125: 88.11986202 | AC125: 88.09639669 | AD125: 88.11102001 | AE125: 88.10909291 | AF125: 88.1055032 | AG125: 88.10853871 | AH125: 88.10771161 | AI125: 88.10725117 | AJ125: 88.10783383 | AK125: 88.10759887 | AL125: 88.10756129 | AM125: 88.10766466 | AN125: 88.10760827 | AO125: 88.10761141 | AP125: 88.10762811 | AQ125: 88.10761593 | AR125: 88.10761848
A126: 1620000US2910342 | B126: Cainsville | C126: 89.7 | D126: 93.1 | E126: 92.7 | F126: 90.6 | G126: 90.2 | H126: 88.3 | I126: 86.5 | J126: 85.7 | K126: 88 | L126: 92.93478261 | M126: 87.91391304 | N126: 87.57581028 | O126: 87.23770751 | P126: 86.89960474 | Q126: 86.56150198 | R126: 86.22339921 | S126: 85.88529644 | T126: 85.54719368 | U126: 85.20909091 | V126: 84.87098814 | W126: 85.20909091 | X126: 85.09638999 | Y126: 85.05882301 | Z126: 85.12143464 | AA126: 85.09221588 | AB126: 85.09082451 | AC126: 85.10149167 | AD126: 85.09484402 | AE126: 85.09572007 | AF126: 85.09735192 | AG126: 85.095972 | AH126: 85.096348 | AI126: 85.09655731 | AJ126: 85.09629244 | AK126: 85.09639925 | AL126: 85.09641633 | AM126: 85.09636934 | AN126: 85.09639497 | AO126: 85.09639355 | AP126: 85.09638595 | AQ126: 85.09639149 | AR126: 85.09639033
A127: 1620000US2910360 | B127: Cairo | C127: 84.6 | D127: 83.1 | E127: 87.3 | F127: 87.9 | G127: 86.9 | H127: 89.8 | I127: 90.6 | J127: 89.7 | K127: 89 | L127: 94.89795918 | M127: 93.61251701 | N127: 94.56392084 | O127: 95.51532468 | P127: 96.46672851 | Q127: 97.41813234 | R127: 98.36953618 | S127: 99.32094001 | T127: 100 | U127: 100 | V127: 100 | W127: 100 | X127: 100 | Y127: 100 | Z127: 100 | AA127: 100 | AB127: 100 | AC127: 100 | AD127: 100 | AE127: 100 | AF127: 100 | AG127: 100 | AH127: 100 | AI127: 100 | AJ127: 100 | AK127: 100 | AL127: 100 | AM127: 100 | AN127: 100 | AO127: 100 | AP127: 100 | AQ127: 100 | AR127: 100
A128: 1620000US2910432 | B128: Caledonia | C128: 93.5 | D128: 92.5 | E128: 90.9 | F128: 91.1 | G128: 88.1 | H128: 90.6 | I128: 75.8 | J128: 79.9 | K128: 78.1 | L128: 80.12048193 | M128: 75.40819277 | N128: 73.47112815 | O128: 71.53406353 | P128: 69.5969989 | Q128: 67.65993428 | R128: 65.72286966 | S128: 63.78580504 | T128: 61.84874042 | U128: 59.91167579 | V128: 57.97461117 | W128: 59.91167579 | X128: 59.26598759 | Y128: 59.05075818 | Z128: 59.40947386 | AA128: 59.24207321 | AB128: 59.23410175 | AC128: 59.29521627 | AD128: 59.25713041 | AE128: 59.26214948 | AF128: 59.27149872 | AG128: 59.26359287 | AH128: 59.26574702 | AI128: 59.2669462 | AJ128: 59.2654287 | AK128: 59.26604064 | AL128: 59.26613851 | AM128: 59.26586928 | AN128: 59.26601615 | AO128: 59.26600798 | AP128: 59.26596447 | AQ128: 59.2659962 | AR128: 59.26598955
A129: 1620000US2910450 | B129: Calhoun | C129: 80.8 | D129: 86.6 | E129: 86.9 | F129: 89.1 | G129: 84.9 | H129: 84.2 | I129: 85.2 | J129: 83.1 | K129: 80.7 | L129: 82.10116732 | M129: 82.32713359 | N129: 81.95750029 | O129: 81.587867 | P129: 81.2182337 | Q129: 80.8486004 | R129: 80.4789671 | S129: 80.1093338 | T129: 79.73970051 | U129: 79.37006721 | V129: 79.00043391 | W129: 79.37006721 | X129: 79.24685611 | Y129: 79.20578574 | Z129: 79.27423635 | AA129: 79.24229274 | AB129: 79.24077161 | AC129: 79.25243357 | AD129: 79.24516597 | AE129: 79.24612372 | AF129: 79.24790775 | AG129: 79.24639915 | AH129: 79.2468102 | AI129: 79.24703903 | AJ129: 79.24674946 | AK129: 79.24686623 | AL129: 79.24688491 | AM129: 79.24683354 | AN129: 79.24686156 | AO129: 79.24686 | AP129: 79.2468517 | AQ129: 79.24685775 | AR129: 79.24685648
A130: 1620000US2910468 | B130: California | C130: 83.4 | D130: 85.7 | E130: 85.4 | F130: 85.5 | G130: 85.1 | H130: 84.4 | I130: 86.2 | J130: 87.2 | K130: 79.7 | L130: 84.53357642 | M130: 84.00009723 | N130: 83.87041352 | O130: 83.74072981 | P130: 83.6110461 | Q130: 83.48136239 | R130: 83.35167868 | S130: 83.22199497 | T130: 83.09231126 | U130: 82.96262755 | V130: 82.83294384 | W130: 82.96262755 | X130: 82.91939965 | Y130: 82.90499035 | Z130: 82.92900585 | AA130: 82.91779861 | AB130: 82.91726494 | AC130: 82.92135647 | AD130: 82.91880667 | AE130: 82.91914269 | AF130: 82.91976861 | AG130: 82.91923933 | AH130: 82.91938354 | AI130: 82.91946383 | AJ130: 82.91936223 | AK130: 82.9194032 | AL130: 82.91940975 | AM130: 82.91939173 | AN130: 82.91940156 | AO130: 82.91940101 | AP130: 82.9193981 | AQ130: 82.91940022 | AR130: 82.91939978
A131: 1620000US2910486 | B131: Callao | C131: 72.3 | D131: 77.6 | E131: 81.4 | F131: 83.3 | G131: 73.7 | H131: 79 | I131: 82.7 | J131: 78.2 | K131: 78.3 | L131: 88.20960699 | M131: 83.99050946 | N131: 84.8122456 | O131: 85.63398174 | P131: 86.45571788 | Q131: 87.27745402 | R131: 88.09919015 | S131: 88.92092629 | T131: 89.74266243 | U131: 90.56439857 | V131: 91.38613471 | W131: 90.56439857 | X131: 90.83831062 | Y131: 90.92961463 | Z131: 90.77744127 | AA131: 90.84845551 | AB131: 90.85183714 | AC131: 90.82591131 | AD131: 90.84206798 | AE131: 90.83993881 | AF131: 90.8359727 | AG131: 90.8393265 | AH131: 90.83841267 | AI131: 90.83790396 | AJ131: 90.83854771 | AK131: 90.83828811 | AL131: 90.83824659 | AM131: 90.8383608 | AN131: 90.8382985 | AO131: 90.83830197 | AP131: 90.83832042 | AQ131: 90.83830696 | AR131: 90.83830978
A132: 1620000US2910612 | B132: Calverton Park | C132: 86 | D132: 85.7 | E132: 84.7 | F132: 86.3 | G132: 87.1 | H132: 84.9 | I132: 87.6 | J132: 86.8 | K132: 86.6 | L132: 83.13609467 | M132: 85.64110454 | N132: 85.59701273 | O132: 85.55292093 | P132: 85.50882912 | Q132: 85.46473731 | R132: 85.42064551 | S132: 85.3765537 | T132: 85.3324619 | U132: 85.28837009 | V132: 85.24427829 | W132: 85.28837009 | X132: 85.27367282 | Y132: 85.26877373 | Z132: 85.27693888 | AA132: 85.27312848 | AB132: 85.27294703 | AC132: 85.27433813 | AD132: 85.27347121 | AE132: 85.27358546 | AF132: 85.27379827 | AG132: 85.27361831 | AH132: 85.27366735 | AI132: 85.27369464 | AJ132: 85.2736601 | AK132: 85.27367403 | AL132: 85.27367626 | AM132: 85.27367013 | AN132: 85.27367347 | AO132: 85.27367329 | AP132: 85.2736723 | AQ132: 85.27367302 | AR132: 85.27367287
A133: 1620000US2910738 | B133: Camden | C133: 82.1 | D133: 83.8 | E133: 80.4 | F133: 81.3 | G133: 79.1 | H133: 78 | I133: 77.4 | J133: 89 | K133: 90.4 | L133: 93.65853659 | M133: 89.5300813 | N133: 90.62357724 | O133: 91.71707317 | P133: 92.81056911 | Q133: 93.90406504 | R133: 94.99756098 | S133: 96.09105691 | T133: 97.18455285 | U133: 98.27804878 | V133: 99.37154472 | W133: 98.27804878 | X133: 98.64254743 | Y133: 98.76404697 | Z133: 98.56154773 | AA133: 98.65604738 | AB133: 98.66054736 | AC133: 98.62604749 | AD133: 98.64754741 | AE133: 98.64471408 | AF133: 98.63943633 | AG133: 98.64389927 | AH133: 98.64268323 | AI133: 98.64200628 | AJ133: 98.64286292 | AK133: 98.64251748 | AL133: 98.64246223 | AM133: 98.64261421 | AN133: 98.6425313 | AO133: 98.64253591 | AP133: 98.64256047 | AQ133: 98.64254256 | AR133: 98.64254632
A134: 1620000US2910792 | B134: Camden Point | C134: 100 | D134: 99.7 | E134: 98.3 | F134: 97.8 | G134: 95.5 | H134: 93.1 | I134: 94.8 | J134: 92.7 | K134: 91.8 | L134: 93.16939891 | M134: 90.4810929 | N134: 89.53457526 | O134: 88.58805763 | P134: 87.64153999 | Q134: 86.69502235 | R134: 85.74850472 | S134: 84.80198708 | T134: 83.85546945 | U134: 82.90895181 | V134: 81.96243418 | W134: 82.90895181 | X134: 82.59344593 | Y134: 82.48827731 | Z134: 82.66355835 | AA134: 82.58176053 | AB134: 82.5778654 | AC134: 82.60772809 | AD134: 82.58911801 | AE134: 82.5915705 | AF134: 82.59613887 | AG134: 82.59227579 | AH134: 82.59332839 | AI134: 82.59391435 | AJ134: 82.59317284 | AK134: 82.59347186 | AL134: 82.59351968 | AM134: 82.59338813 | AN134: 82.59345989 | AO134: 82.5934559 | AP134: 82.59343464 | AQ134: 82.59345014 | AR134: 82.59344689
A135: 1620000US2910810 | B135: Camdenton | C135: 81.6 | D135: 83.8 | E135: 85.2 | F135: 84.5 | G135: 82.3 | H135: 80.5 | I135: 79.7 | J135: 81.9 | K135: 83.1 | L135: 87.5 | M135: 83.52666667 | N135: 83.62060606 | O135: 83.71454545 | P135: 83.80848485 | Q135: 83.90242424 | R135: 83.99636364 | S135: 84.09030303 | T135: 84.18424242 | U135: 84.27818182 | V135: 84.37212121 | W135: 84.27818182 | X135: 84.30949495 | Y135: 84.31993266 | Z135: 84.30253648 | AA135: 84.3106547 | AB135: 84.31104128 | AC135: 84.30807748 | AD135: 84.30992448 | AE135: 84.30968108 | AF135: 84.30922768 | AG135: 84.30961108 | AH135: 84.30950662 | AI135: 84.30944846 | AJ135: 84.30952205 | AK135: 84.30949238 | AL135: 84.30948763 | AM135: 84.30950069 | AN135: 84.30949356 | AO135: 84.30949396 | AP135: 84.30949607 | AQ135: 84.30949453 | AR135: 84.30949485
A136: 1620000US2910828 | B136: Cameron | C136: 82.5 | D136: 81.6 | E136: 81.7 | F136: 80.2 | G136: 82.8 | H136: 83.4 | I136: 83.1 | J136: 82.9 | K136: 80.5 | L136: 82.23838284 | M136: 82.26868647 | N136: 82.30047705 | O136: 82.33226763 | P136: 82.36405821 | Q136: 82.39584879 | R136: 82.42763937 | S136: 82.45942995 | T136: 82.49122053 | U136: 82.5230111 | V136: 82.55480168 | W136: 82.5230111 | X136: 82.53360796 | Y136: 82.53714025 | Z136: 82.53125311 | AA136: 82.53400044 | AB136: 82.53413127 | AC136: 82.53312827 | AD136: 82.53375333 | AE136: 82.53367095 | AF136: 82.53351752 | AG136: 82.53364727 | AH136: 82.53361191 | AI136: 82.53359223 | AJ136: 82.53361714 | AK136: 82.53360709 | AL136: 82.53360549 | AM136: 82.53360991 | AN136: 82.5336075 | AO136: 82.53360763 | AP136: 82.53360834 | AQ136: 82.53360782 | AR136: 82.53360793
A137: 1620000US2910864 | B137: Campbell | C137: 69.7 | D137: 65.4 | E137: 69.8 | F137: 67.1 | G137: 64.4 | H137: 69 | I137: 63.3 | J137: 62.7 | K137: 65.5 | L137: 70.449521 | M137: 65.57314173 | N137: 65.36190349 | O137: 65.15066524 | P137: 64.93942699 | Q137: 64.72818874 | R137: 64.51695049 | S137: 64.30571224 | T137: 64.094474 | U137: 63.88323575 | V137: 63.6719975 | W137: 63.88323575 | X137: 63.812823 | Y137: 63.78935208 | Z137: 63.82847028 | AA137: 63.81021512 | AB137: 63.80934583 | AC137: 63.81601041 | AD137: 63.81185712 | AE137: 63.81240445 | AF137: 63.81342399 | AG137: 63.81256185 | AH137: 63.81279676 | AI137: 63.81292754 | AJ137: 63.81276205 | AK137: 63.81282878 | AL137: 63.81283946 | AM137: 63.8128101 | AN137: 63.81282611 | AO137: 63.81282522 | AP137: 63.81282048 | AQ137: 63.81282394 | AR137: 63.81282321
A138: 1620000US2911026 | B138: Canalou | C138: 63.4 | D138: 64.2 | E138: 63.5 | F138: 64 | G138: 62.5 | H138: 73.2 | I138: 68.4 | J138: 72 | K138: 70.5 | L138: 67.83216783 | M138: 71.96620047 | N138: 72.87765204 | O138: 73.78910362 | P138: 74.7005552 | Q138: 75.61200678 | R138: 76.52345836 | S138: 77.43490994 | T138: 78.34636152 | U138: 79.2578131 | V138: 80.16926467 | W138: 79.2578131 | X138: 79.56163029 | Y138: 79.66290269 | Z138: 79.49411536 | AA138: 79.57288278 | AB138: 79.57663361 | AC138: 79.54787725 | AD138: 79.56579788 | AE138: 79.56343624 | AF138: 79.55903712 | AG138: 79.56275708 | AH138: 79.56174348 | AI138: 79.56117923 | AJ138: 79.56189326 | AK138: 79.56160533 | AL138: 79.56155927 | AM138: 79.56168595 | AN138: 79.56161685 | AO138: 79.56162069 | AP138: 79.56164117 | AQ138: 79.56162624 | AR138: 79.56162936
A139: 1620000US2911134 | B139: Canton | C139: 89.7 | D139: 87.9 | E139: 88 | F139: 89.4 | G139: 87.7 | H139: 86.6 | I139: 88.7 | J139: 91.2 | K139: 90.9 | L139: 90.87158329 | M139: 90.57529998 | N139: 90.84405301 | O139: 91.11280604 | P139: 91.38155907 | Q139: 91.65031209 | R139: 91.91906512 | S139: 92.18781815 | T139: 92.45657118 | U139: 92.72532421 | V139: 92.99407723 | W139: 92.72532421 | X139: 92.81490855 | Y139: 92.84477 | Z139: 92.79500092 | AA139: 92.81822649 | AB139: 92.81933247 | AC139: 92.81085329 | AD139: 92.81613742 | AE139: 92.81544106 | AF139: 92.81414392 | AG139: 92.8152408 | AH139: 92.81494193 | AI139: 92.81477555 | AJ139: 92.81498609 | AK139: 92.81490119 | AL139: 92.81488761 | AM139: 92.81492496 | AN139: 92.81490459 | AO139: 92.81490572 | AP139: 92.81491176 | AQ139: 92.81490735 | AR139: 92.81490828
A140: 1620000US2911242 | B140: Cape Girardeau | C140: 84.7 | D140: 85.4 | E140: 86.8 | F140: 87.9 | G140: 88.2 | H140: 88.7 | I140: 90.3 | J140: 91.7 | K140: 92.4 | L140: 92.90475301 | M140: 94.06856787 | N140: 95.00822106 | O140: 95.94787426 | P140: 96.88752745 | Q140: 97.82718065 | R140: 98.76683384 | S140: 99.70648703 | T140: 100 | U140: 100 | V140: 100 | W140: 100 | X140: 100 | Y140: 100 | Z140: 100 | AA140: 100 | AB140: 100 | AC140: 100 | AD140: 100 | AE140: 100 | AF140: 100 | AG140: 100 | AH140: 100 | AI140: 100 | AJ140: 100 | AK140: 100 | AL140: 100 | AM140: 100 | AN140: 100 | AO140: 100 | AP140: 100 | AQ140: 100 | AR140: 100
A141: 1620000US2911350 | B141: Cardwell | C141: 58.4 | D141: 60.5 | E141: 62.2 | F141: 69.4 | G141: 65 | H141: 63.9 | I141: 60.3 | J141: 60.6 | K141: 59.9 | L141: 62.7787307 | M141: 62.25815895 | N141: 62.2509382 | O141: 62.24371745 | P141: 62.2364967 | Q141: 62.22927595 | R141: 62.2220552 | S141: 62.21483445 | T141: 62.2076137 | U141: 62.20039295 | V141: 62.1931722 | W141: 62.20039295 | X141: 62.19798604 | Y141: 62.19718373 | Z141: 62.19852091 | AA141: 62.19789689 | AB141: 62.19786718 | AC141: 62.19809499 | AD141: 62.19795302 | AE141: 62.19797173 | AF141: 62.19800658 | AG141: 62.19797711 | AH141: 62.19798514 | AI141: 62.19798961 | AJ141: 62.19798395 | AK141: 62.19798623 | AL141: 62.1979866 | AM141: 62.19798559 | AN141: 62.19798614 | AO141: 62.19798611 | AP141: 62.19798595 | AQ141: 62.19798607 | AR141: 62.19798604
A142: 1620000US2911368 | B142: Carl Junction | C142: 92.5 | D142: 92.9 | E142: 92.6 | F142: 93.4 | G142: 93.3 | H142: 94.6 | I142: 94.8 | J142: 94 | K142: 93.3 | L142: 92.19992427 | M142: 93.77996971 | N142: 93.85632921 | O142: 93.93268872 | P142: 94.00904823 | Q142: 94.08540773 | R142: 94.16176724 | S142: 94.23812674 | T142: 94.31448625 | U142: 94.39084575 | V142: 94.46720526 | W142: 94.39084575 | X142: 94.41629892 | Y142: 94.42478331 | Z142: 94.41064266 | AA142: 94.41724163 | AB142: 94.41755587 | AC142: 94.41514672 | AD142: 94.41664807 | AE142: 94.41645022 | AF142: 94.41608167 | AG142: 94.41639332 | AH142: 94.41630841 | AI142: 94.41626113 | AJ142: 94.41632095 | AK142: 94.41629683 | AL142: 94.41629297 | AM142: 94.41630359 | AN142: 94.4162978 | AO142: 94.41629812 | AP142: 94.41629983 | AQ142: 94.41629858 | AR142: 94.41629885
A143: 1620000US2911566 | B143: Carrollton | C143: 81.6 | D143: 80.9 | E143: 80.6 | F143: 80.5 | G143: 85.1 | H143: 86.4 | I143: 82 | J143: 81.7 | K143: 82.5 | L143: 81.93688792 | M143: 83.17475517 | N143: 83.32949451 | O143: 83.48423385 | P143: 83.63897319 | Q143: 83.79371253 | R143: 83.94845187 | S143: 84.10319122 | T143: 84.25793056 | U143: 84.4126699 | V143: 84.56740924 | W143: 84.4126699 | X143: 84.46424968 | Y143: 84.48144294 | Z143: 84.45278751 | AA143: 84.46616004 | AB143: 84.46679683 | AC143: 84.46191479 | AD143: 84.46495722 | AE143: 84.46455628 | AF143: 84.46380943 | AG143: 84.46444098 | AH143: 84.4642689 | AI143: 84.4641731 | AJ143: 84.46429432 | AK143: 84.46424544 | AL143: 84.46423762 | AM143: 84.46425913 | AN143: 84.4642474 | AO143: 84.46424805 | AP143: 84.46425153 | AQ143: 84.46424899 | AR143: 84.46424952
A144: 1620000US2911638 | B144: Carterville | C144: 80.6 | D144: 80.8 | E144: 85.1 | F144: 87.2 | G144: 87.1 | H144: 85.6 | I144: 83.5 | J144: 81.5 | K144: 79.2 | L144: 79.67948718 | M144: 81.35846154 | N144: 81.05491841 | O144: 80.75137529 | P144: 80.44783217 | Q144: 80.14428904 | R144: 79.84074592 | S144: 79.5372028 | T144: 79.23365967 | U144: 78.93011655 | V144: 78.62657343 | W144: 78.93011655 | X144: 78.82893551 | Y144: 78.7952085 | Z144: 78.85142018 | AA144: 78.82518806 | AB144: 78.82393891 | AC144: 78.83351572 | AD144: 78.82754757 | AE144: 78.82833407 | AF144: 78.82979912 | AG144: 78.82856025 | AH144: 78.82889781 | AI144: 78.82908573 | AJ144: 78.82884793 | AK144: 78.82894382 | AL144: 78.82895916 | AM144: 78.82891697 | AN144: 78.82893998 | AO144: 78.8289387 | AP144: 78.82893189 | AQ144: 78.82893686 | AR144: 78.82893582
A145: 1620000US2911656 | B145: Carthage | C145: 66.9 | D145: 66 | E145: 66.8 | F145: 70.8 | G145: 69.1 | H145: 71.2 | I145: 73.4 | J145: 73.5 | K145: 75 | L145: 74.29699538 | M145: 76.46546482 | N145: 77.51378578 | O145: 78.56210674 | P145: 79.6104277 | Q145: 80.65874866 | R145: 81.70706962 | S145: 82.75539058 | T145: 83.80371154 | U145: 84.8520325 | V145: 85.90035346 | W145: 84.8520325 | X145: 85.20147282 | Y145: 85.31795292 | Z145: 85.12381941 | AA145: 85.21441505 | AB145: 85.21872913 | AC145: 85.18565453 | AD145: 85.20626624 | AE145: 85.20354997 | AF145: 85.19849025 | AG145: 85.20276882 | AH145: 85.20160301 | AI145: 85.20095402 | AJ145: 85.20177528 | AK145: 85.20144411 | AL145: 85.20139114 | AM145: 85.20153684 | AN145: 85.20145736 | AO145: 85.20146178 | AP145: 85.20148533 | AQ145: 85.20146816 | AR145: 85.20147175
A146: 1620000US2911692 | B146: Caruthersville | C146: 70.3 | D146: 70.8 | E146: 74.6 | F146: 69.8 | G146: 72.4 | H146: 69.6 | I146: 71.3 | J146: 69.7 | K146: 73.9 | L146: 75.64424173 | M146: 73.37103003 | N146: 73.65586745 | O146: 73.94070488 | P146: 74.22554231 | Q146: 74.51037974 | R146: 74.79521717 | S146: 75.08005459 | T146: 75.36489202 | U146: 75.64972945 | V146: 75.93456688 | W146: 75.64972945 | X146: 75.74467526 | Y146: 75.77632386 | Z146: 75.72357619 | AA146: 75.74819177 | AB146: 75.74936394 | AC146: 75.7403773 | AD146: 75.74597767 | AE146: 75.74523964 | AF146: 75.74386487 | AG146: 75.74502739 | AH146: 75.74471063 | AI146: 75.7445343 | AJ146: 75.74475744 | AK146: 75.74466746 | AL146: 75.74465307 | AM146: 75.74469265 | AN146: 75.74467106 | AO146: 75.74467226 | AP146: 75.74467866 | AQ146: 75.74467399 | AR146: 75.74467497
A147: 1620000US2911728 | B147: Carytown | C147: 82.7 | D147: 79 | E147: 85.4 | F147: 83.5 | G147: 83.9 | H147: 84.3 | I147: 87 | J147: 88.2 | K147: 88.2 | L147: 91.39784946 | M147: 90.94580645 | N147: 91.96144673 | O147: 92.977087 | P147: 93.99272727 | Q147: 95.00836755 | R147: 96.02400782 | S147: 97.03964809 | T147: 98.05528837 | U147: 99.07092864 | V147: 100 | W147: 99.04207234 | X147: 99.37100033 | Y147: 99.47102422 | Z147: 99.29469896 | AA147: 99.37890784 | AB147: 99.38154367 | AC147: 99.35171682 | AD147: 99.37072278 | AE147: 99.36799442 | AF147: 99.36347801 | AG147: 99.3673984 | AH147: 99.36629028 | AI147: 99.36572223 | AJ147: 99.3664703 | AK147: 99.36616094 | AL147: 99.36611782 | AM147: 99.36624969 | AN147: 99.36617615 | AO147: 99.36618122 | AP147: 99.36620235 | AQ147: 99.36618657 | AR147: 99.36619005
A148: 1620000US2911890 | B148: Cassville | C148: 86.9 | D148: 86.2 | E148: 91.5 | F148: 93.1 | G148: 91.1 | H148: 88.3 | I148: 87.4 | J148: 78.3 | K148: 74.5 | L148: 76.29896083 | M148: 76.586251 | N148: 74.9910428 | O148: 73.39583461 | P148: 71.80062641 | Q148: 70.20541821 | R148: 68.61021001 | S148: 67.01500182 | T148: 65.41979362 | U148: 63.82458542 | V148: 62.22937723 | W148: 63.82458542 | X148: 63.29284936 | Y148: 63.115604 | Z148: 63.41101293 | AA148: 63.27315543 | AB148: 63.26659079 | AC148: 63.31691971 | AD148: 63.28555531 | AE148: 63.2896886 | AF148: 63.29738788 | AG148: 63.29087726 | AH148: 63.29265125 | AI148: 63.29363879 | AJ148: 63.2923891 | AK148: 63.29289305 | AL148: 63.29297365 | AM148: 63.29275193 | AN148: 63.29287288 | AO148: 63.29286615 | AP148: 63.29283032 | AQ148: 63.29285645 | AR148: 63.29285097
A149: 1620000US2912052 | B149: Catron | C149: 64 | D149: 42.1 | E149: 61.5 | F149: 66 | G149: 68.8 | H149: 58.2 | I149: 73.2 | J149: 53.7 | K149: 40 | L149: 52.77777778 | M149: 53.23777778 | N149: 52.36686869 | O149: 51.4959596 | P149: 50.62505051 | Q149: 49.75414141 | R149: 48.88323232 | S149: 48.01232323 | T149: 47.14141414 | U149: 46.27050505 | V149: 45.39959596 | W149: 46.27050505 | X149: 45.98020202 | Y149: 45.88343434 | Z149: 46.0447138 | AA149: 45.96945006 | AB149: 45.96586607 | AC149: 45.99334331 | AD149: 45.97621981 | AE149: 45.9784764 | AF149: 45.98267984 | AG149: 45.97912535 | AH149: 45.98009386 | AI149: 45.98063302 | AJ149: 45.97995074 | AK149: 45.98022587 | AL149: 45.98026988 | AM149: 45.98014883 | AN149: 45.98021486 | AO149: 45.98021119 | AP149: 45.98019163 | AQ149: 45.98020589 | AR149: 45.9802029
A150: 1620000US2912376 | B150: Cedar Hill Lakes | C150: 80 | D150: 71.8 | E150: 74.5 | F150: 73.4 | G150: 79.5 | H150: 85.4 | I150: 88.9 | J150: 86.5 | K150: 84 | L150: 79.91266376 | M150: 86.95839884 | N150: 88.15242292 | O150: 89.346447 | P150: 90.54047109 | Q150: 91.73449517 | R150: 92.92851925 | S150: 94.12254334 | T150: 95.31656742 | U150: 96.5105915 | V150: 97.70461559 | W150: 96.5105915 | X150: 96.90859953 | Y150: 97.04126888 | Z150: 96.8201533 | AA150: 96.92334057 | AB150: 96.92825425 | AC150: 96.89058271 | AD150: 96.91405918 | AE150: 96.91096538 | AF150: 96.90520242 | AG150: 96.91007566 | AH150: 96.90874782 | AI150: 96.90800863 | AJ150: 96.90894404 | AK150: 96.90856683 | AL150: 96.9085065 | AM150: 96.90867246 | AN150: 96.90858193 | AO150: 96.90858696 | AP150: 96.90861378 | AQ150: 96.90859422 | AR150: 96.90859832
A151: 1620000US2912592 | B151: Center | C151: 71.3 | D151: 87.4 | E151: 77.2 | F151: 80.3 | G151: 81.1 | H151: 79.8 | I151: 79.4 | J151: 82.4 | K151: 82.1 | L151: 83.77088305 | M151: 83.71501989 | N151: 84.30373472 | O151: 84.89244956 | P151: 85.48116439 | Q151: 86.06987922 | R151: 86.65859406 | S151: 87.24730889 | T151: 87.83602372 | U151: 88.42473856 | V151: 89.01345339 | W151: 88.42473856 | X151: 88.62097683 | Y151: 88.68638959 | Z151: 88.57736833 | AA151: 88.62824492 | AB151: 88.63066761 | AC151: 88.61209362 | AD151: 88.62366872 | AE151: 88.62214332 | AF151: 88.61930188 | AG151: 88.62170464 | AH151: 88.62104995 | AI151: 88.62068549 | AJ151: 88.62114669 | AK151: 88.62096071 | AL151: 88.62093096 | AM151: 88.62101279 | AN151: 88.62096815 | AO151: 88.62097063 | AP151: 88.62098386 | AQ151: 88.62097422 | AR151: 88.62097624
A152: 1620000US2912664 | B152: Centertown | C152: 78.7 | D152: 77.5 | E152: 81.4 | F152: 90.5 | G152: 89.8 | H152: 91.6 | I152: 90.5 | J152: 81.6 | K152: 81.2 | L152: 78.62903226 | M152: 85.07827957 | N152: 85.248348 | O152: 85.41841642 | P152: 85.58848485 | Q152: 85.75855327 | R152: 85.9286217 | S152: 86.09869013 | T152: 86.26875855 | U152: 86.43882698 | V152: 86.60889541 | W152: 86.43882698 | X152: 86.49551645 | Y152: 86.51441295 | Z152: 86.48291879 | AA152: 86.49761607 | AB152: 86.49831594 | AC152: 86.49295026 | AD152: 86.49629409 | AE152: 86.49585343 | AF152: 86.49503259 | AG152: 86.4957267 | AH152: 86.49553758 | AI152: 86.49543229 | AJ152: 86.49556552 | AK152: 86.4955118 | AL152: 86.4955032 | AM152: 86.49552684 | AN152: 86.49551395 | AO152: 86.49551466 | AP152: 86.49551848 | AQ152: 86.4955157 | AR152: 86.49551628
A153: 1620000US2912682 | B153: Centerview | C153: 79.6 | D153: 79.6 | E153: 79 | F153: 80.9 | G153: 85.1 | H153: 83.8 | I153: 81.8 | J153: 83.8 | K153: 78 | L153: 76.64233577 | M153: 80.41026764 | N153: 80.33500111 | O153: 80.25973457 | P153: 80.18446804 | Q153: 80.1092015 | R153: 80.03393497 | S153: 79.95866844 | T153: 79.8834019 | U153: 79.80813537 | V153: 79.73286883 | W153: 79.80813537 | X153: 79.78304652 | Y153: 79.77468358 | Z153: 79.78862182 | AA153: 79.78211731 | AB153: 79.78180757 | AC153: 79.78418223 | AD153: 79.78270237 | AE153: 79.78289739 | AF153: 79.78326066 | AG153: 79.78295347 | AH153: 79.78303718 | AI153: 79.78308377 | AJ153: 79.78302481 | AK153: 79.78304859 | AL153: 79.78305239 | AM153: 79.78304193 | AN153: 79.78304763 | AO153: 79.78304732 | AP153: 79.78304563 | AQ153: 79.78304686 | AR153: 79.7830466
A154: 1620000US2912718 | B154: Centerville | C154: 70 | D154: 65.9 | E154: 66.1 | F154: 67 | G154: 77.6 | H154: 75 | I154: 78.5 | J154: 77.2 | K154: 82.2 | L154: 80.85106383 | M154: 84.0070922 | N154: 85.82018053 | O154: 87.63326886 | P154: 89.44635719 | Q154: 91.25944552 | R154: 93.07253385 | S154: 94.88562218 | T154: 96.69871051 | U154: 98.51179884 | V154: 100 | W154: 98.40350312 | X154: 98.97176732 | Y154: 99.12509014 | Z154: 98.83345353 | AA154: 98.97677033 | AB154: 98.978438 | AC154: 98.92955395 | AD154: 98.96158743 | AE154: 98.95652646 | AF154: 98.94922261 | AG154: 98.95577883 | AH154: 98.95384264 | AI154: 98.95294803 | AJ154: 98.95418983 | AK154: 98.95366017 | AL154: 98.95359934 | AM154: 98.95381645 | AN154: 98.95369198 | AO154: 98.95370259 | AP154: 98.95373701 | AQ154: 98.95371053 | AR154: 98.95371671
A155: 1620000US2912898 | B155: Centralia | C155: 82.5 | D155: 84.4 | E155: 87 | F155: 87.5 | G155: 85.1 | H155: 88.3 | I155: 90 | J155: 88.7 | K155: 89.4 | L155: 89.40677966 | M155: 91.10937853 | N155: 91.81459682 | O155: 92.5198151 | P155: 93.22503338 | Q155: 93.93025167 | R155: 94.63546995 | S155: 95.34068824 | T155: 96.04590652 | U155: 96.75112481 | V155: 97.45634309 | W155: 96.75112481 | X155: 96.98619757 | Y155: 97.06455516 | Z155: 96.93395918 | AA155: 96.99490397 | AB155: 96.9978061 | AC155: 96.97555642 | AD155: 96.98942216 | AE155: 96.98759489 | AF155: 96.98419116 | AG155: 96.9870694 | AH155: 96.98628515 | AI155: 96.98584857 | AJ155: 96.98640104 | AK155: 96.98617825 | AL155: 96.98614262 | AM155: 96.98624064 | AN155: 96.98618717 | AO155: 96.98619014 | AP155: 96.98620598 | AQ155: 96.98619443 | AR155: 96.98619685
A156: 1620000US2912988 | B156: Chaffee | C156: 77.1 | D156: 75 | E156: 79.1 | F156: 81.2 | G156: 79.6 | H156: 80.8 | I156: 84.2 | J156: 86.6 | K156: 86.8 | L156: 89.33092224 | M156: 89.98570223 | N156: 91.44254041 | O156: 92.8993786 | P156: 94.35621678 | Q156: 95.81305496 | R156: 97.26989314 | S156: 98.72673133 | T156: 100 | U156: 100 | V156: 100 | W156: 100 | X156: 100 | Y156: 100 | Z156: 100 | AA156: 100 | AB156: 100 | AC156: 100 | AD156: 100 | AE156: 100 | AF156: 100 | AG156: 100 | AH156: 100 | AI156: 100 | AJ156: 100 | AK156: 100 | AL156: 100 | AM156: 100 | AN156: 100 | AO156: 100 | AP156: 100 | AQ156: 100 | AR156: 100
A157: 1620000US2913006 | B157: Chain of Rocks | C157: 92.6 | D157: 92.9 | E157: 93.6 | F157: 93.8 | G157: 91.9 | H157: 92.4 | I157: 96.7 | J157: 88.7 | K157: 93 | L157: 91.13924051 | M157: 91.74902954 | N157: 91.5808669 | O157: 91.41270426 | P157: 91.24454162 | Q157: 91.07637898 | R157: 90.90821634 | S157: 90.7400537 | T157: 90.57189106 | U157: 90.40372842 | V157: 90.23556578 | W157: 90.40372842 | X157: 90.34767421 | Y157: 90.32898947 | Z157: 90.3601307 | AA157: 90.34559813 | AB157: 90.3449061 | AC157: 90.35021164 | AD157: 90.34690529 | AE157: 90.34734101 | AF157: 90.34815265 | AG157: 90.34746632 | AH157: 90.34765333 | AI157: 90.34775743 | AJ157: 90.34762569 | AK157: 90.34767882 | AL157: 90.34768731 | AM157: 90.34766394 | AN157: 90.34767669 | AO157: 90.34767598 | AP157: 90.3476722 | AQ157: 90.34767496 | AR157: 90.34767438
A158: 1620000US2913015 | B158: Chain-O-Lakes | C158: 75.7 | D158: 74.5 | E158: 82.9 | F158: 81 | G158: 88 | H158: 93.4 | I158: 94.8 | J158: 90.3 | K158: 97 | L158: 95.94594595 | M158: 100 | N158: 100 | O158: 100 | P158: 100 | Q158: 100 | R158: 100 | S158: 100 | T158: 100 | U158: 100 | V158: 100 | W158: 100 | X158: 100 | Y158: 100 | Z158: 100 | AA158: 100 | AB158: 100 | AC158: 100 | AD158: 100 | AE158: 100 | AF158: 100 | AG158: 100 | AH158: 100 | AI158: 100 | AJ158: 100 | AK158: 100 | AL158: 100 | AM158: 100 | AN158: 100 | AO158: 100 | AP158: 100 | AQ158: 100 | AR158: 100
A159: 1620000US2913060 | B159: Chamois | C159: 74 | D159: 77.3 | E159: 80.7 | F159: 79.8 | G159: 79 | H159: 82.6 | I159: 82.2 | J159: 84.3 | K159: 89.5 | L159: 90.90909091 | M159: 90.91030303 | N159: 92.52473829 | O159: 94.13917355 | P159: 95.75360882 | Q159: 97.36804408 | R159: 98.98247934 | S159: 100 | T159: 100 | U159: 100 | V159: 100 | W159: 100 | X159: 100 | Y159: 100 | Z159: 100 | AA159: 100 | AB159: 100 | AC159: 100 | AD159: 100 | AE159: 100 | AF159: 100 | AG159: 100 | AH159: 100 | AI159: 100 | AJ159: 100 | AK159: 100 | AL159: 100 | AM159: 100 | AN159: 100 | AO159: 100 | AP159: 100 | AQ159: 100 | AR159: 100
A160: 1620000US2913078 | B160: Champ | C160: 100 | D160: 93.1 | E160: 83.3 | F160: 75 | G160: 81.8 | H160: 80 | I160: 100 | J160: 100 | K160: 100 | L160: 100 | M160: 98.15333333 | N160: 99.39575758 | O160: 100 | P160: 100 | Q160: 100 | R160: 100 | S160: 100 | T160: 100 | U160: 100 | V160: 100 | W160: 100 | X160: 100 | Y160: 100 | Z160: 100 | AA160: 100 | AB160: 100 | AC160: 100 | AD160: 100 | AE160: 100 | AF160: 100 | AG160: 100 | AH160: 100 | AI160: 100 | AJ160: 100 | AK160: 100 | AL160: 100 | AM160: 100 | AN160: 100 | AO160: 100 | AP160: 100 | AQ160: 100 | AR160: 100
A161: 1620000US2913330 | B161: Charlack | C161: 88.5 | D161: 88.8 | E161: 88.6 | F161: 93.5 | G161: 93.9 | H161: 92.9 | I161: 94.2 | J161: 93.6 | K161: 91.7 | L161: 88.81632653 | M161: 93.09319728 | N161: 93.39166357 | O161: 93.69012987 | P161: 93.98859617 | Q161: 94.28706246 | R161: 94.58552876 | S161: 94.88399505 | T161: 95.18246135 | U161: 95.48092764 | V161: 95.77939394 | W161: 95.48092764 | X161: 95.58041641 | Y161: 95.61357933 | Z161: 95.55830779 | AA161: 95.58410118 | AB161: 95.58532943 | AC161: 95.5759128 | AD161: 95.58178114 | AE161: 95.58100779 | AF161: 95.57956724 | AG161: 95.58078539 | AH161: 95.58045348 | AI161: 95.5802687 | AJ161: 95.58050252 | AK161: 95.58040823 | AL161: 95.58039315 | AM161: 95.58043464 | AN161: 95.58041201 | AO161: 95.58041327 | AP161: 95.58041997 | AQ161: 95.58041508 | AR161: 95.58041611
A162: 1620000US2913366 | B162: Charleston | C162: 72.4 | D162: 74.3 | E162: 76.7 | F162: 78.8 | G162: 76.6 | H162: 74.7 | I162: 75 | J162: 76.5 | K162: 78.3 | L162: 79.20086393 | M162: 78.74701224 | N162: 79.20099876 | O162: 79.65498527 | P162: 80.10897179 | Q162: 80.56295831 | R162: 81.01694483 | S162: 81.47093134 | T162: 81.92491786 | U162: 82.37890438 | V162: 82.8328909 | W162: 82.37890438 | X162: 82.53023322 | Y162: 82.58067616 | Z162: 82.49660459 | AA162: 82.53583799 | AB162: 82.53770625 | AC162: 82.52338294 | AD162: 82.53230906 | AE162: 82.53113275 | AF162: 82.52894158 | AG162: 82.53079446 | AH162: 82.5302896 | AI162: 82.53000855 | AJ162: 82.5303642 | AK162: 82.53022078 | AL162: 82.53019785 | AM162: 82.53026094 | AN162: 82.53022652 | AO162: 82.53022844 | AP162: 82.53023864 | AQ162: 82.5302312 | AR162: 82.53023276
A163: 1620000US2913600 | B163: Chesterfield | C163: 96.4 | D163: 96.9 | E163: 96.7 | F163: 97.5 | G163: 97.7 | H163: 97.9 | I163: 97.9 | J163: 97.5 | K163: 97.4 | L163: 97.66971696 | M163: 98.03455345 | N163: 98.15775013 | O163: 98.28094682 | P163: 98.4041435 | Q163: 98.52734018 | R163: 98.65053686 | S163: 98.77373355 | T163: 98.89693023 | U163: 99.02012691 | V163: 99.1433236 | W163: 99.02012691 | X163: 99.06119247 | Y163: 99.07488099 | Z163: 99.05206679 | AA163: 99.06271342 | AB163: 99.0632204 | AC163: 99.05933354 | AD163: 99.06175579 | AE163: 99.06143658 | AF163: 99.06084197 | AG163: 99.06134478 | AH163: 99.06120777 | AI163: 99.06113151 | AJ163: 99.06122802 | AK163: 99.0611891 | AL163: 99.06118287 | AM163: 99.0612 | AN163: 99.06119066 | AO163: 99.06119118 | AP163: 99.06119394 | AQ163: 99.06119193 | AR163: 99.06119235
A164: 1620000US2913654 | B164: Chilhowee | C164: 72.8 | D164: 76.3 | E164: 76.2 | F164: 68.5 | G164: 72.6 | H164: 75.2 | I164: 78.2 | J164: 79.3 | K164: 75.6 | L164: 75 | M164: 77.04 | N164: 77.41636364 | O164: 77.79272727 | P164: 78.16909091 | Q164: 78.54545455 | R164: 78.92181818 | S164: 79.29818182 | T164: 79.67454545 | U164: 80.05090909 | V164: 80.42727273 | W164: 80.05090909 | X164: 80.17636364 | Y164: 80.21818182 | Z164: 80.14848485 | AA164: 80.1810101 | AB164: 80.18255892 | AC164: 80.17068462 | AD164: 80.17808455 | AE164: 80.17710937 | AF164: 80.17529285 | AG164: 80.17682892 | AH164: 80.17641038 | AI164: 80.17617738 | AJ164: 80.17647223 | AK164: 80.17635333 | AL164: 80.17633431 | AM164: 80.17638662 | AN164: 80.17635809 | AO164: 80.17635967 | AP164: 80.17636813 | AQ164: 80.17636196 | AR164: 80.17636325
A165: 1620000US2913690 | B165: Chillicothe | C165: 83.5 | D165: 85.6 | E165: 86.6 | F165: 86 | G165: 86.8 | H165: 84.4 | I165: 82.5 | J165: 84 | K165: 83.4 | L165: 84.40431191 | M165: 83.6150581 | N165: 83.41408117 | O165: 83.21310425 | P165: 83.01212732 | Q165: 82.8111504 | R165: 82.61017347 | S165: 82.40919654 | T165: 82.20821962 | U165: 82.00724269 | V165: 81.80626577 | W165: 82.00724269 | X165: 81.94025038 | Y165: 81.91791961 | Z165: 81.95513756 | AA165: 81.93776919 | AB165: 81.93694212 | AC165: 81.94328296 | AD165: 81.93933142 | AE165: 81.93985217 | AF165: 81.94082218 | AG165: 81.94000192 | AH165: 81.94022542 | AI165: 81.94034984 | AJ165: 81.9401924 | AK165: 81.94025589 | AL165: 81.94026604 | AM165: 81.94023811 | AN165: 81.94025335 | AO165: 81.9402525 | AP165: 81.94024798 | AQ165: 81.94025128 | AR165: 81.94025059
A166: 1620000US2913852 | B166: Chula | C166: 96.4 | D166: 98 | E166: 93.4 | F166: 92 | G166: 86.5 | H166: 94.1 | I166: 95.1 | J166: 96.4 | K166: 95.2 | L166: 94.15584416 | M166: 93.86233766 | N166: 93.81447462 | O166: 93.76661157 | P166: 93.71874852 | Q166: 93.67088548 | R166: 93.62302243 | S166: 93.57515939 | T166: 93.52729634 | U166: 93.47943329 | V166: 93.43157025 | W166: 93.47943329 | X166: 93.46347895 | Y166: 93.45816083 | Z166: 93.46702436 | AA166: 93.46288804 | AB166: 93.46269108 | AC166: 93.46420116 | AD166: 93.46326009 | AE166: 93.46338411 | AF166: 93.46361512 | AG166: 93.46341977 | AH166: 93.463473 | AI166: 93.46350263 | AJ166: 93.46346514 | AK166: 93.46348026 | AL166: 93.46348267 | AM166: 93.46347602 | AN166: 93.46347965 | AO166: 93.46347945 | AP166: 93.46347837 | AQ166: 93.46347916 | AR166: 93.46347899
A167: 1620000US2913978 | B167: Clarence | C167: 82.1 | D167: 83.6 | E167: 88 | F167: 88 | G167: 86.6 | H167: 84.2 | I167: 87.7 | J167: 86.3 | K167: 87.1 | L167: 86.41304348 | M167: 87.71855072 | N167: 88.03077734 | O167: 88.34300395 | P167: 88.65523057 | Q167: 88.96745718 | R167: 89.27968379 | S167: 89.59191041 | T167: 89.90413702 | U167: 90.21636364 | V167: 90.52859025 | W167: 90.21636364 | X167: 90.32043917 | Y167: 90.35513102 | Z167: 90.29731128 | AA167: 90.32429382 | AB167: 90.32557871 | AC167: 90.31572794 | AD167: 90.32186682 | AE167: 90.32105782 | AF167: 90.31955086 | AG167: 90.32082517 | AH167: 90.32047795 | AI167: 90.32028466 | AJ167: 90.32052926 | AK167: 90.32043062 | AL167: 90.32041485 | AM167: 90.32045824 | AN167: 90.32043457 | AO167: 90.32043589 | AP167: 90.3204429 | AQ167: 90.32043779 | AR167: 90.32043886
A168: 1620000US2914068 | B168: Clark | C168: 77.6 | D168: 77.3 | E168: 76.9 | F168: 78.3 | G168: 84.9 | H168: 81 | I168: 79.7 | J168: 80.2 | K168: 81.7 | L168: 81.9047619 | M168: 82.82857143 | N168: 83.35186147 | O168: 83.87515152 | P168: 84.39844156 | Q168: 84.9217316 | R168: 85.44502165 | S168: 85.96831169 | T168: 86.49160173 | U168: 87.01489177 | V168: 87.53818182 | W168: 87.01489177 | X168: 87.18932179 | Y168: 87.24746513 | Z168: 87.15055956 | AA168: 87.19578216 | AB168: 87.19793562 | AC168: 87.18142578 | AD168: 87.19171452 | AE168: 87.19035864 | AF168: 87.18783298 | AG168: 87.18996871 | AH168: 87.18938678 | AI168: 87.18906282 | AJ168: 87.18947277 | AK168: 87.18930746 | AL168: 87.18928102 | AM168: 87.18935375 | AN168: 87.18931407 | AO168: 87.18931628 | AP168: 87.18932803 | AQ168: 87.18931946 | AR168: 87.18932126
A169: 1620000US2914140 | B169: Clarksburg | C169: 80.5 | D169: 83 | E169: 83.3 | F169: 83.4 | G169: 78.4 | H169: 75.2 | I169: 72.1 | J169: 69.6 | K169: 76 | L169: 78.39506173 | M169: 72.20469136 | N169: 71.15290685 | O169: 70.10112233 | P169: 69.04933782 | Q169: 67.99755331 | R169: 66.9457688 | S169: 65.89398429 | T169: 64.84219978 | U169: 63.79041526 | V169: 62.73863075 | W169: 63.79041526 | X169: 63.43982043 | Y169: 63.32295548 | Z169: 63.51773039 | AA169: 63.42683543 | AB169: 63.4225071 | AC169: 63.45569097 | AD169: 63.43501117 | AE169: 63.43773642 | AF169: 63.44281285 | AG169: 63.43852015 | AH169: 63.4396898 | AI169: 63.44034093 | AJ169: 63.43951696 | AK169: 63.43984923 | AL169: 63.43990238 | AM169: 63.43975619 | AN169: 63.43983593 | AO169: 63.4398315 | AP169: 63.43980787 | AQ169: 63.4398251 | AR169: 63.43982149
A170: 1620000US2914158 | B170: Clarksdale | C170: 87.5 | D170: 88.8 | E170: 86.4 | F170: 87.2 | G170: 88.6 | H170: 87.4 | I170: 87 | J170: 84 | K170: 83.6 | L170: 84.12698413 | M170: 83.77746032 | N170: 83.28923521 | O170: 82.8010101 | P170: 82.31278499 | Q170: 81.82455988 | R170: 81.33633478 | S170: 80.84810967 | T170: 80.35988456 | U170: 79.87165945 | V170: 79.38343434 | W170: 79.87165945 | X170: 79.70891775 | Y170: 79.65467051 | Z170: 79.74508257 | AA170: 79.70289028 | AB170: 79.70088112 | AC170: 79.71628466 | AD170: 79.70668535 | AE170: 79.70795038 | AF170: 79.7103068 | AG170: 79.70831418 | AH170: 79.70885712 | AI170: 79.70915936 | AJ170: 79.70877688 | AK170: 79.70893112 | AL170: 79.70895579 | AM170: 79.70888793 | AN170: 79.70892495 | AO170: 79.70892289 | AP170: 79.70891192 | AQ170: 79.70891992 | AR170: 79.70891824
A171: 1620000US2914176 | B171: Clarkson Valley | C171: 97.7 | D171: 98.5 | E171: 99.3 | F171: 98.8 | G171: 98.8 | H171: 98.6 | I171: 98.7 | J171: 97.8 | K171: 98.4 | L171: 98.1086324 | M171: 98.30345296 | N171: 98.27301473 | O171: 98.24257649 | P171: 98.21213826 | Q171: 98.18170003 | R171: 98.15126179 | S171: 98.12082356 | T171: 98.09038533 | U171: 98.05994709 | V171: 98.02950886 | W171: 98.05994709 | X171: 98.04980102 | Y171: 98.04641899 | Z171: 98.0520557 | AA171: 98.04942524 | AB171: 98.04929998 | AC171: 98.0502603 | AD171: 98.04966184 | AE171: 98.04974071 | AF171: 98.04988762 | AG171: 98.04976339 | AH171: 98.04979724 | AI171: 98.04981608 | AJ171: 98.04979223 | AK171: 98.04980185 | AL171: 98.04980339 | AM171: 98.04979916 | AN171: 98.04980147 | AO171: 98.04980134 | AP171: 98.04980065 | AQ171: 98.04980115 | AR171: 98.04980105
A172: 1620000US2914194 | B172: Clarksville | C172: 81.1 | D172: 86.1 | E172: 87.4 | F172: 85.8 | G172: 87.2 | H172: 86.2 | I172: 83.6 | J172: 79.9 | K172: 80.4 | L172: 76.54986523 | M172: 79.22661276 | N172: 78.46327207 | O172: 77.69993139 | P172: 76.9365907 | Q172: 76.17325002 | R172: 75.40990934 | S172: 74.64656865 | T172: 73.88322797 | U172: 73.11988728 | V172: 72.3565466 | W172: 73.11988728 | X172: 72.86544039 | Y172: 72.78062476 | Z172: 72.92198414 | AA172: 72.85601643 | AB172: 72.85287511 | AC172: 72.87695856 | AD172: 72.86195003 | AE172: 72.8639279 | AF172: 72.86761216 | AG172: 72.8644967 | AH172: 72.86534559 | AI172: 72.86581815 | AJ172: 72.86522015 | AK172: 72.86546129 | AL172: 72.86549986 | AM172: 72.86539377 | AN172: 72.86545164 | AO172: 72.86544842 | AP172: 72.86543128 | AQ172: 72.86544378 | AR172: 72.86544116
A173: 1620000US2914212 | B173: Clarkton | C173: 60.3 | D173: 55.8 | E173: 61 | F173: 59.1 | G173: 60 | H173: 59.6 | I173: 65.8 | J173: 69.6 | K173: 69.6 | L173: 69.48571429 | M173: 71.09428571 | N173: 72.56077922 | O173: 74.02727273 | P173: 75.49376623 | Q173: 76.96025974 | R173: 78.42675325 | S173: 79.89324675 | T173: 81.35974026 | U173: 82.82623377 | V173: 84.29272727 | W173: 82.82623377 | X173: 83.31506494 | Y173: 83.47800866 | Z173: 83.20643579 | AA173: 83.33316979 | AB173: 83.33920475 | AC173: 83.29293678 | AD173: 83.32177044 | AE173: 83.31797065 | AF173: 83.31089262 | AG173: 83.3168779 | AH173: 83.31524706 | AI173: 83.3143392 | AJ173: 83.31548805 | AK173: 83.31502477 | AL173: 83.31495067 | AM173: 83.3151545 | AN173: 83.31504331 | AO173: 83.31504949 | AP173: 83.31508244 | AQ173: 83.31505841 | AR173: 83.31506345
A174: 1620000US2914554 | B174: Claycomo | C174: 74.7 | D174: 76.3 | E174: 80.4 | F174: 80.7 | G174: 79.1 | H174: 81.5 | I174: 85.7 | J174: 86.2 | K174: 88 | L174: 88.8252149 | M174: 90.65675263 | N174: 92.20479465 | O174: 93.75283668 | P174: 95.3008787 | Q174: 96.84892073 | R174: 98.39696275 | S174: 99.94500478 | T174: 100 | U174: 100 | V174: 100 | W174: 100 | X174: 100 | Y174: 100 | Z174: 100 | AA174: 100 | AB174: 100 | AC174: 100 | AD174: 100 | AE174: 100 | AF174: 100 | AG174: 100 | AH174: 100 | AI174: 100 | AJ174: 100 | AK174: 100 | AL174: 100 | AM174: 100 | AN174: 100 | AO174: 100 | AP174: 100 | AQ174: 100 | AR174: 100
A175: 1620000US2914572 | B175: Clayton | C175: 96.2 | D175: 96.7 | E175: 96.6 | F175: 96.8 | G175: 96.9 | H175: 96.8 | I175: 96.5 | J175: 96.2 | K175: 96.1 | L175: 96.15989703 | M175: 96.24395881 | N175: 96.19813501 | O175: 96.15231121 | P175: 96.10648741 | Q175: 96.06066362 | R175: 96.01483982 | S175: 95.96901602 | T175: 95.92319222 | U175: 95.87736842 | V175: 95.83154462 | W175: 95.87736842 | X175: 95.86209382 | Y175: 95.85700229 | Z175: 95.86548818 | AA175: 95.8615281 | AB175: 95.86133952 | AC175: 95.86278526 | AD175: 95.86188429 | AE175: 95.86200303 | AF175: 95.86222419 | AG175: 95.86203717 | AH175: 95.86208813 | AI175: 95.8621165 | AJ175: 95.8620806 | AK175: 95.86209508 | AL175: 95.86209739 | AM175: 95.86209102 | AN175: 95.8620945 | AO175: 95.8620943 | AP175: 95.86209327 | AQ175: 95.86209403 | AR175: 95.86209387
A176: 1620000US2914662 | B176: Clearmont | C176: 86.9 | D176: 86.8 | E176: 84.6 | F176: 85.5 | G176: 84.8 | H176: 92.4 | I176: 90.8 | J176: 92.3 | K176: 93.1 | L176: 94.49541284 | M176: 94.9848318 | N176: 96.04215735 | O176: 97.0994829 | P176: 98.15680845 | Q176: 99.214134 | R176: 100 | S176: 100 | T176: 100 | U176: 100 | V176: 100 | W176: 100 | X176: 100 | Y176: 100 | Z176: 100 | AA176: 100 | AB176: 100 | AC176: 100 | AD176: 100 | AE176: 100 | AF176: 100 | AG176: 100 | AH176: 100 | AI176: 100 | AJ176: 100 | AK176: 100 | AL176: 100 | AM176: 100 | AN176: 100 | AO176: 100 | AP176: 100 | AQ176: 100 | AR176: 100
A177: 1620000US2914770 | B177: Cleveland | C177: 91 | D177: 91.3 | E177: 89.3 | F177: 86.4 | G177: 87 | H177: 90.2 | I177: 89 | J177: 90.4 | K177: 92.7 | L177: 91.86295503 | M177: 91.05184868 | N177: 91.25831289 | O177: 91.46477711 | P177: 91.67124132 | Q177: 91.87770554 | R177: 92.08416975 | S177: 92.29063396 | T177: 92.49709818 | U177: 92.70356239 | V177: 92.9100266 | W177: 92.70356239 | X177: 92.7723838 | Y177: 92.79532426 | Z177: 92.75709015 | AA177: 92.77493274 | AB177: 92.77578238 | AC177: 92.76926842 | AD177: 92.77332785 | AE177: 92.77279288 | AF177: 92.77179638 | AG177: 92.77263904 | AH177: 92.77240944 | AI177: 92.77228162 | AJ177: 92.77244336 | AK177: 92.77237814 | AL177: 92.77236771 | AM177: 92.7723964 | AN177: 92.77238075 | AO177: 92.77238162 | AP177: 92.77238626 | AQ177: 92.77238288 | AR177: 92.77238359
A178: 1620000US2914788 | B178: Clever | C178: 87.6 | D178: 87.9 | E178: 90.6 | F178: 91.8 | G178: 91.8 | H178: 92.3 | I178: 90.1 | J178: 89.3 | K178: 89.5 | L178: 87.96041781 | M178: 89.99750046 | N178: 90.01776567 | O178: 90.03803089 | P178: 90.0582961 | Q178: 90.07856131 | R178: 90.09882653 | S178: 90.11909174 | T178: 90.13935696 | U178: 90.15962217 | V178: 90.17988738 | W178: 90.15962217 | X178: 90.16637724 | Y178: 90.16862893 | Z178: 90.16487611 | AA178: 90.16662743 | AB178: 90.16671083 | AC178: 90.16607146 | AD178: 90.1664699 | AE178: 90.16641739 | AF178: 90.16631958 | AG178: 90.16640229 | AH178: 90.16637976 | AI178: 90.16636721 | AJ178: 90.16638309 | AK178: 90.16637669 | AL178: 90.16637566 | AM178: 90.16637848 | AN178: 90.16637694 | AO178: 90.16637703 | AP178: 90.16637748 | AQ178: 90.16637715 | AR178: 90.16637722
A179: 1620000US2914806 | B179: Cliff Village | C179: 91.2 | D179: 100 | E179: 100 | F179: 100 | G179: 100 | H179: 100 | I179: 100 | J179: 94.4 | K179: 96.2 | L179: 88.23529412 | M179: 94.29411765 | N179: 93.80149733 | O179: 93.30887701 | P179: 92.81625668 | Q179: 92.32363636 | R179: 91.83101604 | S179: 91.33839572 | T179: 90.8457754 | U179: 90.35315508 | V179: 89.86053476 | W179: 90.35315508 | X179: 90.18894831 | Y179: 90.13421272 | Z179: 90.2254387 | AA179: 90.18286657 | AB179: 90.18083933 | AC179: 90.19638154 | AD179: 90.18669581 | AE179: 90.18797223 | AF179: 90.19034986 | AG179: 90.1883393 | AH179: 90.18888713 | AI179: 90.18919209 | AJ179: 90.18880617 | AK179: 90.1889618 | AL179: 90.18898669 | AM179: 90.18891822 | AN179: 90.18895557 | AO179: 90.18895349 | AP179: 90.18894243 | AQ179: 90.1889505 | AR179: 90.18894881
A180: 1620000US2914896 | B180: Clifton Hill | C180: 70.2 | D180: 68.9 | E180: 77.6 | F180: 90.9 | G180: 84.7 | H180: 88.1 | I180: 92.7 | J180: 90 | K180: 79.6 | L180: 77.77777778 | M180: 89.17777778 | N180: 90.47414141 | O180: 91.77050505 | P180: 93.06686869 | Q180: 94.36323232 | R180: 95.65959596 | S180: 96.9559596 | T180: 98.25232323 | U180: 99.54868687 | V180: 100 | W180: 99.26700337 | X180: 99.60523008 | Y180: 99.62407782 | Z180: 99.49877042 | AA180: 99.5760261 | AB180: 99.56629145 | AC180: 99.54702932 | AD180: 99.56311563 | AE180: 99.55881213 | AF180: 99.55631903 | AG180: 99.55941559 | AH180: 99.55818225 | AI180: 99.55797229 | AJ180: 99.55852338 | AK180: 99.55822597 | AL180: 99.55824055 | AM180: 99.55832997 | AN180: 99.5582655 | AO180: 99.55827867 | AP180: 99.55829138 | AQ180: 99.55827851 | AR180: 99.55828285
A181: 1620000US2914986 | B181: Clinton | C181: 82.1 | D181: 83.1 | E181: 83.7 | F181: 84.6 | G181: 84.6 | H181: 85.3 | I181: 84.5 | J181: 85.1 | K181: 83.8 | L181: 85.02436228 | M181: 85.46974491 | N181: 85.70380104 | O181: 85.93785716 | P181: 86.17191329 | Q181: 86.40596941 | R181: 86.64002553 | S181: 86.87408166 | T181: 87.10813778 | U181: 87.34219391 | V181: 87.57625003 | W181: 87.34219391 | X181: 87.42021262 | Y181: 87.44621885 | Z181: 87.40287513 | AA181: 87.4231022 | AB181: 87.42406539 | AC181: 87.41668091 | AD181: 87.42128283 | AE181: 87.42067638 | AF181: 87.4195467 | AG181: 87.42050197 | AH181: 87.42024168 | AI181: 87.42009679 | AJ181: 87.42028015 | AK181: 87.42020621 | AL181: 87.42019438 | AM181: 87.42022691 | AN181: 87.42020917 | AO181: 87.42021015 | AP181: 87.42021541 | AQ181: 87.42021158 | AR181: 87.42021238
A182: 1620000US2915130 | B182: Clyde | C182: 89.6 | D182: 84.9 | E182: 89.2 | F182: 87.3 | G182: 86.6 | H182: 89.6 | I182: 90.9 | J182: 91.7 | K182: 97.7 | L182: 95.74468085 | M182: 96.03120567 | N182: 97.06879433 | O182: 98.10638298 | P182: 99.14397163 | Q182: 100 | R182: 100 | S182: 100 | T182: 100 | U182: 100 | V182: 100 | W182: 100 | X182: 100 | Y182: 100 | Z182: 100 | AA182: 100 | AB182: 100 | AC182: 100 | AD182: 100 | AE182: 100 | AF182: 100 | AG182: 100 | AH182: 100 | AI182: 100 | AJ182: 100 | AK182: 100 | AL182: 100 | AM182: 100 | AN182: 100 | AO182: 100 | AP182: 100 | AQ182: 100 | AR182: 100
A183: 1620000US2915220 | B183: Cobalt | C183: 51.5 | D183: 60.9 | E183: 62.5 | F183: 65.3 | G183: 68.8 | H183: 71.5 | I183: 69.9 | J183: 72 | K183: 70.7 | L183: 78.99543379 | M183: 79.87817352 | N183: 82.18156081 | O183: 84.48494811 | P183: 86.78833541 | Q183: 89.09172271 | R183: 91.39511 | S183: 93.6984973 | T183: 96.0018846 | U183: 98.3052719 | V183: 100 | W183: 98.1023855 | X183: 98.80255247 | Y183: 98.96831265 | Z183: 98.62441687 | AA183: 98.79842733 | AB183: 98.79705229 | AC183: 98.7399655 | AD183: 98.7784817 | AE183: 98.77183316 | AF183: 98.76342679 | AG183: 98.77124722 | AH183: 98.76883572 | AI183: 98.76783658 | AJ183: 98.76930651 | AK183: 98.7686596 | AL183: 98.76860089 | AM183: 98.76885567 | AN183: 98.76870539 | AO183: 98.76872065 | AP183: 98.76876057 | AQ183: 98.76872887 | AR183: 98.7687367
A184: 1620000US2915274 | B184: Coffey | C184: 64.8 | D184: 60.8 | E184: 59.1 | F184: 74.3 | G184: 83.7 | H184: 78.6 | I184: 85.4 | J184: 85.4 | K184: 81.9 | L184: 77.94117647 | M184: 89.38313725 | N184: 91.962959 | O184: 94.54278075 | P184: 97.1226025 | Q184: 99.70242424 | R184: 100 | S184: 100 | T184: 100 | U184: 100 | V184: 100 | W184: 100 | X184: 100 | Y184: 100 | Z184: 100 | AA184: 100 | AB184: 100 | AC184: 100 | AD184: 100 | AE184: 100 | AF184: 100 | AG184: 100 | AH184: 100 | AI184: 100 | AJ184: 100 | AK184: 100 | AL184: 100 | AM184: 100 | AN184: 100 | AO184: 100 | AP184: 100 | AQ184: 100 | AR184: 100
A185: 1620000US2915436 | B185: Cole Camp | C185: 88.3 | D185: 87.8 | E185: 84 | F185: 86.1 | G185: 90.7 | H185: 91.8 | I185: 91 | J185: 88.9 | K185: 90.6 | L185: 86.67334669 | M185: 90.09600534 | N185: 90.3703091 | O185: 90.64461286 | P185: 90.91891662 | Q185: 91.19322038 | R185: 91.46752414 | S185: 91.7418279 | T185: 92.01613166 | U185: 92.29043542 | V185: 92.56473918 | W185: 92.29043542 | X185: 92.38187 | Y185: 92.4123482 | Z185: 92.36155121 | AA185: 92.38525647 | AB185: 92.38638529 | AC185: 92.37773099 | AD185: 92.38312425 | AE185: 92.38241351 | AF185: 92.38108958 | AG185: 92.38220911 | AH185: 92.38190407 | AI185: 92.38173425 | AJ185: 92.38194915 | AK185: 92.38186249 | AL185: 92.38184863 | AM185: 92.38188676 | AN185: 92.38186596 | AO185: 92.38186711 | AP185: 92.38187328 | AQ185: 92.38186878 | AR185: 92.38186972
A186: 1620000US2915562 | B186: Collins | C186: 78.5 | D186: 71 | E186: 58.3 | F186: 50 | G186: 60 | H186: 64.2 | I186: 73.9 | J186: 80.9 | K186: 84.2 | L186: 86.57718121 | M186: 82.55753915 | N186: 84.70296116 | O186: 86.84838316 | P186: 88.99380517 | Q186: 91.13922717 | R186: 93.28464918 | S186: 95.43007118 | T186: 97.57549319 | U186: 99.72091519 | V186: 100 | W186: 99.09880279 | X186: 99.60657266 | Y186: 99.56845848 | Z186: 99.42461131 | AA186: 99.53321415 | AB186: 99.50876132 | AC186: 99.48886226 | AD186: 99.51027924 | AE186: 99.50263427 | AF186: 99.50059193 | AG186: 99.50450181 | AH186: 99.50257601 | AI186: 99.50255658 | AJ186: 99.50321147 | AK186: 99.50278135 | AL186: 99.5028498 | AM186: 99.50294754 | AN186: 99.50285956 | AO186: 99.50288563 | AP186: 99.50289758 | AQ186: 99.50288093 | AR186: 99.50288805
A187: 1620000US2915670 | B187: Columbia | C187: 92.6 | D187: 92.8 | E187: 93.4 | F187: 93.1 | G187: 93.6 | H187: 93.8 | I187: 94.2 | J187: 95.2 | K187: 95.6 | L187: 95.79997375 | M187: 96.0399895 | N187: 96.40907898 | O187: 96.77816845 | P187: 97.14725793 | Q187: 97.51634741 | R187: 97.88543689 | S187: 98.25452636 | T187: 98.62361584 | U187: 98.99270532 | V187: 99.3617948 | W187: 98.99270532 | X187: 99.11573514 | Y187: 99.15674509 | Z187: 99.08839518 | AA187: 99.1202918 | AB187: 99.12181069 | AC187: 99.11016589 | AD187: 99.1174228 | AE187: 99.11646646 | AF187: 99.11468505 | AG187: 99.11619143 | AH187: 99.11578098 | AI187: 99.11555249 | AJ187: 99.11584163 | AK187: 99.11572503 | AL187: 99.11570639 | AM187: 99.11575769 | AN187: 99.1157297 | AO187: 99.11573126 | AP187: 99.11573955 | AQ187: 99.1157335 | AR187: 99.11573477
A188: 1620000US2915760 | B188: Commerce | C188: 59.6 | D188: 51 | E188: 51.1 | F188: 58.3 | G188: 68.2 | H188: 60.9 | I188: 66.7 | J188: 62.3 | K188: 69.8 | L188: 75.47169811 | M188: 73.94867925 | N188: 76.05986278 | O188: 78.17104631 | P188: 80.28222985 | Q188: 82.39341338 | R188: 84.50459691 | S188: 86.61578045 | T188: 88.72696398 | U188: 90.83814751 | V188: 92.94933105 | W188: 90.83814751 | X188: 91.54187536 | Y188: 91.77645131 | Z188: 91.38549139 | AA188: 91.56793935 | AB188: 91.57662735 | AC188: 91.51001936 | AD188: 91.55152869 | AE188: 91.54605847 | AF188: 91.53586884 | AG188: 91.54448533 | AH188: 91.54213755 | AI188: 91.54083057 | AJ188: 91.54248448 | AK188: 91.54181753 | AL188: 91.54171086 | AM188: 91.54200429 | AN188: 91.54184423 | AO188: 91.54185313 | AP188: 91.54190055 | AQ188: 91.54186597 | AR188: 91.54187322
A189: 1620000US2915922 | B189: Conception Junction | C189: 80.6 | D189: 87 | E189: 88.8 | F189: 86.8 | G189: 86.8 | H189: 91.5 | I189: 89.2 | J189: 88.2 | K189: 87.3 | L189: 87.85714286 | M189: 89.94952381 | N189: 90.41203463 | O189: 90.87454545 | P189: 91.33705628 | Q189: 91.7995671 | R189: 92.26207792 | S189: 92.72458874 | T189: 93.18709957 | U189: 93.64961039 | V189: 94.11212121 | W189: 93.64961039 | X189: 93.80378066 | Y189: 93.85517076 | Z189: 93.7695206 | AA189: 93.80949067 | AB189: 93.81139401 | AC189: 93.79680176 | AD189: 93.80589548 | AE189: 93.80469709 | AF189: 93.80246478 | AG189: 93.80435245 | AH189: 93.8038381 | AI189: 93.80355178 | AJ189: 93.80391411 | AK189: 93.803768 | AL189: 93.80374463 | AM189: 93.80380891 | AN189: 93.80377384 | AO189: 93.80377579 | AP189: 93.80378618 | AQ189: 93.80377861 | AR189: 93.80378019
A190: 1620000US2916102 | B190: Concordia | C190: 85.6 | D190: 88.6 | E190: 86.4 | F190: 85 | G190: 87.6 | H190: 90.6 | I190: 89.3 | J190: 89.6 | K190: 91.9 | L190: 88.6774942 | M190: 91.08433101 | N190: 91.58552767 | O190: 92.08672432 | P190: 92.58792097 | Q190: 93.08911763 | R190: 93.59031428 | S190: 94.09151093 | T190: 94.59270759 | U190: 95.09390424 | V190: 95.59510089 | W190: 95.09390424 | X190: 95.26096979 | Y190: 95.31665831 | Z190: 95.22384411 | AA190: 95.2671574 | AB190: 95.26921994 | AC190: 95.25340715 | AD190: 95.2632615 | AE190: 95.26196286 | AF190: 95.25954384 | AG190: 95.2615894 | AH190: 95.26103203 | AI190: 95.26072176 | AJ190: 95.2611144 | AK190: 95.26095606 | AL190: 95.26093074 | AM190: 95.2610004 | AN190: 95.2609624 | AO190: 95.26096451 | AP190: 95.26097577 | AQ190: 95.26096756 | AR190: 95.26096928
A191: 1620000US2916115 | B191: Coney Island | C191: 83 | D191: 84.2 | E191: 84.5 | F191: 88.7 | G191: 84.1 | H191: 92.5 | I191: 94.3 | J191: 77.1 | K191: 73.3 | L191: 77.77777778 | M191: 79.44444444 | N191: 78.62565657 | O191: 77.80686869 | P191: 76.98808081 | Q191: 76.16929293 | R191: 75.35050505 | S191: 74.53171717 | T191: 73.71292929 | U191: 72.89414141 | V191: 72.07535354 | W191: 72.89414141 | X191: 72.62121212 | Y191: 72.53023569 | Z191: 72.68186308 | AA191: 72.61110363 | AB191: 72.60773413 | AC191: 72.63356695 | AD191: 72.61746824 | AE191: 72.61958977 | AF191: 72.62354165 | AG191: 72.62019989 | AH191: 72.62111044 | AI191: 72.62161732 | AJ191: 72.62097588 | AK191: 72.62123455 | AL191: 72.62127592 | AM191: 72.62116212 | AN191: 72.62122419 | AO191: 72.62122074 | AP191: 72.62120235 | AQ191: 72.62121576 | AR191: 72.62121295
A192: 1620000US2916192 | B192: Conway | C192: 69.2 | D192: 71 | E192: 67.3 | F192: 68.5 | G192: 72.4 | H192: 69.2 | I192: 71.1 | J192: 74.5 | K192: 81.6 | L192: 83.7398374 | M192: 81.04260163 | N192: 82.53144124 | O192: 84.02028086 | P192: 85.50912047 | Q192: 86.99796009 | R192: 88.4867997 | S192: 89.97563932 | T192: 91.46447894 | U192: 92.95331855 | V192: 94.44215817 | W192: 92.95331855 | X192: 93.44959842 | Y192: 93.61502505 | Z192: 93.33931401 | AA192: 93.46797916 | AB192: 93.47410607 | AC192: 93.42713308 | AD192: 93.4564061 | AE192: 93.45254842 | AF192: 93.44536253 | AG192: 93.45143902 | AH192: 93.44978332 | AI192: 93.44886162 | AJ192: 93.45002799 | AK192: 93.44955765 | AL192: 93.44948242 | AM192: 93.44968935 | AN192: 93.44957647 | AO192: 93.44958275 | AP192: 93.44961619 | AQ192: 93.4495918 | AR192: 93.44959691
A193: 1620000US2916228 | B193: Cool Valley | C193: 79.5 | D193: 81.3 | E193: 80.6 | F193: 78 | G193: 80.7 | H193: 83.4 | I193: 83.2 | J193: 82.7 | K193: 83.1 | L193: 85.20130577 | M193: 84.86052231 | N193: 85.42241171 | O193: 85.98430112 | P193: 86.54619052 | Q193: 87.10807993 | R193: 87.66996933 | S193: 88.23185874 | T193: 88.79374815 | U193: 89.35563755 | V193: 89.91752696 | W193: 89.35563755 | X193: 89.54293402 | Y193: 89.60536618 | Z193: 89.50131258 | AA193: 89.54987093 | AB193: 89.55218323 | AC193: 89.53445558 | AD193: 89.54550324 | AE193: 89.54404735 | AF193: 89.54133539 | AG193: 89.54362866 | AH193: 89.5430038 | AI193: 89.54265595 | AJ193: 89.54309614 | AK193: 89.54291863 | AL193: 89.54289024 | AM193: 89.54296834 | AN193: 89.54292573 | AO193: 89.5429281 | AP193: 89.54294072 | AQ193: 89.54293152 | AR193: 89.54293345
A194: 1620000US2916336 | B194: Cooter | C194: 68.3 | D194: 71.9 | E194: 68.4 | F194: 63.4 | G194: 65.7 | H194: 71.2 | I194: 71.6 | J194: 75 | K194: 75 | L194: 71.92307692 | M194: 74.15589744 | N194: 74.86745921 | O194: 75.57902098 | P194: 76.29058275 | Q194: 77.00214452 | R194: 77.71370629 | S194: 78.42526807 | T194: 79.13682984 | U194: 79.84839161 | V194: 80.55995338 | W194: 79.84839161 | X194: 80.08557887 | Y194: 80.16464128 | Z194: 80.03287059 | AA194: 80.09436358 | AB194: 80.09729182 | AC194: 80.07484199 | AD194: 80.08883246 | AE194: 80.08698876 | AF194: 80.0835544 | AG194: 80.08645854 | AH194: 80.08566723 | AI194: 80.08522673 | AJ194: 80.08578417 | AK194: 80.08555938 | AL194: 80.08552342 | AM194: 80.08562232 | AN194: 80.08556837 | AO194: 80.08557137 | AP194: 80.08558736 | AQ194: 80.0855757 | AR194: 80.08557814
A195: 1620000US2916408 | B195: Corder | C195: 88.8 | D195: 83.5 | E195: 87.6 | F195: 85.8 | G195: 86.6 | H195: 85.8 | I195: 91 | J195: 90.1 | K195: 90.3 | L195: 90.11627907 | M195: 90.85317829 | N195: 91.37891473 | O195: 91.90465116 | P195: 92.4303876 | Q195: 92.95612403 | R195: 93.48186047 | S195: 94.0075969 | T195: 94.53333333 | U195: 95.05906977 | V195: 95.5848062 | W195: 95.05906977 | X195: 95.23431525 | Y195: 95.2927304 | Z195: 95.19537181 | AA195: 95.24080582 | AB195: 95.24296934 | AC195: 95.22638232 | AD195: 95.23671916 | AE195: 95.23535694 | AF195: 95.23281948 | AG195: 95.23496519 | AH195: 95.23438054 | AI195: 95.23405507 | AJ195: 95.23446693 | AK195: 95.23430085 | AL195: 95.23427428 | AM195: 95.23434735 | AN195: 95.23430749 | AO195: 95.23430971 | AP195: 95.23432152 | AQ195: 95.23431291 | AR195: 95.23431471
A196: 1620000US2916588 | B196: Cosby | C196: 80.3 | D196: 74.2 | E196: 77.5 | F196: 83.3 | G196: 80.2 | H196: 76.8 | I196: 80.2 | J196: 85.7 | K196: 84.7 | L196: 89.47368421 | M196: 87.38280702 | N196: 88.50015949 | O196: 89.61751196 | P196: 90.73486443 | Q196: 91.85221691 | R196: 92.96956938 | S196: 94.08692185 | T196: 95.20427432 | U196: 96.32162679 | V196: 97.43897927 | W196: 96.32162679 | X196: 96.69407762 | Y196: 96.81822789 | Z196: 96.61131077 | AA196: 96.70787209 | AB196: 96.71247025 | AC196: 96.6772177 | AD196: 96.69918668 | AE196: 96.69629155 | AF196: 96.69089864 | AG196: 96.69545896 | AH196: 96.69421638 | AI196: 96.69352466 | AJ196: 96.6944 | AK196: 96.69404702 | AL196: 96.69399056 | AM196: 96.69414586 | AN196: 96.69406114 | AO196: 96.69406585 | AP196: 96.69409095 | AQ196: 96.69407265 | AR196: 96.69407649
A197: 1620000US2916678 | B197: Cottleville | C197: 94.6 | D197: 95.8 | E197: 96.5 | F197: 95.7 | G197: 97.3 | H197: 97.8 | I197: 97.9 | J197: 97.2 | K197: 97.8 | L197: 97.67088608 | M197: 98.56835443 | N197: 98.88494822 | O197: 99.201542 | P197: 99.51813579 | Q197: 99.83472957 | R197: 100 | S197: 100 | T197: 100 | U197: 100 | V197: 100 | W197: 100 | X197: 100 | Y197: 100 | Z197: 100 | AA197: 100 | AB197: 100 | AC197: 100 | AD197: 100 | AE197: 100 | AF197: 100 | AG197: 100 | AH197: 100 | AI197: 100 | AJ197: 100 | AK197: 100 | AL197: 100 | AM197: 100 | AN197: 100 | AO197: 100 | AP197: 100 | AQ197: 100 | AR197: 100
A198: 1620000US2916802 | B198: Country Club | C198: 80.8 | D198: 78.6 | E198: 77.7 | F198: 74.7 | G198: 70.6 | H198: 72.8 | I198: 84.7 | J198: 86.3 | K198: 84.8 | L198: 84.48979592 | M198: 84.6092517 | N198: 85.52930118 | O198: 86.44935065 | P198: 87.36940012 | Q198: 88.2894496 | R198: 89.20949907 | S198: 90.12954855 | T198: 91.04959802 | U198: 91.9696475 | V198: 92.88969697 | W198: 91.9696475 | X198: 92.27633065 | Y198: 92.37855837 | Z198: 92.20817884 | AA198: 92.28768929 | AB198: 92.2914755 | AC198: 92.26244788 | AD198: 92.28053756 | AE198: 92.27815364 | AF198: 92.27371303 | AG198: 92.27746808 | AH198: 92.27644492 | AI198: 92.27587534 | AJ198: 92.27659611 | AK198: 92.27630545 | AL198: 92.27625897 | AM198: 92.27638684 | AN198: 92.27631709 | AO198: 92.27632097 | AP198: 92.27634163 | AQ198: 92.27632656 | AR198: 92.27632972
A199: 1620000US2916822 | B199: Country Club Hills | C199: 91.6 | D199: 91.3 | E199: 93.2 | F199: 93.9 | G199: 94.3 | H199: 94.8 | I199: 95.8 | J199: 96.5 | K199: 96.9 | L199: 98.46458643 | M199: 98.7991679 | N199: 99.54875141 | O199: 100 | P199: 100 | Q199: 100 | R199: 100 | S199: 100 | T199: 100 | U199: 100 | V199: 100 | W199: 100 | X199: 100 | Y199: 100 | Z199: 100 | AA199: 100 | AB199: 100 | AC199: 100 | AD199: 100 | AE199: 100 | AF199: 100 | AG199: 100 | AH199: 100 | AI199: 100 | AJ199: 100 | AK199: 100 | AL199: 100 | AM199: 100 | AN199: 100 | AO199: 100 | AP199: 100 | AQ199: 100 | AR199: 100
A200: 1620000US2916876 | B200: Country Life Acres | C200: 96.4 | D200: 100 | E200: 100 | F200: 100 | G200: 100 | H200: 100 | I200: 100 | J200: 100 | K200: 100 | L200: 96.96969697 | M200: 99.50787879 | N200: 99.53895317 | O200: 99.57002755 | P200: 99.60110193 | Q200: 99.63217631 | R200: 99.66325069 | S200: 99.69432507 | T200: 99.72539945 | U200: 99.75647383 | V200: 99.78754821 | W200: 99.75647383 | X200: 99.76683196 | Y200: 99.77028466 | Z200: 99.76453015 | AA200: 99.76721559 | AB200: 99.76734347 | AC200: 99.76636307 | AD200: 99.76697404 | AE200: 99.76689353 | AF200: 99.76674355 | AG200: 99.76687037 | AH200: 99.76683582 | AI200: 99.76681658 | AJ200: 99.76684092 | AK200: 99.7668311 | AL200: 99.76682953 | AM200: 99.76683385 | AN200: 99.7668315 | AO200: 99.76683163 | AP200: 99.76683233 | AQ200: 99.76683182 | AR200: 99.76683192
... 716 more rows

Sheet Manufacturing (hidden)
A1: GEO.id | B1: Geography | C1: 2010 | D1: 2011 | E1: 2012 | F1: 2013 | G1: 2014 | H1: 2015 | I1: 2016 | J1: 2017 | K1: 2018 | L1: 2019 | M1: 2020 | N1: 2021 | O1: 2022 | P1: 2023 | Q1: 2024 | R1: 2025 | S1: 2026 | T1: 2027 | U1: 2028 | V1: 2029 | W1: 2030 | X1: 2031 | Y1: 2032 | Z1: 2033 | AA1: 2034 | AB1: 2035 | AC1: 2036 | AD1: 2037 | AE1: 2038 | AF1: 2039 | AG1: 2040 | AH1: 2041 | AI1: 2042 | AJ1: 2043 | AK1: 2044 | AL1: 2045 | AM1: 2046 | AN1: 2047 | AO1: 2048 | AP1: 2049 | AQ1: 2050 | AR1: 2051
A2: 1620000US2900244 | B2: Adrian | C2: 17.7 | D2: 19.1 | E2: 14.7 | F2: 12.1 | G2: 6.9 | H2: 6.8 | I2: 6.8 | J2: 10.6 | K2: 8.827238335 | L2: 6.659505908 | M2: 4.092881808 | N2: 2.833646787 | O2: 1.574411766 | P2: 0.3151767449 | Q2: 0 | R2: 0 | S2: 0 | T2: 0 | U2: 0 | V2: 0 | W2: 0 | X2: 0 | Y2: 0 | Z2: 0 | AA2: 0 | AB2: 0 | AC2: 0 | AD2: 0 | AE2: 0 | AF2: 0 | AG2: 0 | AH2: 0 | AI2: 0 | AJ2: 0 | AK2: 0 | AL2: 0 | AM2: 0 | AN2: 0 | AO2: 0 | AP2: 0 | AQ2: 0 | AR2: 0
A3: 1620000US2900262 | B3: Advance | C3: 8.7 | D3: 11.3 | E3: 10.9 | F3: 12.5 | G3: 14.1 | H3: 14 | I3: 12.3 | J3: 15 | K3: 15.02057613 | L3: 11.62790698 | M3: 14.95135483 | N3: 15.38890148 | O3: 15.82644812 | P3: 16.26399476 | Q3: 16.7015414 | R3: 17.13908804 | S3: 17.57663468 | T3: 18.01418132 | U3: 18.45172796 | V3: 18.8892746 | W3: 18.45172796 | X3: 18.59757684 | Y3: 18.64619313 | Z3: 18.56516598 | AA3: 18.60297865 | AB3: 18.60477925 | AC3: 18.59097463 | AD3: 18.59957751 | AE3: 18.5984438 | AF3: 18.59633198 | AG3: 18.59811776 | AH3: 18.59763118 | AI3: 18.59736031 | AJ3: 18.59770308 | AK3: 18.59756486 | AL3: 18.59754275 | AM3: 18.59760356 | AN3: 18.59757039 | AO3: 18.59757223 | AP3: 18.59758206 | AQ3: 18.59757489 | AR3: 18.5975764
A4: 1620000US2900298 | B4: Agency | C4: 21.4 | D4: 20.9 | E4: 23.2 | F4: 19.9 | G4: 25.1 | H4: 22.8 | I4: 23 | J4: 17.4 | K4: 15.01210654 | L4: 15.25 | M4: 16.44403551 | N4: 15.72545821 | O4: 15.00688092 | P4: 14.28830362 | Q4: 13.56972632 | R4: 12.85114902 | S4: 12.13257172 | T4: 11.41399442 | U4: 10.69541713 | V4: 9.976839827 | W4: 10.69541713 | X4: 10.45589136 | Y4: 10.37604944 | Z4: 10.50911931 | AA4: 10.44702003 | AB4: 10.44406293 | AC4: 10.46673409 | AD4: 10.45260568 | AE4: 10.45446757 | AF4: 10.45793578 | AG4: 10.45500301 | AH4: 10.45580212 | AI4: 10.45624697 | AJ4: 10.45568403 | AK4: 10.45591104 | AL4: 10.45594735 | AM4: 10.45584747 | AN4: 10.45590195 | AO4: 10.45589892 | AP4: 10.45588278 | AQ4: 10.45589455 | AR4: 10.45589209
A5: 1620000US2900424 | B5: Airport Drive | C5: 19 | D5: 16.1 | E5: 16.5 | F5: 12.8 | G5: 14.5 | H5: 13.8 | I5: 13.3 | J5: 13.1 | K5: 10.68139963 | L5: 11.1827957 | M5: 9.946918157 | N5: 9.192463361 | O5: 8.438008565 | P5: 7.68355377 | Q5: 6.929098974 | R5: 6.174644178 | S5: 5.420189383 | T5: 4.665734587 | U5: 3.911279791 | V5: 3.156824996 | W5: 3.911279791 | X5: 3.659794859 | Y5: 3.575966549 | Z5: 3.7156804 | AA5: 3.650480603 | AB5: 3.64737585 | AC5: 3.671178951 | AD5: 3.656345135 | AE5: 3.658299979 | AF5: 3.661941355 | AG5: 3.658862156 | AH5: 3.659701163 | AI5: 3.660168225 | AJ5: 3.659577181 | AK5: 3.659815523 | AL5: 3.659853643 | AM5: 3.659748782 | AN5: 3.659805983 | AO5: 3.659802803 | AP5: 3.659785856 | AQ5: 3.659798214 | AR5: 3.659795624
A6: 1620000US2900496 | B6: Alba | C6: 26.9 | D6: 19.6 | E6: 24 | F6: 22.1 | G6: 23.4 | H6: 28.3 | I6: 24.1 | J6: 28.7 | K6: 27.12765957 | L6: 32.64094955 | M6: 30.31226635 | N6: 31.15324915 | O6: 31.99423196 | P6: 32.83521477 | Q6: 33.67619757 | R6: 34.51718038 | S6: 35.35816318 | T6: 36.19914599 | U6: 37.0401288 | V6: 37.8811116 | W6: 37.0401288 | X6: 37.3204564 | Y6: 37.41389893 | Z6: 37.25816138 | AA6: 37.3308389 | AB6: 37.33429974 | AC6: 37.30776667 | AD6: 37.32430177 | AE6: 37.32212273 | AF6: 37.31806372 | AG6: 37.32149607 | AH6: 37.32056084 | AI6: 37.32004021 | AJ6: 37.32069904 | AK6: 37.32043336 | AL6: 37.32039087 | AM6: 37.32050776 | AN6: 37.320444 | AO6: 37.32044754 | AP6: 37.32046643 | AQ6: 37.32045266 | AR6: 37.32045555
A7: 1620000US2900514 | B7: Albany | C7: 9.8 | D7: 11.7 | E7: 10.2 | F7: 8.5 | G7: 7 | H7: 9.8 | I7: 9.7 | J7: 11.9 | K7: 13.91650099 | L7: 15.29284165 | M7: 13.44263699 | N7: 13.92658294 | O7: 14.41052889 | P7: 14.89447484 | Q7: 15.37842079 | R7: 15.86236674 | S7: 16.34631269 | T7: 16.83025864 | U7: 17.31420459 | V7: 17.79815054 | W7: 17.31420459 | X7: 17.47551991 | Y7: 17.52929168 | Z7: 17.43967206 | AA7: 17.48149455 | AB7: 17.4834861 | AC7: 17.46821757 | AD7: 17.47773274 | AE7: 17.4764788 | AF7: 17.47414304 | AG7: 17.47611819 | AH7: 17.47558001 | AI7: 17.47528041 | AJ7: 17.47565954 | AK7: 17.47550666 | AL7: 17.4754822 | AM7: 17.47554947 | AN7: 17.47551277 | AO7: 17.47551481 | AP7: 17.47552568 | AQ7: 17.47551776 | AR7: 17.47551942
A8: 1620000US2900568 | B8: Aldrich | C8: 40.5 | D8: 44.7 | E8: 26.8 | F8: 9.5 | G8: 2.9 | H8: 2.7 | I8: 6.5 | J8: 9.1 | K8: 10.52631579 | L8: 17.64705882 | M8: 0 | N8: 0 | O8: 0 | P8: 0 | Q8: 0 | R8: 0 | S8: 0 | T8: 0 | U8: 0 | V8: 0 | W8: 0 | X8: 0 | Y8: 0 | Z8: 0 | AA8: 0 | AB8: 0 | AC8: 0 | AD8: 0 | AE8: 0 | AF8: 0 | AG8: 0 | AH8: 0 | AI8: 0 | AJ8: 0 | AK8: 0 | AL8: 0 | AM8: 0 | AN8: 0 | AO8: 0 | AP8: 0 | AQ8: 0 | AR8: 0
A9: 1620000US2900604 | B9: Alexandria | C9: 38.1 | D9: 35.1 | E9: 33.3 | F9: 23.6 | G9: 18 | H9: 13.7 | I9: 17.8 | J9: 9.5 | K9: 18.75 | L9: 11.76470588 | M9: 5.555882353 | N9: 2.573048128 | O9: 0 | P9: 0 | Q9: 0 | R9: 0 | S9: 0 | T9: 0 | U9: 0 | V9: 0 | W9: 0 | X9: 0 | Y9: 0 | Z9: 0 | AA9: 0 | AB9: 0 | AC9: 0 | AD9: 0 | AE9: 0 | AF9: 0 | AG9: 0 | AH9: 0 | AI9: 0 | AJ9: 0 | AK9: 0 | AL9: 0 | AM9: 0 | AN9: 0 | AO9: 0 | AP9: 0 | AQ9: 0 | AR9: 0
A10: 1620000US2900712 | B10: Allendale | C10: 8.3 | D10: 17.9 | E10: 17.3 | F10: 18.5 | G10: 21.7 | H10: 0 | I10: 0 | J10: 0 | K10: 0 | L10: 0 | M10: 0 | N10: 0 | O10: 0 | P10: 0 | Q10: 0 | R10: 0 | S10: 0 | T10: 0 | U10: 0 | V10: 0 | W10: 0 | X10: 0 | Y10: 0 | Z10: 0 | AA10: 0 | AB10: 0 | AC10: 0 | AD10: 0 | AE10: 0 | AF10: 0 | AG10: 0 | AH10: 0 | AI10: 0 | AJ10: 0 | AK10: 0 | AL10: 0 | AM10: 0 | AN10: 0 | AO10: 0 | AP10: 0 | AQ10: 0 | AR10: 0
A11: 1620000US2900748 | B11: Allenville | C11: 12.5 | D11: 14.7 | E11: 21.7 | F11: 8.3 | G11: 5.9 | H11: 12.5 | I11: 6.8 | J11: 5.6 | K11: 7.8125 | L11: 9.523809524 | M11: 5.420357143 | N11: 4.490670996 | O11: 3.560984848 | P11: 2.631298701 | Q11: 1.701612554 | R11: 0.7719264069 | S11: 0 | T11: 0 | U11: 0 | V11: 0 | W11: 0 | X11: 0 | Y11: 0 | Z11: 0 | AA11: 0 | AB11: 0 | AC11: 0 | AD11: 0 | AE11: 0 | AF11: 0 | AG11: 0 | AH11: 0 | AI11: 0 | AJ11: 0 | AK11: 0 | AL11: 0 | AM11: 0 | AN11: 0 | AO11: 0 | AP11: 0 | AQ11: 0 | AR11: 0
A12: 1620000US2900802 | B12: Alma | C12: 11.5 | D12: 9.3 | E12: 7.3 | F12: 10.4 | G12: 9.7 | H12: 11.6 | I12: 16.6 | J12: 16.4 | K12: 9.644670051 | L12: 9.956709957 | M12: 13.057574 | N12: 13.38801691 | O12: 13.71845982 | P12: 14.04890273 | Q12: 14.37934564 | R12: 14.70978854 | S12: 15.04023145 | T12: 15.37067436 | U12: 15.70111727 | V12: 16.03156018 | W12: 15.70111727 | X12: 15.81126491 | Y12: 15.84798079 | Z12: 15.78678765 | AA12: 15.81534445 | AB12: 15.8167043 | AC12: 15.8062788 | AD12: 15.81277585 | AE12: 15.81191965 | AF12: 15.81032477 | AG12: 15.81167342 | AH12: 15.81130594 | AI12: 15.81110138 | AJ12: 15.81136025 | AK12: 15.81125586 | AL12: 15.81123916 | AM12: 15.81128509 | AN12: 15.81126004 | AO12: 15.81126143 | AP12: 15.81126885 | AQ12: 15.81126344 | AR12: 15.81126457
A13: 1620000US2900910 | B13: Altamont | C13: 5.1 | D13: 5.6 | E13: 6.1 | F13: 8 | G13: 24.5 | H13: 27.9 | I13: 26 | J13: 19.7 | K13: 16.43835616 | L13: 5.194805195 | M13: 21.19070747 | N13: 22.41568771 | O13: 23.64066795 | P13: 24.86564819 | Q13: 26.09062843 | R13: 27.31560868 | S13: 28.54058892 | T13: 29.76556916 | U13: 30.9905494 | V13: 32.21552964 | W13: 30.9905494 | X13: 31.39887615 | Y13: 31.53498506 | Z13: 31.30813687 | AA13: 31.41399936 | AB13: 31.41904043 | AC13: 31.38039222 | AD13: 31.40447734 | AE13: 31.40130333 | AF13: 31.39539096 | AG13: 31.40039054 | AH13: 31.39902828 | AI13: 31.39826993 | AJ13: 31.39922958 | AK13: 31.3988426 | AL13: 31.3987807 | AM13: 31.39895096 | AN13: 31.39885809 | AO13: 31.39886325 | AP13: 31.39889077 | AQ13: 31.3988707 | AR13: 31.39887491
A14: 1620000US2900928 | B14: Altenburg | C14: 28.6 | D14: 28.5 | E14: 28 | F14: 37.8 | G14: 30.4 | H14: 27.9 | I14: 25 | J14: 22.3 | K14: 14.34599156 | L14: 15.81027668 | M14: 16.41277453 | N14: 14.69407411 | O14: 12.97537369 | P14: 11.25667327 | Q14: 9.537972854 | R14: 7.819272436 | S14: 6.100572018 | T14: 4.3818716 | U14: 2.663171182 | V14: 0.9444707646 | W14: 2.663171182 | X14: 2.090271043 | Y14: 1.89930433 | Z14: 2.217582185 | AA14: 2.06905252 | AB14: 2.061979678 | AC14: 2.116204794 | AD14: 2.082412331 | AE14: 2.086865601 | AF14: 2.095160909 | AG14: 2.08814628 | AH14: 2.090057597 | AI14: 2.091121595 | AJ14: 2.089775157 | AK14: 2.090318116 | AL14: 2.090404956 | AM14: 2.090166077 | AN14: 2.090296383 | AO14: 2.090289139 | AP14: 2.090250533 | AQ14: 2.090278685 | AR14: 2.090272785
A15: 1620000US2900964 | B15: Alton | C15: 9.3 | D15: 7.8 | E15: 9.4 | F15: 10.8 | G15: 9.2 | H15: 10.2 | I15: 11.2 | J15: 10.6 | K15: 13.73626374 | L15: 15.34883721 | M15: 14.2316228 | N15: 14.86309783 | O15: 15.49457287 | P15: 16.12604791 | Q15: 16.75752294 | R15: 17.38899798 | S15: 18.02047302 | T15: 18.65194805 | U15: 19.28342309 | V15: 19.91489813 | W15: 19.28342309 | X15: 19.49391477 | Y15: 19.56407866 | Z15: 19.44713884 | AA15: 19.50171076 | AB15: 19.50430942 | AC15: 19.48438634 | AD15: 19.49680217 | AE15: 19.49516598 | AF15: 19.49211816 | AG15: 19.49469544 | AH15: 19.49399319 | AI15: 19.49360226 | AJ15: 19.49409696 | AK15: 19.49389747 | AL15: 19.49386557 | AM15: 19.49395333 | AN15: 19.49390546 | AO15: 19.49390812 | AP15: 19.4939223 | AQ15: 19.49391196 | AR15: 19.49391413
A16: 1620000US2901018 | B16: Amazonia | C16: 22.5 | D16: 17.1 | E16: 19.8 | F16: 13.2 | G16: 15.2 | H16: 17.2 | I16: 18.4 | J16: 10.8 | K16: 28.46153846 | L16: 28.42105263 | M16: 22.62226721 | N16: 23.26117777 | O16: 23.90008833 | P16: 24.5389989 | Q16: 25.17790946 | R16: 25.81682002 | S16: 26.45573059 | T16: 27.09464115 | U16: 27.73355171 | V16: 28.37246227 | W16: 27.73355171 | X16: 27.9465219 | Y16: 28.01751196 | Z16: 27.89919519 | AA16: 27.95440968 | AB16: 27.95703895 | AC16: 27.93688127 | AD16: 27.9494433 | AE16: 27.94778784 | AF16: 27.94470414 | AG16: 27.94731176 | AH16: 27.94660125 | AI16: 27.94620571 | AJ16: 27.94670624 | AK16: 27.9465044 | AL16: 27.94647212 | AM16: 27.94656092 | AN16: 27.94651248 | AO16: 27.94651517 | AP16: 27.94652952 | AQ16: 27.94651906 | AR16: 27.94652125
A17: 1620000US2901054 | B17: Amity | C17: 5.1 | D17: 5.6 | E17: 6.5 | F17: 6.3 | G17: 25 | H17: 0 | I17: 0 | J17: 0 | K17: 0 | L17: 14.28571429 | M17: 5.180952381 | N17: 4.981385281 | O17: 4.781818182 | P17: 4.582251082 | Q17: 4.382683983 | R17: 4.183116883 | S17: 3.983549784 | T17: 3.783982684 | U17: 3.584415584 | V17: 3.384848485 | W17: 3.584415584 | X17: 3.517893218 | Y17: 3.495719096 | Z17: 3.532675966 | AA17: 3.515429427 | AB17: 3.514608163 | AC17: 3.520904518 | AD17: 3.516980703 | AE17: 3.517497795 | AF17: 3.518461005 | AG17: 3.517646501 | AH17: 3.517868434 | AI17: 3.51799198 | AJ17: 3.517835638 | AK17: 3.517898684 | AL17: 3.517908767 | AM17: 3.51788103 | AN17: 3.51789616 | AO17: 3.517895319 | AP17: 3.517890836 | AQ17: 3.517894105 | AR17: 3.51789342
A18: 1620000US2901072 | B18: Amoret | C18: 9.7 | D18: 9.3 | E18: 3.2 | F18: 2.2 | G18: 4.2 | H18: 2.2 | I18: 1.7 | J18: 13.6 | K18: 22.61904762 | L18: 23.86363636 | M18: 18.23180375 | N18: 19.86335563 | O18: 21.49490752 | P18: 23.1264594 | Q18: 24.75801128 | R18: 26.38956316 | S18: 28.02111505 | T18: 29.65266693 | U18: 31.28421881 | V18: 32.91577069 | W18: 31.28421881 | X18: 31.82806944 | Y18: 32.00935298 | Z18: 31.70721374 | AA18: 31.84821205 | AB18: 31.85492626 | AC18: 31.80345069 | AD18: 31.83552967 | AE18: 31.8313022 | AF18: 31.82342752 | AG18: 31.83008646 | AH18: 31.82827206 | AI18: 31.82726202 | AJ18: 31.82854018 | AK18: 31.82802475 | AL18: 31.82794232 | AM18: 31.82816908 | AN18: 31.82804538 | AO18: 31.82805226 | AP18: 31.82808891 | AQ18: 31.82806218 | AR18: 31.82806779
A19: 1620000US2901090 | B19: Amsterdam | C19: 7 | D19: 8.8 | E19: 7.3 | F19: 18.9 | G19: 20.5 | H19: 14.3 | I19: 11.1 | J19: 13.8 | K19: 9.756097561 | L19: 6.493506494 | M19: 11.96276845 | N19: 11.993279 | O19: 12.02378956 | P19: 12.05430011 | Q19: 12.08481067 | R19: 12.11532122 | S19: 12.14583177 | T19: 12.17634233 | U19: 12.20685288 | V19: 12.23736343 | W19: 12.20685288 | X19: 12.21702307 | Y19: 12.22041313 | Z19: 12.21476302 | AA19: 12.21739974 | AB19: 12.2175253 | AC19: 12.21656269 | AD19: 12.21716257 | AE19: 12.21708352 | AF19: 12.21693626 | AG19: 12.21706078 | AH19: 12.21702685 | AI19: 12.21700797 | AJ19: 12.21703187 | AK19: 12.21702223 | AL19: 12.21702069 | AM19: 12.21702493 | AN19: 12.21702262 | AO19: 12.21702274 | AP19: 12.21702343 | AQ19: 12.21702293 | AR19: 12.21702303
A20: 1620000US2901198 | B20: Anderson | C20: 17.6 | D20: 22.9 | E20: 22.2 | F20: 24.6 | G20: 33 | H20: 31.3 | I20: 33.7 | J20: 32.1 | K20: 25.5033557 | L20: 28.45138055 | M20: 33.50167079 | N20: 34.65916118 | O20: 35.81665158 | P20: 36.97414197 | Q20: 38.13163236 | R20: 39.28912276 | S20: 40.44661315 | T20: 41.60410354 | U20: 42.76159394 | V20: 43.91908433 | W20: 42.76159394 | X20: 43.14742407 | Y20: 43.27603411 | Z20: 43.06168404 | AA20: 43.16171407 | AB20: 43.16647741 | AC20: 43.12995851 | AD20: 43.15271666 | AE20: 43.14971752 | AF20: 43.1441309 | AG20: 43.14885503 | AH20: 43.14756782 | AI20: 43.14685125 | AJ20: 43.14775803 | AK20: 43.14739236 | AL20: 43.14733388 | AM20: 43.14749476 | AN20: 43.147407 | AO20: 43.14741188 | AP20: 43.14743788 | AQ20: 43.14741892 | AR20: 43.14742289
A21: 1620000US2901252 | B21: Annada | C21: 0 | D21: 0 | E21: 33.3 | F21: 45 | G21: 37.5 | H21: 43.8 | I21: 56 | J21: 35.7 | K21: 20 | L21: 24.32432432 | M21: 43.2363964 | N21: 45.72257166 | O21: 48.20874693 | P21: 50.69492219 | Q21: 53.18109746 | R21: 55.66727273 | S21: 58.15344799 | T21: 60.63962326 | U21: 63.12579853 | V21: 65.61197379 | W21: 63.12579853 | X21: 63.95452361 | Y21: 64.23076531 | Z21: 63.77036248 | AA21: 63.98521714 | AB21: 63.99544831 | AC21: 63.91700931 | AD21: 63.96589159 | AE21: 63.95944974 | AF21: 63.94745021 | AG21: 63.95759718 | AH21: 63.95483237 | AI21: 63.95329325 | AJ21: 63.95524094 | AK21: 63.95445552 | AL21: 63.9543299 | AM21: 63.95467545 | AN21: 63.95448696 | AO21: 63.95449744 | AP21: 63.95455328 | AQ21: 63.95451256 | AR21: 63.95452109
A22: 1620000US2901270 | B22: Annapolis | C22: 5.3 | D22: 12.8 | E22: 13.4 | F22: 14.9 | G22: 17 | H22: 35.1 | I22: 23.6 | J22: 21.5 | K22: 16.58291457 | L22: 16.57458564 | M22: 24.76413911 | N22: 26.05293713 | O22: 27.34173514 | P22: 28.63053316 | Q22: 29.91933118 | R22: 31.20812919 | S22: 32.49692721 | T22: 33.78572523 | U22: 35.07452324 | V22: 36.36332126 | W22: 35.07452324 | X22: 35.50412258 | Y22: 35.64732236 | Z22: 35.40865606 | AA22: 35.52003367 | AB22: 35.52533737 | AC22: 35.4846757 | AD22: 35.51001558 | AE22: 35.50667621 | AF22: 35.50045583 | AG22: 35.50571587 | AH22: 35.50428264 | AI22: 35.50348478 | AJ22: 35.50449443 | AK22: 35.50408728 | AL22: 35.50402217 | AM22: 35.50420129 | AN22: 35.50410358 | AO22: 35.50410901 | AP22: 35.50413796 | AQ22: 35.50411685 | AR22: 35.50412128
A23: 1620000US2901288 | B23: Anniston | C23: 3.3 | D23: 9.4 | E23: 7.1 | F23: 5.4 | G23: 11.1 | H23: 9.9 | I23: 10.4 | J23: 6.1 | K23: 7.5 | L23: 2.272727273 | M23: 6.789090909 | N23: 6.705785124 | O23: 6.622479339 | P23: 6.539173554 | Q23: 6.455867769 | R23: 6.372561983 | S23: 6.289256198 | T23: 6.205950413 | U23: 6.122644628 | V23: 6.039338843 | W23: 6.122644628 | X23: 6.094876033 | Y23: 6.085619835 | Z23: 6.101046832 | AA23: 6.093847567 | AB23: 6.093504744 | AC23: 6.096133048 | AD23: 6.09449512 | AE23: 6.094710971 | AF23: 6.095113046 | AG23: 6.094773045 | AH23: 6.094865687 | AI23: 6.094917259 | AJ23: 6.094851997 | AK23: 6.094878315 | AL23: 6.094882524 | AM23: 6.094870945 | AN23: 6.094877261 | AO23: 6.09487691 | AP23: 6.094875039 | AQ23: 6.094876403 | AR23: 6.094876118
A24: 1620000US2901522 | B24: Appleton City | C24: 3.8 | D24: 4.2 | E24: 4.4 | F24: 3.9 | G24: 2.5 | H24: 2.4 | I24: 1.2 | J24: 3.1 | K24: 5.520169851 | L24: 8.128078818 | M24: 5.031288144 | N24: 5.234281467 | O24: 5.437274791 | P24: 5.640268114 | Q24: 5.843261437 | R24: 6.04625476 | S24: 6.249248083 | T24: 6.452241406 | U24: 6.655234729 | V24: 6.858228053 | W24: 6.655234729 | X24: 6.72289917 | Y24: 6.745453984 | Z24: 6.707862628 | AA24: 6.725405261 | AB24: 6.726240624 | AC24: 6.719836171 | AD24: 6.723827352 | AE24: 6.723301382 | AF24: 6.722321635 | AG24: 6.723150123 | AH24: 6.72292438 | AI24: 6.722798713 | AJ24: 6.722957739 | AK24: 6.722893611 | AL24: 6.722883354 | AM24: 6.722911568 | AN24: 6.722896178 | AO24: 6.722897033 | AP24: 6.722901593 | AQ24: 6.722898268 | AR24: 6.722898965
A25: 1620000US2901576 | B25: Arbela | C25: 0 | D25: 0 | E25: 0 | F25: 0 | G25: 0 | H25: 0 | I25: 0 | J25: 0 | K25: 0 | L25: 0 | M25: 0 | N25: 0 | O25: 0 | P25: 0 | Q25: 0 | R25: 0 | S25: 0 | T25: 0 | U25: 0 | V25: 0 | W25: 0 | X25: 0 | Y25: 0 | Z25: 0 | AA25: 0 | AB25: 0 | AC25: 0 | AD25: 0 | AE25: 0 | AF25: 0 | AG25: 0 | AH25: 0 | AI25: 0 | AJ25: 0 | AK25: 0 | AL25: 0 | AM25: 0 | AN25: 0 | AO25: 0 | AP25: 0 | AQ25: 0 | AR25: 0
A26: 1620000US2901630 | B26: Arbyrd | C26: 18.3 | D26: 15.2 | E26: 19.7 | F26: 13.5 | G26: 17.2 | H26: 22.1 | I26: 21.2 | J26: 22.7 | K26: 29.87012987 | L26: 25.16556291 | M26: 27.40960179 | N26: 28.66706225 | O26: 29.9245227 | P26: 31.18198316 | Q26: 32.43944361 | R26: 33.69690407 | S26: 34.95436453 | T26: 36.21182498 | U26: 37.46928544 | V26: 38.7267459 | W26: 37.46928544 | X26: 37.88843893 | Y26: 38.02815675 | Z26: 37.79529371 | AA26: 37.90396313 | AB26: 37.90913786 | AC26: 37.8694649 | AD26: 37.89418863 | AE26: 37.89093046 | AF26: 37.88486133 | AG26: 37.88999348 | AH26: 37.88859509 | AI26: 37.88781663 | AJ26: 37.88880173 | AK26: 37.88840449 | AL26: 37.88834095 | AM26: 37.88851572 | AN26: 37.88842039 | AO26: 37.88842569 | AP26: 37.88845393 | AQ26: 37.88843334 | AR26: 37.88843765
A27: 1620000US2901648 | B27: Arcadia | C27: 15.7 | D27: 13.2 | E27: 15.3 | F27: 16.5 | G27: 20.6 | H27: 23 | I27: 17.6 | J27: 6.4 | K27: 5.911330049 | L27: 12.93103448 | M27: 10.88952381 | N27: 10.19412151 | O27: 9.498719212 | P27: 8.803316913 | Q27: 8.107914614 | R27: 7.412512315 | S27: 6.717110016 | T27: 6.021707718 | U27: 5.326305419 | V27: 4.63090312 | W27: 5.326305419 | X27: 5.094504652 | Y27: 5.01723773 | Z27: 5.146015934 | AA27: 5.085919439 | AB27: 5.083057701 | AC27: 5.104997691 | AD27: 5.091324944 | AE27: 5.093126779 | AF27: 5.096483138 | AG27: 5.093644953 | AH27: 5.09441829 | AI27: 5.094848794 | AJ27: 5.094304012 | AK27: 5.094523699 | AL27: 5.094558835 | AM27: 5.094462182 | AN27: 5.094514905 | AO27: 5.094511974 | AP27: 5.094496354 | AQ27: 5.094507744 | AR27: 5.094505357
A28: 1620000US2901702 | B28: Archie | C28: 11.3 | D28: 10 | E28: 8.8 | F28: 11.7 | G28: 16.1 | H28: 19 | I28: 20.7 | J28: 23.1 | K28: 18.38351823 | L28: 15.17706577 | M28: 21.92533238 | N28: 23.10701856 | O28: 24.28870474 | P28: 25.47039092 | Q28: 26.6520771 | R28: 27.83376328 | S28: 29.01544945 | T28: 30.19713563 | U28: 31.37882181 | V28: 32.56050799 | W28: 31.37882181 | X28: 31.7727172 | Y28: 31.90401567 | Z28: 31.68518489 | AA28: 31.78730592 | AB28: 31.79216883 | AC28: 31.75488655 | AD28: 31.77812043 | AE28: 31.7750586 | AF28: 31.7693552 | AG28: 31.77417808 | AH28: 31.77286396 | AI28: 31.77213241 | AJ28: 31.77305815 | AK28: 31.77268484 | AL28: 31.77262513 | AM28: 31.77278937 | AN28: 31.77269978 | AO28: 31.77270476 | AP28: 31.77273131 | AQ28: 31.77271195 | AR28: 31.77271601
A29: 1620000US2901720 | B29: Arcola | C29: 0 | D29: 0 | E29: 0 | F29: 0 | G29: 16.7 | H29: 8.7 | I29: 15.8 | J29: 11.4 | K29: 12.82051282 | L29: 21.05263158 | M29: 21.16789024 | N29: 23.44435857 | O29: 25.72082689 | P29: 27.99729522 | Q29: 30.27376355 | R29: 32.55023187 | S29: 34.8267002 | T29: 37.10316853 | U29: 39.37963685 | V29: 41.65610518 | W29: 39.37963685 | X29: 40.13845963 | Y29: 40.39140056 | Z29: 39.96983235 | AA29: 40.16656418 | AB29: 40.17593236 | AC29: 40.10410963 | AD29: 40.14886872 | AE29: 40.14297024 | AF29: 40.13198286 | AG29: 40.14127394 | AH29: 40.13874235 | AI29: 40.13733305 | AJ29: 40.13911645 | AK29: 40.13839728 | AL29: 40.13828226 | AM29: 40.13859866 | AN29: 40.13842607 | AO29: 40.13843566 | AP29: 40.1384868 | AQ29: 40.13844951 | AR29: 40.13845732
A30: 1620000US2901828 | B30: Argyle | C30: 13.8 | D30: 9.9 | E30: 14 | F30: 20.3 | G30: 19.7 | H30: 25 | I30: 19.1 | J30: 25.4 | K30: 28.03738318 | L30: 35.35353535 | M30: 33.7138752 | N30: 36.0147449 | O30: 38.3156146 | P30: 40.6164843 | Q30: 42.917354 | R30: 45.2182237 | S30: 47.5190934 | T30: 49.8199631 | U30: 52.1208328 | V30: 54.4217025 | W30: 52.1208328 | X30: 52.88778936 | Y30: 53.14344155 | Z30: 52.71735457 | AA30: 52.91619516 | AB30: 52.92566376 | AC30: 52.85307116 | AD30: 52.89831003 | AE30: 52.89234832 | AF30: 52.88124317 | AG30: 52.89063384 | AH30: 52.88807511 | AI30: 52.88665071 | AJ30: 52.88845322 | AK30: 52.88772635 | AL30: 52.88761009 | AM30: 52.88792988 | AN30: 52.88775544 | AO30: 52.88776514 | AP30: 52.88781682 | AQ30: 52.88777913 | AR30: 52.88778703
A31: 1620000US2901864 | B31: Arkoe | C31: 22.5 | D31: 31.4 | E31: 41.2 | F31: 47.2 | G31: 47.2 | H31: 45.5 | I31: 36.6 | J31: 44.4 | K31: 30 | L31: 29.16666667 | M31: 38.60666667 | N31: 38.80484848 | O31: 39.0030303 | P31: 39.20121212 | Q31: 39.39939394 | R31: 39.59757576 | S31: 39.79575758 | T31: 39.99393939 | U31: 40.19212121 | V31: 40.39030303 | W31: 40.19212121 | X31: 40.25818182 | Y31: 40.28020202 | Z31: 40.24350168 | AA31: 40.26062851 | AB31: 40.26144407 | AC31: 40.25519142 | AD31: 40.259088 | AE31: 40.2585745 | AF31: 40.25761797 | AG31: 40.25842682 | AH31: 40.25820643 | AI31: 40.25808374 | AJ31: 40.258239 | AK31: 40.25817639 | AL31: 40.25816638 | AM31: 40.25819392 | AN31: 40.2581789 | AO31: 40.25817973 | AP31: 40.25818418 | AQ31: 40.25818094 | AR31: 40.25818162
A32: 1620000US2901954 | B32: Armstrong | C32: 9.7 | D32: 13.4 | E32: 17.5 | F32: 16.7 | G32: 11.9 | H32: 11.3 | I32: 11.5 | J32: 9.6 | K32: 9.375 | L32: 11.9047619 | M32: 10.15357143 | N32: 9.765497835 | O32: 9.377424242 | P32: 8.989350649 | Q32: 8.601277056 | R32: 8.213203463 | S32: 7.82512987 | T32: 7.437056277 | U32: 7.048982684 | V32: 6.660909091 | W32: 7.048982684 | X32: 6.91962482 | Y32: 6.876505532 | Z32: 6.948371012 | AA32: 6.914833788 | AB32: 6.913236777 | AC32: 6.925480525 | AD32: 6.917850363 | AE32: 6.918855889 | AF32: 6.920728926 | AG32: 6.919145059 | AH32: 6.919576625 | AI32: 6.91981687 | AJ32: 6.919512851 | AK32: 6.919635449 | AL32: 6.919655057 | AM32: 6.919601119 | AN32: 6.919630541 | AO32: 6.919628906 | AP32: 6.919620188 | AQ32: 6.919626545 | AR32: 6.919625213
A33: 1620000US2901972 | B33: Arnold | C33: 11.7 | D33: 10.6 | E33: 11 | F33: 10.8 | G33: 9.8 | H33: 10.5 | I33: 10.8 | J33: 10.4 | K33: 9.290474324 | L33: 11.91015663 | M33: 10.36088743 | N33: 10.30285549 | O33: 10.24482355 | P33: 10.18679161 | Q33: 10.12875967 | R33: 10.07072773 | S33: 10.01269579 | T33: 9.954663852 | U33: 9.896631912 | V33: 9.838599973 | W33: 9.896631912 | X33: 9.877287933 | Y33: 9.870839939 | Z33: 9.881586595 | AA33: 9.876571489 | AB33: 9.876332674 | AC33: 9.878163586 | AD33: 9.877022583 | AE33: 9.877172948 | AF33: 9.877453039 | AG33: 9.87721619 | AH33: 9.877280726 | AI33: 9.877316651 | AJ33: 9.877271189 | AK33: 9.877289522 | AL33: 9.877292454 | AM33: 9.877284388 | AN33: 9.877288788 | AO33: 9.877288544 | AP33: 9.87728724 | AQ33: 9.877288191 | AR33: 9.877287991
A34: 1620000US2902034 | B34: Arrow Point | C34: 43.8 | D34: 52 | E34: 43.6 | F34: 20.3 | G34: 12.7 | H34: 10.2 | I34: 8.9 | J34: 2.2 | K34: 0 | L34: 12.5 | M34: 0 | N34: 0 | O34: 0 | P34: 0 | Q34: 0 | R34: 0 | S34: 0 | T34: 0 | U34: 0 | V34: 0 | W34: 0 | X34: 0 | Y34: 0 | Z34: 0 | AA34: 0 | AB34: 0 | AC34: 0 | AD34: 0 | AE34: 0 | AF34: 0 | AG34: 0 | AH34: 0 | AI34: 0 | AJ34: 0 | AK34: 0 | AL34: 0 | AM34: 0 | AN34: 0 | AO34: 0 | AP34: 0 | AQ34: 0 | AR34: 0
A35: 1620000US2902044 | B35: Arrow Rock | C35: 0 | D35: 7.1 | E35: 5.9 | F35: 5.6 | G35: 4.3 | H35: 4 | I35: 0 | J35: 0 | K35: 0 | L35: 0 | M35: 0 | N35: 0 | O35: 0 | P35: 0 | Q35: 0 | R35: 0 | S35: 0 | T35: 0 | U35: 0 | V35: 0 | W35: 0 | X35: 0 | Y35: 0 | Z35: 0 | AA35: 0 | AB35: 0 | AC35: 0 | AD35: 0 | AE35: 0 | AF35: 0 | AG35: 0 | AH35: 0 | AI35: 0 | AJ35: 0 | AK35: 0 | AL35: 0 | AM35: 0 | AN35: 0 | AO35: 0 | AP35: 0 | AQ35: 0 | AR35: 0
A36: 1620000US2902098 | B36: Asbury | C36: 34.3 | D36: 34.7 | E36: 28.6 | F36: 28 | G36: 31.2 | H36: 31.3 | I36: 27.3 | J36: 31.1 | K36: 19.65811966 | L36: 20.32520325 | M36: 21.29612119 | N36: 19.95935553 | O36: 18.62258988 | P36: 17.28582422 | Q36: 15.94905857 | R36: 14.61229291 | S36: 13.27552726 | T36: 11.9387616 | U36: 10.60199594 | V36: 9.265230289 | W36: 10.60199594 | X36: 10.15640739 | Y36: 10.00787788 | Z36: 10.25542707 | AA36: 10.13990411 | AB36: 10.13440302 | AC36: 10.17657807 | AD36: 10.15029507 | AE36: 10.15375872 | AF36: 10.16021062 | AG36: 10.1547548 | AH36: 10.15624138 | AI36: 10.15706893 | AJ36: 10.1560217 | AK36: 10.15644401 | AL36: 10.15651155 | AM36: 10.15632575 | AN36: 10.1564271 | AO36: 10.15642147 | AP36: 10.15639144 | AQ36: 10.15641334 | AR36: 10.15640875
A37: 1620000US2902188 | B37: Ash Grove | C37: 15.7 | D37: 12.3 | E37: 13 | F37: 14.7 | G37: 11.9 | H37: 13.1 | I37: 14.9 | J37: 15.1 | K37: 12.75964392 | L37: 16.12903226 | M37: 14.60482754 | N37: 14.7222748 | O37: 14.83972206 | P37: 14.95716932 | Q37: 15.07461658 | R37: 15.19206384 | S37: 15.3095111 | T37: 15.42695836 | U37: 15.54440561 | V37: 15.66185287 | W37: 15.54440561 | X37: 15.5835547 | Y37: 15.5966044 | Z37: 15.5748549 | AA37: 15.58500467 | AB37: 15.58548799 | AC37: 15.58178252 | AD37: 15.58409173 | AE37: 15.58378741 | AF37: 15.58322055 | AG37: 15.5836999 | AH37: 15.58356929 | AI37: 15.58349658 | AJ37: 15.58358859 | AK37: 15.58355148 | AL37: 15.58354555 | AM37: 15.58356187 | AN37: 15.58355297 | AO37: 15.58355346 | AP37: 15.5835561 | AQ37: 15.58355418 | AR37: 15.58355458
A38: 1620000US2902242 | B38: Ashland | C38: 1.8 | D38: 1.5 | E38: 0.5 | F38: 0.3 | G38: 0 | H38: 2.8 | I38: 4.3 | J38: 4.9 | K38: 4.026115343 | L38: 3.793626707 | M38: 4.806155797 | N38: 5.245097905 | O38: 5.684040012 | P38: 6.12298212 | Q38: 6.561924228 | R38: 7.000866335 | S38: 7.439808443 | T38: 7.878750551 | U38: 8.317692658 | V38: 8.756634766 | W38: 8.317692658 | X38: 8.464006694 | Y38: 8.51277804 | Z38: 8.431492464 | AA38: 8.469425733 | AB38: 8.471232079 | AC38: 8.457383425 | AD38: 8.466013746 | AE38: 8.464876416 | AF38: 8.462757862 | AG38: 8.464549341 | AH38: 8.464061207 | AI38: 8.46378947 | AJ38: 8.464133339 | AK38: 8.463994672 | AL38: 8.463972494 | AM38: 8.464033502 | AN38: 8.464000223 | AO38: 8.464002073 | AP38: 8.464011932 | AQ38: 8.464004743 | AR38: 8.464006249
A39: 1620000US2902422 | B39: Atlanta | C39: 14.6 | D39: 13.2 | E39: 13 | F39: 14.6 | G39: 16.1 | H39: 19.9 | I39: 21.8 | J39: 27.3 | K39: 25.87859425 | L39: 27.04918033 | M39: 29.26587021 | N39: 31.0700689 | O39: 32.87426758 | P39: 34.67846626 | Q39: 36.48266495 | R39: 38.28686363 | S39: 40.09106231 | T39: 41.895261 | U39: 43.69945968 | V39: 45.50365836 | W39: 43.69945968 | X39: 44.30085924 | Y39: 44.50132576 | Z39: 44.16721489 | AA39: 44.3231333 | AB39: 44.33055798 | AC39: 44.27363539 | AD39: 44.30910889 | AE39: 44.30443409 | AF39: 44.29572612 | AG39: 44.3030897 | AH39: 44.3010833 | AI39: 44.29996638 | AJ39: 44.30137979 | AK39: 44.30080982 | AL39: 44.30071866 | AM39: 44.30096943 | AN39: 44.30083264 | AO39: 44.30084024 | AP39: 44.30088077 | AQ39: 44.30085122 | AR39: 44.30085741
A40: 1620000US2902512 | B40: Augusta | C40: 17.4 | D40: 16.2 | E40: 12.1 | F40: 11 | G40: 13.2 | H40: 13.8 | I40: 14.1 | J40: 17.3 | K40: 17.0212766 | L40: 21.73913043 | M40: 18.07607771 | N40: 18.56517534 | O40: 19.05427298 | P40: 19.54337062 | Q40: 20.03246825 | R40: 20.52156589 | S40: 21.01066353 | T40: 21.49976116 | U40: 21.9888588 | V40: 22.47795644 | W40: 21.9888588 | X40: 22.15189135 | Y40: 22.20623553 | Z40: 22.11566189 | AA40: 22.15792959 | AB40: 22.15994234 | AC40: 22.14451127 | AD40: 22.15412773 | AE40: 22.15286045 | AF40: 22.15049982 | AG40: 22.152496 | AH40: 22.15195209 | AI40: 22.1516493 | AJ40: 22.15203246 | AK40: 22.15187795 | AL40: 22.15185324 | AM40: 22.15192122 | AN40: 22.15188414 | AO40: 22.1518862 | AP40: 22.15189718 | AQ40: 22.15188917 | AR40: 22.15189085
A41: 1620000US2902530 | B41: Aullville | C41: 39.4 | D41: 42.9 | E41: 47 | F41: 17.9 | G41: 23.3 | H41: 4 | I41: 21.4 | J41: 29.3 | K41: 28.88888889 | L41: 25 | M41: 17.0762963 | N41: 15.10673401 | O41: 13.13717172 | P41: 11.16760943 | Q41: 9.198047138 | R41: 7.228484848 | S41: 5.258922559 | T41: 3.289360269 | U41: 1.31979798 | V41: 0 | W41: 1.536386083 | X41: 0.9520613543 | Y41: 0.8294824791 | Z41: 1.105976639 | AA41: 0.9625068241 | AB41: 0.9659886473 | AC41: 1.011490703 | AD41: 0.9799953916 | AE41: 0.9858249141 | AF41: 0.992437003 | AG41: 0.9860857696 | AH41: 0.9881158956 | AI41: 0.9888795561 | AJ41: 0.9876937404 | AK41: 0.9882297307 | AL41: 0.9882676757 | AM41: 0.9880637156 | AN41: 0.9881870407 | AO41: 0.9881728107 | AP41: 0.988141189 | AQ41: 0.9881670134 | AR41: 0.9881603377
A42: 1620000US2902548 | B42: Aurora | C42: 19.9 | D42: 20.7 | E42: 21.7 | F42: 21.3 | G42: 22.2 | H42: 18.9 | I42: 16.8 | J42: 14.5 | K42: 20.93294461 | L42: 21.9266312 | M42: 18.78830068 | N42: 18.5887267 | O42: 18.38915272 | P42: 18.18957874 | Q42: 17.99000475 | R42: 17.79043077 | S42: 17.59085679 | T42: 17.39128281 | U42: 17.19170883 | V42: 16.99213484 | W42: 17.19170883 | X42: 17.12518417 | Y42: 17.10300928 | Z42: 17.13996742 | AA42: 17.12272029 | AB42: 17.121899 | AC42: 17.12819557 | AD42: 17.12427162 | AE42: 17.12478873 | AF42: 17.12575197 | AG42: 17.12493744 | AH42: 17.12515938 | AI42: 17.12528293 | AJ42: 17.12512658 | AK42: 17.12518963 | AL42: 17.12519972 | AM42: 17.12517198 | AN42: 17.12518711 | AO42: 17.12518627 | AP42: 17.12518178 | AQ42: 17.12518505 | AR42: 17.12518437
A43: 1620000US2902638 | B43: Auxvasse | C43: 7.2 | D43: 8 | E43: 4.7 | F43: 4.9 | G43: 6 | H43: 14.8 | I43: 20.1 | J43: 23.3 | K43: 23.79958246 | L43: 26.14678899 | M43: 28.17857642 | N43: 30.77565629 | O43: 33.37273615 | P43: 35.96981602 | Q43: 38.56689589 | R43: 41.16397576 | S43: 43.76105562 | T43: 46.35813549 | U43: 48.95521536 | V43: 51.55229523 | W43: 48.95521536 | X43: 49.82090865 | Y43: 50.10947308 | Z43: 49.62853236 | AA43: 49.85297136 | AB43: 49.86365893 | AC43: 49.78172089 | AD43: 49.83278373 | AE43: 49.82605452 | AF43: 49.81351971 | AG43: 49.82411932 | AH43: 49.82123118 | AI43: 49.8196234 | AJ43: 49.82165797 | AK43: 49.82083752 | AL43: 49.8207063 | AM43: 49.82106726 | AN43: 49.82087036 | AO43: 49.8208813 | AP43: 49.82093964 | AQ43: 49.8208971 | AR43: 49.82090602
A44: 1620000US2902674 | B44: Ava | C44: 11.4 | D44: 10.2 | E44: 11.3 | F44: 12.2 | G44: 12 | H44: 11.6 | I44: 7 | J44: 13.6 | K44: 19.51219512 | L44: 19.72860125 | M44: 17.37550554 | N44: 18.19758298 | O44: 19.01966042 | P44: 19.84173785 | Q44: 20.66381529 | R44: 21.48589273 | S44: 22.30797016 | T44: 23.1300476 | U44: 23.95212504 | V44: 24.77420248 | W44: 23.95212504 | X44: 24.22615085 | Y44: 24.31749279 | Z44: 24.16525623 | AA44: 24.23629996 | AB44: 24.23968299 | AC44: 24.21374639 | AD44: 24.22990978 | AE44: 24.22777972 | AF44: 24.22381196 | AG44: 24.22716715 | AH44: 24.22625295 | AI44: 24.22574402 | AJ44: 24.22638804 | AK44: 24.22612834 | AL44: 24.2260868 | AM44: 24.22620106 | AN44: 24.22613873 | AO44: 24.2261422 | AP44: 24.22616066 | AQ44: 24.2261472 | AR44: 24.22615002
A45: 1620000US2902746 | B45: Avilla | C45: 37.1 | D45: 38.9 | E45: 45.2 | F45: 50 | G45: 50 | H45: 40.5 | I45: 41.9 | J45: 29 | K45: 27.27272727 | L45: 42.10526316 | M45: 35.15968102 | N45: 34.24365956 | O45: 33.3276381 | P45: 32.41161664 | Q45: 31.49559519 | R45: 30.57957373 | S45: 29.66355227 | T45: 28.74753081 | U45: 27.83150935 | V45: 26.91548789 | W45: 27.83150935 | X45: 27.52616887 | Y45: 27.4243887 | Z45: 27.59402231 | AA45: 27.51485996 | AB45: 27.51109032 | AC45: 27.53999086 | AD45: 27.52198038 | AE45: 27.52435386 | AF45: 27.52877503 | AG45: 27.52503642 | AH45: 27.5260551 | AI45: 27.52662219 | AJ45: 27.52590457 | AK45: 27.52619395 | AL45: 27.52624024 | AM45: 27.52611292 | AN45: 27.52618237 | AO45: 27.52617851 | AP45: 27.52615793 | AQ45: 27.52617294 | AR45: 27.52616979
A46: 1620000US2902800 | B46: Avondale | C46: 14.2 | D46: 18.4 | E46: 19.2 | F46: 12.8 | G46: 8.9 | H46: 13.2 | I46: 19.4 | J46: 16.7 | K46: 17.27941176 | L46: 13.79310345 | M46: 15.39037863 | N46: 15.3909472 | O46: 15.39151577 | P46: 15.39208433 | Q46: 15.3926529 | R46: 15.39322146 | S46: 15.39379003 | T46: 15.3943586 | U46: 15.39492716 | V46: 15.39549573 | W46: 15.39492716 | X46: 15.39511668 | Y46: 15.39517986 | Z46: 15.39507457 | AA46: 15.3951237 | AB46: 15.39512604 | AC46: 15.3951081 | AD46: 15.39511928 | AE46: 15.39511781 | AF46: 15.39511507 | AG46: 15.39511739 | AH46: 15.39511675 | AI46: 15.3951164 | AJ46: 15.39511685 | AK46: 15.39511667 | AL46: 15.39511664 | AM46: 15.39511672 | AN46: 15.39511668 | AO46: 15.39511668 | AP46: 15.39511669 | AQ46: 15.39511668 | AR46: 15.39511668
A47: 1620000US2902962 | B47: Bagnell | C47: 73.6 | D47: 55 | E47: 50.7 | F47: 43.2 | G47: 64.8 | H47: 10.5 | I47: 9.1 | J47: 6.7 | K47: 22.22222222 | L47: 33.33333333 | M47: 4.634074074 | N47: 0 | O47: 0 | P47: 0 | Q47: 0 | R47: 0 | S47: 0 | T47: 0 | U47: 0 | V47: 0 | W47: 0 | X47: 0 | Y47: 0 | Z47: 0 | AA47: 0 | AB47: 0 | AC47: 0 | AD47: 0 | AE47: 0 | AF47: 0 | AG47: 0 | AH47: 0 | AI47: 0 | AJ47: 0 | AK47: 0 | AL47: 0 | AM47: 0 | AN47: 0 | AO47: 0 | AP47: 0 | AQ47: 0 | AR47: 0
A48: 1620000US2903052 | B48: Bakersfield | C48: 24.8 | D48: 23.2 | E48: 23.3 | F48: 20.6 | G48: 14.5 | H48: 15.5 | I48: 18.5 | J48: 2.9 | K48: 8.571428571 | L48: 15.71428571 | M48: 7.042857143 | N48: 5.276363636 | O48: 3.50987013 | P48: 1.743376623 | Q48: 0 | R48: 0 | S48: 0 | T48: 0 | U48: 0 | V48: 0 | W48: 0 | X48: 0 | Y48: 0 | Z48: 0 | AA48: 0 | AB48: 0 | AC48: 0 | AD48: 0 | AE48: 0 | AF48: 0 | AG48: 0 | AH48: 0 | AI48: 0 | AJ48: 0 | AK48: 0 | AL48: 0 | AM48: 0 | AN48: 0 | AO48: 0 | AP48: 0 | AQ48: 0 | AR48: 0
A49: 1620000US2903124 | B49: Baldwin Park | C49: 12.8 | D49: 16.1 | E49: 22.7 | F49: 18.2 | G49: 12.8 | H49: 10 | I49: 12.9 | J49: 8.9 | K49: 14.63414634 | L49: 21.62162162 | M49: 14.44669743 | N49: 14.33417391 | O49: 14.22165039 | P49: 14.10912687 | Q49: 13.99660334 | R49: 13.88407982 | S49: 13.7715563 | T49: 13.65903278 | U49: 13.54650926 | V49: 13.43398574 | W49: 13.54650926 | X49: 13.50900142 | Y49: 13.4964988 | Z49: 13.51733649 | AA49: 13.50761224 | AB49: 13.50714918 | AC49: 13.5106993 | AD49: 13.50848691 | AE49: 13.50877846 | AF49: 13.50932156 | AG49: 13.50886231 | AH49: 13.50898744 | AI49: 13.5090571 | AJ49: 13.50896895 | AK49: 13.5090045 | AL49: 13.50901019 | AM49: 13.50899455 | AN49: 13.50900308 | AO49: 13.5090026 | AP49: 13.50900008 | AQ49: 13.50900192 | AR49: 13.50900153
A50: 1620000US2903160 | B50: Ballwin | C50: 11.3 | D50: 10.8 | E50: 10.4 | F50: 10.7 | G50: 11.2 | H50: 10.2 | I50: 10.3 | J50: 9.7 | K50: 9.542222777 | L50: 9.709399591 | M50: 9.424500762 | N50: 9.249835039 | O50: 9.075169317 | P50: 8.900503594 | Q50: 8.725837871 | R50: 8.551172148 | S50: 8.376506426 | T50: 8.201840703 | U50: 8.02717498 | V50: 7.852509258 | W50: 8.02717498 | X50: 7.968953073 | Y50: 7.94954577 | Z50: 7.981891275 | AA50: 7.966796706 | AB50: 7.966077917 | AC50: 7.971588632 | AD50: 7.968154418 | AE50: 7.968606989 | AF50: 7.969450013 | AG50: 7.96873714 | AH50: 7.968931381 | AI50: 7.969039512 | AJ50: 7.968902678 | AK50: 7.968957857 | AL50: 7.968966682 | AM50: 7.968942405 | AN50: 7.968955648 | AO50: 7.968954912 | AP50: 7.968950988 | AQ50: 7.968953849 | AR50: 7.96895325
A51: 1620000US2903322 | B51: Baring | C51: 0 | D51: 0 | E51: 0 | F51: 0 | G51: 3 | H51: 3.6 | I51: 3.9 | J51: 4.8 | K51: 4.285714286 | L51: 0 | M51: 4.168571429 | N51: 4.57038961 | O51: 4.972207792 | P51: 5.374025974 | Q51: 5.775844156 | R51: 6.177662338 | S51: 6.579480519 | T51: 6.981298701 | U51: 7.383116883 | V51: 7.784935065 | W51: 7.383116883 | X51: 7.517056277 | Y51: 7.561702742 | Z51: 7.487291967 | AA51: 7.522016995 | AB51: 7.523670568 | AC51: 7.510993177 | AD51: 7.51889358 | AE51: 7.517852442 | AF51: 7.515913066 | AG51: 7.517553029 | AH51: 7.517106179 | AI51: 7.516857425 | AJ51: 7.517172211 | AK51: 7.517045272 | AL51: 7.517024969 | AM51: 7.517080817 | AN51: 7.517050353 | AO51: 7.517052046 | AP51: 7.517061072 | AQ51: 7.51705449 | AR51: 7.51705587
A52: 1620000US2903340 | B52: Barnard | C52: 22.4 | D52: 20 | E52: 17.6 | F52: 22.6 | G52: 28.3 | H52: 27.7 | I52: 29.7 | J52: 25 | K52: 24.11347518 | L52: 17.29323308 | M52: 24.82178496 | N52: 25.06744207 | O52: 25.31309919 | P52: 25.5587563 | Q52: 25.80441342 | R52: 26.05007053 | S52: 26.29572765 | T52: 26.54138476 | U52: 26.78704188 | V52: 27.03269899 | W52: 26.78704188 | X52: 26.86892758 | Y52: 26.89622282 | Z52: 26.85073076 | AA52: 26.87196039 | AB52: 26.87297132 | AC52: 26.86522082 | AD52: 26.87005085 | AE52: 26.86941433 | AF52: 26.86822867 | AG52: 26.86923128 | AH52: 26.86895809 | AI52: 26.86880601 | AJ52: 26.86899846 | AK52: 26.86892086 | AL52: 26.86890844 | AM52: 26.86894259 | AN52: 26.86892396 | AO52: 26.868925 | AP52: 26.86893052 | AQ52: 26.86892649 | AR52: 26.86892734
A53: 1620000US2903376 | B53: Barnett | C53: 10.7 | D53: 3.6 | E53: 2.3 | F53: 3.7 | G53: 6.3 | H53: 4.9 | I53: 11.3 | J53: 8.8 | K53: 13.51351351 | L53: 17.64705882 | M53: 14.4699947 | N53: 15.59616515 | O53: 16.7223356 | P53: 17.84850605 | Q53: 18.97467649 | R53: 20.10084694 | S53: 21.22701739 | T53: 22.35318784 | U53: 23.47935829 | V53: 24.60552874 | W53: 23.47935829 | X53: 23.85474844 | Y53: 23.97987849 | Z53: 23.77132841 | AA53: 23.86865178 | AB53: 23.87328622 | AC53: 23.83775547 | AD53: 23.85989782 | AE53: 23.85697984 | AF53: 23.85154438 | AG53: 23.85614068 | AH53: 23.8548883 | AI53: 23.85419112 | AJ53: 23.85507337 | AK53: 23.85471759 | AL53: 23.85466069 | AM53: 23.85481722 | AN53: 23.85473183 | AO53: 23.85473658 | AP53: 23.85476188 | AQ53: 23.85474343 | AR53: 23.8547473
A54: 1620000US2903556 | B54: Bates City | C54: 17.1 | D54: 18.3 | E54: 17.7 | F54: 23.1 | G54: 24.7 | H54: 21.8 | I54: 22.7 | J54: 27.3 | K54: 28.23529412 | L54: 20.25316456 | M54: 26.84636386 | N54: 27.70591259 | O54: 28.56546131 | P54: 29.42501004 | Q54: 30.28455877 | R54: 31.14410749 | S54: 32.00365622 | T54: 32.86320495 | U54: 33.72275367 | V54: 34.5823024 | W54: 33.72275367 | X54: 34.00926991 | Y54: 34.10477533 | Z54: 33.94559964 | AA54: 34.01988163 | AB54: 34.02341886 | AC54: 33.99630004 | AD54: 34.01320018 | AE54: 34.01097303 | AF54: 34.00682442 | AG54: 34.01033254 | AH54: 34.00937666 | AI54: 34.00884454 | AJ54: 34.00951791 | AK54: 34.00924637 | AL54: 34.00920294 | AM54: 34.00932241 | AN54: 34.00925724 | AO54: 34.00926086 | AP54: 34.00928017 | AQ54: 34.00926609 | AR54: 34.00926904
A55: 1620000US2903592 | B55: Battlefield | C55: 8 | D55: 5.9 | E55: 6.8 | F55: 9.6 | G55: 9.9 | H55: 10.1 | I55: 11.9 | J55: 12.2 | K55: 9.025641026 | L55: 9.497568882 | M55: 11.60757456 | N55: 12.02852976 | O55: 12.44948495 | P55: 12.87044015 | Q55: 13.29139534 | R55: 13.71235053 | S55: 14.13330573 | T55: 14.55426092 | U55: 14.97521612 | V55: 15.39617131 | W55: 14.97521612 | X55: 15.11553452 | Y55: 15.16230732 | Z55: 15.08435265 | AA55: 15.12073149 | AB55: 15.12246382 | AC55: 15.10918265 | AD55: 15.11745932 | AE55: 15.1163686 | AF55: 15.11433686 | AG55: 15.11605493 | AH55: 15.1155868 | AI55: 15.11532619 | AJ55: 15.11565597 | AK55: 15.11552299 | AL55: 15.11550172 | AM55: 15.11556023 | AN55: 15.11552831 | AO55: 15.11553008 | AP55: 15.11553954 | AQ55: 15.11553264 | AR55: 15.11553409
A56: 1620000US2904132 | B56: Bell City | C56: 40.2 | D56: 34.6 | E56: 30.6 | F56: 25.4 | G56: 33.7 | H56: 31.7 | I56: 29.1 | J56: 25.7 | K56: 22.92682927 | L56: 22.91666667 | M56: 21.26227642 | N56: 19.73099039 | O56: 18.19970436 | P56: 16.66841833 | Q56: 15.1371323 | R56: 13.60584627 | S56: 12.07456024 | T56: 10.54327421 | U56: 9.011988174 | V56: 7.480702143 | W56: 9.011988174 | X56: 8.501559497 | Y56: 8.331416605 | Z56: 8.614988092 | AA56: 8.482654732 | AB56: 8.476353143 | AC56: 8.524665322 | AD56: 8.494557732 | AE56: 8.498525399 | AF56: 8.505916151 | AG56: 8.499666428 | AH56: 8.501369326 | AI56: 8.502317302 | AJ56: 8.501117685 | AK56: 8.501601438 | AL56: 8.501678808 | AM56: 8.501465977 | AN56: 8.501582074 | AO56: 8.50157562 | AP56: 8.501541224 | AQ56: 8.501566306 | AR56: 8.50156105
A57: 1620000US2904150 | B57: Belle | C57: 26.3 | D57: 24.2 | E57: 25.1 | F57: 21.2 | G57: 26.5 | H57: 18 | I57: 20.4 | J57: 20.3 | K57: 21.20300752 | L57: 17.86743516 | M57: 17.71464324 | N57: 16.91602487 | O57: 16.1174065 | P57: 15.31878813 | Q57: 14.52016976 | R57: 13.72155139 | S57: 12.92293302 | T57: 12.12431465 | U57: 11.32569628 | V57: 10.52707791 | W57: 11.32569628 | X57: 11.05949016 | Y57: 10.97075478 | Z57: 11.11864707 | AA57: 11.04963067 | AB57: 11.04634418 | AC57: 11.07154064 | AD57: 11.0558385 | AE57: 11.05790777 | AF57: 11.0617623 | AG57: 11.05850286 | AH57: 11.05939098 | AI57: 11.05988538 | AJ57: 11.05925974 | AK57: 11.05951203 | AL57: 11.05955238 | AM57: 11.05944138 | AN57: 11.05950193 | AO57: 11.05949857 | AP57: 11.05948063 | AQ57: 11.05949371 | AR57: 11.05949097
A58: 1620000US2904222 | B58: Bellefontaine Neighbors | C58: 12.1 | D58: 10.5 | E58: 8.7 | F58: 7.6 | G58: 6.2 | H58: 5.9 | I58: 5.9 | J58: 5.9 | K58: 6.339389254 | L58: 6.736842105 | M58: 4.361199927 | N58: 3.774577525 | O58: 3.187955123 | P58: 2.601332722 | Q58: 2.01471032 | R58: 1.428087918 | S58: 0.8414655168 | T58: 0.2548431151 | U58: 0 | V58: 0 | W58: 0.08494770503 | X58: 0.02831590168 | Y58: 0.03775453557 | Z58: 0.05033938076 | AA58: 0.03880327267 | AB58: 0.042299063 | AC58: 0.04381390548 | AD58: 0.04163874705 | AE58: 0.04258390517 | AF58: 0.04267885257 | AG58: 0.0423005016 | AH58: 0.04252108645 | AI58: 0.04250014687 | AJ58: 0.0424405783 | AK58: 0.04248727054 | AL58: 0.04247599857 | AM58: 0.04246794914 | AN58: 0.04247707275 | AO58: 0.04247367349 | AP58: 0.04247289846 | AQ58: 0.04247454823 | AR58: 0.04247370673
A59: 1620000US2904330 | B59: Bellflower | C59: 24.8 | D59: 25 | E59: 27.1 | F59: 21.3 | G59: 18.7 | H59: 18.9 | I59: 17.6 | J59: 16.4 | K59: 13.28671329 | L59: 17.5 | M59: 12.98890443 | N59: 11.70349227 | O59: 10.4180801 | P59: 9.132667938 | Q59: 7.847255775 | R59: 6.561843611 | S59: 5.276431447 | T59: 3.991019284 | U59: 2.70560712 | V59: 1.420194957 | W59: 2.70560712 | X59: 2.277136399 | Y59: 2.134312825 | Z59: 2.372352115 | AA59: 2.261267113 | AB59: 2.255977351 | AC59: 2.296532193 | AD59: 2.271258886 | AE59: 2.274589477 | AF59: 2.280793518 | AG59: 2.275547294 | AH59: 2.276976763 | AI59: 2.277772525 | AJ59: 2.276765527 | AK59: 2.277171605 | AL59: 2.277236552 | AM59: 2.277057895 | AN59: 2.277155351 | AO59: 2.277149933 | AP59: 2.277121059 | AQ59: 2.277142114 | AR59: 2.277137702
A60: 1620000US2904348 | B60: Bel-Nor | C60: 10.8 | D60: 9.6 | E60: 8.8 | F60: 8 | G60: 6.3 | H60: 5.2 | I60: 4.8 | J60: 4.5 | K60: 4.599211564 | L60: 5.376344086 | M60: 2.930274822 | N60: 2.227132869 | O60: 1.523990916 | P60: 0.8208489627 | Q60: 0.1177070095 | R60: 0 | S60: 0 | T60: 0 | U60: 0 | V60: 0 | W60: 0 | X60: 0 | Y60: 0 | Z60: 0 | AA60: 0 | AB60: 0 | AC60: 0 | AD60: 0 | AE60: 0 | AF60: 0 | AG60: 0 | AH60: 0 | AI60: 0 | AJ60: 0 | AK60: 0 | AL60: 0 | AM60: 0 | AN60: 0 | AO60: 0 | AP60: 0 | AQ60: 0 | AR60: 0
A61: 1620000US2904366 | B61: Bel-Ridge | C61: 6.4 | D61: 3.2 | E61: 4 | F61: 3.6 | G61: 1.9 | H61: 3.8 | I61: 5 | J61: 4.6 | K61: 5.410821643 | L61: 6.324110672 | M61: 5.21991815 | N61: 5.36472268 | O61: 5.509527211 | P61: 5.654331742 | Q61: 5.799136272 | R61: 5.943940803 | S61: 6.088745334 | T61: 6.233549864 | U61: 6.378354395 | V61: 6.523158925 | W61: 6.378354395 | X61: 6.426622572 | Y61: 6.442711964 | Z61: 6.41589631 | AA61: 6.428410282 | AB61: 6.429006185 | AC61: 6.424437592 | AD61: 6.427284687 | AE61: 6.426909488 | AF61: 6.426210589 | AG61: 6.426801588 | AH61: 6.426640555 | AI61: 6.426550911 | AJ61: 6.426664351 | AK61: 6.426618606 | AL61: 6.426611289 | AM61: 6.426631415 | AN61: 6.426620437 | AO61: 6.426621047 | AP61: 6.4266243 | AQ61: 6.426621928 | AR61: 6.426622425
A62: 1620000US2904384 | B62: Belton | C62: 9.6 | D62: 9.1 | E62: 9 | F62: 9 | G62: 9 | H62: 8.7 | I62: 9.2 | J62: 8.9 | K62: 8.147713951 | L62: 7.698056801 | M62: 8.035127371 | N62: 7.889772879 | O62: 7.744418387 | P62: 7.599063896 | Q62: 7.453709404 | R62: 7.308354912 | S62: 7.16300042 | T62: 7.017645929 | U62: 6.872291437 | V62: 6.726936945 | W62: 6.872291437 | X62: 6.82383994 | Y62: 6.807689441 | Z62: 6.834606939 | AA62: 6.82204544 | AB62: 6.821447273 | AC62: 6.826033217 | AD62: 6.82317531 | AE62: 6.823551934 | AF62: 6.824253487 | AG62: 6.823660244 | AH62: 6.823821888 | AI62: 6.823911873 | AJ62: 6.823798002 | AK62: 6.823843921 | AL62: 6.823851265 | AM62: 6.823831062 | AN62: 6.823842083 | AO62: 6.82384147 | AP62: 6.823838205 | AQ62: 6.823840586 | AR62: 6.823840087
A63: 1620000US2904834 | B63: Benton | C63: 8.7 | D63: 9 | E63: 6.8 | F63: 6.4 | G63: 7.7 | H63: 6.7 | I63: 9.8 | J63: 14.3 | K63: 22.05882353 | L63: 21.21212121 | M63: 19.62445633 | N63: 21.14397667 | O63: 22.663497 | P63: 24.18301734 | Q63: 25.70253768 | R63: 27.22205801 | S63: 28.74157835 | T63: 30.26109869 | U63: 31.78061902 | V63: 33.30013936 | W63: 31.78061902 | X63: 32.2871258 | Y63: 32.4559614 | Z63: 32.17456874 | AA63: 32.30588531 | AB63: 32.31213848 | AC63: 32.26419751 | AD63: 32.29407377 | AE63: 32.29013659 | AF63: 32.28280262 | AG63: 32.28900433 | AH63: 32.28731451 | AI63: 32.28637382 | AJ63: 32.28756422 | AK63: 32.28708419 | AL63: 32.28700741 | AM63: 32.28721861 | AN63: 32.2871034 | AO63: 32.28710981 | AP63: 32.28714394 | AQ63: 32.28711905 | AR63: 32.28712426
A64: 1620000US2904798 | B64: Benton City | C64: 19.4 | D64: 9.1 | E64: 9.8 | F64: 8 | G64: 3.4 | H64: 7.5 | I64: 9.2 | J64: 8.3 | K64: 9.661835749 | L64: 12.25961538 | M64: 7.657791403 | N64: 7.293363456 | O64: 6.928935509 | P64: 6.564507562 | Q64: 6.200079614 | R64: 5.835651667 | S64: 5.47122372 | T64: 5.106795773 | U64: 4.742367825 | V64: 4.377939878 | W64: 4.742367825 | X64: 4.620891843 | Y64: 4.580399849 | Z64: 4.647886506 | AA64: 4.616392733 | AB64: 4.614893029 | AC64: 4.626390756 | AD64: 4.619225506 | AE64: 4.620169764 | AF64: 4.621928675 | AG64: 4.620441315 | AH64: 4.620846584 | AI64: 4.621072191 | AJ64: 4.620786697 | AK64: 4.620901824 | AL64: 4.620920238 | AM64: 4.620869586 | AN64: 4.620897216 | AO64: 4.62089568 | AP64: 4.620887494 | AQ64: 4.620893463 | AR64: 4.620892212
A65: 1620000US2904888 | B65: Berger | C65: 31.3 | D65: 27.8 | E65: 27.3 | F65: 27.8 | G65: 22.2 | H65: 17.3 | I65: 22.9 | J65: 30.1 | K65: 29.26829268 | L65: 26.86567164 | M65: 25.10903288 | N65: 24.89551224 | O65: 24.68199159 | P65: 24.46847095 | Q65: 24.2549503 | R65: 24.04142966 | S65: 23.82790901 | T65: 23.61438837 | U65: 23.40086772 | V65: 23.18734708 | W65: 23.40086772 | X65: 23.32969418 | Y65: 23.30596966 | Z65: 23.34551052 | AA65: 23.32705812 | AB65: 23.32617943 | AC65: 23.33291602 | AD65: 23.32871786 | AE65: 23.3292711 | AF65: 23.33030166 | AG65: 23.32943021 | AH65: 23.32966766 | AI65: 23.32979984 | AJ65: 23.32963257 | AK65: 23.32970002 | AL65: 23.32971081 | AM65: 23.32968113 | AN65: 23.32969732 | AO65: 23.32969642 | AP65: 23.32969163 | AQ65: 23.32969512 | AR65: 23.32969439
A66: 1620000US2904906 | B66: Berkeley | C66: 10.5 | D66: 13 | E66: 12.6 | F66: 10.7 | G66: 13.7 | H66: 12 | I66: 10.9 | J66: 10.9 | K66: 9.790562705 | L66: 5.508365508 | M66: 8.393533772 | N66: 7.926923035 | O66: 7.460312299 | P66: 6.993701563 | Q66: 6.527090826 | R66: 6.06048009 | S66: 5.593869354 | T66: 5.127258618 | U66: 4.660647881 | V66: 4.194037145 | W66: 4.660647881 | X66: 4.505110969 | Y66: 4.453265332 | Z66: 4.539674727 | AA66: 4.499350343 | AB66: 4.497430134 | AC66: 4.512151735 | AD66: 4.502977404 | AE66: 4.504186424 | AF66: 4.506438521 | AG66: 4.504534116 | AH66: 4.50505302 | AI66: 4.505341886 | AJ66: 4.504976341 | AK66: 4.505123749 | AL66: 4.505147325 | AM66: 4.505082472 | AN66: 4.505117849 | AO66: 4.505115882 | AP66: 4.505105401 | AQ66: 4.505113044 | AR66: 4.505111442
A67: 1620000US2904960 | B67: Bernie | C67: 7.6 | D67: 12.1 | E67: 6.9 | F67: 9.1 | G67: 11.2 | H67: 14.5 | I67: 14.1 | J67: 13.3 | K67: 13.23943662 | L67: 14.82014388 | M67: 15.79453643 | N67: 16.54155068 | O67: 17.28856493 | P67: 18.03557918 | Q67: 18.78259343 | R67: 19.52960768 | S67: 20.27662193 | T67: 21.02363618 | U67: 21.77065043 | V67: 22.51766468 | W67: 21.77065043 | X67: 22.01965518 | Y67: 22.10265676 | Z67: 21.96432079 | AA67: 22.02887758 | AB67: 22.03195171 | AC67: 22.00838336 | AD67: 22.02307088 | AE67: 22.02113532 | AF67: 22.01752985 | AG67: 22.02057868 | AH67: 22.01974795 | AI67: 22.0192855 | AJ67: 22.01987071 | AK67: 22.01963472 | AL67: 22.01959698 | AM67: 22.0197008 | AN67: 22.01964417 | AO67: 22.01964731 | AP67: 22.01966409 | AQ67: 22.01965186 | AR67: 22.01965442
A68: 1620000US2904996 | B68: Bertrand | C68: 7.8 | D68: 5.8 | E68: 6.8 | F68: 3.6 | G68: 7.6 | H68: 11 | I68: 11.9 | J68: 11.4 | K68: 8.960573477 | L68: 8.754208754 | M68: 11.09520799 | N68: 11.59224977 | O68: 12.08929155 | P68: 12.58633332 | Q68: 13.0833751 | R68: 13.58041688 | S68: 14.07745865 | T68: 14.57450043 | U68: 15.07154221 | V68: 15.56858398 | W68: 15.07154221 | X68: 15.2372228 | Y68: 15.29244966 | Z68: 15.20040489 | AA68: 15.24335912 | AB68: 15.24540456 | AC68: 15.22972285 | AD68: 15.23949551 | AE68: 15.23820764 | AF68: 15.23580867 | AG68: 15.23783727 | AH68: 15.23728453 | AI68: 15.23697682 | AJ68: 15.23736621 | AK68: 15.23720918 | AL68: 15.23718407 | AM68: 15.23725315 | AN68: 15.23721547 | AO68: 15.23721757 | AP68: 15.23722873 | AQ68: 15.23722059 | AR68: 15.23722229
A69: 1620000US2905068 | B69: Bethany | C69: 11.3 | D69: 10.8 | E69: 10.5 | F69: 8.3 | G69: 2.6 | H69: 4.8 | I69: 6 | J69: 6.8 | K69: 8.800623053 | L69: 8.418568057 | M69: 5.727634907 | N69: 5.345037779 | O69: 4.962440651 | P69: 4.579843523 | Q69: 4.197246395 | R69: 3.814649267 | S69: 3.432052139 | T69: 3.049455011 | U69: 2.666857883 | V69: 2.284260755 | W69: 2.666857883 | X69: 2.539325507 | Y69: 2.496814715 | Z69: 2.567666035 | AA69: 2.534602086 | AB69: 2.533027612 | AC69: 2.545098578 | AD69: 2.537576092 | AE69: 2.538567427 | AF69: 2.540414032 | AG69: 2.538852517 | AH69: 2.539277992 | AI69: 2.539514847 | AJ69: 2.539215119 | AK69: 2.539335986 | AL69: 2.539355317 | AM69: 2.539302141 | AN69: 2.539331148 | AO69: 2.539329535 | AP69: 2.539320941 | AQ69: 2.539327208 | AR69: 2.539325895
A70: 1620000US2905104 | B70: Bethel | C70: 18.3 | D70: 16.4 | E70: 21.1 | F70: 26.5 | G70: 27.3 | H70: 19.7 | I70: 14.6 | J70: 19 | K70: 19.51219512 | L70: 21.27659574 | M70: 20.19470334 | N70: 20.16303502 | O70: 20.1313667 | P70: 20.09969838 | Q70: 20.06803007 | R70: 20.03636175 | S70: 20.00469343 | T70: 19.97302511 | U70: 19.9413568 | V70: 19.90968848 | W70: 19.9413568 | X70: 19.93080069 | Y70: 19.92728199 | Z70: 19.93314649 | AA70: 19.93040972 | AB70: 19.9302794 | AC70: 19.93127854 | AD70: 19.93065589 | AE70: 19.93073794 | AF70: 19.93089079 | AG70: 19.93076154 | AH70: 19.93079676 | AI70: 19.93081636 | AJ70: 19.93079155 | AK70: 19.93080156 | AL70: 19.93080316 | AM70: 19.93079876 | AN70: 19.93080116 | AO70: 19.93080102 | AP70: 19.93080031 | AQ70: 19.93080083 | AR70: 19.93080072
A71: 1620000US2905248 | B71: Beverly Hills | C71: 11.8 | D71: 8.5 | E71: 11.1 | F71: 10.4 | G71: 10.1 | H71: 8.5 | I71: 8.5 | J71: 7.6 | K71: 10.04784689 | L71: 8.163265306 | M71: 7.914588419 | N71: 7.631584274 | O71: 7.348580128 | P71: 7.065575982 | Q71: 6.782571837 | R71: 6.499567691 | S71: 6.216563546 | T71: 5.9335594 | U71: 5.650555255 | V71: 5.367551109 | W71: 5.650555255 | X71: 5.55622054 | Y71: 5.524775634 | Z71: 5.57718381 | AA71: 5.552726661 | AB71: 5.551562035 | AC71: 5.560490835 | AD71: 5.554926511 | AE71: 5.555659794 | AF71: 5.557025713 | AG71: 5.555870672 | AH71: 5.556185393 | AI71: 5.556360593 | AJ71: 5.556138886 | AK71: 5.556228291 | AL71: 5.55624259 | AM71: 5.556203256 | AN71: 5.556224712 | AO71: 5.556223519 | AP71: 5.556217162 | AQ71: 5.556221798 | AR71: 5.556220826
A72: 1620000US2905266 | B72: Bevier | C72: 13.6 | D72: 14.4 | E72: 16.1 | F72: 15 | G72: 13 | H72: 13.3 | I72: 14.6 | J72: 12.4 | K72: 12.72084806 | L72: 13.54166667 | M72: 12.81028269 | N72: 12.61828836 | O72: 12.42629404 | P72: 12.23429971 | Q72: 12.04230539 | R72: 11.85031106 | S72: 11.65831674 | T72: 11.46632241 | U72: 11.27432809 | V72: 11.08233376 | W72: 11.27432809 | X72: 11.21032998 | Y72: 11.18899728 | Z72: 11.22455178 | AA72: 11.20795968 | AB72: 11.20716958 | AC72: 11.21322701 | AD72: 11.20945209 | AE72: 11.20994956 | AF72: 11.21087622 | AG72: 11.21009262 | AH72: 11.21030613 | AI72: 11.21042499 | AJ72: 11.21027458 | AK72: 11.21033524 | AL72: 11.21034494 | AM72: 11.21031825 | AN72: 11.21033281 | AO72: 11.210332 | AP72: 11.21032769 | AQ72: 11.21033083 | AR72: 11.21033017
A73: 1620000US2905495 | B73: Big Lake | C73: 24.7 | D73: 26.5 | E73: 26.8 | F73: 19.8 | G73: 30.6 | H73: 12.2 | I73: 10.6 | J73: 6.7 | K73: 9.523809524 | L73: 2.857142857 | M73: 1.630793651 | N73: 0 | O73: 0 | P73: 0 | Q73: 0 | R73: 0 | S73: 0 | T73: 0 | U73: 0 | V73: 0 | W73: 0 | X73: 0 | Y73: 0 | Z73: 0 | AA73: 0 | AB73: 0 | AC73: 0 | AD73: 0 | AE73: 0 | AF73: 0 | AG73: 0 | AH73: 0 | AI73: 0 | AJ73: 0 | AK73: 0 | AL73: 0 | AM73: 0 | AN73: 0 | AO73: 0 | AP73: 0 | AQ73: 0 | AR73: 0
A74: 1620000US2905626 | B74: Billings | C74: 6 | D74: 9.9 | E74: 15.1 | F74: 15.2 | G74: 16.5 | H74: 14.2 | I74: 13.9 | J74: 14.1 | K74: 13.10679612 | L74: 14.32098765 | M74: 16.10399377 | N74: 16.62603293 | O74: 17.14807209 | P74: 17.67011125 | Q74: 18.19215041 | R74: 18.71418958 | S74: 19.23622874 | T74: 19.7582679 | U74: 20.28030706 | V74: 20.80234622 | W74: 20.28030706 | X74: 20.45432012 | Y74: 20.51232447 | Z74: 20.41565055 | AA74: 20.46076504 | AB74: 20.46291335 | AC74: 20.44644298 | AD74: 20.45670713 | AE74: 20.45535449 | AF74: 20.45283487 | AG74: 20.45496549 | AH74: 20.45438495 | AI74: 20.45406177 | AJ74: 20.45447074 | AK74: 20.45430582 | AL74: 20.45427944 | AM74: 20.454352 | AN74: 20.45431242 | AO74: 20.45431462 | AP74: 20.45432635 | AQ74: 20.45431779 | AR74: 20.45431959
A75: 1620000US2905734 | B75: Birch Tree | C75: 29.3 | D75: 24.5 | E75: 28 | F75: 39.8 | G75: 41.5 | H75: 30.8 | I75: 35.2 | J75: 23.2 | K75: 23.97959184 | L75: 17.61658031 | M75: 24.14649607 | N75: 23.19320132 | O75: 22.23990656 | P75: 21.28661181 | Q75: 20.33331706 | R75: 19.3800223 | S75: 18.42672755 | T75: 17.47343279 | U75: 16.52013804 | V75: 15.56684329 | W75: 16.52013804 | X75: 16.20237312 | Y75: 16.09645148 | Z75: 16.27298755 | AA75: 16.19060405 | AB75: 16.18668103 | AC75: 16.21675754 | AD75: 16.19801421 | AE75: 16.20048426 | AF75: 16.20508534 | AG75: 16.2011946 | AH75: 16.20225473 | AI75: 16.20284489 | AJ75: 16.20209808 | AK75: 16.20239923 | AL75: 16.2024474 | AM75: 16.2023149 | AN75: 16.20238718 | AO75: 16.20238316 | AP75: 16.20236175 | AQ75: 16.20237736 | AR75: 16.20237409
A76: 1620000US2905824 | B76: Birmingham | C76: 3.1 | D76: 3.6 | E76: 4.1 | F76: 10.6 | G76: 15.7 | H76: 16.5 | I76: 14.7 | J76: 15.9 | K76: 12.60504202 | L76: 8.527131783 | M76: 16.66586672 | N76: 17.78089387 | O76: 18.89592102 | P76: 20.01094818 | Q76: 21.12597533 | R76: 22.24100248 | S76: 23.35602963 | T76: 24.47105679 | U76: 25.58608394 | V76: 26.70111109 | W76: 25.58608394 | X76: 25.95775966 | Y76: 26.08165156 | Z76: 25.87516505 | AA76: 25.97152542 | AB76: 25.97611401 | AC76: 25.94093483 | AD76: 25.96285809 | AE76: 25.95996898 | AF76: 25.9545873 | AG76: 25.95913812 | AH76: 25.95789813 | AI76: 25.95720785 | AJ76: 25.95808137 | AK76: 25.95772912 | AL76: 25.95767278 | AM76: 25.95782775 | AN76: 25.95774322 | AO76: 25.95774792 | AP76: 25.95777296 | AQ76: 25.9577547 | AR76: 25.95775853
A77: 1620000US2905878 | B77: Bismarck | C77: 9.9 | D77: 8.2 | E77: 10.2 | F77: 12.4 | G77: 11.4 | H77: 11.4 | I77: 13 | J77: 11.3 | K77: 8.211678832 | L77: 9.075342466 | M77: 10.50736326 | N77: 10.50711983 | O77: 10.5068764 | P77: 10.50663297 | Q77: 10.50638954 | R77: 10.50614611 | S77: 10.50590268 | T77: 10.50565925 | U77: 10.50541582 | V77: 10.50517239 | W77: 10.50541582 | X77: 10.50533468 | Y77: 10.50530763 | Z77: 10.50535271 | AA77: 10.50533167 | AB77: 10.50533067 | AC77: 10.50533835 | AD77: 10.50533357 | AE77: 10.5053342 | AF77: 10.50533537 | AG77: 10.50533438 | AH77: 10.50533465 | AI77: 10.5053348 | AJ77: 10.50533461 | AK77: 10.50533469 | AL77: 10.5053347 | AM77: 10.50533466 | AN77: 10.50533468 | AO77: 10.50533468 | AP77: 10.50533468 | AQ77: 10.50533468 | AR77: 10.50533468
A78: 1620000US2906004 | B78: Black Jack | C78: 11.5 | D78: 10 | E78: 13.7 | F78: 12.1 | G78: 15.5 | H78: 15 | I78: 15.2 | J78: 11.5 | K78: 9.122704751 | L78: 7.219512195 | M78: 10.52203979 | N78: 10.23800672 | O78: 9.95397365 | P78: 9.669940577 | Q78: 9.385907504 | R78: 9.101874432 | S78: 8.817841359 | T78: 8.533808286 | U78: 8.249775214 | V78: 7.965742141 | W78: 8.249775214 | X78: 8.155097523 | Y78: 8.123538293 | Z78: 8.17613701 | AA78: 8.151590942 | AB78: 8.150422081 | AC78: 8.159383344 | AD78: 8.153798789 | AE78: 8.154534738 | AF78: 8.155905624 | AG78: 8.154746384 | AH78: 8.155062249 | AI78: 8.155238085 | AJ78: 8.155015573 | AK78: 8.155105302 | AL78: 8.155119653 | AM78: 8.155080176 | AN78: 8.155101711 | AO78: 8.155100513 | AP78: 8.155094133 | AQ78: 8.155098786 | AR78: 8.155097811
A79: 1620000US2905950 | B79: Blackburn | C79: 7.1 | D79: 3.1 | E79: 4.3 | F79: 14.4 | G79: 19.8 | H79: 22.3 | I79: 24.3 | J79: 28.8 | K79: 14.95327103 | L79: 7.777777778 | M79: 22.80886812 | N79: 24.28627962 | O79: 25.76369112 | P79: 27.24110261 | Q79: 28.71851411 | R79: 30.19592561 | S79: 31.67333711 | T79: 33.15074861 | U79: 34.62816011 | V79: 36.1055716 | W79: 34.62816011 | X79: 35.12063061 | Y79: 35.28478744 | Z79: 35.01119272 | AA79: 35.13887025 | AB79: 35.14495014 | AC79: 35.0983377 | AD79: 35.12738603 | AE79: 35.12355796 | AF79: 35.11642723 | AG79: 35.12245707 | AH79: 35.12081409 | AI79: 35.11989946 | AJ79: 35.12105687 | AK79: 35.12059014 | AL79: 35.12051549 | AM79: 35.12072084 | AN79: 35.12060882 | AO79: 35.12061505 | AP79: 35.12064824 | AQ79: 35.12062404 | AR79: 35.12062911
A80: 1620000US2906148 | B80: Blackwater | C80: 10.8 | D80: 9.9 | E80: 13 | F80: 10.1 | G80: 12.7 | H80: 10.6 | I80: 7.7 | J80: 3.1 | K80: 3.797468354 | L80: 4.6875 | M80: 3.420822785 | N80: 2.472154776 | O80: 1.523486766 | P80: 0.5748187572 | Q80: 0 | R80: 0 | S80: 0 | T80: 0 | U80: 0 | V80: 0 | W80: 0 | X80: 0 | Y80: 0 | Z80: 0 | AA80: 0 | AB80: 0 | AC80: 0 | AD80: 0 | AE80: 0 | AF80: 0 | AG80: 0 | AH80: 0 | AI80: 0 | AJ80: 0 | AK80: 0 | AL80: 0 | AM80: 0 | AN80: 0 | AO80: 0 | AP80: 0 | AQ80: 0 | AR80: 0
A81: 1620000US2906238 | B81: Blairstown | C81: 44.1 | D81: 39.1 | E81: 14.3 | F81: 5.9 | G81: 14.3 | H81: 8.7 | I81: 11.1 | J81: 19.4 | K81: 10 | L81: 4.651162791 | M81: 0 | N81: 0 | O81: 0 | P81: 0 | Q81: 0 | R81: 0 | S81: 0 | T81: 0 | U81: 0 | V81: 0 | W81: 0 | X81: 0 | Y81: 0 | Z81: 0 | AA81: 0 | AB81: 0 | AC81: 0 | AD81: 0 | AE81: 0 | AF81: 0 | AG81: 0 | AH81: 0 | AI81: 0 | AJ81: 0 | AK81: 0 | AL81: 0 | AM81: 0 | AN81: 0 | AO81: 0 | AP81: 0 | AQ81: 0 | AR81: 0
A82: 1620000US2906256 | B82: Bland | C82: 44.9 | D82: 40.1 | E82: 39.9 | F82: 25.9 | G82: 16.7 | H82: 8.8 | I82: 15.3 | J82: 17.6 | K82: 26.02739726 | L82: 37.87878788 | M82: 16.88064757 | N82: 14.98428922 | O82: 13.08793087 | P82: 11.19157251 | Q82: 9.295214159 | R82: 7.398855806 | S82: 5.502497453 | T82: 3.6061391 | U82: 1.709780746 | V82: 0 | W82: 1.771973282 | X82: 1.160584676 | Y82: 0.9775193194 | Z82: 1.303359093 | AA82: 1.147154363 | AB82: 1.142677592 | AC82: 1.197730349 | AD82: 1.162520768 | AE82: 1.167642903 | AF82: 1.175964673 | AG82: 1.168709448 | AH82: 1.170772341 | AI82: 1.171815487 | AJ82: 1.170432425 | AK82: 1.171006751 | AL82: 1.171084888 | AM82: 1.170841355 | AN82: 1.170977665 | AO82: 1.170967969 | AP82: 1.170928996 | AQ82: 1.17095821 | AR82: 1.170951725
A83: 1620000US2906346 | B83: Blodgett | C83: 7.9 | D83: 8.7 | E83: 7.8 | F83: 3.4 | G83: 7.9 | H83: 8.3 | I83: 10.7 | J83: 6.4 | K83: 27.86885246 | L83: 29.8245614 | M83: 23.43944205 | N83: 25.54127853 | O83: 27.64311502 | P83: 29.7449515 | Q83: 31.84678798 | R83: 33.94862447 | S83: 36.05046095 | T83: 38.15229744 | U83: 40.25413392 | V83: 42.3559704 | W83: 40.25413392 | X83: 40.95474608 | Y83: 41.18828347 | Z83: 40.79905449 | AA83: 40.98069468 | AB83: 40.98934421 | AC83: 40.92303113 | AD83: 40.96435667 | AE83: 40.95891067 | AF83: 40.94876616 | AG83: 40.9573445 | AH83: 40.95500711 | AI83: 40.95370592 | AJ83: 40.95535251 | AK83: 40.95468851 | AL83: 40.95458231 | AM83: 40.95487445 | AN83: 40.95471509 | AO83: 40.95472395 | AP83: 40.95477116 | AQ83: 40.95473674 | AR83: 40.95474395
A84: 1620000US2906382 | B84: Bloomfield | C84: 17.8 | D84: 17.7 | E84: 15.2 | F84: 19.5 | G84: 17.8 | H84: 13.3 | I84: 14.4 | J84: 12.8 | K84: 11.08071135 | L84: 13.78002528 | M84: 11.52558057 | N84: 10.83276364 | O84: 10.13994671 | P84: 9.447129784 | Q84: 8.754312857 | R84: 8.06149593 | S84: 7.368679003 | T84: 6.675862076 | U84: 5.983045149 | V84: 5.290228222 | W84: 5.983045149 | X84: 5.752106173 | Y84: 5.675126515 | Z84: 5.803425946 | AA84: 5.743552878 | AB84: 5.740701779 | AC84: 5.762560201 | AD84: 5.748938286 | AE84: 5.750733422 | AF84: 5.754077303 | AG84: 5.75124967 | AH84: 5.752020132 | AI84: 5.752449035 | AJ84: 5.751906279 | AK84: 5.752125149 | AL84: 5.752160154 | AM84: 5.752063861 | AN84: 5.752116388 | AO84: 5.752113468 | AP84: 5.752097905 | AQ84: 5.752109254 | AR84: 5.752106876
A85: 1620000US2906454 | B85: Bloomsdale | C85: 15.9 | D85: 15.4 | E85: 11.6 | F85: 14.3 | G85: 16.9 | H85: 18.1 | I85: 15.9 | J85: 17.6 | K85: 21.25984252 | L85: 20.95808383 | M85: 20.87651437 | N85: 21.61919105 | O85: 22.36186773 | P85: 23.10454441 | Q85: 23.84722109 | R85: 24.58989777 | S85: 25.33257445 | T85: 26.07525113 | U85: 26.81792781 | V85: 27.56060449 | W85: 26.81792781 | X85: 27.0654867 | Y85: 27.14800633 | Z85: 27.01047362 | AA85: 27.07465555 | AB85: 27.07771183 | AC85: 27.05428033 | AD85: 27.06888257 | AE85: 27.06695825 | AF85: 27.06337372 | AG85: 27.06640485 | AH85: 27.06557894 | AI85: 27.06511917 | AJ85: 27.06570098 | AK85: 27.06546636 | AL85: 27.06542884 | AM85: 27.06553206 | AN85: 27.06547575 | AO85: 27.06547888 | AP85: 27.06549557 | AQ85: 27.0654834 | AR85: 27.06548595
A86: 1620000US2906526 | B86: Blue Eye | C86: 7.3 | D86: 9.8 | E86: 5.6 | F86: 2 | G86: 8.6 | H86: 16.3 | I86: 14.9 | J86: 15.4 | K86: 11.76470588 | L86: 9.722222222 | M86: 14.50379085 | N86: 15.29744504 | O86: 16.09109923 | P86: 16.88475342 | Q86: 17.67840761 | R86: 18.47206179 | S86: 19.26571598 | T86: 20.05937017 | U86: 20.85302436 | V86: 21.64667855 | W86: 20.85302436 | X86: 21.11757576 | Y86: 21.20575956 | Z86: 21.05878656 | AA86: 21.12737396 | AB86: 21.13064002 | AC86: 21.10560018 | AD86: 21.12120472 | AE86: 21.11914831 | AF86: 21.11531774 | AG86: 21.11855692 | AH86: 21.11767432 | AI86: 21.11718299 | AJ86: 21.11780475 | AK86: 21.11755402 | AL86: 21.11751392 | AM86: 21.11762423 | AN86: 21.11756406 | AO86: 21.1175674 | AP86: 21.11758523 | AQ86: 21.11757223 | AR86: 21.11757495
A87: 1620000US2906652 | B87: Blue Springs | C87: 10.8 | D87: 10.5 | E87: 9.8 | F87: 8.7 | G87: 9.1 | H87: 9.2 | I87: 10.1 | J87: 9.9 | K87: 10.71233176 | L87: 10.80907075 | M87: 10.17440555 | N87: 10.21299925 | O87: 10.25159294 | P87: 10.29018663 | Q87: 10.32878032 | R87: 10.36737401 | S87: 10.4059677 | T87: 10.44456139 | U87: 10.48315509 | V87: 10.52174878 | W87: 10.48315509 | X87: 10.49601965 | Y87: 10.50030784 | Z87: 10.49316086 | AA87: 10.49649612 | AB87: 10.49665494 | AC87: 10.4954373 | AD87: 10.49619612 | AE87: 10.49609612 | AF87: 10.49590985 | AG87: 10.49606736 | AH87: 10.49602444 | AI87: 10.49600055 | AJ87: 10.49603079 | AK87: 10.49601859 | AL87: 10.49601664 | AM87: 10.49602201 | AN87: 10.49601908 | AO87: 10.49601924 | AP87: 10.49602011 | AQ87: 10.49601948 | AR87: 10.49601961
A88: 1620000US2906742 | B88: Blythedale | C88: 8.6 | D88: 6.1 | E88: 4.8 | F88: 4.1 | G88: 5.9 | H88: 6.3 | I88: 10.9 | J88: 6.6 | K88: 4.918032787 | L88: 4.225352113 | M88: 5.649485107 | N88: 5.541329947 | O88: 5.433174786 | P88: 5.325019626 | Q88: 5.216864465 | R88: 5.108709305 | S88: 5.000554145 | T88: 4.892398984 | U88: 4.784243824 | V88: 4.676088663 | W88: 4.784243824 | X88: 4.748192103 | Y88: 4.736174863 | Z88: 4.756203597 | AA88: 4.746856855 | AB88: 4.746411772 | AC88: 4.749824074 | AD88: 4.747697567 | AE88: 4.747977804 | AF88: 4.748499815 | AG88: 4.748058395 | AH88: 4.748178672 | AI88: 4.748245627 | AJ88: 4.748160898 | AK88: 4.748195066 | AL88: 4.74820053 | AM88: 4.748185498 | AN88: 4.748193698 | AO88: 4.748193242 | AP88: 4.748190813 | AQ88: 4.748192584 | AR88: 4.748192213
A89: 1620000US2906832 | B89: Bogard | C89: 14.7 | D89: 13.1 | E89: 15.7 | F89: 16.2 | G89: 14.9 | H89: 13.6 | I89: 15.9 | J89: 8.6 | K89: 9.523809524 | L89: 12.06896552 | M89: 10.54885605 | N89: 10.02514306 | O89: 9.501430064 | P89: 8.977717072 | Q89: 8.45400408 | R89: 7.930291088 | S89: 7.406578096 | T89: 6.882865104 | U89: 6.359152112 | V89: 5.83543912 | W89: 6.359152112 | X89: 6.184581115 | Y89: 6.126390782 | Z89: 6.22337467 | AA89: 6.178115522 | AB89: 6.175960325 | AC89: 6.192483506 | AD89: 6.182186451 | AE89: 6.183543427 | AF89: 6.186071128 | AG89: 6.183933669 | AH89: 6.184516075 | AI89: 6.18484029 | AJ89: 6.184430011 | AK89: 6.184595459 | AL89: 6.18462192 | AM89: 6.18454913 | AN89: 6.184588836 | AO89: 6.184586629 | AP89: 6.184574865 | AQ89: 6.184583443 | AR89: 6.184581646
A90: 1620000US2906922 | B90: Bolckow | C90: 16.6 | D90: 12.3 | E90: 14.2 | F90: 15.2 | G90: 15.8 | H90: 15 | I90: 20 | J90: 21.1 | K90: 20.68965517 | L90: 17.59259259 | M90: 20.70692209 | N90: 21.40850343 | O90: 22.11008476 | P90: 22.81166609 | Q90: 23.51324742 | R90: 24.21482875 | S90: 24.91641008 | T90: 25.61799141 | U90: 26.31957274 | V90: 27.02115407 | W90: 26.31957274 | X90: 26.55343318 | Y90: 26.63138666 | Z90: 26.50146419 | AA90: 26.56209468 | AB90: 26.56498185 | AC90: 26.54284691 | AD90: 26.55664114 | AE90: 26.5548233 | AF90: 26.55143712 | AG90: 26.55430052 | AH90: 26.55352031 | AI90: 26.55308598 | AJ90: 26.55363561 | AK90: 26.55341397 | AL90: 26.55337852 | AM90: 26.55347603 | AN90: 26.55342284 | AO90: 26.5534258 | AP90: 26.55344155 | AQ90: 26.55343006 | AR90: 26.55343247
A91: 1620000US2906976 | B91: Bolivar | C91: 4.5 | D91: 5.6 | E91: 5.4 | F91: 4.7 | G91: 4.2 | H91: 4.9 | I91: 6.2 | J91: 7.8 | K91: 9.043824701 | L91: 9.389186958 | M91: 9.016949684 | N91: 9.533976687 | O91: 10.05100369 | P91: 10.56803069 | Q91: 11.0850577 | R91: 11.6020847 | S91: 12.1191117 | T91: 12.63613871 | U91: 13.15316571 | V91: 13.67019271 | W91: 13.15316571 | X91: 13.32550804 | Y91: 13.38295549 | Z91: 13.28720975 | AA91: 13.33189109 | AB91: 13.33401878 | AC91: 13.31770654 | AD91: 13.32787214 | AE91: 13.32653248 | AF91: 13.32403705 | AG91: 13.32614722 | AH91: 13.32557225 | AI91: 13.32525218 | AJ91: 13.32565722 | AK91: 13.32549388 | AL91: 13.32546776 | AM91: 13.32553962 | AN91: 13.32550042 | AO91: 13.3255026 | AP91: 13.32551421 | AQ91: 13.32550575 | AR91: 13.32550752
A92: 1620000US2907102 | B92: Bonne Terre | C92: 12.4 | D92: 11.5 | E92: 13 | F92: 12.8 | G92: 12.5 | H92: 6.9 | I92: 7.9 | J92: 6.8 | K92: 10.0234192 | L92: 11.9642016 | M92: 8.393487042 | N92: 7.996164308 | O92: 7.598841573 | P92: 7.201518839 | Q92: 6.804196105 | R92: 6.40687337 | S92: 6.009550636 | T92: 5.612227902 | U92: 5.214905167 | V92: 4.817582433 | W92: 5.214905167 | X92: 5.082464256 | Y92: 5.038317286 | Z92: 5.11189557 | AA92: 5.077559037 | AB92: 5.075923964 | AC92: 5.088459524 | AD92: 5.080647508 | AE92: 5.081676999 | AF92: 5.083594677 | AG92: 5.081973061 | AH92: 5.082414912 | AI92: 5.082660883 | AJ92: 5.082349619 | AK92: 5.082475138 | AL92: 5.082495214 | AM92: 5.08243999 | AN92: 5.082470114 | AO92: 5.082468439 | AP92: 5.082459514 | AQ92: 5.082466023 | AR92: 5.082464659
A93: 1620000US2907318 | B93: Boonville | C93: 14.7 | D93: 8.3 | E93: 8.9 | F93: 9.1 | G93: 10.3 | H93: 10.1 | I93: 10.7 | J93: 10 | K93: 11.2720403 | L93: 6.56779661 | M93: 8.584465411 | N93: 8.328189361 | O93: 8.07191331 | P93: 7.815637259 | Q93: 7.559361208 | R93: 7.303085157 | S93: 7.046809106 | T93: 6.790533055 | U93: 6.534257005 | V93: 6.277980954 | W93: 6.534257005 | X93: 6.448831654 | Y93: 6.420356538 | Z93: 6.467815065 | AA93: 6.445667752 | AB93: 6.444613118 | AC93: 6.452698645 | AD93: 6.447659839 | AE93: 6.448323868 | AF93: 6.449560784 | AG93: 6.44851483 | AH93: 6.448799827 | AI93: 6.44895848 | AJ93: 6.448757713 | AK93: 6.448838673 | AL93: 6.448851622 | AM93: 6.448816003 | AN93: 6.448835433 | AO93: 6.448834353 | AP93: 6.448828596 | AQ93: 6.448832794 | AR93: 6.448831914
A94: 1620000US2907426 | B94: Bosworth | C94: 22.1 | D94: 17.2 | E94: 17.4 | F94: 17.4 | G94: 16.5 | H94: 15.7 | I94: 16.3 | J94: 9.2 | K94: 7.954545455 | L94: 7.692307692 | M94: 6.761771562 | N94: 5.310332698 | O94: 3.858893833 | P94: 2.407454969 | Q94: 0.9560161051 | R94: 0 | S94: 0 | T94: 0 | U94: 0 | V94: 0 | W94: 0 | X94: 0 | Y94: 0 | Z94: 0 | AA94: 0 | AB94: 0 | AC94: 0 | AD94: 0 | AE94: 0 | AF94: 0 | AG94: 0 | AH94: 0 | AI94: 0 | AJ94: 0 | AK94: 0 | AL94: 0 | AM94: 0 | AN94: 0 | AO94: 0 | AP94: 0 | AQ94: 0 | AR94: 0
A95: 1620000US2907534 | B95: Bourbon | C95: 36.6 | D95: 28.3 | E95: 28.1 | F95: 22.2 | G95: 18.7 | H95: 17.9 | I95: 21.4 | J95: 22.9 | K95: 23.59882006 | L95: 24.18397626 | M95: 18.59319719 | N95: 17.53954584 | O95: 16.48589448 | P95: 15.43224313 | Q95: 14.37859178 | R95: 13.32494043 | S95: 12.27128907 | T95: 11.21763772 | U95: 10.16398637 | V95: 9.110335014 | W95: 10.16398637 | X95: 9.81276925 | Y95: 9.695696877 | Z95: 9.890817498 | AA95: 9.799761208 | AB95: 9.795425194 | AC95: 9.828667967 | AD95: 9.807951456 | AE95: 9.810681539 | AF95: 9.815766987 | AG95: 9.811466661 | AH95: 9.812638396 | AI95: 9.813290681 | AJ95: 9.812465246 | AK95: 9.812798108 | AL95: 9.812851345 | AM95: 9.8127049 | AN95: 9.812784784 | AO95: 9.812780343 | AP95: 9.812756676 | AQ95: 9.812773934 | AR95: 9.812770318
A96: 1620000US2907660 | B96: Bowling Green | C96: 16.3 | D96: 12.7 | E96: 13.6 | F96: 14.4 | G96: 7.2 | H96: 10 | I96: 11 | J96: 16.9 | K96: 18.20512821 | L96: 19.21824104 | M96: 16.41567249 | N96: 16.86355168 | O96: 17.31143087 | P96: 17.75931006 | Q96: 18.20718926 | R96: 18.65506845 | S96: 19.10294764 | T96: 19.55082684 | U96: 19.99870603 | V96: 20.44658522 | W96: 19.99870603 | X96: 20.14799909 | Y96: 20.19776345 | Z96: 20.11482286 | AA96: 20.15352846 | AB96: 20.15537159 | AC96: 20.14124097 | AD96: 20.15004701 | AE96: 20.14888652 | AF96: 20.14672483 | AG96: 20.14855279 | AH96: 20.14805471 | AI96: 20.14777745 | AJ96: 20.14812832 | AK96: 20.14798683 | AL96: 20.1479642 | AM96: 20.14802645 | AN96: 20.14799249 | AO96: 20.14799438 | AP96: 20.14800444 | AQ96: 20.1479971 | AR96: 20.14799864
A97: 1620000US2907876 | B97: Bragg City | C97: 14.1 | D97: 31.3 | E97: 32.3 | F97: 26.2 | G97: 36.2 | H97: 39 | I97: 17.1 | J97: 21.4 | K97: 8.823529412 | L97: 6.060606061 | M97: 12.95875223 | N97: 11.08790472 | O97: 9.217057203 | P97: 7.34620969 | Q97: 5.475362178 | R97: 3.604514665 | S97: 1.733667153 | T97: 0 | U97: 0 | V97: 0 | W97: 0 | X97: 0 | Y97: 0 | Z97: 0 | AA97: 0 | AB97: 0 | AC97: 0 | AD97: 0 | AE97: 0 | AF97: 0 | AG97: 0 | AH97: 0 | AI97: 0 | AJ97: 0 | AK97: 0 | AL97: 0 | AM97: 0 | AN97: 0 | AO97: 0 | AP97: 0 | AQ97: 0 | AR97: 0
A98: 1620000US2907948 | B98: Brandsville | C98: 18.8 | D98: 24.1 | E98: 20 | F98: 11.9 | G98: 18.2 | H98: 31.3 | I98: 28.6 | J98: 37.5 | K98: 37.14285714 | L98: 37.03703704 | M98: 39.9957672 | N98: 42.45718134 | O98: 44.91859548 | P98: 47.38000962 | Q98: 49.84142376 | R98: 52.3028379 | S98: 54.76425204 | T98: 57.22566619 | U98: 59.68708033 | V98: 62.14849447 | W98: 59.68708033 | X98: 60.50755171 | Y98: 60.78104217 | Z98: 60.32522473 | AA98: 60.53793954 | AB98: 60.54806881 | AC98: 60.47041103 | AD98: 60.51880646 | AE98: 60.51242877 | AF98: 60.50054875 | AG98: 60.51059466 | AH98: 60.50785739 | AI98: 60.5063336 | AJ98: 60.50826188 | AK98: 60.50748429 | AL98: 60.50735993 | AM98: 60.50770203 | AN98: 60.50751542 | AO98: 60.50752579 | AP98: 60.50758108 | AQ98: 60.50754076 | AR98: 60.50754921
A99: 1620000US2907966 | B99: Branson | C99: 3.2 | D99: 2.7 | E99: 3.7 | F99: 5.2 | G99: 4.2 | H99: 3.6 | I99: 2.7 | J99: 3.1 | K99: 4.037867079 | L99: 3.58955765 | M99: 3.661778753 | N99: 3.672512622 | O99: 3.683246491 | P99: 3.693980361 | Q99: 3.70471423 | R99: 3.715448099 | S99: 3.726181968 | T99: 3.736915837 | U99: 3.747649706 | V99: 3.758383575 | W99: 3.747649706 | X99: 3.751227663 | Y99: 3.752420315 | Z99: 3.750432561 | AA99: 3.751360179 | AB99: 3.751404352 | AC99: 3.751065697 | AD99: 3.751276743 | AE99: 3.751248931 | AF99: 3.751197124 | AG99: 3.751240932 | AH99: 3.751228996 | AI99: 3.751222351 | AJ99: 3.75123076 | AK99: 3.751227369 | AL99: 3.751226826 | AM99: 3.751228318 | AN99: 3.751227504 | AO99: 3.75122755 | AP99: 3.751227791 | AQ99: 3.751227615 | AR99: 3.751227652
A100: 1620000US2907989 | B100: Branson West | C100: 6.7 | D100: 4.3 | E100: 6 | F100: 7.4 | G100: 11 | H100: 5.7 | I100: 4.5 | J100: 4.4 | K100: 4.240282686 | L100: 2.730375427 | M100: 3.758911066 | N100: 3.406519294 | O100: 3.054127522 | P100: 2.70173575 | Q100: 2.349343978 | R100: 1.996952206 | S100: 1.644560434 | T100: 1.292168663 | U100: 0.9397768907 | V100: 0.5873851188 | W100: 0.9397768907 | X100: 0.8223129667 | Y100: 0.7831583254 | Z100: 0.848416061 | AA100: 0.817962451 | AB100: 0.8165122791 | AC100: 0.8276302637 | AD100: 0.8207016646 | AE100: 0.8216147358 | AF100: 0.8233155547 | AG100: 0.8218773184 | AH100: 0.822269203 | AI100: 0.8224873587 | AJ100: 0.8222112934 | AK100: 0.8223226183 | AL100: 0.8223404235 | AM100: 0.8222914451 | AN100: 0.8223181623 | AO100: 0.8223166769 | AP100: 0.8223087614 | AQ100: 0.8223145335 | AR100: 0.822313324
A101: 1620000US2908002 | B101: Brashear | C101: 17.1 | D101: 13.8 | E101: 19.5 | F101: 10.8 | G101: 8 | H101: 8.1 | I101: 8.8 | J101: 6.1 | K101: 2.409638554 | L101: 2.469135802 | M101: 0.2308671724 | N101: 0 | O101: 0 | P101: 0 | Q101: 0 | R101: 0 | S101: 0 | T101: 0 | U101: 0 | V101: 0 | W101: 0 | X101: 0 | Y101: 0 | Z101: 0 | AA101: 0 | AB101: 0 | AC101: 0 | AD101: 0 | AE101: 0 | AF101: 0 | AG101: 0 | AH101: 0 | AI101: 0 | AJ101: 0 | AK101: 0 | AL101: 0 | AM101: 0 | AN101: 0 | AO101: 0 | AP101: 0 | AQ101: 0 | AR101: 0
A102: 1620000US2908038 | B102: Braymer | C102: 11.1 | D102: 11.3 | E102: 10.1 | F102: 8.7 | G102: 8.2 | H102: 9 | I102: 8.8 | J102: 11.5 | K102: 15.43624161 | L102: 16.71554252 | M102: 14.00496421 | N102: 14.53583436 | O102: 15.0667045 | P102: 15.59757465 | Q102: 16.12844479 | R102: 16.65931494 | S102: 17.19018508 | T102: 17.72105523 | U102: 18.25192537 | V102: 18.78279552 | W102: 18.25192537 | X102: 18.42888209 | Y102: 18.48786766 | Z102: 18.38955838 | AA102: 18.43543604 | AB102: 18.43762069 | AC102: 18.4208717 | AD102: 18.43130948 | AE102: 18.42993396 | AF102: 18.42737171 | AG102: 18.42953838 | AH102: 18.42894802 | AI102: 18.42861937 | AJ102: 18.42903526 | AK102: 18.42886755 | AL102: 18.42884073 | AM102: 18.42891451 | AN102: 18.42887426 | AO102: 18.4288765 | AP102: 18.42888843 | AQ102: 18.42887973 | AR102: 18.42888155
A103: 1620000US2908128 | B103: Breckenridge | C103: 12.1 | D103: 12.7 | E103: 9 | F103: 9.7 | G103: 8 | H103: 9.9 | I103: 19.2 | J103: 17.7 | K103: 29.77099237 | L103: 20.27972028 | M103: 23.73555223 | N103: 25.3538215 | O103: 26.97209077 | P103: 28.59036004 | Q103: 30.2086293 | R103: 31.82689857 | S103: 33.44516784 | T103: 35.0634371 | U103: 36.68170637 | V103: 38.29997564 | W103: 36.68170637 | X103: 37.22112946 | Y103: 37.40093716 | Z103: 37.10125766 | AA103: 37.24110809 | AB103: 37.24776764 | AC103: 37.19671113 | AD103: 37.22852895 | AE103: 37.22433591 | AF103: 37.21652533 | AG103: 37.22313006 | AH103: 37.22133043 | AI103: 37.22032861 | AJ103: 37.22159637 | AK103: 37.22108514 | AL103: 37.22100337 | AM103: 37.22122829 | AN103: 37.2211056 | AO103: 37.22111242 | AP103: 37.22114877 | AQ103: 37.22112227 | AR103: 37.22112782
A104: 1620000US2908164 | B104: Breckenridge Hills | C104: 11.2 | D104: 12.2 | E104: 9.6 | F104: 9.3 | G104: 10 | H104: 10 | I104: 11.6 | J104: 12.2 | K104: 12.18295218 | L104: 8.619957537 | M104: 10.57563374 | N104: 10.55478697 | O104: 10.5339402 | P104: 10.51309344 | Q104: 10.49224667 | R104: 10.4713999 | S104: 10.45055313 | T104: 10.42970636 | U104: 10.40885959 | V104: 10.38801282 | W104: 10.40885959 | X104: 10.40191067 | Y104: 10.39959436 | Z104: 10.40345487 | AA104: 10.4016533 | AB104: 10.40156751 | AC104: 10.40222523 | AD104: 10.40181535 | AE104: 10.40186936 | AF104: 10.40196998 | AG104: 10.4018849 | AH104: 10.40190808 | AI104: 10.40192098 | AJ104: 10.40190465 | AK104: 10.40191124 | AL104: 10.40191229 | AM104: 10.40190939 | AN104: 10.40191097 | AO104: 10.40191089 | AP104: 10.40191042 | AQ104: 10.40191076 | AR104: 10.40191069
A105: 1620000US2908236 | B105: Brentwood | C105: 7 | D105: 6.5 | E105: 5.9 | F105: 6.6 | G105: 6.7 | H105: 6 | I105: 7.9 | J105: 7.7 | K105: 8.436532508 | L105: 6.935638809 | M105: 7.806433026 | N105: 7.959017734 | O105: 8.111602442 | P105: 8.26418715 | Q105: 8.416771858 | R105: 8.569356567 | S105: 8.721941275 | T105: 8.874525983 | U105: 9.027110691 | V105: 9.179695399 | W105: 9.027110691 | X105: 9.07797226 | Y105: 9.094926117 | Z105: 9.066669689 | AA105: 9.079856022 | AB105: 9.080483943 | AC105: 9.075669885 | AD105: 9.07866995 | AE105: 9.078274592 | AF105: 9.077538142 | AG105: 9.078160895 | AH105: 9.07799121 | AI105: 9.077896749 | AJ105: 9.078016284 | AK105: 9.077968081 | AL105: 9.077960371 | AM105: 9.077981579 | AN105: 9.07797001 | AO105: 9.077970654 | AP105: 9.077974081 | AQ105: 9.077971582 | AR105: 9.077972105
A106: 1620000US2908398 | B106: Bridgeton | C106: 10.1 | D106: 11.1 | E106: 9.9 | F106: 10.8 | G106: 8.6 | H106: 9.9 | I106: 11.2 | J106: 11.3 | K106: 10.18333636 | L106: 11.36363636 | M106: 10.92656667 | N106: 11.01417928 | O106: 11.1017919 | P106: 11.18940452 | Q106: 11.27701713 | R106: 11.36462975 | S106: 11.45224237 | T106: 11.53985498 | U106: 11.6274676 | V106: 11.71508022 | W106: 11.6274676 | X106: 11.65667181 | Y106: 11.66640654 | Z106: 11.65018198 | AA106: 11.65775344 | AB106: 11.65811399 | AC106: 11.6553498 | AD106: 11.65707241 | AE106: 11.6568454 | AF106: 11.65642254 | AG106: 11.65678012 | AH106: 11.65668269 | AI106: 11.65662845 | AJ106: 11.65669708 | AK106: 11.65666941 | AL106: 11.65666498 | AM106: 11.65667716 | AN106: 11.65667051 | AO106: 11.65667088 | AP106: 11.65667285 | AQ106: 11.65667142 | AR106: 11.65667172
A107: 1620000US2908470 | B107: Brimson | C107: 10.5 | D107: 9.5 | E107: 7.1 | F107: 9.5 | G107: 8.7 | H107: 15 | I107: 6.3 | J107: 7.1 | K107: 14.28571429 | L107: 7.142857143 | M107: 9.512380952 | N107: 9.512294372 | O107: 9.512207792 | P107: 9.512121212 | Q107: 9.512034632 | R107: 9.511948052 | S107: 9.511861472 | T107: 9.511774892 | U107: 9.511688312 | V107: 9.511601732 | W107: 9.511688312 | X107: 9.511659452 | Y107: 9.511649832 | Z107: 9.511665865 | AA107: 9.511658383 | AB107: 9.511658026 | AC107: 9.511660758 | AD107: 9.511659056 | AE107: 9.51165928 | AF107: 9.511659698 | AG107: 9.511659345 | AH107: 9.511659441 | AI107: 9.511659495 | AJ107: 9.511659427 | AK107: 9.511659454 | AL107: 9.511659458 | AM107: 9.511659446 | AN107: 9.511659453 | AO107: 9.511659453 | AP107: 9.511659451 | AQ107: 9.511659452 | AR107: 9.511659452
A108: 1620000US2908614 | B108: Bronaugh | C108: 13.3 | D108: 17 | E108: 17.3 | F108: 20.7 | G108: 10.6 | H108: 10.9 | I108: 5.4 | J108: 2.3 | K108: 17.04545455 | L108: 18.0952381 | M108: 10.69324675 | N108: 10.22582448 | O108: 9.758402204 | P108: 9.290979929 | Q108: 8.823557654 | R108: 8.35613538 | S108: 7.888713105 | T108: 7.42129083 | U108: 6.953868556 | V108: 6.486446281 | W108: 6.953868556 | X108: 6.798061131 | Y108: 6.746125322 | Z108: 6.832685003 | AA108: 6.792290485 | AB108: 6.790366937 | AC108: 6.805114142 | AD108: 6.795923855 | AE108: 6.797134978 | AF108: 6.799390991 | AG108: 6.797483275 | AH108: 6.798003081 | AI108: 6.798292449 | AJ108: 6.797926268 | AK108: 6.798073933 | AL108: 6.79809755 | AM108: 6.798032584 | AN108: 6.798068022 | AO108: 6.798066052 | AP108: 6.798055553 | AQ108: 6.798063209 | AR108: 6.798061605
A109: 1620000US2908650 | B109: Brookfield | C109: 16.1 | D109: 14.2 | E109: 13.5 | F109: 10 | G109: 13.5 | H109: 12.9 | I109: 14.5 | J109: 16.2 | K109: 19.41860465 | L109: 18.59243697 | M109: 17.73650967 | N109: 18.25385613 | O109: 18.77120259 | P109: 19.28854904 | Q109: 19.8058955 | R109: 20.32324196 | S109: 20.84058841 | T109: 21.35793487 | U109: 21.87528133 | V109: 22.39262778 | W109: 21.87528133 | X109: 22.04773014 | Y109: 22.10521308 | Z109: 22.00940819 | AA109: 22.05411714 | AB109: 22.05624614 | AC109: 22.03992382 | AD109: 22.0500957 | AE109: 22.04875522 | AF109: 22.04625825 | AG109: 22.04836972 | AH109: 22.04779439 | AI109: 22.04747412 | AJ109: 22.04787941 | AK109: 22.04771598 | AL109: 22.04768984 | AM109: 22.04776174 | AN109: 22.04772252 | AO109: 22.0477247 | AP109: 22.04773632 | AQ109: 22.04772784 | AR109: 22.04772962
A110: 1620000US2908776 | B110: Brooklyn Heights | C110: 5.5 | D110: 3.8 | E110: 4.1 | F110: 11.9 | G110: 14.5 | H110: 10.4 | I110: 13 | J110: 14 | K110: 6.818181818 | L110: 13.95348837 | M110: 14.66078929 | N110: 15.54508425 | O110: 16.4293792 | P110: 17.31367416 | Q110: 18.19796912 | R110: 19.08226408 | S110: 19.96655904 | T110: 20.85085399 | U110: 21.73514895 | V110: 22.61944391 | W110: 21.73514895 | X110: 22.02991394 | Y110: 22.12816893 | Z110: 21.96441061 | AA110: 22.04083116 | AB110: 22.04447023 | AC110: 22.01657067 | AD110: 22.03395735 | AE110: 22.03166609 | AF110: 22.02739804 | AG110: 22.03100716 | AH110: 22.03002376 | AI110: 22.02947632 | AJ110: 22.03016908 | AK110: 22.02988972 | AL110: 22.02984504 | AM110: 22.02996795 | AN110: 22.0299009 | AO110: 22.02990463 | AP110: 22.02992449 | AQ110: 22.02991001 | AR110: 22.02991304
A111: 1620000US2908884 | B111: Browning | C111: 16 | D111: 14.6 | E111: 16.7 | F111: 20.2 | G111: 19.6 | H111: 16.1 | I111: 16.8 | J111: 18.3 | K111: 18.29268293 | L111: 12.5 | M111: 16.53089431 | N111: 16.46209904 | O111: 16.39330377 | P111: 16.3245085 | Q111: 16.25571323 | R111: 16.18691796 | S111: 16.11812269 | T111: 16.04932742 | U111: 15.98053215 | V111: 15.91173688 | W111: 15.98053215 | X111: 15.95760039 | Y111: 15.94995648 | Z111: 15.96269634 | AA111: 15.95675107 | AB111: 15.95646796 | AC111: 15.95863846 | AD111: 15.95728583 | AE111: 15.95746408 | AF111: 15.95779612 | AG111: 15.95751535 | AH111: 15.95759185 | AI111: 15.95763444 | AJ111: 15.95758055 | AK111: 15.95760228 | AL111: 15.95760575 | AM111: 15.95759619 | AN111: 15.95760141 | AO111: 15.95760112 | AP111: 15.95759957 | AQ111: 15.9576007 | AR111: 15.95760046
A112: 1620000US2908902 | B112: Brownington | C112: 18.6 | D112: 24.2 | E112: 29 | F112: 27.8 | G112: 25 | H112: 16 | I112: 35.7 | J112: 28.6 | K112: 27.08333333 | L112: 35.48387097 | M112: 32.90799283 | N112: 34.02822418 | O112: 35.14845552 | P112: 36.26868687 | Q112: 37.38891821 | R112: 38.50914956 | S112: 39.62938091 | T112: 40.74961225 | U112: 41.8698436 | V112: 42.99007494 | W112: 41.8698436 | X112: 42.24325405 | Y112: 42.3677242 | Z112: 42.16027395 | AA112: 42.25708406 | AB112: 42.26169407 | AC112: 42.22635069 | AD112: 42.24837627 | AE112: 42.24547368 | AF112: 42.24006688 | AG112: 42.24463894 | AH112: 42.24339317 | AI112: 42.24269966 | AJ112: 42.24357726 | AK112: 42.24322336 | AL112: 42.24316676 | AM112: 42.24332246 | AN112: 42.24323753 | AO112: 42.24324225 | AP112: 42.24326741 | AQ112: 42.24324907 | AR112: 42.24325291
A113: 1620000US2908974 | B113: Brumley | C113: 4.8 | D113: 2.5 | E113: 2.5 | F113: 5 | G113: 5 | H113: 12 | I113: 8.3 | J113: 0 | K113: 16.32653061 | L113: 12.5 | M113: 12.5755102 | N113: 13.60875696 | O113: 14.64200371 | P113: 15.67525046 | Q113: 16.70849722 | R113: 17.74174397 | S113: 18.77499072 | T113: 19.80823748 | U113: 20.84148423 | V113: 21.87473098 | W113: 20.84148423 | X113: 21.18589981 | Y113: 21.30070501 | Z113: 21.10936302 | AA113: 21.19865595 | AB113: 21.20290799 | AC113: 21.17030899 | AD113: 21.19062431 | AE113: 21.1879471 | AF113: 21.18296013 | AG113: 21.18717718 | AH113: 21.18602813 | AI113: 21.18538848 | AJ113: 21.18619793 | AK113: 21.18587152 | AL113: 21.18581931 | AM113: 21.18596292 | AN113: 21.18588458 | AO113: 21.18588894 | AP113: 21.18591214 | AQ113: 21.18589522 | AR113: 21.18589877
A114: 1620000US2909046 | B114: Brunswick | C114: 8.4 | D114: 9.5 | E114: 5.6 | F114: 5.9 | G114: 7.3 | H114: 7.6 | I114: 9.3 | J114: 8 | K114: 5.144694534 | L114: 4.571428571 | M114: 5.71680294 | N114: 5.459564872 | O114: 5.202326805 | P114: 4.945088738 | Q114: 4.68785067 | R114: 4.430612603 | S114: 4.173374535 | T114: 3.916136468 | U114: 3.658898401 | V114: 3.401660333 | W114: 3.658898401 | X114: 3.573152378 | Y114: 3.544570371 | Z114: 3.59220705 | AA114: 3.5699766 | AB114: 3.568918007 | AC114: 3.577033885 | AD114: 3.571976164 | AE114: 3.572642685 | AF114: 3.573884245 | AG114: 3.572834365 | AH114: 3.573120432 | AI114: 3.57327968 | AJ114: 3.573078159 | AK114: 3.573159424 | AL114: 3.573172421 | AM114: 3.573136668 | AN114: 3.573156171 | AO114: 3.573155087 | AP114: 3.573149308 | AQ114: 3.573153522 | AR114: 3.573152639
A115: 1620000US2909388 | B115: Bucklin | C115: 20.6 | D115: 22.7 | E115: 24.2 | F115: 27.2 | G115: 25.3 | H115: 19.7 | I115: 15.3 | J115: 15.4 | K115: 14.86486486 | L115: 17.00680272 | M115: 14.47767604 | N115: 13.4323141 | O115: 12.38695215 | P115: 11.3415902 | Q115: 10.29622825 | R115: 9.250866302 | S115: 8.205504354 | T115: 7.160142406 | U115: 6.114780458 | V115: 5.069418509 | W115: 6.114780458 | X115: 5.766326475 | Y115: 5.650175147 | Z115: 5.843760693 | AA115: 5.753420772 | AB115: 5.749118871 | AC115: 5.782100112 | AD115: 5.761546585 | AE115: 5.764255189 | AF115: 5.769300629 | AG115: 5.765034134 | AH115: 5.766196651 | AI115: 5.766843805 | AJ115: 5.766024863 | AK115: 5.766355106 | AL115: 5.766407925 | AM115: 5.766262631 | AN115: 5.766341887 | AO115: 5.766337481 | AP115: 5.766314 | AQ115: 5.766331123 | AR115: 5.766327535
A116: 1620000US2909424 | B116: Buckner | C116: 14.1 | D116: 13.2 | E116: 17.6 | F116: 19.1 | G116: 16.7 | H116: 15.6 | I116: 14.9 | J116: 13.7 | K116: 12.98793471 | L116: 16.19433198 | M116: 14.8803777 | N116: 14.78440515 | O116: 14.68843261 | P116: 14.59246007 | Q116: 14.49648753 | R116: 14.40051499 | S116: 14.30454245 | T116: 14.20856991 | U116: 14.11259737 | V116: 14.01662483 | W116: 14.11259737 | X116: 14.08060652 | Y116: 14.06994291 | Z116: 14.0877156 | AA116: 14.07942168 | AB116: 14.07902673 | AC116: 14.08205467 | AD116: 14.08016769 | AE116: 14.08041636 | AF116: 14.08087957 | AG116: 14.08048788 | AH116: 14.0805946 | AI116: 14.08065402 | AJ116: 14.08057883 | AK116: 14.08060915 | AL116: 14.080614 | AM116: 14.08060066 | AN116: 14.08060794 | AO116: 14.08060753 | AP116: 14.08060538 | AQ116: 14.08060695 | AR116: 14.08060662
